Workbook

Sheet Dashboard
B2: Appendix B Dashboard
B4: State | D4: Massachusetts
B5: Counterfactual | D5: Counterfactual #1
B6: Dollar type | D6: 2021 $ | F6: Values can be shown either as constant 2021 dollars, or as nominal dollars.
B8: Wholesale Risk Premium (WRP) | D8: 0.08 | F8: Wholesale risk premium represents the observed difference between wholesale costs and retail prices. 8 percent is the default value in AESC 2021.
B9: Energy losses | D9: 0.09 | F9: Electrical losses due to transmission and distribution system. The default is 9 percent, representing marginal losses over the entire year.
B10: Peak demand losses | D10: 0.16 | F10: Electrical losses due to transmission and distribution system. The default is 16 percent, representing marginal losses during peak periods.
B12: Nominal Discount Rate | D12: 0.028224
B13: Inflation Rate | D13: 0.02
B14: Real Discount Rate | D14: =((1+D12)/(1+D13)-1) -> 0.008062745098
B16: DRIPE and Reliability Vintage | D16: 2021 vintage measures
B18: Instructions
B20: Specify your inputs in the above blue cells.
B21: Values will then appear in the "UserResults" tab.
B22: Values also appear in each of the blue tabs. Note, however, that only the "UserResults" tab is able to show values in nominal dollars.

Sheet UserResults
B2: ="AESC 2021 "&Dashboard!D5&" Results: Avoided Cost of Electricity ("&Dashboard!$D$6&")" -> AESC 2021 Counterfactual #1 Results: Avoided Cost of Electricity (2021 $)
B3: =State -> Massachusetts
B4: DRIPE and Reliability Vintage = 2021 vintage measures
B6: WHOLESALE VALUES | AJ6: RETAIL VALUES
B7: Years | C7: Electric Energy | G7: REC Costs | H7: Non-Embedded GHG Costs | L7: Non-Embedded NOx Costs | P7: Energy DRIPE | X7: Cross-DRIPE1 | Z7: Electric Capacity | AB7: Capacity DRIPE | AF7: Reliability4 | AH7: PTF | AJ7: Years | AK7: Electric Energy1 | AO7: Non-Embedded GHG Costs | AS7: Non-Embedded NOx Costs | AW7: Energy DRIPE2 | BE7: Cross-DRIPE1 | BG7: Electric Capacity | BI7: Capacity DRIPE | BM7: Reliability | BO7: PTF
P8: Intrastate DRIPE | T8: Rest-of-Pool DRIPE | X8: Intrastate DRIPE | Y8: Interstate DRIPE | AB8: Intrastate DRIPE | AD8: Rest-of-Pool DRIPE | AW8: Intrastate DRIPE | BA8: Rest-of-Pool DRIPE | BE8: Intrastate DRIPE | BF8: Interstate DRIPE | BI8: Intrastate DRIPE | BK8: Rest-of-Pool DRIPE
C9: Winter Peak | D9: Winter Off-Peak | E9: Summer Peak | F9: Summer Off-Peak | H9: Winter Peak | I9: Winter Off-Peak | J9: Summer Peak | K9: Summer Off-Peak | L9: Winter Peak | M9: Winter Off-Peak | N9: Summer Peak | O9: Summer Off-Peak | P9: Winter Peak | Q9: Winter Off-Peak | R9: Summer Peak | S9: Summer Off-Peak | T9: Winter Peak | U9: Winter Off-Peak | V9: Summer Peak | W9: Summer Off-Peak | Z9: Cleared (FCA Price) | AA9: Uncleared2 | AB9: Cleared | AC9: Uncleared2 | AD9: Cleared | AE9: Uncleared2 | AF9: Cleared | AG9: Uncleared | AK9: Winter Peak | AL9: Winter Off-Peak | AM9: Summer Peak | AN9: Summer Off-Peak | AO9: Winter Peak | AP9: Winter Off-Peak | AQ9: Summer Peak | AR9: Summer Off-Peak | AS9: Winter Peak | AT9: Winter Off-Peak | AU9: Summer Peak | AV9: Summer Off-Peak | AW9: Winter Peak | AX9: Winter Off-Peak | AY9: Summer Peak | AZ9: Summer Off-Peak | BA9: Winter Peak | BB9: Winter Off-Peak | BC9: Summer Peak | BD9: Summer Off-Peak | BG9: Cleared4 | BH9: Uncleared5 | BI9: Cleared4 | BJ9: Uncleared5 | BK9: Cleared4 | BL9: Uncleared5 | BM9: Cleared4 | BN9: Uncleared5
B10: Units: | C10: $/kWh | D10: $/kWh | E10: $/kWh | F10: $/kWh | G10: $/kWh | H10: $/kWh | I10: $/kWh | J10: $/kWh | K10: $/kWh | L10: $/kWh | M10: $/kWh | N10: $/kWh | O10: $/kWh | P10: $/kWh | Q10: $/kWh | R10: $/kWh | S10: $/kWh | T10: $/kWh | U10: $/kWh | V10: $/kWh | W10: $/kWh | X10: $/kWh | Y10: $/kWh | Z10: $/kW-yr | AA10: $/kW-yr | AB10: $/kW-yr | AC10: $/kW-yr | AD10: $/kW-yr | AE10: $/kW-yr | AF10: $/kW-yr | AG10: $/kW-yr | AH10: $/kW-yr | AJ10: Units: | AK10: $/kWh | AL10: $/kWh | AM10: $/kWh | AN10: $/kWh | AO10: $/kWh | AP10: $/kWh | AQ10: $/kWh | AR10: $/kWh | AS10: $/kWh | AT10: $/kWh | AU10: $/kWh | AV10: $/kWh | AW10: $/kWh | AX10: $/kWh | AY10: $/kWh | AZ10: $/kWh | BA10: $/kWh | BB10: $/kWh | BC10: $/kWh | BD10: $/kWh | BE10: $/kWh | BF10: $/kWh | BG10: $/kW-yr | BH10: $/kW-yr | BI10: $/kW-yr | BJ10: $/kW-yr | BK10: $/kW-yr | BL10: $/kW-yr | BM10: $/kW-yr | BN10: $/kW-yr | BO10: $/kW-yr
B11: 2021 | C11: =IFERROR(INDIRECT(INDEX(Ref!$C$4:$C$9,MATCH(State,Ref!$B$4:$B$9,0))&INDEX(Ref!$C$12:$C$14,MATCH(Counterfactual,Ref!$B$12:$B$14,0))&"!"&ADDRESS(ROW(C11),COLUMN(C11)))*IF(DollarType=Ref!$B$17,1,(1+Inflation)^($B11-$B$11)),"-") -> 0.04288349837 | D11: =IFERROR(INDIRECT(INDEX(Ref!$C$4:$C$9,MATCH(State,Ref!$B$4:$B$9,0))&INDEX(Ref!$C$12:$C$14,MATCH(Counterfactual,Ref!$B$12:$B$14,0))&"!"&ADDRESS(ROW(D11),COLUMN(D11)))*IF(DollarType=Ref!$B$17,1,(1+Inflation)^($B11-$B$11)),"-") -> 0.03674965291 | E11: =IFERROR(INDIRECT(INDEX(Ref!$C$4:$C$9,MATCH(State,Ref!$B$4:$B$9,0))&INDEX(Ref!$C$12:$C$14,MATCH(Counterfactual,Ref!$B$12:$B$14,0))&"!"&ADDRESS(ROW(E11),COLUMN(E11)))*IF(DollarType=Ref!$B$17,1,(1+Inflation)^($B11-$B$11)),"-") -> 0.03193935879 | F11: =IFERROR(INDIRECT(INDEX(Ref!$C$4:$C$9,MATCH(State,Ref!$B$4:$B$9,0))&INDEX(Ref!$C$12:$C$14,MATCH(Counterfactual,Ref!$B$12:$B$14,0))&"!"&ADDRESS(ROW(F11),COLUMN(F11)))*IF(DollarType=Ref!$B$17,1,(1+Inflation)^($B11-$B$11)),"-") -> 0.02626570732 | G11: =IFERROR(INDIRECT(INDEX(Ref!$C$4:$C$9,MATCH(State,Ref!$B$4:$B$9,0))&INDEX(Ref!$C$12:$C$14,MATCH(Counterfactual,Ref!$B$12:$B$14,0))&"!"&ADDRESS(ROW(G11),COLUMN(G11)))*IF(DollarType=Ref!$B$17,1,(1+Inflation)^($B11-$B$11)),"-") -> 0.01165973525 | H11: =IFERROR(INDIRECT(INDEX(Ref!$C$4:$C$9,MATCH(State,Ref!$B$4:$B$9,0))&INDEX(Ref!$C$12:$C$14,MATCH(Counterfactual,Ref!$B$12:$B$14,0))&"!"&ADDRESS(ROW(H11),COLUMN(H11)))*IF(DollarType=Ref!$B$17,1,(1+Inflation)^($B11-$B$11)),"-") -> 0.06951930993 | I11: =IFERROR(INDIRECT(INDEX(Ref!$C$4:$C$9,MATCH(State,Ref!$B$4:$B$9,0))&INDEX(Ref!$C$12:$C$14,MATCH(Counterfactual,Ref!$B$12:$B$14,0))&"!"&ADDRESS(ROW(I11),COLUMN(I11)))*IF(DollarType=Ref!$B$17,1,(1+Inflation)^($B11-$B$11)),"-") -> 0.07275543344 | J11: =IFERROR(INDIRECT(INDEX(Ref!$C$4:$C$9,MATCH(State,Ref!$B$4:$B$9,0))&INDEX(Ref!$C$12:$C$14,MATCH(Counterfactual,Ref!$B$12:$B$14,0))&"!"&ADDRESS(ROW(J11),COLUMN(J11)))*IF(DollarType=Ref!$B$17,1,(1+Inflation)^($B11-$B$11)),"-") -> 0.07167516918 | K11: =IFERROR(INDIRECT(INDEX(Ref!$C$4:$C$9,MATCH(State,Ref!$B$4:$B$9,0))&INDEX(Ref!$C$12:$C$14,MATCH(Counterfactual,Ref!$B$12:$B$14,0))&"!"&ADDRESS(ROW(K11),COLUMN(K11)))*IF(DollarType=Ref!$B$17,1,(1+Inflation)^($B11-$B$11)),"-") -> 0.07347045274 | L11: =IFERROR(INDIRECT(INDEX(Ref!$C$4:$C$9,MATCH(State,Ref!$B$4:$B$9,0))&INDEX(Ref!$C$12:$C$14,MATCH(Counterfactual,Ref!$B$12:$B$14,0))&"!"&ADDRESS(ROW(L11),COLUMN(L11)))*IF(DollarType=Ref!$B$17,1,(1+Inflation)^($B11-$B$11)),"-") -> 0.0006637634204 | M11: =IFERROR(INDIRECT(INDEX(Ref!$C$4:$C$9,MATCH(State,Ref!$B$4:$B$9,0))&INDEX(Ref!$C$12:$C$14,MATCH(Counterfactual,Ref!$B$12:$B$14,0))&"!"&ADDRESS(ROW(M11),COLUMN(M11)))*IF(DollarType=Ref!$B$17,1,(1+Inflation)^($B11-$B$11)),"-") -> 0.001508973872 | N11: =IFERROR(INDIRECT(INDEX(Ref!$C$4:$C$9,MATCH(State,Ref!$B$4:$B$9,0))&INDEX(Ref!$C$12:$C$14,MATCH(Counterfactual,Ref!$B$12:$B$14,0))&"!"&ADDRESS(ROW(N11),COLUMN(N11)))*IF(DollarType=Ref!$B$17,1,(1+Inflation)^($B11-$B$11)),"-") -> 0.001033745672 | O11: =IFERROR(INDIRECT(INDEX(Ref!$C$4:$C$9,MATCH(State,Ref!$B$4:$B$9,0))&INDEX(Ref!$C$12:$C$14,MATCH(Counterfactual,Ref!$B$12:$B$14,0))&"!"&ADDRESS(ROW(O11),COLUMN(O11)))*IF(DollarType=Ref!$B$17,1,(1+Inflation)^($B11-$B$11)),"-") -> 0.0008092607202 | P11: =IFERROR(INDIRECT(INDEX(Ref!$C$4:$C$9,MATCH(State,Ref!$B$4:$B$9,0))&INDEX(Ref!$C$12:$C$14,MATCH(Counterfactual,Ref!$B$12:$B$14,0))&"!"&ADDRESS(ROW(P11),COLUMN(P11)))*IF(DollarType=Ref!$B$17,1,(1+Inflation)^($B11-$B$11)),"-") -> 0.01191771656 | Q11: =IFERROR(INDIRECT(INDEX(Ref!$C$4:$C$9,MATCH(State,Ref!$B$4:$B$9,0))&INDEX(Ref!$C$12:$C$14,MATCH(Counterfactual,Ref!$B$12:$B$14,0))&"!"&ADDRESS(ROW(Q11),COLUMN(Q11)))*IF(DollarType=Ref!$B$17,1,(1+Inflation)^($B11-$B$11)),"-") -> 0.009253400385 | R11: =IFERROR(INDIRECT(INDEX(Ref!$C$4:$C$9,MATCH(State,Ref!$B$4:$B$9,0))&INDEX(Ref!$C$12:$C$14,MATCH(Counterfactual,Ref!$B$12:$B$14,0))&"!"&ADDRESS(ROW(R11),COLUMN(R11)))*IF(DollarType=Ref!$B$17,1,(1+Inflation)^($B11-$B$11)),"-") -> 0.008791167857 | S11: =IFERROR(INDIRECT(INDEX(Ref!$C$4:$C$9,MATCH(State,Ref!$B$4:$B$9,0))&INDEX(Ref!$C$12:$C$14,MATCH(Counterfactual,Ref!$B$12:$B$14,0))&"!"&ADDRESS(ROW(S11),COLUMN(S11)))*IF(DollarType=Ref!$B$17,1,(1+Inflation)^($B11-$B$11)),"-") -> 0.004895151853 | T11: =IFERROR(INDIRECT(INDEX(Ref!$C$4:$C$9,MATCH(State,Ref!$B$4:$B$9,0))&INDEX(Ref!$C$12:$C$14,MATCH(Counterfactual,Ref!$B$12:$B$14,0))&"!"&ADDRESS(ROW(T11),COLUMN(T11)))*IF(DollarType=Ref!$B$17,1,(1+Inflation)^($B11-$B$11)),"-") -> 0.01176309854 | U11: =IFERROR(INDIRECT(INDEX(Ref!$C$4:$C$9,MATCH(State,Ref!$B$4:$B$9,0))&INDEX(Ref!$C$12:$C$14,MATCH(Counterfactual,Ref!$B$12:$B$14,0))&"!"&ADDRESS(ROW(U11),COLUMN(U11)))*IF(DollarType=Ref!$B$17,1,(1+Inflation)^($B11-$B$11)),"-") -> 0.009090779935 | V11: =IFERROR(INDIRECT(INDEX(Ref!$C$4:$C$9,MATCH(State,Ref!$B$4:$B$9,0))&INDEX(Ref!$C$12:$C$14,MATCH(Counterfactual,Ref!$B$12:$B$14,0))&"!"&ADDRESS(ROW(V11),COLUMN(V11)))*IF(DollarType=Ref!$B$17,1,(1+Inflation)^($B11-$B$11)),"-") -> 0.008159126632 | W11: =IFERROR(INDIRECT(INDEX(Ref!$C$4:$C$9,MATCH(State,Ref!$B$4:$B$9,0))&INDEX(Ref!$C$12:$C$14,MATCH(Counterfactual,Ref!$B$12:$B$14,0))&"!"&ADDRESS(ROW(W11),COLUMN(W11)))*IF(DollarType=Ref!$B$17,1,(1+Inflation)^($B11-$B$11)),"-") -> 0.004624605476 | X11: =IFERROR(INDIRECT(INDEX(Ref!$C$4:$C$9,MATCH(State,Ref!$B$4:$B$9,0))&INDEX(Ref!$C$12:$C$14,MATCH(Counterfactual,Ref!$B$12:$B$14,0))&"!"&ADDRESS(ROW(X11),COLUMN(X11)))*IF(DollarType=Ref!$B$17,1,(1+Inflation)^($B11-$B$11)),"-") -> 0.004753604111 | Y11: =IFERROR(INDIRECT(INDEX(Ref!$C$4:$C$9,MATCH(State,Ref!$B$4:$B$9,0))&INDEX(Ref!$C$12:$C$14,MATCH(Counterfactual,Ref!$B$12:$B$14,0))&"!"&ADDRESS(ROW(Y11),COLUMN(Y11)))*IF(DollarType=Ref!$B$17,1,(1+Inflation)^($B11-$B$11)),"-") -> 0.004692283978 | Z11: =IFERROR(INDIRECT(INDEX(Ref!$C$4:$C$9,MATCH(State,Ref!$B$4:$B$9,0))&INDEX(Ref!$C$12:$C$14,MATCH(Counterfactual,Ref!$B$12:$B$14,0))&"!"&ADDRESS(ROW(Z11),COLUMN(Z11)))*IF(DollarType=Ref!$B$17,1,(1+Inflation)^($B11-$B$11)),"-") -> 57.20929113 | AA11: =IFERROR(INDIRECT(INDEX(Ref!$C$4:$C$9,MATCH(State,Ref!$B$4:$B$9,0))&INDEX(Ref!$C$12:$C$14,MATCH(Counterfactual,Ref!$B$12:$B$14,0))&"!"&ADDRESS(ROW(AA11),COLUMN(AA11)))*IF(DollarType=Ref!$B$17,1,(1+Inflation)^($B11-$B$11)),"-") -> - | AB11: =IFERROR(INDIRECT(INDEX(Ref!$C$4:$C$9,MATCH(State,Ref!$B$4:$B$9,0))&INDEX(Ref!$C$12:$C$14,MATCH(Counterfactual,Ref!$B$12:$B$14,0))&"!"&ADDRESS(ROW(AB11),COLUMN(AB11)))*IF(DollarType=Ref!$B$17,1,(1+Inflation)^($B11-$B$11)),"-") -> 57.26720341 | AC11: =IFERROR(INDIRECT(INDEX(Ref!$C$4:$C$9,MATCH(State,Ref!$B$4:$B$9,0))&INDEX(Ref!$C$12:$C$14,MATCH(Counterfactual,Ref!$B$12:$B$14,0))&"!"&ADDRESS(ROW(AC11),COLUMN(AC11)))*IF(DollarType=Ref!$B$17,1,(1+Inflation)^($B11-$B$11)),"-") -> - | AD11: =IFERROR(INDIRECT(INDEX(Ref!$C$4:$C$9,MATCH(State,Ref!$B$4:$B$9,0))&INDEX(Ref!$C$12:$C$14,MATCH(Counterfactual,Ref!$B$12:$B$14,0))&"!"&ADDRESS(ROW(AD11),COLUMN(AD11)))*IF(DollarType=Ref!$B$17,1,(1+Inflation)^($B11-$B$11)),"-") -> 58.27500333 | AE11: =IFERROR(INDIRECT(INDEX(Ref!$C$4:$C$9,MATCH(State,Ref!$B$4:$B$9,0))&INDEX(Ref!$C$12:$C$14,MATCH(Counterfactual,Ref!$B$12:$B$14,0))&"!"&ADDRESS(ROW(AE11),COLUMN(AE11)))*IF(DollarType=Ref!$B$17,1,(1+Inflation)^($B11-$B$11)),"-") -> - | AF11: =IFERROR(INDIRECT(INDEX(Ref!$C$4:$C$9,MATCH(State,Ref!$B$4:$B$9,0))&INDEX(Ref!$C$12:$C$14,MATCH(Counterfactual,Ref!$B$12:$B$14,0))&"!"&ADDRESS(ROW(AF11),COLUMN(AF11)))*IF(DollarType=Ref!$B$17,1,(1+Inflation)^($B11-$B$11)),"-") -> 1.923498874 | AG11: =IFERROR(INDIRECT(INDEX(Ref!$C$4:$C$9,MATCH(State,Ref!$B$4:$B$9,0))&INDEX(Ref!$C$12:$C$14,MATCH(Counterfactual,Ref!$B$12:$B$14,0))&"!"&ADDRESS(ROW(AG11),COLUMN(AG11)))*IF(DollarType=Ref!$B$17,1,(1+Inflation)^($B11-$B$11)),"-") -> 27.2910921 | AH11: =IFERROR(INDIRECT(INDEX(Ref!$C$4:$C$9,MATCH(State,Ref!$B$4:$B$9,0))&INDEX(Ref!$C$12:$C$14,MATCH(Counterfactual,Ref!$B$12:$B$14,0))&"!"&ADDRESS(ROW(AH11),COLUMN(AH11)))*IF(DollarType=Ref!$B$17,1,(1+Inflation)^($B11-$B$11)),"-") -> 84.01598436 | AJ11: 2021 | AK11: =IFERROR((C11+$G11)*(1+EnergyLosses)*(1+WRP),"-") -> 0.06420829463 | AL11: =IFERROR((D11+$G11)*(1+EnergyLosses)*(1+WRP),"-") -> 0.05698753175 | AM11: =IFERROR((E11+$G11)*(1+EnergyLosses)*(1+WRP),"-") -> 0.0513248535 | AN11: =IFERROR((F11+$G11)*(1+EnergyLosses)*(1+WRP),"-") -> 0.04464583099 | AO11: =IFERROR(H11*(1+EnergyLosses),"-") -> 0.07577604782 | AP11: =IFERROR(I11*(1+EnergyLosses),"-") -> 0.07930342245 | AQ11: =IFERROR(J11*(1+EnergyLosses),"-") -> 0.07812593441 | AR11: =IFERROR(K11*(1+EnergyLosses),"-") -> 0.08008279349 | AS11: =IFERROR(L11*(1+EnergyLosses),"-") -> 0.0007235021283 | AT11: =IFERROR(M11*(1+EnergyLosses),"-") -> 0.00164478152 | AU11: =IFERROR(N11*(1+EnergyLosses),"-") -> 0.001126782783 | AV11: =IFERROR(O11*(1+EnergyLosses),"-") -> 0.000882094185 | AW11: =IFERROR(P11*(1+EnergyLosses)*(1+WRP),"-") -> 0.01402953594 | AX11: =IFERROR(Q11*(1+EnergyLosses)*(1+WRP),"-") -> 0.01089310293 | AY11: =IFERROR(R11*(1+EnergyLosses)*(1+WRP),"-") -> 0.0103489628 | AZ11: =IFERROR(S11*(1+EnergyLosses)*(1+WRP),"-") -> 0.005762572762 | BA11: =IFERROR(T11*(1+EnergyLosses)*(1+WRP),"-") -> 0.0138475196 | BB11: =IFERROR(U11*(1+EnergyLosses)*(1+WRP),"-") -> 0.01070166614 | BC11: =IFERROR(V11*(1+EnergyLosses)*(1+WRP),"-") -> 0.009604923871 | BD11: =IFERROR(W11*(1+EnergyLosses)*(1+WRP),"-") -> 0.005444085567 | BE11: =IFERROR(X11*(1+EnergyLosses)*(1+WRP),"-") -> 0.00559594276 | BF11: =IFERROR(Y11*(1+EnergyLosses)*(1+WRP),"-") -> 0.005523756699 | BG11: =IFERROR(Z11*(1+PeakDemandLosses),"-") -> 66.36277771 | BH11: =IFERROR(AA11*(1+PeakDemandLosses)*(1+WRP),"-") -> - | BI11: =IFERROR(AB11*(1+PeakDemandLosses),"-") -> 66.42995595 | BJ11: =IFERROR(AC11*(1+PeakDemandLosses)*(1+WRP),"-") -> - | BK11: =IFERROR(AD11*(1+PeakDemandLosses),"-") -> 67.59900386 | BL11: =IFERROR(AE11*(1+PeakDemandLosses)*(1+WRP),"-") -> - | BM11: =IFERROR(AF11*(1+PeakDemandLosses),"-") -> 2.231258694 | BN11: =IFERROR(AG11*(1+PeakDemandLosses)*(1+WRP),"-") -> 34.19028019 | BO11: =AH11*(1+PeakDemandLosses) -> 97.45854186
B12: 2022 | C12: =IFERROR(INDIRECT(INDEX(Ref!$C$4:$C$9,MATCH(State,Ref!$B$4:$B$9,0))&INDEX(Ref!$C$12:$C$14,MATCH(Counterfactual,Ref!$B$12:$B$14,0))&"!"&ADDRESS(ROW(C12),COLUMN(C12)))*IF(DollarType=Ref!$B$17,1,(1+Inflation)^($B12-$B$11)),"-") -> 0.04506361339 | D12: =IFERROR(INDIRECT(INDEX(Ref!$C$4:$C$9,MATCH(State,Ref!$B$4:$B$9,0))&INDEX(Ref!$C$12:$C$14,MATCH(Counterfactual,Ref!$B$12:$B$14,0))&"!"&ADDRESS(ROW(D12),COLUMN(D12)))*IF(DollarType=Ref!$B$17,1,(1+Inflation)^($B12-$B$11)),"-") -> 0.04168616331 | E12: =IFERROR(INDIRECT(INDEX(Ref!$C$4:$C$9,MATCH(State,Ref!$B$4:$B$9,0))&INDEX(Ref!$C$12:$C$14,MATCH(Counterfactual,Ref!$B$12:$B$14,0))&"!"&ADDRESS(ROW(E12),COLUMN(E12)))*IF(DollarType=Ref!$B$17,1,(1+Inflation)^($B12-$B$11)),"-") -> 0.02880499111 | F12: =IFERROR(INDIRECT(INDEX(Ref!$C$4:$C$9,MATCH(State,Ref!$B$4:$B$9,0))&INDEX(Ref!$C$12:$C$14,MATCH(Counterfactual,Ref!$B$12:$B$14,0))&"!"&ADDRESS(ROW(F12),COLUMN(F12)))*IF(DollarType=Ref!$B$17,1,(1+Inflation)^($B12-$B$11)),"-") -> 0.0253165056 | G12: =IFERROR(INDIRECT(INDEX(Ref!$C$4:$C$9,MATCH(State,Ref!$B$4:$B$9,0))&INDEX(Ref!$C$12:$C$14,MATCH(Counterfactual,Ref!$B$12:$B$14,0))&"!"&ADDRESS(ROW(G12),COLUMN(G12)))*IF(DollarType=Ref!$B$17,1,(1+Inflation)^($B12-$B$11)),"-") -> 0.01097719744 | H12: =IFERROR(INDIRECT(INDEX(Ref!$C$4:$C$9,MATCH(State,Ref!$B$4:$B$9,0))&INDEX(Ref!$C$12:$C$14,MATCH(Counterfactual,Ref!$B$12:$B$14,0))&"!"&ADDRESS(ROW(H12),COLUMN(H12)))*IF(DollarType=Ref!$B$17,1,(1+Inflation)^($B12-$B$11)),"-") -> 0.05748256175 | I12: =IFERROR(INDIRECT(INDEX(Ref!$C$4:$C$9,MATCH(State,Ref!$B$4:$B$9,0))&INDEX(Ref!$C$12:$C$14,MATCH(Counterfactual,Ref!$B$12:$B$14,0))&"!"&ADDRESS(ROW(I12),COLUMN(I12)))*IF(DollarType=Ref!$B$17,1,(1+Inflation)^($B12-$B$11)),"-") -> 0.0584373482 | J12: =IFERROR(INDIRECT(INDEX(Ref!$C$4:$C$9,MATCH(State,Ref!$B$4:$B$9,0))&INDEX(Ref!$C$12:$C$14,MATCH(Counterfactual,Ref!$B$12:$B$14,0))&"!"&ADDRESS(ROW(J12),COLUMN(J12)))*IF(DollarType=Ref!$B$17,1,(1+Inflation)^($B12-$B$11)),"-") -> 0.05668854599 | K12: =IFERROR(INDIRECT(INDEX(Ref!$C$4:$C$9,MATCH(State,Ref!$B$4:$B$9,0))&INDEX(Ref!$C$12:$C$14,MATCH(Counterfactual,Ref!$B$12:$B$14,0))&"!"&ADDRESS(ROW(K12),COLUMN(K12)))*IF(DollarType=Ref!$B$17,1,(1+Inflation)^($B12-$B$11)),"-") -> 0.06315425273 | L12: =IFERROR(INDIRECT(INDEX(Ref!$C$4:$C$9,MATCH(State,Ref!$B$4:$B$9,0))&INDEX(Ref!$C$12:$C$14,MATCH(Counterfactual,Ref!$B$12:$B$14,0))&"!"&ADDRESS(ROW(L12),COLUMN(L12)))*IF(DollarType=Ref!$B$17,1,(1+Inflation)^($B12-$B$11)),"-") -> 0.000765911678 | M12: =IFERROR(INDIRECT(INDEX(Ref!$C$4:$C$9,MATCH(State,Ref!$B$4:$B$9,0))&INDEX(Ref!$C$12:$C$14,MATCH(Counterfactual,Ref!$B$12:$B$14,0))&"!"&ADDRESS(ROW(M12),COLUMN(M12)))*IF(DollarType=Ref!$B$17,1,(1+Inflation)^($B12-$B$11)),"-") -> 0.0006402944587 | N12: =IFERROR(INDIRECT(INDEX(Ref!$C$4:$C$9,MATCH(State,Ref!$B$4:$B$9,0))&INDEX(Ref!$C$12:$C$14,MATCH(Counterfactual,Ref!$B$12:$B$14,0))&"!"&ADDRESS(ROW(N12),COLUMN(N12)))*IF(DollarType=Ref!$B$17,1,(1+Inflation)^($B12-$B$11)),"-") -> 0.001013486138 | O12: =IFERROR(INDIRECT(INDEX(Ref!$C$4:$C$9,MATCH(State,Ref!$B$4:$B$9,0))&INDEX(Ref!$C$12:$C$14,MATCH(Counterfactual,Ref!$B$12:$B$14,0))&"!"&ADDRESS(ROW(O12),COLUMN(O12)))*IF(DollarType=Ref!$B$17,1,(1+Inflation)^($B12-$B$11)),"-") -> 0.0007914325731 | P12: =IFERROR(INDIRECT(INDEX(Ref!$C$4:$C$9,MATCH(State,Ref!$B$4:$B$9,0))&INDEX(Ref!$C$12:$C$14,MATCH(Counterfactual,Ref!$B$12:$B$14,0))&"!"&ADDRESS(ROW(P12),COLUMN(P12)))*IF(DollarType=Ref!$B$17,1,(1+Inflation)^($B12-$B$11)),"-") -> 0.01980108379 | Q12: =IFERROR(INDIRECT(INDEX(Ref!$C$4:$C$9,MATCH(State,Ref!$B$4:$B$9,0))&INDEX(Ref!$C$12:$C$14,MATCH(Counterfactual,Ref!$B$12:$B$14,0))&"!"&ADDRESS(ROW(Q12),COLUMN(Q12)))*IF(DollarType=Ref!$B$17,1,(1+Inflation)^($B12-$B$11)),"-") -> 0.01667622706 | R12: =IFERROR(INDIRECT(INDEX(Ref!$C$4:$C$9,MATCH(State,Ref!$B$4:$B$9,0))&INDEX(Ref!$C$12:$C$14,MATCH(Counterfactual,Ref!$B$12:$B$14,0))&"!"&ADDRESS(ROW(R12),COLUMN(R12)))*IF(DollarType=Ref!$B$17,1,(1+Inflation)^($B12-$B$11)),"-") -> 0.01212371854 | S12: =IFERROR(INDIRECT(INDEX(Ref!$C$4:$C$9,MATCH(State,Ref!$B$4:$B$9,0))&INDEX(Ref!$C$12:$C$14,MATCH(Counterfactual,Ref!$B$12:$B$14,0))&"!"&ADDRESS(ROW(S12),COLUMN(S12)))*IF(DollarType=Ref!$B$17,1,(1+Inflation)^($B12-$B$11)),"-") -> 0.00716779134 | T12: =IFERROR(INDIRECT(INDEX(Ref!$C$4:$C$9,MATCH(State,Ref!$B$4:$B$9,0))&INDEX(Ref!$C$12:$C$14,MATCH(Counterfactual,Ref!$B$12:$B$14,0))&"!"&ADDRESS(ROW(T12),COLUMN(T12)))*IF(DollarType=Ref!$B$17,1,(1+Inflation)^($B12-$B$11)),"-") -> 0.01991326062 | U12: =IFERROR(INDIRECT(INDEX(Ref!$C$4:$C$9,MATCH(State,Ref!$B$4:$B$9,0))&INDEX(Ref!$C$12:$C$14,MATCH(Counterfactual,Ref!$B$12:$B$14,0))&"!"&ADDRESS(ROW(U12),COLUMN(U12)))*IF(DollarType=Ref!$B$17,1,(1+Inflation)^($B12-$B$11)),"-") -> 0.0167229717 | V12: =IFERROR(INDIRECT(INDEX(Ref!$C$4:$C$9,MATCH(State,Ref!$B$4:$B$9,0))&INDEX(Ref!$C$12:$C$14,MATCH(Counterfactual,Ref!$B$12:$B$14,0))&"!"&ADDRESS(ROW(V12),COLUMN(V12)))*IF(DollarType=Ref!$B$17,1,(1+Inflation)^($B12-$B$11)),"-") -> 0.01147981159 | W12: =IFERROR(INDIRECT(INDEX(Ref!$C$4:$C$9,MATCH(State,Ref!$B$4:$B$9,0))&INDEX(Ref!$C$12:$C$14,MATCH(Counterfactual,Ref!$B$12:$B$14,0))&"!"&ADDRESS(ROW(W12),COLUMN(W12)))*IF(DollarType=Ref!$B$17,1,(1+Inflation)^($B12-$B$11)),"-") -> 0.006915202403 | X12: =IFERROR(INDIRECT(INDEX(Ref!$C$4:$C$9,MATCH(State,Ref!$B$4:$B$9,0))&INDEX(Ref!$C$12:$C$14,MATCH(Counterfactual,Ref!$B$12:$B$14,0))&"!"&ADDRESS(ROW(X12),COLUMN(X12)))*IF(DollarType=Ref!$B$17,1,(1+Inflation)^($B12-$B$11)),"-") -> 0.007111881847 | Y12: =IFERROR(INDIRECT(INDEX(Ref!$C$4:$C$9,MATCH(State,Ref!$B$4:$B$9,0))&INDEX(Ref!$C$12:$C$14,MATCH(Counterfactual,Ref!$B$12:$B$14,0))&"!"&ADDRESS(ROW(Y12),COLUMN(Y12)))*IF(DollarType=Ref!$B$17,1,(1+Inflation)^($B12-$B$11)),"-") -> 0.007164387541 | Z12: =IFERROR(INDIRECT(INDEX(Ref!$C$4:$C$9,MATCH(State,Ref!$B$4:$B$9,0))&INDEX(Ref!$C$12:$C$14,MATCH(Counterfactual,Ref!$B$12:$B$14,0))&"!"&ADDRESS(ROW(Z12),COLUMN(Z12)))*IF(DollarType=Ref!$B$17,1,(1+Inflation)^($B12-$B$11)),"-") -> 47.56005058 | AA12: =IFERROR(INDIRECT(INDEX(Ref!$C$4:$C$9,MATCH(State,Ref!$B$4:$B$9,0))&INDEX(Ref!$C$12:$C$14,MATCH(Counterfactual,Ref!$B$12:$B$14,0))&"!"&ADDRESS(ROW(AA12),COLUMN(AA12)))*IF(DollarType=Ref!$B$17,1,(1+Inflation)^($B12-$B$11)),"-") -> - | AB12: =IFERROR(INDIRECT(INDEX(Ref!$C$4:$C$9,MATCH(State,Ref!$B$4:$B$9,0))&INDEX(Ref!$C$12:$C$14,MATCH(Counterfactual,Ref!$B$12:$B$14,0))&"!"&ADDRESS(ROW(AB12),COLUMN(AB12)))*IF(DollarType=Ref!$B$17,1,(1+Inflation)^($B12-$B$11)),"-") -> 42.32192 | AC12: =IFERROR(INDIRECT(INDEX(Ref!$C$4:$C$9,MATCH(State,Ref!$B$4:$B$9,0))&INDEX(Ref!$C$12:$C$14,MATCH(Counterfactual,Ref!$B$12:$B$14,0))&"!"&ADDRESS(ROW(AC12),COLUMN(AC12)))*IF(DollarType=Ref!$B$17,1,(1+Inflation)^($B12-$B$11)),"-") -> - | AD12: =IFERROR(INDIRECT(INDEX(Ref!$C$4:$C$9,MATCH(State,Ref!$B$4:$B$9,0))&INDEX(Ref!$C$12:$C$14,MATCH(Counterfactual,Ref!$B$12:$B$14,0))&"!"&ADDRESS(ROW(AD12),COLUMN(AD12)))*IF(DollarType=Ref!$B$17,1,(1+Inflation)^($B12-$B$11)),"-") -> 43.56246155 | AE12: =IFERROR(INDIRECT(INDEX(Ref!$C$4:$C$9,MATCH(State,Ref!$B$4:$B$9,0))&INDEX(Ref!$C$12:$C$14,MATCH(Counterfactual,Ref!$B$12:$B$14,0))&"!"&ADDRESS(ROW(AE12),COLUMN(AE12)))*IF(DollarType=Ref!$B$17,1,(1+Inflation)^($B12-$B$11)),"-") -> - | AF12: =IFERROR(INDIRECT(INDEX(Ref!$C$4:$C$9,MATCH(State,Ref!$B$4:$B$9,0))&INDEX(Ref!$C$12:$C$14,MATCH(Counterfactual,Ref!$B$12:$B$14,0))&"!"&ADDRESS(ROW(AF12),COLUMN(AF12)))*IF(DollarType=Ref!$B$17,1,(1+Inflation)^($B12-$B$11)),"-") -> 1.215087392 | AG12: =IFERROR(INDIRECT(INDEX(Ref!$C$4:$C$9,MATCH(State,Ref!$B$4:$B$9,0))&INDEX(Ref!$C$12:$C$14,MATCH(Counterfactual,Ref!$B$12:$B$14,0))&"!"&ADDRESS(ROW(AG12),COLUMN(AG12)))*IF(DollarType=Ref!$B$17,1,(1+Inflation)^($B12-$B$11)),"-") -> 22.81545454 | AH12: =IFERROR(INDIRECT(INDEX(Ref!$C$4:$C$9,MATCH(State,Ref!$B$4:$B$9,0))&INDEX(Ref!$C$12:$C$14,MATCH(Counterfactual,Ref!$B$12:$B$14,0))&"!"&ADDRESS(ROW(AH12),COLUMN(AH12)))*IF(DollarType=Ref!$B$17,1,(1+Inflation)^($B12-$B$11)),"-") -> 84.01598436 | AJ12: 2022 | AK12: 0.06597124252 | AL12: 0.06199530828 | AM12: 0.04683159236 | AN12: 0.04272494722 | AO12: 0.06265599231 | AP12: 0.06369670954 | AQ12: 0.06179051513 | AR12: 0.06883813548 | AS12: 0.000834843729 | AT12: 0.00069792096 | AU12: 0.001104699891 | AV12: 0.0008626615047 | AW12: 0.02330983584 | AX12: 0.0196312545 | AY12: 0.01427204146 | AZ12: 0.008437923965 | BA12: 0.02344189041 | BB12: 0.01968628229 | BC12: 0.0135140342 | BD12: 0.008140576269 | BE12: 0.00837210731 | BF12: =IFERROR(Y12*(1+EnergyLosses)*(1+WRP),"-") -> 0.008433917013 | BG12: 55.16965868 | BH12: - | BI12: 49.0934272 | BJ12: - | BK12: 50.5324554 | BL12: - | BM12: 1.409501375 | BN12: 28.58320145 | BO12: 97.45854186
B13: 2023 | C13: =IFERROR(INDIRECT(INDEX(Ref!$C$4:$C$9,MATCH(State,Ref!$B$4:$B$9,0))&INDEX(Ref!$C$12:$C$14,MATCH(Counterfactual,Ref!$B$12:$B$14,0))&"!"&ADDRESS(ROW(C13),COLUMN(C13)))*IF(DollarType=Ref!$B$17,1,(1+Inflation)^($B13-$B$11)),"-") -> 0.04321517614 | D13: =IFERROR(INDIRECT(INDEX(Ref!$C$4:$C$9,MATCH(State,Ref!$B$4:$B$9,0))&INDEX(Ref!$C$12:$C$14,MATCH(Counterfactual,Ref!$B$12:$B$14,0))&"!"&ADDRESS(ROW(D13),COLUMN(D13)))*IF(DollarType=Ref!$B$17,1,(1+Inflation)^($B13-$B$11)),"-") -> 0.04206887358 | E13: =IFERROR(INDIRECT(INDEX(Ref!$C$4:$C$9,MATCH(State,Ref!$B$4:$B$9,0))&INDEX(Ref!$C$12:$C$14,MATCH(Counterfactual,Ref!$B$12:$B$14,0))&"!"&ADDRESS(ROW(E13),COLUMN(E13)))*IF(DollarType=Ref!$B$17,1,(1+Inflation)^($B13-$B$11)),"-") -> 0.02620181975 | F13: =IFERROR(INDIRECT(INDEX(Ref!$C$4:$C$9,MATCH(State,Ref!$B$4:$B$9,0))&INDEX(Ref!$C$12:$C$14,MATCH(Counterfactual,Ref!$B$12:$B$14,0))&"!"&ADDRESS(ROW(F13),COLUMN(F13)))*IF(DollarType=Ref!$B$17,1,(1+Inflation)^($B13-$B$11)),"-") -> 0.02506892765 | G13: =IFERROR(INDIRECT(INDEX(Ref!$C$4:$C$9,MATCH(State,Ref!$B$4:$B$9,0))&INDEX(Ref!$C$12:$C$14,MATCH(Counterfactual,Ref!$B$12:$B$14,0))&"!"&ADDRESS(ROW(G13),COLUMN(G13)))*IF(DollarType=Ref!$B$17,1,(1+Inflation)^($B13-$B$11)),"-") -> 0.01006758083 | H13: =IFERROR(INDIRECT(INDEX(Ref!$C$4:$C$9,MATCH(State,Ref!$B$4:$B$9,0))&INDEX(Ref!$C$12:$C$14,MATCH(Counterfactual,Ref!$B$12:$B$14,0))&"!"&ADDRESS(ROW(H13),COLUMN(H13)))*IF(DollarType=Ref!$B$17,1,(1+Inflation)^($B13-$B$11)),"-") -> 0.05817432617 | I13: =IFERROR(INDIRECT(INDEX(Ref!$C$4:$C$9,MATCH(State,Ref!$B$4:$B$9,0))&INDEX(Ref!$C$12:$C$14,MATCH(Counterfactual,Ref!$B$12:$B$14,0))&"!"&ADDRESS(ROW(I13),COLUMN(I13)))*IF(DollarType=Ref!$B$17,1,(1+Inflation)^($B13-$B$11)),"-") -> 0.06565887972 | J13: =IFERROR(INDIRECT(INDEX(Ref!$C$4:$C$9,MATCH(State,Ref!$B$4:$B$9,0))&INDEX(Ref!$C$12:$C$14,MATCH(Counterfactual,Ref!$B$12:$B$14,0))&"!"&ADDRESS(ROW(J13),COLUMN(J13)))*IF(DollarType=Ref!$B$17,1,(1+Inflation)^($B13-$B$11)),"-") -> 0.05270595333 | K13: =IFERROR(INDIRECT(INDEX(Ref!$C$4:$C$9,MATCH(State,Ref!$B$4:$B$9,0))&INDEX(Ref!$C$12:$C$14,MATCH(Counterfactual,Ref!$B$12:$B$14,0))&"!"&ADDRESS(ROW(K13),COLUMN(K13)))*IF(DollarType=Ref!$B$17,1,(1+Inflation)^($B13-$B$11)),"-") -> 0.07409434065 | L13: =IFERROR(INDIRECT(INDEX(Ref!$C$4:$C$9,MATCH(State,Ref!$B$4:$B$9,0))&INDEX(Ref!$C$12:$C$14,MATCH(Counterfactual,Ref!$B$12:$B$14,0))&"!"&ADDRESS(ROW(L13),COLUMN(L13)))*IF(DollarType=Ref!$B$17,1,(1+Inflation)^($B13-$B$11)),"-") -> 0.0006365568432 | M13: =IFERROR(INDIRECT(INDEX(Ref!$C$4:$C$9,MATCH(State,Ref!$B$4:$B$9,0))&INDEX(Ref!$C$12:$C$14,MATCH(Counterfactual,Ref!$B$12:$B$14,0))&"!"&ADDRESS(ROW(M13),COLUMN(M13)))*IF(DollarType=Ref!$B$17,1,(1+Inflation)^($B13-$B$11)),"-") -> 0.0006183872246 | N13: =IFERROR(INDIRECT(INDEX(Ref!$C$4:$C$9,MATCH(State,Ref!$B$4:$B$9,0))&INDEX(Ref!$C$12:$C$14,MATCH(Counterfactual,Ref!$B$12:$B$14,0))&"!"&ADDRESS(ROW(N13),COLUMN(N13)))*IF(DollarType=Ref!$B$17,1,(1+Inflation)^($B13-$B$11)),"-") -> 0.0007871062567 | O13: =IFERROR(INDIRECT(INDEX(Ref!$C$4:$C$9,MATCH(State,Ref!$B$4:$B$9,0))&INDEX(Ref!$C$12:$C$14,MATCH(Counterfactual,Ref!$B$12:$B$14,0))&"!"&ADDRESS(ROW(O13),COLUMN(O13)))*IF(DollarType=Ref!$B$17,1,(1+Inflation)^($B13-$B$11)),"-") -> 0.0006835503989 | P13: =IFERROR(INDIRECT(INDEX(Ref!$C$4:$C$9,MATCH(State,Ref!$B$4:$B$9,0))&INDEX(Ref!$C$12:$C$14,MATCH(Counterfactual,Ref!$B$12:$B$14,0))&"!"&ADDRESS(ROW(P13),COLUMN(P13)))*IF(DollarType=Ref!$B$17,1,(1+Inflation)^($B13-$B$11)),"-") -> 0.02114196629 | Q13: =IFERROR(INDIRECT(INDEX(Ref!$C$4:$C$9,MATCH(State,Ref!$B$4:$B$9,0))&INDEX(Ref!$C$12:$C$14,MATCH(Counterfactual,Ref!$B$12:$B$14,0))&"!"&ADDRESS(ROW(Q13),COLUMN(Q13)))*IF(DollarType=Ref!$B$17,1,(1+Inflation)^($B13-$B$11)),"-") -> 0.01865896091 | R13: =IFERROR(INDIRECT(INDEX(Ref!$C$4:$C$9,MATCH(State,Ref!$B$4:$B$9,0))&INDEX(Ref!$C$12:$C$14,MATCH(Counterfactual,Ref!$B$12:$B$14,0))&"!"&ADDRESS(ROW(R13),COLUMN(R13)))*IF(DollarType=Ref!$B$17,1,(1+Inflation)^($B13-$B$11)),"-") -> 0.0121820992 | S13: =IFERROR(INDIRECT(INDEX(Ref!$C$4:$C$9,MATCH(State,Ref!$B$4:$B$9,0))&INDEX(Ref!$C$12:$C$14,MATCH(Counterfactual,Ref!$B$12:$B$14,0))&"!"&ADDRESS(ROW(S13),COLUMN(S13)))*IF(DollarType=Ref!$B$17,1,(1+Inflation)^($B13-$B$11)),"-") -> 0.007864565375 | T13: =IFERROR(INDIRECT(INDEX(Ref!$C$4:$C$9,MATCH(State,Ref!$B$4:$B$9,0))&INDEX(Ref!$C$12:$C$14,MATCH(Counterfactual,Ref!$B$12:$B$14,0))&"!"&ADDRESS(ROW(T13),COLUMN(T13)))*IF(DollarType=Ref!$B$17,1,(1+Inflation)^($B13-$B$11)),"-") -> 0.02340835691 | U13: =IFERROR(INDIRECT(INDEX(Ref!$C$4:$C$9,MATCH(State,Ref!$B$4:$B$9,0))&INDEX(Ref!$C$12:$C$14,MATCH(Counterfactual,Ref!$B$12:$B$14,0))&"!"&ADDRESS(ROW(U13),COLUMN(U13)))*IF(DollarType=Ref!$B$17,1,(1+Inflation)^($B13-$B$11)),"-") -> 0.02059440506 | V13: =IFERROR(INDIRECT(INDEX(Ref!$C$4:$C$9,MATCH(State,Ref!$B$4:$B$9,0))&INDEX(Ref!$C$12:$C$14,MATCH(Counterfactual,Ref!$B$12:$B$14,0))&"!"&ADDRESS(ROW(V13),COLUMN(V13)))*IF(DollarType=Ref!$B$17,1,(1+Inflation)^($B13-$B$11)),"-") -> 0.01272101694 | W13: =IFERROR(INDIRECT(INDEX(Ref!$C$4:$C$9,MATCH(State,Ref!$B$4:$B$9,0))&INDEX(Ref!$C$12:$C$14,MATCH(Counterfactual,Ref!$B$12:$B$14,0))&"!"&ADDRESS(ROW(W13),COLUMN(W13)))*IF(DollarType=Ref!$B$17,1,(1+Inflation)^($B13-$B$11)),"-") -> 0.008363318129 | X13: =IFERROR(INDIRECT(INDEX(Ref!$C$4:$C$9,MATCH(State,Ref!$B$4:$B$9,0))&INDEX(Ref!$C$12:$C$14,MATCH(Counterfactual,Ref!$B$12:$B$14,0))&"!"&ADDRESS(ROW(X13),COLUMN(X13)))*IF(DollarType=Ref!$B$17,1,(1+Inflation)^($B13-$B$11)),"-") -> 0.007822706228 | Y13: =IFERROR(INDIRECT(INDEX(Ref!$C$4:$C$9,MATCH(State,Ref!$B$4:$B$9,0))&INDEX(Ref!$C$12:$C$14,MATCH(Counterfactual,Ref!$B$12:$B$14,0))&"!"&ADDRESS(ROW(Y13),COLUMN(Y13)))*IF(DollarType=Ref!$B$17,1,(1+Inflation)^($B13-$B$11)),"-") -> 0.008653375226 | Z13: =IFERROR(INDIRECT(INDEX(Ref!$C$4:$C$9,MATCH(State,Ref!$B$4:$B$9,0))&INDEX(Ref!$C$12:$C$14,MATCH(Counterfactual,Ref!$B$12:$B$14,0))&"!"&ADDRESS(ROW(Z13),COLUMN(Z13)))*IF(DollarType=Ref!$B$17,1,(1+Inflation)^($B13-$B$11)),"-") -> 29.62061321 | AA13: =IFERROR(INDIRECT(INDEX(Ref!$C$4:$C$9,MATCH(State,Ref!$B$4:$B$9,0))&INDEX(Ref!$C$12:$C$14,MATCH(Counterfactual,Ref!$B$12:$B$14,0))&"!"&ADDRESS(ROW(AA13),COLUMN(AA13)))*IF(DollarType=Ref!$B$17,1,(1+Inflation)^($B13-$B$11)),"-") -> - | AB13: =IFERROR(INDIRECT(INDEX(Ref!$C$4:$C$9,MATCH(State,Ref!$B$4:$B$9,0))&INDEX(Ref!$C$12:$C$14,MATCH(Counterfactual,Ref!$B$12:$B$14,0))&"!"&ADDRESS(ROW(AB13),COLUMN(AB13)))*IF(DollarType=Ref!$B$17,1,(1+Inflation)^($B13-$B$11)),"-") -> 53.43299656 | AC13: =IFERROR(INDIRECT(INDEX(Ref!$C$4:$C$9,MATCH(State,Ref!$B$4:$B$9,0))&INDEX(Ref!$C$12:$C$14,MATCH(Counterfactual,Ref!$B$12:$B$14,0))&"!"&ADDRESS(ROW(AC13),COLUMN(AC13)))*IF(DollarType=Ref!$B$17,1,(1+Inflation)^($B13-$B$11)),"-") -> - | AD13: =IFERROR(INDIRECT(INDEX(Ref!$C$4:$C$9,MATCH(State,Ref!$B$4:$B$9,0))&INDEX(Ref!$C$12:$C$14,MATCH(Counterfactual,Ref!$B$12:$B$14,0))&"!"&ADDRESS(ROW(AD13),COLUMN(AD13)))*IF(DollarType=Ref!$B$17,1,(1+Inflation)^($B13-$B$11)),"-") -> 54.67646461 | AE13: =IFERROR(INDIRECT(INDEX(Ref!$C$4:$C$9,MATCH(State,Ref!$B$4:$B$9,0))&INDEX(Ref!$C$12:$C$14,MATCH(Counterfactual,Ref!$B$12:$B$14,0))&"!"&ADDRESS(ROW(AE13),COLUMN(AE13)))*IF(DollarType=Ref!$B$17,1,(1+Inflation)^($B13-$B$11)),"-") -> - | AF13: =IFERROR(INDIRECT(INDEX(Ref!$C$4:$C$9,MATCH(State,Ref!$B$4:$B$9,0))&INDEX(Ref!$C$12:$C$14,MATCH(Counterfactual,Ref!$B$12:$B$14,0))&"!"&ADDRESS(ROW(AF13),COLUMN(AF13)))*IF(DollarType=Ref!$B$17,1,(1+Inflation)^($B13-$B$11)),"-") -> 1.290354944 | AG13: =IFERROR(INDIRECT(INDEX(Ref!$C$4:$C$9,MATCH(State,Ref!$B$4:$B$9,0))&INDEX(Ref!$C$12:$C$14,MATCH(Counterfactual,Ref!$B$12:$B$14,0))&"!"&ADDRESS(ROW(AG13),COLUMN(AG13)))*IF(DollarType=Ref!$B$17,1,(1+Inflation)^($B13-$B$11)),"-") -> 14.29438323 | AH13: =IFERROR(INDIRECT(INDEX(Ref!$C$4:$C$9,MATCH(State,Ref!$B$4:$B$9,0))&INDEX(Ref!$C$12:$C$14,MATCH(Counterfactual,Ref!$B$12:$B$14,0))&"!"&ADDRESS(ROW(AH13),COLUMN(AH13)))*IF(DollarType=Ref!$B$17,1,(1+Inflation)^($B13-$B$11)),"-") -> 84.01598436 | AJ13: 2023 | AK13: 0.0627244615 | AL13: 0.06137503413 | AM13: 0.04269633836 | AN13: 0.04136269778 | AO13: 0.06341001552 | AP13: 0.07156817889 | AQ13: 0.05744948913 | AR13: 0.08076283131 | AS13: 0.0006938469591 | AT13: 0.0006740420748 | AU13: 0.0008579458198 | AV13: 0.0007450699348 | AW13: 0.02488832272 | AX13: 0.02196532879 | AY13: 0.01434076718 | AZ13: 0.009258166359 | BA13: 0.02755631776 | BB13: 0.02424373364 | BC13: 0.01497518114 | BD13: 0.009845298101 | BE13: 0.009208889772 | BF13: 0.01018675332 | BG13: 34.35991133 | BH13: - | BI13: 61.98227601 | BJ13: - | BK13: 63.42469894 | BL13: - | BM13: 1.496811735 | BN13: 17.90800331 | BO13: 97.45854186
B14: 2024 | C14: =IFERROR(INDIRECT(INDEX(Ref!$C$4:$C$9,MATCH(State,Ref!$B$4:$B$9,0))&INDEX(Ref!$C$12:$C$14,MATCH(Counterfactual,Ref!$B$12:$B$14,0))&"!"&ADDRESS(ROW(C14),COLUMN(C14)))*IF(DollarType=Ref!$B$17,1,(1+Inflation)^($B14-$B$11)),"-") -> 0.04533009657 | D14: =IFERROR(INDIRECT(INDEX(Ref!$C$4:$C$9,MATCH(State,Ref!$B$4:$B$9,0))&INDEX(Ref!$C$12:$C$14,MATCH(Counterfactual,Ref!$B$12:$B$14,0))&"!"&ADDRESS(ROW(D14),COLUMN(D14)))*IF(DollarType=Ref!$B$17,1,(1+Inflation)^($B14-$B$11)),"-") -> 0.04423101041 | E14: =IFERROR(INDIRECT(INDEX(Ref!$C$4:$C$9,MATCH(State,Ref!$B$4:$B$9,0))&INDEX(Ref!$C$12:$C$14,MATCH(Counterfactual,Ref!$B$12:$B$14,0))&"!"&ADDRESS(ROW(E14),COLUMN(E14)))*IF(DollarType=Ref!$B$17,1,(1+Inflation)^($B14-$B$11)),"-") -> 0.02939891036 | F14: =IFERROR(INDIRECT(INDEX(Ref!$C$4:$C$9,MATCH(State,Ref!$B$4:$B$9,0))&INDEX(Ref!$C$12:$C$14,MATCH(Counterfactual,Ref!$B$12:$B$14,0))&"!"&ADDRESS(ROW(F14),COLUMN(F14)))*IF(DollarType=Ref!$B$17,1,(1+Inflation)^($B14-$B$11)),"-") -> 0.02785800256 | G14: =IFERROR(INDIRECT(INDEX(Ref!$C$4:$C$9,MATCH(State,Ref!$B$4:$B$9,0))&INDEX(Ref!$C$12:$C$14,MATCH(Counterfactual,Ref!$B$12:$B$14,0))&"!"&ADDRESS(ROW(G14),COLUMN(G14)))*IF(DollarType=Ref!$B$17,1,(1+Inflation)^($B14-$B$11)),"-") -> 0.009124188803 | H14: =IFERROR(INDIRECT(INDEX(Ref!$C$4:$C$9,MATCH(State,Ref!$B$4:$B$9,0))&INDEX(Ref!$C$12:$C$14,MATCH(Counterfactual,Ref!$B$12:$B$14,0))&"!"&ADDRESS(ROW(H14),COLUMN(H14)))*IF(DollarType=Ref!$B$17,1,(1+Inflation)^($B14-$B$11)),"-") -> 0.04799857027 | I14: =IFERROR(INDIRECT(INDEX(Ref!$C$4:$C$9,MATCH(State,Ref!$B$4:$B$9,0))&INDEX(Ref!$C$12:$C$14,MATCH(Counterfactual,Ref!$B$12:$B$14,0))&"!"&ADDRESS(ROW(I14),COLUMN(I14)))*IF(DollarType=Ref!$B$17,1,(1+Inflation)^($B14-$B$11)),"-") -> 0.05273855877 | J14: =IFERROR(INDIRECT(INDEX(Ref!$C$4:$C$9,MATCH(State,Ref!$B$4:$B$9,0))&INDEX(Ref!$C$12:$C$14,MATCH(Counterfactual,Ref!$B$12:$B$14,0))&"!"&ADDRESS(ROW(J14),COLUMN(J14)))*IF(DollarType=Ref!$B$17,1,(1+Inflation)^($B14-$B$11)),"-") -> 0.0465402136 | K14: =IFERROR(INDIRECT(INDEX(Ref!$C$4:$C$9,MATCH(State,Ref!$B$4:$B$9,0))&INDEX(Ref!$C$12:$C$14,MATCH(Counterfactual,Ref!$B$12:$B$14,0))&"!"&ADDRESS(ROW(K14),COLUMN(K14)))*IF(DollarType=Ref!$B$17,1,(1+Inflation)^($B14-$B$11)),"-") -> 0.05867123362 | L14: =IFERROR(INDIRECT(INDEX(Ref!$C$4:$C$9,MATCH(State,Ref!$B$4:$B$9,0))&INDEX(Ref!$C$12:$C$14,MATCH(Counterfactual,Ref!$B$12:$B$14,0))&"!"&ADDRESS(ROW(L14),COLUMN(L14)))*IF(DollarType=Ref!$B$17,1,(1+Inflation)^($B14-$B$11)),"-") -> 0.0007384375348 | M14: =IFERROR(INDIRECT(INDEX(Ref!$C$4:$C$9,MATCH(State,Ref!$B$4:$B$9,0))&INDEX(Ref!$C$12:$C$14,MATCH(Counterfactual,Ref!$B$12:$B$14,0))&"!"&ADDRESS(ROW(M14),COLUMN(M14)))*IF(DollarType=Ref!$B$17,1,(1+Inflation)^($B14-$B$11)),"-") -> 0.0006225056973 | N14: =IFERROR(INDIRECT(INDEX(Ref!$C$4:$C$9,MATCH(State,Ref!$B$4:$B$9,0))&INDEX(Ref!$C$12:$C$14,MATCH(Counterfactual,Ref!$B$12:$B$14,0))&"!"&ADDRESS(ROW(N14),COLUMN(N14)))*IF(DollarType=Ref!$B$17,1,(1+Inflation)^($B14-$B$11)),"-") -> 0.0008899755504 | O14: =IFERROR(INDIRECT(INDEX(Ref!$C$4:$C$9,MATCH(State,Ref!$B$4:$B$9,0))&INDEX(Ref!$C$12:$C$14,MATCH(Counterfactual,Ref!$B$12:$B$14,0))&"!"&ADDRESS(ROW(O14),COLUMN(O14)))*IF(DollarType=Ref!$B$17,1,(1+Inflation)^($B14-$B$11)),"-") -> 0.0007064194537 | P14: =IFERROR(INDIRECT(INDEX(Ref!$C$4:$C$9,MATCH(State,Ref!$B$4:$B$9,0))&INDEX(Ref!$C$12:$C$14,MATCH(Counterfactual,Ref!$B$12:$B$14,0))&"!"&ADDRESS(ROW(P14),COLUMN(P14)))*IF(DollarType=Ref!$B$17,1,(1+Inflation)^($B14-$B$11)),"-") -> 0.01895708182 | Q14: =IFERROR(INDIRECT(INDEX(Ref!$C$4:$C$9,MATCH(State,Ref!$B$4:$B$9,0))&INDEX(Ref!$C$12:$C$14,MATCH(Counterfactual,Ref!$B$12:$B$14,0))&"!"&ADDRESS(ROW(Q14),COLUMN(Q14)))*IF(DollarType=Ref!$B$17,1,(1+Inflation)^($B14-$B$11)),"-") -> 0.01674833832 | R14: =IFERROR(INDIRECT(INDEX(Ref!$C$4:$C$9,MATCH(State,Ref!$B$4:$B$9,0))&INDEX(Ref!$C$12:$C$14,MATCH(Counterfactual,Ref!$B$12:$B$14,0))&"!"&ADDRESS(ROW(R14),COLUMN(R14)))*IF(DollarType=Ref!$B$17,1,(1+Inflation)^($B14-$B$11)),"-") -> 0.01177301447 | S14: =IFERROR(INDIRECT(INDEX(Ref!$C$4:$C$9,MATCH(State,Ref!$B$4:$B$9,0))&INDEX(Ref!$C$12:$C$14,MATCH(Counterfactual,Ref!$B$12:$B$14,0))&"!"&ADDRESS(ROW(S14),COLUMN(S14)))*IF(DollarType=Ref!$B$17,1,(1+Inflation)^($B14-$B$11)),"-") -> 0.00748866443 | T14: =IFERROR(INDIRECT(INDEX(Ref!$C$4:$C$9,MATCH(State,Ref!$B$4:$B$9,0))&INDEX(Ref!$C$12:$C$14,MATCH(Counterfactual,Ref!$B$12:$B$14,0))&"!"&ADDRESS(ROW(T14),COLUMN(T14)))*IF(DollarType=Ref!$B$17,1,(1+Inflation)^($B14-$B$11)),"-") -> 0.02246241872 | U14: =IFERROR(INDIRECT(INDEX(Ref!$C$4:$C$9,MATCH(State,Ref!$B$4:$B$9,0))&INDEX(Ref!$C$12:$C$14,MATCH(Counterfactual,Ref!$B$12:$B$14,0))&"!"&ADDRESS(ROW(U14),COLUMN(U14)))*IF(DollarType=Ref!$B$17,1,(1+Inflation)^($B14-$B$11)),"-") -> 0.01981632324 | V14: =IFERROR(INDIRECT(INDEX(Ref!$C$4:$C$9,MATCH(State,Ref!$B$4:$B$9,0))&INDEX(Ref!$C$12:$C$14,MATCH(Counterfactual,Ref!$B$12:$B$14,0))&"!"&ADDRESS(ROW(V14),COLUMN(V14)))*IF(DollarType=Ref!$B$17,1,(1+Inflation)^($B14-$B$11)),"-") -> 0.01305547106 | W14: =IFERROR(INDIRECT(INDEX(Ref!$C$4:$C$9,MATCH(State,Ref!$B$4:$B$9,0))&INDEX(Ref!$C$12:$C$14,MATCH(Counterfactual,Ref!$B$12:$B$14,0))&"!"&ADDRESS(ROW(W14),COLUMN(W14)))*IF(DollarType=Ref!$B$17,1,(1+Inflation)^($B14-$B$11)),"-") -> 0.008494613602 | X14: =IFERROR(INDIRECT(INDEX(Ref!$C$4:$C$9,MATCH(State,Ref!$B$4:$B$9,0))&INDEX(Ref!$C$12:$C$14,MATCH(Counterfactual,Ref!$B$12:$B$14,0))&"!"&ADDRESS(ROW(X14),COLUMN(X14)))*IF(DollarType=Ref!$B$17,1,(1+Inflation)^($B14-$B$11)),"-") -> 0.006130367022 | Y14: =IFERROR(INDIRECT(INDEX(Ref!$C$4:$C$9,MATCH(State,Ref!$B$4:$B$9,0))&INDEX(Ref!$C$12:$C$14,MATCH(Counterfactual,Ref!$B$12:$B$14,0))&"!"&ADDRESS(ROW(Y14),COLUMN(Y14)))*IF(DollarType=Ref!$B$17,1,(1+Inflation)^($B14-$B$11)),"-") -> 0.007231299795 | Z14: =IFERROR(INDIRECT(INDEX(Ref!$C$4:$C$9,MATCH(State,Ref!$B$4:$B$9,0))&INDEX(Ref!$C$12:$C$14,MATCH(Counterfactual,Ref!$B$12:$B$14,0))&"!"&ADDRESS(ROW(Z14),COLUMN(Z14)))*IF(DollarType=Ref!$B$17,1,(1+Inflation)^($B14-$B$11)),"-") -> 32.94087374 | AA14: =IFERROR(INDIRECT(INDEX(Ref!$C$4:$C$9,MATCH(State,Ref!$B$4:$B$9,0))&INDEX(Ref!$C$12:$C$14,MATCH(Counterfactual,Ref!$B$12:$B$14,0))&"!"&ADDRESS(ROW(AA14),COLUMN(AA14)))*IF(DollarType=Ref!$B$17,1,(1+Inflation)^($B14-$B$11)),"-") -> - | AB14: =IFERROR(INDIRECT(INDEX(Ref!$C$4:$C$9,MATCH(State,Ref!$B$4:$B$9,0))&INDEX(Ref!$C$12:$C$14,MATCH(Counterfactual,Ref!$B$12:$B$14,0))&"!"&ADDRESS(ROW(AB14),COLUMN(AB14)))*IF(DollarType=Ref!$B$17,1,(1+Inflation)^($B14-$B$11)),"-") -> 45.7920688 | AC14: =IFERROR(INDIRECT(INDEX(Ref!$C$4:$C$9,MATCH(State,Ref!$B$4:$B$9,0))&INDEX(Ref!$C$12:$C$14,MATCH(Counterfactual,Ref!$B$12:$B$14,0))&"!"&ADDRESS(ROW(AC14),COLUMN(AC14)))*IF(DollarType=Ref!$B$17,1,(1+Inflation)^($B14-$B$11)),"-") -> - | AD14: =IFERROR(INDIRECT(INDEX(Ref!$C$4:$C$9,MATCH(State,Ref!$B$4:$B$9,0))&INDEX(Ref!$C$12:$C$14,MATCH(Counterfactual,Ref!$B$12:$B$14,0))&"!"&ADDRESS(ROW(AD14),COLUMN(AD14)))*IF(DollarType=Ref!$B$17,1,(1+Inflation)^($B14-$B$11)),"-") -> 46.69836145 | AE14: =IFERROR(INDIRECT(INDEX(Ref!$C$4:$C$9,MATCH(State,Ref!$B$4:$B$9,0))&INDEX(Ref!$C$12:$C$14,MATCH(Counterfactual,Ref!$B$12:$B$14,0))&"!"&ADDRESS(ROW(AE14),COLUMN(AE14)))*IF(DollarType=Ref!$B$17,1,(1+Inflation)^($B14-$B$11)),"-") -> - | AF14: =IFERROR(INDIRECT(INDEX(Ref!$C$4:$C$9,MATCH(State,Ref!$B$4:$B$9,0))&INDEX(Ref!$C$12:$C$14,MATCH(Counterfactual,Ref!$B$12:$B$14,0))&"!"&ADDRESS(ROW(AF14),COLUMN(AF14)))*IF(DollarType=Ref!$B$17,1,(1+Inflation)^($B14-$B$11)),"-") -> 1.145761608 | AG14: =IFERROR(INDIRECT(INDEX(Ref!$C$4:$C$9,MATCH(State,Ref!$B$4:$B$9,0))&INDEX(Ref!$C$12:$C$14,MATCH(Counterfactual,Ref!$B$12:$B$14,0))&"!"&ADDRESS(ROW(AG14),COLUMN(AG14)))*IF(DollarType=Ref!$B$17,1,(1+Inflation)^($B14-$B$11)),"-") -> 15.78893661 | AH14: =IFERROR(INDIRECT(INDEX(Ref!$C$4:$C$9,MATCH(State,Ref!$B$4:$B$9,0))&INDEX(Ref!$C$12:$C$14,MATCH(Counterfactual,Ref!$B$12:$B$14,0))&"!"&ADDRESS(ROW(AH14),COLUMN(AH14)))*IF(DollarType=Ref!$B$17,1,(1+Inflation)^($B14-$B$11)),"-") -> 84.01598436 | AJ14: 2024 | AK14: 0.06410358475 | AL14: 0.06280974052 | AM14: 0.04534939233 | AN14: 0.04353543568 | AO14: 0.05231844159 | AP14: 0.05748502906 | AQ14: 0.05072883282 | AR14: 0.06395164465 | AS14: 0.000804896913 | AT14: 0.00067853121 | AU14: 0.0009700733499 | AV14: 0.0007699972045 | AW14: 0.02231627671 | AX14: 0.01971614387 | AY14: 0.01385919263 | AZ14: 0.008815655767 | BA14: 0.02644275931 | BB14: 0.02332777572 | BC14: 0.01536890053 | BD14: 0.009999859132 | BE14: 0.007216668058 | BF14: 0.008512686119 | BG14: 38.21141354 | BH14: - | BI14: 53.11879981 | BJ14: - | BK14: 54.17009929 | BL14: - | BM14: 1.329083465 | BN14: 19.78037978 | BO14: 97.45854186
B15: 2025 | C15: =IFERROR(INDIRECT(INDEX(Ref!$C$4:$C$9,MATCH(State,Ref!$B$4:$B$9,0))&INDEX(Ref!$C$12:$C$14,MATCH(Counterfactual,Ref!$B$12:$B$14,0))&"!"&ADDRESS(ROW(C15),COLUMN(C15)))*IF(DollarType=Ref!$B$17,1,(1+Inflation)^($B15-$B$11)),"-") -> 0.04572244266 | D15: =IFERROR(INDIRECT(INDEX(Ref!$C$4:$C$9,MATCH(State,Ref!$B$4:$B$9,0))&INDEX(Ref!$C$12:$C$14,MATCH(Counterfactual,Ref!$B$12:$B$14,0))&"!"&ADDRESS(ROW(D15),COLUMN(D15)))*IF(DollarType=Ref!$B$17,1,(1+Inflation)^($B15-$B$11)),"-") -> 0.04465103911 | E15: =IFERROR(INDIRECT(INDEX(Ref!$C$4:$C$9,MATCH(State,Ref!$B$4:$B$9,0))&INDEX(Ref!$C$12:$C$14,MATCH(Counterfactual,Ref!$B$12:$B$14,0))&"!"&ADDRESS(ROW(E15),COLUMN(E15)))*IF(DollarType=Ref!$B$17,1,(1+Inflation)^($B15-$B$11)),"-") -> 0.03023980448 | F15: =IFERROR(INDIRECT(INDEX(Ref!$C$4:$C$9,MATCH(State,Ref!$B$4:$B$9,0))&INDEX(Ref!$C$12:$C$14,MATCH(Counterfactual,Ref!$B$12:$B$14,0))&"!"&ADDRESS(ROW(F15),COLUMN(F15)))*IF(DollarType=Ref!$B$17,1,(1+Inflation)^($B15-$B$11)),"-") -> 0.02836323596 | G15: =IFERROR(INDIRECT(INDEX(Ref!$C$4:$C$9,MATCH(State,Ref!$B$4:$B$9,0))&INDEX(Ref!$C$12:$C$14,MATCH(Counterfactual,Ref!$B$12:$B$14,0))&"!"&ADDRESS(ROW(G15),COLUMN(G15)))*IF(DollarType=Ref!$B$17,1,(1+Inflation)^($B15-$B$11)),"-") -> 0.007966953218 | H15: =IFERROR(INDIRECT(INDEX(Ref!$C$4:$C$9,MATCH(State,Ref!$B$4:$B$9,0))&INDEX(Ref!$C$12:$C$14,MATCH(Counterfactual,Ref!$B$12:$B$14,0))&"!"&ADDRESS(ROW(H15),COLUMN(H15)))*IF(DollarType=Ref!$B$17,1,(1+Inflation)^($B15-$B$11)),"-") -> 0.04839600126 | I15: =IFERROR(INDIRECT(INDEX(Ref!$C$4:$C$9,MATCH(State,Ref!$B$4:$B$9,0))&INDEX(Ref!$C$12:$C$14,MATCH(Counterfactual,Ref!$B$12:$B$14,0))&"!"&ADDRESS(ROW(I15),COLUMN(I15)))*IF(DollarType=Ref!$B$17,1,(1+Inflation)^($B15-$B$11)),"-") -> 0.05357310042 | J15: =IFERROR(INDIRECT(INDEX(Ref!$C$4:$C$9,MATCH(State,Ref!$B$4:$B$9,0))&INDEX(Ref!$C$12:$C$14,MATCH(Counterfactual,Ref!$B$12:$B$14,0))&"!"&ADDRESS(ROW(J15),COLUMN(J15)))*IF(DollarType=Ref!$B$17,1,(1+Inflation)^($B15-$B$11)),"-") -> 0.04937241104 | K15: =IFERROR(INDIRECT(INDEX(Ref!$C$4:$C$9,MATCH(State,Ref!$B$4:$B$9,0))&INDEX(Ref!$C$12:$C$14,MATCH(Counterfactual,Ref!$B$12:$B$14,0))&"!"&ADDRESS(ROW(K15),COLUMN(K15)))*IF(DollarType=Ref!$B$17,1,(1+Inflation)^($B15-$B$11)),"-") -> 0.05870189391 | L15: =IFERROR(INDIRECT(INDEX(Ref!$C$4:$C$9,MATCH(State,Ref!$B$4:$B$9,0))&INDEX(Ref!$C$12:$C$14,MATCH(Counterfactual,Ref!$B$12:$B$14,0))&"!"&ADDRESS(ROW(L15),COLUMN(L15)))*IF(DollarType=Ref!$B$17,1,(1+Inflation)^($B15-$B$11)),"-") -> 0.0005459653103 | M15: =IFERROR(INDIRECT(INDEX(Ref!$C$4:$C$9,MATCH(State,Ref!$B$4:$B$9,0))&INDEX(Ref!$C$12:$C$14,MATCH(Counterfactual,Ref!$B$12:$B$14,0))&"!"&ADDRESS(ROW(M15),COLUMN(M15)))*IF(DollarType=Ref!$B$17,1,(1+Inflation)^($B15-$B$11)),"-") -> 0.0005435809485 | N15: =IFERROR(INDIRECT(INDEX(Ref!$C$4:$C$9,MATCH(State,Ref!$B$4:$B$9,0))&INDEX(Ref!$C$12:$C$14,MATCH(Counterfactual,Ref!$B$12:$B$14,0))&"!"&ADDRESS(ROW(N15),COLUMN(N15)))*IF(DollarType=Ref!$B$17,1,(1+Inflation)^($B15-$B$11)),"-") -> 0.0008623646835 | O15: =IFERROR(INDIRECT(INDEX(Ref!$C$4:$C$9,MATCH(State,Ref!$B$4:$B$9,0))&INDEX(Ref!$C$12:$C$14,MATCH(Counterfactual,Ref!$B$12:$B$14,0))&"!"&ADDRESS(ROW(O15),COLUMN(O15)))*IF(DollarType=Ref!$B$17,1,(1+Inflation)^($B15-$B$11)),"-") -> 0.0007128246018 | P15: =IFERROR(INDIRECT(INDEX(Ref!$C$4:$C$9,MATCH(State,Ref!$B$4:$B$9,0))&INDEX(Ref!$C$12:$C$14,MATCH(Counterfactual,Ref!$B$12:$B$14,0))&"!"&ADDRESS(ROW(P15),COLUMN(P15)))*IF(DollarType=Ref!$B$17,1,(1+Inflation)^($B15-$B$11)),"-") -> 0.01751331991 | Q15: =IFERROR(INDIRECT(INDEX(Ref!$C$4:$C$9,MATCH(State,Ref!$B$4:$B$9,0))&INDEX(Ref!$C$12:$C$14,MATCH(Counterfactual,Ref!$B$12:$B$14,0))&"!"&ADDRESS(ROW(Q15),COLUMN(Q15)))*IF(DollarType=Ref!$B$17,1,(1+Inflation)^($B15-$B$11)),"-") -> 0.01549339441 | R15: =IFERROR(INDIRECT(INDEX(Ref!$C$4:$C$9,MATCH(State,Ref!$B$4:$B$9,0))&INDEX(Ref!$C$12:$C$14,MATCH(Counterfactual,Ref!$B$12:$B$14,0))&"!"&ADDRESS(ROW(R15),COLUMN(R15)))*IF(DollarType=Ref!$B$17,1,(1+Inflation)^($B15-$B$11)),"-") -> 0.01106966902 | S15: =IFERROR(INDIRECT(INDEX(Ref!$C$4:$C$9,MATCH(State,Ref!$B$4:$B$9,0))&INDEX(Ref!$C$12:$C$14,MATCH(Counterfactual,Ref!$B$12:$B$14,0))&"!"&ADDRESS(ROW(S15),COLUMN(S15)))*IF(DollarType=Ref!$B$17,1,(1+Inflation)^($B15-$B$11)),"-") -> 0.006978876039 | T15: =IFERROR(INDIRECT(INDEX(Ref!$C$4:$C$9,MATCH(State,Ref!$B$4:$B$9,0))&INDEX(Ref!$C$12:$C$14,MATCH(Counterfactual,Ref!$B$12:$B$14,0))&"!"&ADDRESS(ROW(T15),COLUMN(T15)))*IF(DollarType=Ref!$B$17,1,(1+Inflation)^($B15-$B$11)),"-") -> 0.02034562388 | U15: =IFERROR(INDIRECT(INDEX(Ref!$C$4:$C$9,MATCH(State,Ref!$B$4:$B$9,0))&INDEX(Ref!$C$12:$C$14,MATCH(Counterfactual,Ref!$B$12:$B$14,0))&"!"&ADDRESS(ROW(U15),COLUMN(U15)))*IF(DollarType=Ref!$B$17,1,(1+Inflation)^($B15-$B$11)),"-") -> 0.01799660972 | V15: =IFERROR(INDIRECT(INDEX(Ref!$C$4:$C$9,MATCH(State,Ref!$B$4:$B$9,0))&INDEX(Ref!$C$12:$C$14,MATCH(Counterfactual,Ref!$B$12:$B$14,0))&"!"&ADDRESS(ROW(V15),COLUMN(V15)))*IF(DollarType=Ref!$B$17,1,(1+Inflation)^($B15-$B$11)),"-") -> 0.01197990275 | W15: =IFERROR(INDIRECT(INDEX(Ref!$C$4:$C$9,MATCH(State,Ref!$B$4:$B$9,0))&INDEX(Ref!$C$12:$C$14,MATCH(Counterfactual,Ref!$B$12:$B$14,0))&"!"&ADDRESS(ROW(W15),COLUMN(W15)))*IF(DollarType=Ref!$B$17,1,(1+Inflation)^($B15-$B$11)),"-") -> 0.007741749409 | X15: =IFERROR(INDIRECT(INDEX(Ref!$C$4:$C$9,MATCH(State,Ref!$B$4:$B$9,0))&INDEX(Ref!$C$12:$C$14,MATCH(Counterfactual,Ref!$B$12:$B$14,0))&"!"&ADDRESS(ROW(X15),COLUMN(X15)))*IF(DollarType=Ref!$B$17,1,(1+Inflation)^($B15-$B$11)),"-") -> 0.00513448001 | Y15: =IFERROR(INDIRECT(INDEX(Ref!$C$4:$C$9,MATCH(State,Ref!$B$4:$B$9,0))&INDEX(Ref!$C$12:$C$14,MATCH(Counterfactual,Ref!$B$12:$B$14,0))&"!"&ADDRESS(ROW(Y15),COLUMN(Y15)))*IF(DollarType=Ref!$B$17,1,(1+Inflation)^($B15-$B$11)),"-") -> 0.005930445455 | Z15: =IFERROR(INDIRECT(INDEX(Ref!$C$4:$C$9,MATCH(State,Ref!$B$4:$B$9,0))&INDEX(Ref!$C$12:$C$14,MATCH(Counterfactual,Ref!$B$12:$B$14,0))&"!"&ADDRESS(ROW(Z15),COLUMN(Z15)))*IF(DollarType=Ref!$B$17,1,(1+Inflation)^($B15-$B$11)),"-") -> 32.61659085 | AA15: =IFERROR(INDIRECT(INDEX(Ref!$C$4:$C$9,MATCH(State,Ref!$B$4:$B$9,0))&INDEX(Ref!$C$12:$C$14,MATCH(Counterfactual,Ref!$B$12:$B$14,0))&"!"&ADDRESS(ROW(AA15),COLUMN(AA15)))*IF(DollarType=Ref!$B$17,1,(1+Inflation)^($B15-$B$11)),"-") -> - | AB15: =IFERROR(INDIRECT(INDEX(Ref!$C$4:$C$9,MATCH(State,Ref!$B$4:$B$9,0))&INDEX(Ref!$C$12:$C$14,MATCH(Counterfactual,Ref!$B$12:$B$14,0))&"!"&ADDRESS(ROW(AB15),COLUMN(AB15)))*IF(DollarType=Ref!$B$17,1,(1+Inflation)^($B15-$B$11)),"-") -> 31.20538331 | AC15: =IFERROR(INDIRECT(INDEX(Ref!$C$4:$C$9,MATCH(State,Ref!$B$4:$B$9,0))&INDEX(Ref!$C$12:$C$14,MATCH(Counterfactual,Ref!$B$12:$B$14,0))&"!"&ADDRESS(ROW(AC15),COLUMN(AC15)))*IF(DollarType=Ref!$B$17,1,(1+Inflation)^($B15-$B$11)),"-") -> - | AD15: =IFERROR(INDIRECT(INDEX(Ref!$C$4:$C$9,MATCH(State,Ref!$B$4:$B$9,0))&INDEX(Ref!$C$12:$C$14,MATCH(Counterfactual,Ref!$B$12:$B$14,0))&"!"&ADDRESS(ROW(AD15),COLUMN(AD15)))*IF(DollarType=Ref!$B$17,1,(1+Inflation)^($B15-$B$11)),"-") -> 31.7926239 | AE15: =IFERROR(INDIRECT(INDEX(Ref!$C$4:$C$9,MATCH(State,Ref!$B$4:$B$9,0))&INDEX(Ref!$C$12:$C$14,MATCH(Counterfactual,Ref!$B$12:$B$14,0))&"!"&ADDRESS(ROW(AE15),COLUMN(AE15)))*IF(DollarType=Ref!$B$17,1,(1+Inflation)^($B15-$B$11)),"-") -> - | AF15: =IFERROR(INDIRECT(INDEX(Ref!$C$4:$C$9,MATCH(State,Ref!$B$4:$B$9,0))&INDEX(Ref!$C$12:$C$14,MATCH(Counterfactual,Ref!$B$12:$B$14,0))&"!"&ADDRESS(ROW(AF15),COLUMN(AF15)))*IF(DollarType=Ref!$B$17,1,(1+Inflation)^($B15-$B$11)),"-") -> 0.7690000291 | AG15: =IFERROR(INDIRECT(INDEX(Ref!$C$4:$C$9,MATCH(State,Ref!$B$4:$B$9,0))&INDEX(Ref!$C$12:$C$14,MATCH(Counterfactual,Ref!$B$12:$B$14,0))&"!"&ADDRESS(ROW(AG15),COLUMN(AG15)))*IF(DollarType=Ref!$B$17,1,(1+Inflation)^($B15-$B$11)),"-") -> 15.81998987 | AH15: =IFERROR(INDIRECT(INDEX(Ref!$C$4:$C$9,MATCH(State,Ref!$B$4:$B$9,0))&INDEX(Ref!$C$12:$C$14,MATCH(Counterfactual,Ref!$B$12:$B$14,0))&"!"&ADDRESS(ROW(AH15),COLUMN(AH15)))*IF(DollarType=Ref!$B$17,1,(1+Inflation)^($B15-$B$11)),"-") -> 84.01598436 | AJ15: 2025 | AK15: 0.06320315683 | AL15: 0.06194190057 | AM15: 0.04497699516 | AN15: 0.0427678987 | AO15: 0.05275164137 | AP15: 0.05839467946 | AQ15: 0.05381592803 | AR15: 0.06398506436 | AS15: 0.0005951021882 | AT15: 0.0005925032338 | AU15: 0.000939977505 | AV15: 0.000776978816 | AW15: 0.0206166802 | AX15: 0.0182388239 | AY15: 0.01303121437 | AZ15: 0.008215532873 | BA15: 0.02395086843 | BB15: 0.02118560896 | BC15: 0.01410274151 | BD15: 0.009113587404 | BE15: 0.006044309867 | BF15: 0.00698132039 | BG15: 37.83524538 | BH15: - | BI15: 36.19824464 | BJ15: - | BK15: 36.87944372 | BL15: - | BM15: 0.8920400337 | BN15: 19.81928331 | BO15: 97.45854186
B16: 2026 | C16: =IFERROR(INDIRECT(INDEX(Ref!$C$4:$C$9,MATCH(State,Ref!$B$4:$B$9,0))&INDEX(Ref!$C$12:$C$14,MATCH(Counterfactual,Ref!$B$12:$B$14,0))&"!"&ADDRESS(ROW(C16),COLUMN(C16)))*IF(DollarType=Ref!$B$17,1,(1+Inflation)^($B16-$B$11)),"-") -> 0.04669288866 | D16: =IFERROR(INDIRECT(INDEX(Ref!$C$4:$C$9,MATCH(State,Ref!$B$4:$B$9,0))&INDEX(Ref!$C$12:$C$14,MATCH(Counterfactual,Ref!$B$12:$B$14,0))&"!"&ADDRESS(ROW(D16),COLUMN(D16)))*IF(DollarType=Ref!$B$17,1,(1+Inflation)^($B16-$B$11)),"-") -> 0.04428950688 | E16: =IFERROR(INDIRECT(INDEX(Ref!$C$4:$C$9,MATCH(State,Ref!$B$4:$B$9,0))&INDEX(Ref!$C$12:$C$14,MATCH(Counterfactual,Ref!$B$12:$B$14,0))&"!"&ADDRESS(ROW(E16),COLUMN(E16)))*IF(DollarType=Ref!$B$17,1,(1+Inflation)^($B16-$B$11)),"-") -> 0.03151114007 | F16: =IFERROR(INDIRECT(INDEX(Ref!$C$4:$C$9,MATCH(State,Ref!$B$4:$B$9,0))&INDEX(Ref!$C$12:$C$14,MATCH(Counterfactual,Ref!$B$12:$B$14,0))&"!"&ADDRESS(ROW(F16),COLUMN(F16)))*IF(DollarType=Ref!$B$17,1,(1+Inflation)^($B16-$B$11)),"-") -> 0.02797884816 | G16: =IFERROR(INDIRECT(INDEX(Ref!$C$4:$C$9,MATCH(State,Ref!$B$4:$B$9,0))&INDEX(Ref!$C$12:$C$14,MATCH(Counterfactual,Ref!$B$12:$B$14,0))&"!"&ADDRESS(ROW(G16),COLUMN(G16)))*IF(DollarType=Ref!$B$17,1,(1+Inflation)^($B16-$B$11)),"-") -> 0.008970783627 | H16: =IFERROR(INDIRECT(INDEX(Ref!$C$4:$C$9,MATCH(State,Ref!$B$4:$B$9,0))&INDEX(Ref!$C$12:$C$14,MATCH(Counterfactual,Ref!$B$12:$B$14,0))&"!"&ADDRESS(ROW(H16),COLUMN(H16)))*IF(DollarType=Ref!$B$17,1,(1+Inflation)^($B16-$B$11)),"-") -> 0.04439984032 | I16: =IFERROR(INDIRECT(INDEX(Ref!$C$4:$C$9,MATCH(State,Ref!$B$4:$B$9,0))&INDEX(Ref!$C$12:$C$14,MATCH(Counterfactual,Ref!$B$12:$B$14,0))&"!"&ADDRESS(ROW(I16),COLUMN(I16)))*IF(DollarType=Ref!$B$17,1,(1+Inflation)^($B16-$B$11)),"-") -> 0.05153749712 | J16: =IFERROR(INDIRECT(INDEX(Ref!$C$4:$C$9,MATCH(State,Ref!$B$4:$B$9,0))&INDEX(Ref!$C$12:$C$14,MATCH(Counterfactual,Ref!$B$12:$B$14,0))&"!"&ADDRESS(ROW(J16),COLUMN(J16)))*IF(DollarType=Ref!$B$17,1,(1+Inflation)^($B16-$B$11)),"-") -> 0.04531179115 | K16: =IFERROR(INDIRECT(INDEX(Ref!$C$4:$C$9,MATCH(State,Ref!$B$4:$B$9,0))&INDEX(Ref!$C$12:$C$14,MATCH(Counterfactual,Ref!$B$12:$B$14,0))&"!"&ADDRESS(ROW(K16),COLUMN(K16)))*IF(DollarType=Ref!$B$17,1,(1+Inflation)^($B16-$B$11)),"-") -> 0.05510558177 | L16: =IFERROR(INDIRECT(INDEX(Ref!$C$4:$C$9,MATCH(State,Ref!$B$4:$B$9,0))&INDEX(Ref!$C$12:$C$14,MATCH(Counterfactual,Ref!$B$12:$B$14,0))&"!"&ADDRESS(ROW(L16),COLUMN(L16)))*IF(DollarType=Ref!$B$17,1,(1+Inflation)^($B16-$B$11)),"-") -> 0.0005036012749 | M16: =IFERROR(INDIRECT(INDEX(Ref!$C$4:$C$9,MATCH(State,Ref!$B$4:$B$9,0))&INDEX(Ref!$C$12:$C$14,MATCH(Counterfactual,Ref!$B$12:$B$14,0))&"!"&ADDRESS(ROW(M16),COLUMN(M16)))*IF(DollarType=Ref!$B$17,1,(1+Inflation)^($B16-$B$11)),"-") -> 0.0005459675334 | N16: =IFERROR(INDIRECT(INDEX(Ref!$C$4:$C$9,MATCH(State,Ref!$B$4:$B$9,0))&INDEX(Ref!$C$12:$C$14,MATCH(Counterfactual,Ref!$B$12:$B$14,0))&"!"&ADDRESS(ROW(N16),COLUMN(N16)))*IF(DollarType=Ref!$B$17,1,(1+Inflation)^($B16-$B$11)),"-") -> 0.0008160049222 | O16: =IFERROR(INDIRECT(INDEX(Ref!$C$4:$C$9,MATCH(State,Ref!$B$4:$B$9,0))&INDEX(Ref!$C$12:$C$14,MATCH(Counterfactual,Ref!$B$12:$B$14,0))&"!"&ADDRESS(ROW(O16),COLUMN(O16)))*IF(DollarType=Ref!$B$17,1,(1+Inflation)^($B16-$B$11)),"-") -> 0.0006823811893 | P16: =IFERROR(INDIRECT(INDEX(Ref!$C$4:$C$9,MATCH(State,Ref!$B$4:$B$9,0))&INDEX(Ref!$C$12:$C$14,MATCH(Counterfactual,Ref!$B$12:$B$14,0))&"!"&ADDRESS(ROW(P16),COLUMN(P16)))*IF(DollarType=Ref!$B$17,1,(1+Inflation)^($B16-$B$11)),"-") -> 0.01626484336 | Q16: =IFERROR(INDIRECT(INDEX(Ref!$C$4:$C$9,MATCH(State,Ref!$B$4:$B$9,0))&INDEX(Ref!$C$12:$C$14,MATCH(Counterfactual,Ref!$B$12:$B$14,0))&"!"&ADDRESS(ROW(Q16),COLUMN(Q16)))*IF(DollarType=Ref!$B$17,1,(1+Inflation)^($B16-$B$11)),"-") -> 0.01398720155 | R16: =IFERROR(INDIRECT(INDEX(Ref!$C$4:$C$9,MATCH(State,Ref!$B$4:$B$9,0))&INDEX(Ref!$C$12:$C$14,MATCH(Counterfactual,Ref!$B$12:$B$14,0))&"!"&ADDRESS(ROW(R16),COLUMN(R16)))*IF(DollarType=Ref!$B$17,1,(1+Inflation)^($B16-$B$11)),"-") -> 0.01049261481 | S16: =IFERROR(INDIRECT(INDEX(Ref!$C$4:$C$9,MATCH(State,Ref!$B$4:$B$9,0))&INDEX(Ref!$C$12:$C$14,MATCH(Counterfactual,Ref!$B$12:$B$14,0))&"!"&ADDRESS(ROW(S16),COLUMN(S16)))*IF(DollarType=Ref!$B$17,1,(1+Inflation)^($B16-$B$11)),"-") -> 0.006266607712 | T16: =IFERROR(INDIRECT(INDEX(Ref!$C$4:$C$9,MATCH(State,Ref!$B$4:$B$9,0))&INDEX(Ref!$C$12:$C$14,MATCH(Counterfactual,Ref!$B$12:$B$14,0))&"!"&ADDRESS(ROW(T16),COLUMN(T16)))*IF(DollarType=Ref!$B$17,1,(1+Inflation)^($B16-$B$11)),"-") -> 0.02029983373 | U16: =IFERROR(INDIRECT(INDEX(Ref!$C$4:$C$9,MATCH(State,Ref!$B$4:$B$9,0))&INDEX(Ref!$C$12:$C$14,MATCH(Counterfactual,Ref!$B$12:$B$14,0))&"!"&ADDRESS(ROW(U16),COLUMN(U16)))*IF(DollarType=Ref!$B$17,1,(1+Inflation)^($B16-$B$11)),"-") -> 0.01744302246 | V16: =IFERROR(INDIRECT(INDEX(Ref!$C$4:$C$9,MATCH(State,Ref!$B$4:$B$9,0))&INDEX(Ref!$C$12:$C$14,MATCH(Counterfactual,Ref!$B$12:$B$14,0))&"!"&ADDRESS(ROW(V16),COLUMN(V16)))*IF(DollarType=Ref!$B$17,1,(1+Inflation)^($B16-$B$11)),"-") -> 0.01220358464 | W16: =IFERROR(INDIRECT(INDEX(Ref!$C$4:$C$9,MATCH(State,Ref!$B$4:$B$9,0))&INDEX(Ref!$C$12:$C$14,MATCH(Counterfactual,Ref!$B$12:$B$14,0))&"!"&ADDRESS(ROW(W16),COLUMN(W16)))*IF(DollarType=Ref!$B$17,1,(1+Inflation)^($B16-$B$11)),"-") -> 0.007459452706 | X16: =IFERROR(INDIRECT(INDEX(Ref!$C$4:$C$9,MATCH(State,Ref!$B$4:$B$9,0))&INDEX(Ref!$C$12:$C$14,MATCH(Counterfactual,Ref!$B$12:$B$14,0))&"!"&ADDRESS(ROW(X16),COLUMN(X16)))*IF(DollarType=Ref!$B$17,1,(1+Inflation)^($B16-$B$11)),"-") -> 0.003468529542 | Y16: =IFERROR(INDIRECT(INDEX(Ref!$C$4:$C$9,MATCH(State,Ref!$B$4:$B$9,0))&INDEX(Ref!$C$12:$C$14,MATCH(Counterfactual,Ref!$B$12:$B$14,0))&"!"&ADDRESS(ROW(Y16),COLUMN(Y16)))*IF(DollarType=Ref!$B$17,1,(1+Inflation)^($B16-$B$11)),"-") -> 0.004273926668 | Z16: =IFERROR(INDIRECT(INDEX(Ref!$C$4:$C$9,MATCH(State,Ref!$B$4:$B$9,0))&INDEX(Ref!$C$12:$C$14,MATCH(Counterfactual,Ref!$B$12:$B$14,0))&"!"&ADDRESS(ROW(Z16),COLUMN(Z16)))*IF(DollarType=Ref!$B$17,1,(1+Inflation)^($B16-$B$11)),"-") -> 34.52192006 | AA16: =IFERROR(INDIRECT(INDEX(Ref!$C$4:$C$9,MATCH(State,Ref!$B$4:$B$9,0))&INDEX(Ref!$C$12:$C$14,MATCH(Counterfactual,Ref!$B$12:$B$14,0))&"!"&ADDRESS(ROW(AA16),COLUMN(AA16)))*IF(DollarType=Ref!$B$17,1,(1+Inflation)^($B16-$B$11)),"-") -> 11.66797932 | AB16: =IFERROR(INDIRECT(INDEX(Ref!$C$4:$C$9,MATCH(State,Ref!$B$4:$B$9,0))&INDEX(Ref!$C$12:$C$14,MATCH(Counterfactual,Ref!$B$12:$B$14,0))&"!"&ADDRESS(ROW(AB16),COLUMN(AB16)))*IF(DollarType=Ref!$B$17,1,(1+Inflation)^($B16-$B$11)),"-") -> 15.86786717 | AC16: =IFERROR(INDIRECT(INDEX(Ref!$C$4:$C$9,MATCH(State,Ref!$B$4:$B$9,0))&INDEX(Ref!$C$12:$C$14,MATCH(Counterfactual,Ref!$B$12:$B$14,0))&"!"&ADDRESS(ROW(AC16),COLUMN(AC16)))*IF(DollarType=Ref!$B$17,1,(1+Inflation)^($B16-$B$11)),"-") -> 31.54789183 | AD16: =IFERROR(INDIRECT(INDEX(Ref!$C$4:$C$9,MATCH(State,Ref!$B$4:$B$9,0))&INDEX(Ref!$C$12:$C$14,MATCH(Counterfactual,Ref!$B$12:$B$14,0))&"!"&ADDRESS(ROW(AD16),COLUMN(AD16)))*IF(DollarType=Ref!$B$17,1,(1+Inflation)^($B16-$B$11)),"-") -> 16.07725408 | AE16: =IFERROR(INDIRECT(INDEX(Ref!$C$4:$C$9,MATCH(State,Ref!$B$4:$B$9,0))&INDEX(Ref!$C$12:$C$14,MATCH(Counterfactual,Ref!$B$12:$B$14,0))&"!"&ADDRESS(ROW(AE16),COLUMN(AE16)))*IF(DollarType=Ref!$B$17,1,(1+Inflation)^($B16-$B$11)),"-") -> 31.96418694 | AF16: =IFERROR(INDIRECT(INDEX(Ref!$C$4:$C$9,MATCH(State,Ref!$B$4:$B$9,0))&INDEX(Ref!$C$12:$C$14,MATCH(Counterfactual,Ref!$B$12:$B$14,0))&"!"&ADDRESS(ROW(AF16),COLUMN(AF16)))*IF(DollarType=Ref!$B$17,1,(1+Inflation)^($B16-$B$11)),"-") -> 0.3893026108 | AG16: =IFERROR(INDIRECT(INDEX(Ref!$C$4:$C$9,MATCH(State,Ref!$B$4:$B$9,0))&INDEX(Ref!$C$12:$C$14,MATCH(Counterfactual,Ref!$B$12:$B$14,0))&"!"&ADDRESS(ROW(AG16),COLUMN(AG16)))*IF(DollarType=Ref!$B$17,1,(1+Inflation)^($B16-$B$11)),"-") -> 11.4450466 | AH16: =IFERROR(INDIRECT(INDEX(Ref!$C$4:$C$9,MATCH(State,Ref!$B$4:$B$9,0))&INDEX(Ref!$C$12:$C$14,MATCH(Counterfactual,Ref!$B$12:$B$14,0))&"!"&ADDRESS(ROW(AH16),COLUMN(AH16)))*IF(DollarType=Ref!$B$17,1,(1+Inflation)^($B16-$B$11)),"-") -> 84.01598436 | AJ16: 2026 | AK16: 0.06552727502 | AL16: 0.06269801399 | AM16: 0.04765532058 | AN16: 0.04349710654 | AO16: 0.04839582595 | AP16: 0.05617587187 | AQ16: 0.04938985235 | AR16: 0.06006508413 | AS16: 0.0005489253896 | AT16: 0.0005951046114 | AU16: 0.0008894453652 | AV16: 0.0007437954964 | AW16: 0.01914697361 | AX16: 0.01646573366 | AY16: 0.01235190616 | AZ16: 0.007377050598 | BA16: 0.02389696426 | BB16: 0.02053392604 | BC16: 0.01436605984 | BD16: 0.008781267725 | BE16: 0.004083152977 | BF16: 0.005031266473 | BG16: 40.04542727 | BH16: 14.61764449 | BI16: 18.40672592 | BJ16: 39.52319888 | BK16: 18.64961473 | BL16: 40.0447334 | BM16: 0.4515910285 | BN16: 14.33835438 | BO16: 97.45854186
B17: 2027 | C17: =IFERROR(INDIRECT(INDEX(Ref!$C$4:$C$9,MATCH(State,Ref!$B$4:$B$9,0))&INDEX(Ref!$C$12:$C$14,MATCH(Counterfactual,Ref!$B$12:$B$14,0))&"!"&ADDRESS(ROW(C17),COLUMN(C17)))*IF(DollarType=Ref!$B$17,1,(1+Inflation)^($B17-$B$11)),"-") -> 0.04740281171 | D17: =IFERROR(INDIRECT(INDEX(Ref!$C$4:$C$9,MATCH(State,Ref!$B$4:$B$9,0))&INDEX(Ref!$C$12:$C$14,MATCH(Counterfactual,Ref!$B$12:$B$14,0))&"!"&ADDRESS(ROW(D17),COLUMN(D17)))*IF(DollarType=Ref!$B$17,1,(1+Inflation)^($B17-$B$11)),"-") -> 0.04338932061 | E17: =IFERROR(INDIRECT(INDEX(Ref!$C$4:$C$9,MATCH(State,Ref!$B$4:$B$9,0))&INDEX(Ref!$C$12:$C$14,MATCH(Counterfactual,Ref!$B$12:$B$14,0))&"!"&ADDRESS(ROW(E17),COLUMN(E17)))*IF(DollarType=Ref!$B$17,1,(1+Inflation)^($B17-$B$11)),"-") -> 0.03291199209 | F17: =IFERROR(INDIRECT(INDEX(Ref!$C$4:$C$9,MATCH(State,Ref!$B$4:$B$9,0))&INDEX(Ref!$C$12:$C$14,MATCH(Counterfactual,Ref!$B$12:$B$14,0))&"!"&ADDRESS(ROW(F17),COLUMN(F17)))*IF(DollarType=Ref!$B$17,1,(1+Inflation)^($B17-$B$11)),"-") -> 0.02778353152 | G17: =IFERROR(INDIRECT(INDEX(Ref!$C$4:$C$9,MATCH(State,Ref!$B$4:$B$9,0))&INDEX(Ref!$C$12:$C$14,MATCH(Counterfactual,Ref!$B$12:$B$14,0))&"!"&ADDRESS(ROW(G17),COLUMN(G17)))*IF(DollarType=Ref!$B$17,1,(1+Inflation)^($B17-$B$11)),"-") -> 0.00970606694 | H17: =IFERROR(INDIRECT(INDEX(Ref!$C$4:$C$9,MATCH(State,Ref!$B$4:$B$9,0))&INDEX(Ref!$C$12:$C$14,MATCH(Counterfactual,Ref!$B$12:$B$14,0))&"!"&ADDRESS(ROW(H17),COLUMN(H17)))*IF(DollarType=Ref!$B$17,1,(1+Inflation)^($B17-$B$11)),"-") -> 0.04000110751 | I17: =IFERROR(INDIRECT(INDEX(Ref!$C$4:$C$9,MATCH(State,Ref!$B$4:$B$9,0))&INDEX(Ref!$C$12:$C$14,MATCH(Counterfactual,Ref!$B$12:$B$14,0))&"!"&ADDRESS(ROW(I17),COLUMN(I17)))*IF(DollarType=Ref!$B$17,1,(1+Inflation)^($B17-$B$11)),"-") -> 0.04834590662 | J17: =IFERROR(INDIRECT(INDEX(Ref!$C$4:$C$9,MATCH(State,Ref!$B$4:$B$9,0))&INDEX(Ref!$C$12:$C$14,MATCH(Counterfactual,Ref!$B$12:$B$14,0))&"!"&ADDRESS(ROW(J17),COLUMN(J17)))*IF(DollarType=Ref!$B$17,1,(1+Inflation)^($B17-$B$11)),"-") -> 0.04456811264 | K17: =IFERROR(INDIRECT(INDEX(Ref!$C$4:$C$9,MATCH(State,Ref!$B$4:$B$9,0))&INDEX(Ref!$C$12:$C$14,MATCH(Counterfactual,Ref!$B$12:$B$14,0))&"!"&ADDRESS(ROW(K17),COLUMN(K17)))*IF(DollarType=Ref!$B$17,1,(1+Inflation)^($B17-$B$11)),"-") -> 0.05451225343 | L17: =IFERROR(INDIRECT(INDEX(Ref!$C$4:$C$9,MATCH(State,Ref!$B$4:$B$9,0))&INDEX(Ref!$C$12:$C$14,MATCH(Counterfactual,Ref!$B$12:$B$14,0))&"!"&ADDRESS(ROW(L17),COLUMN(L17)))*IF(DollarType=Ref!$B$17,1,(1+Inflation)^($B17-$B$11)),"-") -> 0.0004795987055 | M17: =IFERROR(INDIRECT(INDEX(Ref!$C$4:$C$9,MATCH(State,Ref!$B$4:$B$9,0))&INDEX(Ref!$C$12:$C$14,MATCH(Counterfactual,Ref!$B$12:$B$14,0))&"!"&ADDRESS(ROW(M17),COLUMN(M17)))*IF(DollarType=Ref!$B$17,1,(1+Inflation)^($B17-$B$11)),"-") -> 0.0005585996304 | N17: =IFERROR(INDIRECT(INDEX(Ref!$C$4:$C$9,MATCH(State,Ref!$B$4:$B$9,0))&INDEX(Ref!$C$12:$C$14,MATCH(Counterfactual,Ref!$B$12:$B$14,0))&"!"&ADDRESS(ROW(N17),COLUMN(N17)))*IF(DollarType=Ref!$B$17,1,(1+Inflation)^($B17-$B$11)),"-") -> 0.0008242494453 | O17: =IFERROR(INDIRECT(INDEX(Ref!$C$4:$C$9,MATCH(State,Ref!$B$4:$B$9,0))&INDEX(Ref!$C$12:$C$14,MATCH(Counterfactual,Ref!$B$12:$B$14,0))&"!"&ADDRESS(ROW(O17),COLUMN(O17)))*IF(DollarType=Ref!$B$17,1,(1+Inflation)^($B17-$B$11)),"-") -> 0.0007016752994 | P17: =IFERROR(INDIRECT(INDEX(Ref!$C$4:$C$9,MATCH(State,Ref!$B$4:$B$9,0))&INDEX(Ref!$C$12:$C$14,MATCH(Counterfactual,Ref!$B$12:$B$14,0))&"!"&ADDRESS(ROW(P17),COLUMN(P17)))*IF(DollarType=Ref!$B$17,1,(1+Inflation)^($B17-$B$11)),"-") -> 0.01607153707 | Q17: =IFERROR(INDIRECT(INDEX(Ref!$C$4:$C$9,MATCH(State,Ref!$B$4:$B$9,0))&INDEX(Ref!$C$12:$C$14,MATCH(Counterfactual,Ref!$B$12:$B$14,0))&"!"&ADDRESS(ROW(Q17),COLUMN(Q17)))*IF(DollarType=Ref!$B$17,1,(1+Inflation)^($B17-$B$11)),"-") -> 0.01330123319 | R17: =IFERROR(INDIRECT(INDEX(Ref!$C$4:$C$9,MATCH(State,Ref!$B$4:$B$9,0))&INDEX(Ref!$C$12:$C$14,MATCH(Counterfactual,Ref!$B$12:$B$14,0))&"!"&ADDRESS(ROW(R17),COLUMN(R17)))*IF(DollarType=Ref!$B$17,1,(1+Inflation)^($B17-$B$11)),"-") -> 0.01060619308 | S17: =IFERROR(INDIRECT(INDEX(Ref!$C$4:$C$9,MATCH(State,Ref!$B$4:$B$9,0))&INDEX(Ref!$C$12:$C$14,MATCH(Counterfactual,Ref!$B$12:$B$14,0))&"!"&ADDRESS(ROW(S17),COLUMN(S17)))*IF(DollarType=Ref!$B$17,1,(1+Inflation)^($B17-$B$11)),"-") -> 0.006018839983 | T17: =IFERROR(INDIRECT(INDEX(Ref!$C$4:$C$9,MATCH(State,Ref!$B$4:$B$9,0))&INDEX(Ref!$C$12:$C$14,MATCH(Counterfactual,Ref!$B$12:$B$14,0))&"!"&ADDRESS(ROW(T17),COLUMN(T17)))*IF(DollarType=Ref!$B$17,1,(1+Inflation)^($B17-$B$11)),"-") -> 0.02045423847 | U17: =IFERROR(INDIRECT(INDEX(Ref!$C$4:$C$9,MATCH(State,Ref!$B$4:$B$9,0))&INDEX(Ref!$C$12:$C$14,MATCH(Counterfactual,Ref!$B$12:$B$14,0))&"!"&ADDRESS(ROW(U17),COLUMN(U17)))*IF(DollarType=Ref!$B$17,1,(1+Inflation)^($B17-$B$11)),"-") -> 0.01691307393 | V17: =IFERROR(INDIRECT(INDEX(Ref!$C$4:$C$9,MATCH(State,Ref!$B$4:$B$9,0))&INDEX(Ref!$C$12:$C$14,MATCH(Counterfactual,Ref!$B$12:$B$14,0))&"!"&ADDRESS(ROW(V17),COLUMN(V17)))*IF(DollarType=Ref!$B$17,1,(1+Inflation)^($B17-$B$11)),"-") -> 0.01260418033 | W17: =IFERROR(INDIRECT(INDEX(Ref!$C$4:$C$9,MATCH(State,Ref!$B$4:$B$9,0))&INDEX(Ref!$C$12:$C$14,MATCH(Counterfactual,Ref!$B$12:$B$14,0))&"!"&ADDRESS(ROW(W17),COLUMN(W17)))*IF(DollarType=Ref!$B$17,1,(1+Inflation)^($B17-$B$11)),"-") -> 0.007314454566 | X17: =IFERROR(INDIRECT(INDEX(Ref!$C$4:$C$9,MATCH(State,Ref!$B$4:$B$9,0))&INDEX(Ref!$C$12:$C$14,MATCH(Counterfactual,Ref!$B$12:$B$14,0))&"!"&ADDRESS(ROW(X17),COLUMN(X17)))*IF(DollarType=Ref!$B$17,1,(1+Inflation)^($B17-$B$11)),"-") -> 0.0022160365 | Y17: =IFERROR(INDIRECT(INDEX(Ref!$C$4:$C$9,MATCH(State,Ref!$B$4:$B$9,0))&INDEX(Ref!$C$12:$C$14,MATCH(Counterfactual,Ref!$B$12:$B$14,0))&"!"&ADDRESS(ROW(Y17),COLUMN(Y17)))*IF(DollarType=Ref!$B$17,1,(1+Inflation)^($B17-$B$11)),"-") -> 0.002762692504 | Z17: =IFERROR(INDIRECT(INDEX(Ref!$C$4:$C$9,MATCH(State,Ref!$B$4:$B$9,0))&INDEX(Ref!$C$12:$C$14,MATCH(Counterfactual,Ref!$B$12:$B$14,0))&"!"&ADDRESS(ROW(Z17),COLUMN(Z17)))*IF(DollarType=Ref!$B$17,1,(1+Inflation)^($B17-$B$11)),"-") -> 37.29355681 | AA17: =IFERROR(INDIRECT(INDEX(Ref!$C$4:$C$9,MATCH(State,Ref!$B$4:$B$9,0))&INDEX(Ref!$C$12:$C$14,MATCH(Counterfactual,Ref!$B$12:$B$14,0))&"!"&ADDRESS(ROW(AA17),COLUMN(AA17)))*IF(DollarType=Ref!$B$17,1,(1+Inflation)^($B17-$B$11)),"-") -> 21.17115372 | AB17: =IFERROR(INDIRECT(INDEX(Ref!$C$4:$C$9,MATCH(State,Ref!$B$4:$B$9,0))&INDEX(Ref!$C$12:$C$14,MATCH(Counterfactual,Ref!$B$12:$B$14,0))&"!"&ADDRESS(ROW(AB17),COLUMN(AB17)))*IF(DollarType=Ref!$B$17,1,(1+Inflation)^($B17-$B$11)),"-") -> - | AC17: =IFERROR(INDIRECT(INDEX(Ref!$C$4:$C$9,MATCH(State,Ref!$B$4:$B$9,0))&INDEX(Ref!$C$12:$C$14,MATCH(Counterfactual,Ref!$B$12:$B$14,0))&"!"&ADDRESS(ROW(AC17),COLUMN(AC17)))*IF(DollarType=Ref!$B$17,1,(1+Inflation)^($B17-$B$11)),"-") -> 69.77155793 | AD17: =IFERROR(INDIRECT(INDEX(Ref!$C$4:$C$9,MATCH(State,Ref!$B$4:$B$9,0))&INDEX(Ref!$C$12:$C$14,MATCH(Counterfactual,Ref!$B$12:$B$14,0))&"!"&ADDRESS(ROW(AD17),COLUMN(AD17)))*IF(DollarType=Ref!$B$17,1,(1+Inflation)^($B17-$B$11)),"-") -> - | AE17: =IFERROR(INDIRECT(INDEX(Ref!$C$4:$C$9,MATCH(State,Ref!$B$4:$B$9,0))&INDEX(Ref!$C$12:$C$14,MATCH(Counterfactual,Ref!$B$12:$B$14,0))&"!"&ADDRESS(ROW(AE17),COLUMN(AE17)))*IF(DollarType=Ref!$B$17,1,(1+Inflation)^($B17-$B$11)),"-") -> 70.57646417 | AF17: =IFERROR(INDIRECT(INDEX(Ref!$C$4:$C$9,MATCH(State,Ref!$B$4:$B$9,0))&INDEX(Ref!$C$12:$C$14,MATCH(Counterfactual,Ref!$B$12:$B$14,0))&"!"&ADDRESS(ROW(AF17),COLUMN(AF17)))*IF(DollarType=Ref!$B$17,1,(1+Inflation)^($B17-$B$11)),"-") -> - | AG17: =IFERROR(INDIRECT(INDEX(Ref!$C$4:$C$9,MATCH(State,Ref!$B$4:$B$9,0))&INDEX(Ref!$C$12:$C$14,MATCH(Counterfactual,Ref!$B$12:$B$14,0))&"!"&ADDRESS(ROW(AG17),COLUMN(AG17)))*IF(DollarType=Ref!$B$17,1,(1+Inflation)^($B17-$B$11)),"-") -> 8.42176789 | AH17: =IFERROR(INDIRECT(INDEX(Ref!$C$4:$C$9,MATCH(State,Ref!$B$4:$B$9,0))&INDEX(Ref!$C$12:$C$14,MATCH(Counterfactual,Ref!$B$12:$B$14,0))&"!"&ADDRESS(ROW(AH17),COLUMN(AH17)))*IF(DollarType=Ref!$B$17,1,(1+Inflation)^($B17-$B$11)),"-") -> 84.01598436 | AJ17: 2027 | AK17: 0.06722857195 | AL17: 0.06250389022 | AM17: 0.05016997909 | AN17: 0.04413275531 | AO17: 0.04360120719 | AP17: 0.05269703822 | AQ17: 0.04857924278 | AR17: 0.05941835624 | AS17: 0.000522762589 | AT17: 0.0006088735972 | AU17: 0.0008984318954 | AV17: 0.0007648260763 | AW17: 0.01891941344 | AX17: 0.01565821171 | AY17: 0.01248561049 | AZ17: 0.007085378428 | BA17: 0.02407872952 | BB17: 0.01991007063 | BC17: 0.01483764108 | BD17: 0.008610575915 | BE17: 0.002608718167 | BF17: 0.003252241616 | BG17: 43.2605259 | BH17: 26.52322138 | BI17: - | BJ17: 87.40980777 | BK17: - | BL17: 88.41819431 | BM17: - | BN17: 10.55079081 | BO17: 97.45854186
B18: 2028 | C18: =IFERROR(INDIRECT(INDEX(Ref!$C$4:$C$9,MATCH(State,Ref!$B$4:$B$9,0))&INDEX(Ref!$C$12:$C$14,MATCH(Counterfactual,Ref!$B$12:$B$14,0))&"!"&ADDRESS(ROW(C18),COLUMN(C18)))*IF(DollarType=Ref!$B$17,1,(1+Inflation)^($B18-$B$11)),"-") -> 0.04560849324 | D18: =IFERROR(INDIRECT(INDEX(Ref!$C$4:$C$9,MATCH(State,Ref!$B$4:$B$9,0))&INDEX(Ref!$C$12:$C$14,MATCH(Counterfactual,Ref!$B$12:$B$14,0))&"!"&ADDRESS(ROW(D18),COLUMN(D18)))*IF(DollarType=Ref!$B$17,1,(1+Inflation)^($B18-$B$11)),"-") -> 0.04540966669 | E18: =IFERROR(INDIRECT(INDEX(Ref!$C$4:$C$9,MATCH(State,Ref!$B$4:$B$9,0))&INDEX(Ref!$C$12:$C$14,MATCH(Counterfactual,Ref!$B$12:$B$14,0))&"!"&ADDRESS(ROW(E18),COLUMN(E18)))*IF(DollarType=Ref!$B$17,1,(1+Inflation)^($B18-$B$11)),"-") -> 0.0316432104 | F18: =IFERROR(INDIRECT(INDEX(Ref!$C$4:$C$9,MATCH(State,Ref!$B$4:$B$9,0))&INDEX(Ref!$C$12:$C$14,MATCH(Counterfactual,Ref!$B$12:$B$14,0))&"!"&ADDRESS(ROW(F18),COLUMN(F18)))*IF(DollarType=Ref!$B$17,1,(1+Inflation)^($B18-$B$11)),"-") -> 0.03047648975 | G18: =IFERROR(INDIRECT(INDEX(Ref!$C$4:$C$9,MATCH(State,Ref!$B$4:$B$9,0))&INDEX(Ref!$C$12:$C$14,MATCH(Counterfactual,Ref!$B$12:$B$14,0))&"!"&ADDRESS(ROW(G18),COLUMN(G18)))*IF(DollarType=Ref!$B$17,1,(1+Inflation)^($B18-$B$11)),"-") -> 0.009619235862 | H18: =IFERROR(INDIRECT(INDEX(Ref!$C$4:$C$9,MATCH(State,Ref!$B$4:$B$9,0))&INDEX(Ref!$C$12:$C$14,MATCH(Counterfactual,Ref!$B$12:$B$14,0))&"!"&ADDRESS(ROW(H18),COLUMN(H18)))*IF(DollarType=Ref!$B$17,1,(1+Inflation)^($B18-$B$11)),"-") -> 0.04031264087 | I18: =IFERROR(INDIRECT(INDEX(Ref!$C$4:$C$9,MATCH(State,Ref!$B$4:$B$9,0))&INDEX(Ref!$C$12:$C$14,MATCH(Counterfactual,Ref!$B$12:$B$14,0))&"!"&ADDRESS(ROW(I18),COLUMN(I18)))*IF(DollarType=Ref!$B$17,1,(1+Inflation)^($B18-$B$11)),"-") -> 0.04314702741 | J18: =IFERROR(INDIRECT(INDEX(Ref!$C$4:$C$9,MATCH(State,Ref!$B$4:$B$9,0))&INDEX(Ref!$C$12:$C$14,MATCH(Counterfactual,Ref!$B$12:$B$14,0))&"!"&ADDRESS(ROW(J18),COLUMN(J18)))*IF(DollarType=Ref!$B$17,1,(1+Inflation)^($B18-$B$11)),"-") -> 0.04489892201 | K18: =IFERROR(INDIRECT(INDEX(Ref!$C$4:$C$9,MATCH(State,Ref!$B$4:$B$9,0))&INDEX(Ref!$C$12:$C$14,MATCH(Counterfactual,Ref!$B$12:$B$14,0))&"!"&ADDRESS(ROW(K18),COLUMN(K18)))*IF(DollarType=Ref!$B$17,1,(1+Inflation)^($B18-$B$11)),"-") -> 0.04829834805 | L18: =IFERROR(INDIRECT(INDEX(Ref!$C$4:$C$9,MATCH(State,Ref!$B$4:$B$9,0))&INDEX(Ref!$C$12:$C$14,MATCH(Counterfactual,Ref!$B$12:$B$14,0))&"!"&ADDRESS(ROW(L18),COLUMN(L18)))*IF(DollarType=Ref!$B$17,1,(1+Inflation)^($B18-$B$11)),"-") -> 0.0005536920891 | M18: =IFERROR(INDIRECT(INDEX(Ref!$C$4:$C$9,MATCH(State,Ref!$B$4:$B$9,0))&INDEX(Ref!$C$12:$C$14,MATCH(Counterfactual,Ref!$B$12:$B$14,0))&"!"&ADDRESS(ROW(M18),COLUMN(M18)))*IF(DollarType=Ref!$B$17,1,(1+Inflation)^($B18-$B$11)),"-") -> 0.0004902847531 | N18: =IFERROR(INDIRECT(INDEX(Ref!$C$4:$C$9,MATCH(State,Ref!$B$4:$B$9,0))&INDEX(Ref!$C$12:$C$14,MATCH(Counterfactual,Ref!$B$12:$B$14,0))&"!"&ADDRESS(ROW(N18),COLUMN(N18)))*IF(DollarType=Ref!$B$17,1,(1+Inflation)^($B18-$B$11)),"-") -> 0.0008712681002 | O18: =IFERROR(INDIRECT(INDEX(Ref!$C$4:$C$9,MATCH(State,Ref!$B$4:$B$9,0))&INDEX(Ref!$C$12:$C$14,MATCH(Counterfactual,Ref!$B$12:$B$14,0))&"!"&ADDRESS(ROW(O18),COLUMN(O18)))*IF(DollarType=Ref!$B$17,1,(1+Inflation)^($B18-$B$11)),"-") -> 0.0006536712572 | P18: =IFERROR(INDIRECT(INDEX(Ref!$C$4:$C$9,MATCH(State,Ref!$B$4:$B$9,0))&INDEX(Ref!$C$12:$C$14,MATCH(Counterfactual,Ref!$B$12:$B$14,0))&"!"&ADDRESS(ROW(P18),COLUMN(P18)))*IF(DollarType=Ref!$B$17,1,(1+Inflation)^($B18-$B$11)),"-") -> 0.0146654804 | Q18: =IFERROR(INDIRECT(INDEX(Ref!$C$4:$C$9,MATCH(State,Ref!$B$4:$B$9,0))&INDEX(Ref!$C$12:$C$14,MATCH(Counterfactual,Ref!$B$12:$B$14,0))&"!"&ADDRESS(ROW(Q18),COLUMN(Q18)))*IF(DollarType=Ref!$B$17,1,(1+Inflation)^($B18-$B$11)),"-") -> 0.01306762548 | R18: =IFERROR(INDIRECT(INDEX(Ref!$C$4:$C$9,MATCH(State,Ref!$B$4:$B$9,0))&INDEX(Ref!$C$12:$C$14,MATCH(Counterfactual,Ref!$B$12:$B$14,0))&"!"&ADDRESS(ROW(R18),COLUMN(R18)))*IF(DollarType=Ref!$B$17,1,(1+Inflation)^($B18-$B$11)),"-") -> 0.009663120567 | S18: =IFERROR(INDIRECT(INDEX(Ref!$C$4:$C$9,MATCH(State,Ref!$B$4:$B$9,0))&INDEX(Ref!$C$12:$C$14,MATCH(Counterfactual,Ref!$B$12:$B$14,0))&"!"&ADDRESS(ROW(S18),COLUMN(S18)))*IF(DollarType=Ref!$B$17,1,(1+Inflation)^($B18-$B$11)),"-") -> 0.006233332979 | T18: =IFERROR(INDIRECT(INDEX(Ref!$C$4:$C$9,MATCH(State,Ref!$B$4:$B$9,0))&INDEX(Ref!$C$12:$C$14,MATCH(Counterfactual,Ref!$B$12:$B$14,0))&"!"&ADDRESS(ROW(T18),COLUMN(T18)))*IF(DollarType=Ref!$B$17,1,(1+Inflation)^($B18-$B$11)),"-") -> 0.01892519904 | U18: =IFERROR(INDIRECT(INDEX(Ref!$C$4:$C$9,MATCH(State,Ref!$B$4:$B$9,0))&INDEX(Ref!$C$12:$C$14,MATCH(Counterfactual,Ref!$B$12:$B$14,0))&"!"&ADDRESS(ROW(U18),COLUMN(U18)))*IF(DollarType=Ref!$B$17,1,(1+Inflation)^($B18-$B$11)),"-") -> 0.01683858549 | V18: =IFERROR(INDIRECT(INDEX(Ref!$C$4:$C$9,MATCH(State,Ref!$B$4:$B$9,0))&INDEX(Ref!$C$12:$C$14,MATCH(Counterfactual,Ref!$B$12:$B$14,0))&"!"&ADDRESS(ROW(V18),COLUMN(V18)))*IF(DollarType=Ref!$B$17,1,(1+Inflation)^($B18-$B$11)),"-") -> 0.01163744138 | W18: =IFERROR(INDIRECT(INDEX(Ref!$C$4:$C$9,MATCH(State,Ref!$B$4:$B$9,0))&INDEX(Ref!$C$12:$C$14,MATCH(Counterfactual,Ref!$B$12:$B$14,0))&"!"&ADDRESS(ROW(W18),COLUMN(W18)))*IF(DollarType=Ref!$B$17,1,(1+Inflation)^($B18-$B$11)),"-") -> 0.007675630137 | X18: =IFERROR(INDIRECT(INDEX(Ref!$C$4:$C$9,MATCH(State,Ref!$B$4:$B$9,0))&INDEX(Ref!$C$12:$C$14,MATCH(Counterfactual,Ref!$B$12:$B$14,0))&"!"&ADDRESS(ROW(X18),COLUMN(X18)))*IF(DollarType=Ref!$B$17,1,(1+Inflation)^($B18-$B$11)),"-") -> 0.001615345082 | Y18: =IFERROR(INDIRECT(INDEX(Ref!$C$4:$C$9,MATCH(State,Ref!$B$4:$B$9,0))&INDEX(Ref!$C$12:$C$14,MATCH(Counterfactual,Ref!$B$12:$B$14,0))&"!"&ADDRESS(ROW(Y18),COLUMN(Y18)))*IF(DollarType=Ref!$B$17,1,(1+Inflation)^($B18-$B$11)),"-") -> 0.002019953131 | Z18: =IFERROR(INDIRECT(INDEX(Ref!$C$4:$C$9,MATCH(State,Ref!$B$4:$B$9,0))&INDEX(Ref!$C$12:$C$14,MATCH(Counterfactual,Ref!$B$12:$B$14,0))&"!"&ADDRESS(ROW(Z18),COLUMN(Z18)))*IF(DollarType=Ref!$B$17,1,(1+Inflation)^($B18-$B$11)),"-") -> 39.57973131 | AA18: =IFERROR(INDIRECT(INDEX(Ref!$C$4:$C$9,MATCH(State,Ref!$B$4:$B$9,0))&INDEX(Ref!$C$12:$C$14,MATCH(Counterfactual,Ref!$B$12:$B$14,0))&"!"&ADDRESS(ROW(AA18),COLUMN(AA18)))*IF(DollarType=Ref!$B$17,1,(1+Inflation)^($B18-$B$11)),"-") -> 31.58462558 | AB18: =IFERROR(INDIRECT(INDEX(Ref!$C$4:$C$9,MATCH(State,Ref!$B$4:$B$9,0))&INDEX(Ref!$C$12:$C$14,MATCH(Counterfactual,Ref!$B$12:$B$14,0))&"!"&ADDRESS(ROW(AB18),COLUMN(AB18)))*IF(DollarType=Ref!$B$17,1,(1+Inflation)^($B18-$B$11)),"-") -> - | AC18: =IFERROR(INDIRECT(INDEX(Ref!$C$4:$C$9,MATCH(State,Ref!$B$4:$B$9,0))&INDEX(Ref!$C$12:$C$14,MATCH(Counterfactual,Ref!$B$12:$B$14,0))&"!"&ADDRESS(ROW(AC18),COLUMN(AC18)))*IF(DollarType=Ref!$B$17,1,(1+Inflation)^($B18-$B$11)),"-") -> 90.09425982 | AD18: =IFERROR(INDIRECT(INDEX(Ref!$C$4:$C$9,MATCH(State,Ref!$B$4:$B$9,0))&INDEX(Ref!$C$12:$C$14,MATCH(Counterfactual,Ref!$B$12:$B$14,0))&"!"&ADDRESS(ROW(AD18),COLUMN(AD18)))*IF(DollarType=Ref!$B$17,1,(1+Inflation)^($B18-$B$11)),"-") -> - | AE18: =IFERROR(INDIRECT(INDEX(Ref!$C$4:$C$9,MATCH(State,Ref!$B$4:$B$9,0))&INDEX(Ref!$C$12:$C$14,MATCH(Counterfactual,Ref!$B$12:$B$14,0))&"!"&ADDRESS(ROW(AE18),COLUMN(AE18)))*IF(DollarType=Ref!$B$17,1,(1+Inflation)^($B18-$B$11)),"-") -> 90.92585058 | AF18: =IFERROR(INDIRECT(INDEX(Ref!$C$4:$C$9,MATCH(State,Ref!$B$4:$B$9,0))&INDEX(Ref!$C$12:$C$14,MATCH(Counterfactual,Ref!$B$12:$B$14,0))&"!"&ADDRESS(ROW(AF18),COLUMN(AF18)))*IF(DollarType=Ref!$B$17,1,(1+Inflation)^($B18-$B$11)),"-") -> - | AG18: =IFERROR(INDIRECT(INDEX(Ref!$C$4:$C$9,MATCH(State,Ref!$B$4:$B$9,0))&INDEX(Ref!$C$12:$C$14,MATCH(Counterfactual,Ref!$B$12:$B$14,0))&"!"&ADDRESS(ROW(AG18),COLUMN(AG18)))*IF(DollarType=Ref!$B$17,1,(1+Inflation)^($B18-$B$11)),"-") -> 4.94003899 | AH18: =IFERROR(INDIRECT(INDEX(Ref!$C$4:$C$9,MATCH(State,Ref!$B$4:$B$9,0))&INDEX(Ref!$C$12:$C$14,MATCH(Counterfactual,Ref!$B$12:$B$14,0))&"!"&ADDRESS(ROW(AH18),COLUMN(AH18)))*IF(DollarType=Ref!$B$17,1,(1+Inflation)^($B18-$B$11)),"-") -> 84.01598436 | AJ18: 2028 | AK18: 0.0650140827 | AL18: 0.06478002409 | AM18: 0.04857415173 | AN18: 0.04720068819 | AO18: 0.04394077854 | AP18: 0.04703025988 | AQ18: 0.048939825 | AR18: 0.05264519937 | AS18: 0.0006035243772 | AT18: 0.0005344103809 | AU18: 0.0009496822292 | AV18: 0.0007125016704 | AW18: 0.01726420352 | AX18: 0.01538320872 | AY18: 0.01137542553 | AZ18: 0.007337879583 | BA18: 0.02227874431 | BB18: 0.01982238284 | BC18: 0.01369959599 | BD18: 0.009035751798 | BE18: 0.00190158423 | BF18: 0.002377888826 | BG18: 45.91248832 | BH18: 39.56921893 | BI18: - | BJ18: 112.8700887 | BK18: - | BL18: 113.9119056 | BM18: - | BN18: 6.188880846 | BO18: 97.45854186
B19: 2029 | C19: =IFERROR(INDIRECT(INDEX(Ref!$C$4:$C$9,MATCH(State,Ref!$B$4:$B$9,0))&INDEX(Ref!$C$12:$C$14,MATCH(Counterfactual,Ref!$B$12:$B$14,0))&"!"&ADDRESS(ROW(C19),COLUMN(C19)))*IF(DollarType=Ref!$B$17,1,(1+Inflation)^($B19-$B$11)),"-") -> 0.04637932241 | D19: =IFERROR(INDIRECT(INDEX(Ref!$C$4:$C$9,MATCH(State,Ref!$B$4:$B$9,0))&INDEX(Ref!$C$12:$C$14,MATCH(Counterfactual,Ref!$B$12:$B$14,0))&"!"&ADDRESS(ROW(D19),COLUMN(D19)))*IF(DollarType=Ref!$B$17,1,(1+Inflation)^($B19-$B$11)),"-") -> 0.04711177793 | E19: =IFERROR(INDIRECT(INDEX(Ref!$C$4:$C$9,MATCH(State,Ref!$B$4:$B$9,0))&INDEX(Ref!$C$12:$C$14,MATCH(Counterfactual,Ref!$B$12:$B$14,0))&"!"&ADDRESS(ROW(E19),COLUMN(E19)))*IF(DollarType=Ref!$B$17,1,(1+Inflation)^($B19-$B$11)),"-") -> 0.03273085333 | F19: =IFERROR(INDIRECT(INDEX(Ref!$C$4:$C$9,MATCH(State,Ref!$B$4:$B$9,0))&INDEX(Ref!$C$12:$C$14,MATCH(Counterfactual,Ref!$B$12:$B$14,0))&"!"&ADDRESS(ROW(F19),COLUMN(F19)))*IF(DollarType=Ref!$B$17,1,(1+Inflation)^($B19-$B$11)),"-") -> 0.03148434169 | G19: =IFERROR(INDIRECT(INDEX(Ref!$C$4:$C$9,MATCH(State,Ref!$B$4:$B$9,0))&INDEX(Ref!$C$12:$C$14,MATCH(Counterfactual,Ref!$B$12:$B$14,0))&"!"&ADDRESS(ROW(G19),COLUMN(G19)))*IF(DollarType=Ref!$B$17,1,(1+Inflation)^($B19-$B$11)),"-") -> 0.009846775107 | H19: =IFERROR(INDIRECT(INDEX(Ref!$C$4:$C$9,MATCH(State,Ref!$B$4:$B$9,0))&INDEX(Ref!$C$12:$C$14,MATCH(Counterfactual,Ref!$B$12:$B$14,0))&"!"&ADDRESS(ROW(H19),COLUMN(H19)))*IF(DollarType=Ref!$B$17,1,(1+Inflation)^($B19-$B$11)),"-") -> 0.03839349295 | I19: =IFERROR(INDIRECT(INDEX(Ref!$C$4:$C$9,MATCH(State,Ref!$B$4:$B$9,0))&INDEX(Ref!$C$12:$C$14,MATCH(Counterfactual,Ref!$B$12:$B$14,0))&"!"&ADDRESS(ROW(I19),COLUMN(I19)))*IF(DollarType=Ref!$B$17,1,(1+Inflation)^($B19-$B$11)),"-") -> 0.03929153966 | J19: =IFERROR(INDIRECT(INDEX(Ref!$C$4:$C$9,MATCH(State,Ref!$B$4:$B$9,0))&INDEX(Ref!$C$12:$C$14,MATCH(Counterfactual,Ref!$B$12:$B$14,0))&"!"&ADDRESS(ROW(J19),COLUMN(J19)))*IF(DollarType=Ref!$B$17,1,(1+Inflation)^($B19-$B$11)),"-") -> 0.04118513042 | K19: =IFERROR(INDIRECT(INDEX(Ref!$C$4:$C$9,MATCH(State,Ref!$B$4:$B$9,0))&INDEX(Ref!$C$12:$C$14,MATCH(Counterfactual,Ref!$B$12:$B$14,0))&"!"&ADDRESS(ROW(K19),COLUMN(K19)))*IF(DollarType=Ref!$B$17,1,(1+Inflation)^($B19-$B$11)),"-") -> 0.04344700476 | L19: =IFERROR(INDIRECT(INDEX(Ref!$C$4:$C$9,MATCH(State,Ref!$B$4:$B$9,0))&INDEX(Ref!$C$12:$C$14,MATCH(Counterfactual,Ref!$B$12:$B$14,0))&"!"&ADDRESS(ROW(L19),COLUMN(L19)))*IF(DollarType=Ref!$B$17,1,(1+Inflation)^($B19-$B$11)),"-") -> 0.0005631200136 | M19: =IFERROR(INDIRECT(INDEX(Ref!$C$4:$C$9,MATCH(State,Ref!$B$4:$B$9,0))&INDEX(Ref!$C$12:$C$14,MATCH(Counterfactual,Ref!$B$12:$B$14,0))&"!"&ADDRESS(ROW(M19),COLUMN(M19)))*IF(DollarType=Ref!$B$17,1,(1+Inflation)^($B19-$B$11)),"-") -> 0.000484960114 | N19: =IFERROR(INDIRECT(INDEX(Ref!$C$4:$C$9,MATCH(State,Ref!$B$4:$B$9,0))&INDEX(Ref!$C$12:$C$14,MATCH(Counterfactual,Ref!$B$12:$B$14,0))&"!"&ADDRESS(ROW(N19),COLUMN(N19)))*IF(DollarType=Ref!$B$17,1,(1+Inflation)^($B19-$B$11)),"-") -> 0.0008118373933 | O19: =IFERROR(INDIRECT(INDEX(Ref!$C$4:$C$9,MATCH(State,Ref!$B$4:$B$9,0))&INDEX(Ref!$C$12:$C$14,MATCH(Counterfactual,Ref!$B$12:$B$14,0))&"!"&ADDRESS(ROW(O19),COLUMN(O19)))*IF(DollarType=Ref!$B$17,1,(1+Inflation)^($B19-$B$11)),"-") -> 0.000620027053 | P19: =IFERROR(INDIRECT(INDEX(Ref!$C$4:$C$9,MATCH(State,Ref!$B$4:$B$9,0))&INDEX(Ref!$C$12:$C$14,MATCH(Counterfactual,Ref!$B$12:$B$14,0))&"!"&ADDRESS(ROW(P19),COLUMN(P19)))*IF(DollarType=Ref!$B$17,1,(1+Inflation)^($B19-$B$11)),"-") -> 0.01348703223 | Q19: =IFERROR(INDIRECT(INDEX(Ref!$C$4:$C$9,MATCH(State,Ref!$B$4:$B$9,0))&INDEX(Ref!$C$12:$C$14,MATCH(Counterfactual,Ref!$B$12:$B$14,0))&"!"&ADDRESS(ROW(Q19),COLUMN(Q19)))*IF(DollarType=Ref!$B$17,1,(1+Inflation)^($B19-$B$11)),"-") -> 0.01229496225 | R19: =IFERROR(INDIRECT(INDEX(Ref!$C$4:$C$9,MATCH(State,Ref!$B$4:$B$9,0))&INDEX(Ref!$C$12:$C$14,MATCH(Counterfactual,Ref!$B$12:$B$14,0))&"!"&ADDRESS(ROW(R19),COLUMN(R19)))*IF(DollarType=Ref!$B$17,1,(1+Inflation)^($B19-$B$11)),"-") -> 0.009081141519 | S19: =IFERROR(INDIRECT(INDEX(Ref!$C$4:$C$9,MATCH(State,Ref!$B$4:$B$9,0))&INDEX(Ref!$C$12:$C$14,MATCH(Counterfactual,Ref!$B$12:$B$14,0))&"!"&ADDRESS(ROW(S19),COLUMN(S19)))*IF(DollarType=Ref!$B$17,1,(1+Inflation)^($B19-$B$11)),"-") -> 0.005843970773 | T19: =IFERROR(INDIRECT(INDEX(Ref!$C$4:$C$9,MATCH(State,Ref!$B$4:$B$9,0))&INDEX(Ref!$C$12:$C$14,MATCH(Counterfactual,Ref!$B$12:$B$14,0))&"!"&ADDRESS(ROW(T19),COLUMN(T19)))*IF(DollarType=Ref!$B$17,1,(1+Inflation)^($B19-$B$11)),"-") -> 0.01739794952 | U19: =IFERROR(INDIRECT(INDEX(Ref!$C$4:$C$9,MATCH(State,Ref!$B$4:$B$9,0))&INDEX(Ref!$C$12:$C$14,MATCH(Counterfactual,Ref!$B$12:$B$14,0))&"!"&ADDRESS(ROW(U19),COLUMN(U19)))*IF(DollarType=Ref!$B$17,1,(1+Inflation)^($B19-$B$11)),"-") -> 0.01577140592 | V19: =IFERROR(INDIRECT(INDEX(Ref!$C$4:$C$9,MATCH(State,Ref!$B$4:$B$9,0))&INDEX(Ref!$C$12:$C$14,MATCH(Counterfactual,Ref!$B$12:$B$14,0))&"!"&ADDRESS(ROW(V19),COLUMN(V19)))*IF(DollarType=Ref!$B$17,1,(1+Inflation)^($B19-$B$11)),"-") -> 0.01090317171 | W19: =IFERROR(INDIRECT(INDEX(Ref!$C$4:$C$9,MATCH(State,Ref!$B$4:$B$9,0))&INDEX(Ref!$C$12:$C$14,MATCH(Counterfactual,Ref!$B$12:$B$14,0))&"!"&ADDRESS(ROW(W19),COLUMN(W19)))*IF(DollarType=Ref!$B$17,1,(1+Inflation)^($B19-$B$11)),"-") -> 0.007160859065 | X19: =IFERROR(INDIRECT(INDEX(Ref!$C$4:$C$9,MATCH(State,Ref!$B$4:$B$9,0))&INDEX(Ref!$C$12:$C$14,MATCH(Counterfactual,Ref!$B$12:$B$14,0))&"!"&ADDRESS(ROW(X19),COLUMN(X19)))*IF(DollarType=Ref!$B$17,1,(1+Inflation)^($B19-$B$11)),"-") -> 0.00106169303 | Y19: =IFERROR(INDIRECT(INDEX(Ref!$C$4:$C$9,MATCH(State,Ref!$B$4:$B$9,0))&INDEX(Ref!$C$12:$C$14,MATCH(Counterfactual,Ref!$B$12:$B$14,0))&"!"&ADDRESS(ROW(Y19),COLUMN(Y19)))*IF(DollarType=Ref!$B$17,1,(1+Inflation)^($B19-$B$11)),"-") -> 0.00129869161 | Z19: =IFERROR(INDIRECT(INDEX(Ref!$C$4:$C$9,MATCH(State,Ref!$B$4:$B$9,0))&INDEX(Ref!$C$12:$C$14,MATCH(Counterfactual,Ref!$B$12:$B$14,0))&"!"&ADDRESS(ROW(Z19),COLUMN(Z19)))*IF(DollarType=Ref!$B$17,1,(1+Inflation)^($B19-$B$11)),"-") -> 43.11195223 | AA19: =IFERROR(INDIRECT(INDEX(Ref!$C$4:$C$9,MATCH(State,Ref!$B$4:$B$9,0))&INDEX(Ref!$C$12:$C$14,MATCH(Counterfactual,Ref!$B$12:$B$14,0))&"!"&ADDRESS(ROW(AA19),COLUMN(AA19)))*IF(DollarType=Ref!$B$17,1,(1+Inflation)^($B19-$B$11)),"-") -> 44.23286299 | AB19: =IFERROR(INDIRECT(INDEX(Ref!$C$4:$C$9,MATCH(State,Ref!$B$4:$B$9,0))&INDEX(Ref!$C$12:$C$14,MATCH(Counterfactual,Ref!$B$12:$B$14,0))&"!"&ADDRESS(ROW(AB19),COLUMN(AB19)))*IF(DollarType=Ref!$B$17,1,(1+Inflation)^($B19-$B$11)),"-") -> - | AC19: =IFERROR(INDIRECT(INDEX(Ref!$C$4:$C$9,MATCH(State,Ref!$B$4:$B$9,0))&INDEX(Ref!$C$12:$C$14,MATCH(Counterfactual,Ref!$B$12:$B$14,0))&"!"&ADDRESS(ROW(AC19),COLUMN(AC19)))*IF(DollarType=Ref!$B$17,1,(1+Inflation)^($B19-$B$11)),"-") -> 105.3434181 | AD19: =IFERROR(INDIRECT(INDEX(Ref!$C$4:$C$9,MATCH(State,Ref!$B$4:$B$9,0))&INDEX(Ref!$C$12:$C$14,MATCH(Counterfactual,Ref!$B$12:$B$14,0))&"!"&ADDRESS(ROW(AD19),COLUMN(AD19)))*IF(DollarType=Ref!$B$17,1,(1+Inflation)^($B19-$B$11)),"-") -> - | AE19: =IFERROR(INDIRECT(INDEX(Ref!$C$4:$C$9,MATCH(State,Ref!$B$4:$B$9,0))&INDEX(Ref!$C$12:$C$14,MATCH(Counterfactual,Ref!$B$12:$B$14,0))&"!"&ADDRESS(ROW(AE19),COLUMN(AE19)))*IF(DollarType=Ref!$B$17,1,(1+Inflation)^($B19-$B$11)),"-") -> 106.0965083 | AF19: =IFERROR(INDIRECT(INDEX(Ref!$C$4:$C$9,MATCH(State,Ref!$B$4:$B$9,0))&INDEX(Ref!$C$12:$C$14,MATCH(Counterfactual,Ref!$B$12:$B$14,0))&"!"&ADDRESS(ROW(AF19),COLUMN(AF19)))*IF(DollarType=Ref!$B$17,1,(1+Inflation)^($B19-$B$11)),"-") -> - | AG19: =IFERROR(INDIRECT(INDEX(Ref!$C$4:$C$9,MATCH(State,Ref!$B$4:$B$9,0))&INDEX(Ref!$C$12:$C$14,MATCH(Counterfactual,Ref!$B$12:$B$14,0))&"!"&ADDRESS(ROW(AG19),COLUMN(AG19)))*IF(DollarType=Ref!$B$17,1,(1+Inflation)^($B19-$B$11)),"-") -> 1.550201204 | AH19: =IFERROR(INDIRECT(INDEX(Ref!$C$4:$C$9,MATCH(State,Ref!$B$4:$B$9,0))&INDEX(Ref!$C$12:$C$14,MATCH(Counterfactual,Ref!$B$12:$B$14,0))&"!"&ADDRESS(ROW(AH19),COLUMN(AH19)))*IF(DollarType=Ref!$B$17,1,(1+Inflation)^($B19-$B$11)),"-") -> 84.01598436 | AJ19: 2029 | AK19: 0.06618936199 | AL19: 0.06705160863 | AM19: 0.05012238419 | AN19: 0.0486549907 | AO19: 0.04184890732 | AP19: 0.04282777823 | AQ19: 0.04489179215 | AR19: 0.04735723518 | AS19: 0.0006138008148 | AT19: 0.0005286065242 | AU19: 0.0008849027587 | AV19: 0.0006758294878 | AW19: 0.01587693434 | AX19: 0.01447362955 | AY19: 0.0106903198 | AZ19: 0.006879522394 | BA19: 0.02048086617 | BB19: 0.01856609905 | BC19: 0.01283521373 | BD19: 0.008429763292 | BE19: 0.001249825035 | BF19: 0.001528819763 | BG19: 50.00986458 | BH19: 55.41493075 | BI19: - | BJ19: 131.9742342 | BK19: - | BL19: 132.9177055 | BM19: - | BN19: 1.942092068 | BO19: 97.45854186
B20: 2030 | C20: =IFERROR(INDIRECT(INDEX(Ref!$C$4:$C$9,MATCH(State,Ref!$B$4:$B$9,0))&INDEX(Ref!$C$12:$C$14,MATCH(Counterfactual,Ref!$B$12:$B$14,0))&"!"&ADDRESS(ROW(C20),COLUMN(C20)))*IF(DollarType=Ref!$B$17,1,(1+Inflation)^($B20-$B$11)),"-") -> 0.04630627498 | D20: =IFERROR(INDIRECT(INDEX(Ref!$C$4:$C$9,MATCH(State,Ref!$B$4:$B$9,0))&INDEX(Ref!$C$12:$C$14,MATCH(Counterfactual,Ref!$B$12:$B$14,0))&"!"&ADDRESS(ROW(D20),COLUMN(D20)))*IF(DollarType=Ref!$B$17,1,(1+Inflation)^($B20-$B$11)),"-") -> 0.04698557472 | E20: =IFERROR(INDIRECT(INDEX(Ref!$C$4:$C$9,MATCH(State,Ref!$B$4:$B$9,0))&INDEX(Ref!$C$12:$C$14,MATCH(Counterfactual,Ref!$B$12:$B$14,0))&"!"&ADDRESS(ROW(E20),COLUMN(E20)))*IF(DollarType=Ref!$B$17,1,(1+Inflation)^($B20-$B$11)),"-") -> 0.03331208053 | F20: =IFERROR(INDIRECT(INDEX(Ref!$C$4:$C$9,MATCH(State,Ref!$B$4:$B$9,0))&INDEX(Ref!$C$12:$C$14,MATCH(Counterfactual,Ref!$B$12:$B$14,0))&"!"&ADDRESS(ROW(F20),COLUMN(F20)))*IF(DollarType=Ref!$B$17,1,(1+Inflation)^($B20-$B$11)),"-") -> 0.03198128415 | G20: =IFERROR(INDIRECT(INDEX(Ref!$C$4:$C$9,MATCH(State,Ref!$B$4:$B$9,0))&INDEX(Ref!$C$12:$C$14,MATCH(Counterfactual,Ref!$B$12:$B$14,0))&"!"&ADDRESS(ROW(G20),COLUMN(G20)))*IF(DollarType=Ref!$B$17,1,(1+Inflation)^($B20-$B$11)),"-") -> 0.0163957963 | H20: =IFERROR(INDIRECT(INDEX(Ref!$C$4:$C$9,MATCH(State,Ref!$B$4:$B$9,0))&INDEX(Ref!$C$12:$C$14,MATCH(Counterfactual,Ref!$B$12:$B$14,0))&"!"&ADDRESS(ROW(H20),COLUMN(H20)))*IF(DollarType=Ref!$B$17,1,(1+Inflation)^($B20-$B$11)),"-") -> 0.03551127967 | I20: =IFERROR(INDIRECT(INDEX(Ref!$C$4:$C$9,MATCH(State,Ref!$B$4:$B$9,0))&INDEX(Ref!$C$12:$C$14,MATCH(Counterfactual,Ref!$B$12:$B$14,0))&"!"&ADDRESS(ROW(I20),COLUMN(I20)))*IF(DollarType=Ref!$B$17,1,(1+Inflation)^($B20-$B$11)),"-") -> 0.03735017651 | J20: =IFERROR(INDIRECT(INDEX(Ref!$C$4:$C$9,MATCH(State,Ref!$B$4:$B$9,0))&INDEX(Ref!$C$12:$C$14,MATCH(Counterfactual,Ref!$B$12:$B$14,0))&"!"&ADDRESS(ROW(J20),COLUMN(J20)))*IF(DollarType=Ref!$B$17,1,(1+Inflation)^($B20-$B$11)),"-") -> 0.04086268303 | K20: =IFERROR(INDIRECT(INDEX(Ref!$C$4:$C$9,MATCH(State,Ref!$B$4:$B$9,0))&INDEX(Ref!$C$12:$C$14,MATCH(Counterfactual,Ref!$B$12:$B$14,0))&"!"&ADDRESS(ROW(K20),COLUMN(K20)))*IF(DollarType=Ref!$B$17,1,(1+Inflation)^($B20-$B$11)),"-") -> 0.04242189552 | L20: =IFERROR(INDIRECT(INDEX(Ref!$C$4:$C$9,MATCH(State,Ref!$B$4:$B$9,0))&INDEX(Ref!$C$12:$C$14,MATCH(Counterfactual,Ref!$B$12:$B$14,0))&"!"&ADDRESS(ROW(L20),COLUMN(L20)))*IF(DollarType=Ref!$B$17,1,(1+Inflation)^($B20-$B$11)),"-") -> 0.0004443124957 | M20: =IFERROR(INDIRECT(INDEX(Ref!$C$4:$C$9,MATCH(State,Ref!$B$4:$B$9,0))&INDEX(Ref!$C$12:$C$14,MATCH(Counterfactual,Ref!$B$12:$B$14,0))&"!"&ADDRESS(ROW(M20),COLUMN(M20)))*IF(DollarType=Ref!$B$17,1,(1+Inflation)^($B20-$B$11)),"-") -> 0.0004216934701 | N20: =IFERROR(INDIRECT(INDEX(Ref!$C$4:$C$9,MATCH(State,Ref!$B$4:$B$9,0))&INDEX(Ref!$C$12:$C$14,MATCH(Counterfactual,Ref!$B$12:$B$14,0))&"!"&ADDRESS(ROW(N20),COLUMN(N20)))*IF(DollarType=Ref!$B$17,1,(1+Inflation)^($B20-$B$11)),"-") -> 0.0006306623109 | O20: =IFERROR(INDIRECT(INDEX(Ref!$C$4:$C$9,MATCH(State,Ref!$B$4:$B$9,0))&INDEX(Ref!$C$12:$C$14,MATCH(Counterfactual,Ref!$B$12:$B$14,0))&"!"&ADDRESS(ROW(O20),COLUMN(O20)))*IF(DollarType=Ref!$B$17,1,(1+Inflation)^($B20-$B$11)),"-") -> 0.0005238174902 | P20: =IFERROR(INDIRECT(INDEX(Ref!$C$4:$C$9,MATCH(State,Ref!$B$4:$B$9,0))&INDEX(Ref!$C$12:$C$14,MATCH(Counterfactual,Ref!$B$12:$B$14,0))&"!"&ADDRESS(ROW(P20),COLUMN(P20)))*IF(DollarType=Ref!$B$17,1,(1+Inflation)^($B20-$B$11)),"-") -> 0.01131290334 | Q20: =IFERROR(INDIRECT(INDEX(Ref!$C$4:$C$9,MATCH(State,Ref!$B$4:$B$9,0))&INDEX(Ref!$C$12:$C$14,MATCH(Counterfactual,Ref!$B$12:$B$14,0))&"!"&ADDRESS(ROW(Q20),COLUMN(Q20)))*IF(DollarType=Ref!$B$17,1,(1+Inflation)^($B20-$B$11)),"-") -> 0.01027410422 | R20: =IFERROR(INDIRECT(INDEX(Ref!$C$4:$C$9,MATCH(State,Ref!$B$4:$B$9,0))&INDEX(Ref!$C$12:$C$14,MATCH(Counterfactual,Ref!$B$12:$B$14,0))&"!"&ADDRESS(ROW(R20),COLUMN(R20)))*IF(DollarType=Ref!$B$17,1,(1+Inflation)^($B20-$B$11)),"-") -> 0.007719608245 | S20: =IFERROR(INDIRECT(INDEX(Ref!$C$4:$C$9,MATCH(State,Ref!$B$4:$B$9,0))&INDEX(Ref!$C$12:$C$14,MATCH(Counterfactual,Ref!$B$12:$B$14,0))&"!"&ADDRESS(ROW(S20),COLUMN(S20)))*IF(DollarType=Ref!$B$17,1,(1+Inflation)^($B20-$B$11)),"-") -> 0.004951705953 | T20: =IFERROR(INDIRECT(INDEX(Ref!$C$4:$C$9,MATCH(State,Ref!$B$4:$B$9,0))&INDEX(Ref!$C$12:$C$14,MATCH(Counterfactual,Ref!$B$12:$B$14,0))&"!"&ADDRESS(ROW(T20),COLUMN(T20)))*IF(DollarType=Ref!$B$17,1,(1+Inflation)^($B20-$B$11)),"-") -> 0.01519065479 | U20: =IFERROR(INDIRECT(INDEX(Ref!$C$4:$C$9,MATCH(State,Ref!$B$4:$B$9,0))&INDEX(Ref!$C$12:$C$14,MATCH(Counterfactual,Ref!$B$12:$B$14,0))&"!"&ADDRESS(ROW(U20),COLUMN(U20)))*IF(DollarType=Ref!$B$17,1,(1+Inflation)^($B20-$B$11)),"-") -> 0.01371101309 | V20: =IFERROR(INDIRECT(INDEX(Ref!$C$4:$C$9,MATCH(State,Ref!$B$4:$B$9,0))&INDEX(Ref!$C$12:$C$14,MATCH(Counterfactual,Ref!$B$12:$B$14,0))&"!"&ADDRESS(ROW(V20),COLUMN(V20)))*IF(DollarType=Ref!$B$17,1,(1+Inflation)^($B20-$B$11)),"-") -> 0.009701258788 | W20: =IFERROR(INDIRECT(INDEX(Ref!$C$4:$C$9,MATCH(State,Ref!$B$4:$B$9,0))&INDEX(Ref!$C$12:$C$14,MATCH(Counterfactual,Ref!$B$12:$B$14,0))&"!"&ADDRESS(ROW(W20),COLUMN(W20)))*IF(DollarType=Ref!$B$17,1,(1+Inflation)^($B20-$B$11)),"-") -> 0.006333985401 | X20: =IFERROR(INDIRECT(INDEX(Ref!$C$4:$C$9,MATCH(State,Ref!$B$4:$B$9,0))&INDEX(Ref!$C$12:$C$14,MATCH(Counterfactual,Ref!$B$12:$B$14,0))&"!"&ADDRESS(ROW(X20),COLUMN(X20)))*IF(DollarType=Ref!$B$17,1,(1+Inflation)^($B20-$B$11)),"-") -> 0.000570775545 | Y20: =IFERROR(INDIRECT(INDEX(Ref!$C$4:$C$9,MATCH(State,Ref!$B$4:$B$9,0))&INDEX(Ref!$C$12:$C$14,MATCH(Counterfactual,Ref!$B$12:$B$14,0))&"!"&ADDRESS(ROW(Y20),COLUMN(Y20)))*IF(DollarType=Ref!$B$17,1,(1+Inflation)^($B20-$B$11)),"-") -> 0.0006877521888 | Z20: =IFERROR(INDIRECT(INDEX(Ref!$C$4:$C$9,MATCH(State,Ref!$B$4:$B$9,0))&INDEX(Ref!$C$12:$C$14,MATCH(Counterfactual,Ref!$B$12:$B$14,0))&"!"&ADDRESS(ROW(Z20),COLUMN(Z20)))*IF(DollarType=Ref!$B$17,1,(1+Inflation)^($B20-$B$11)),"-") -> 41.02690343 | AA20: =IFERROR(INDIRECT(INDEX(Ref!$C$4:$C$9,MATCH(State,Ref!$B$4:$B$9,0))&INDEX(Ref!$C$12:$C$14,MATCH(Counterfactual,Ref!$B$12:$B$14,0))&"!"&ADDRESS(ROW(AA20),COLUMN(AA20)))*IF(DollarType=Ref!$B$17,1,(1+Inflation)^($B20-$B$11)),"-") -> 46.77066991 | AB20: =IFERROR(INDIRECT(INDEX(Ref!$C$4:$C$9,MATCH(State,Ref!$B$4:$B$9,0))&INDEX(Ref!$C$12:$C$14,MATCH(Counterfactual,Ref!$B$12:$B$14,0))&"!"&ADDRESS(ROW(AB20),COLUMN(AB20)))*IF(DollarType=Ref!$B$17,1,(1+Inflation)^($B20-$B$11)),"-") -> - | AC20: =IFERROR(INDIRECT(INDEX(Ref!$C$4:$C$9,MATCH(State,Ref!$B$4:$B$9,0))&INDEX(Ref!$C$12:$C$14,MATCH(Counterfactual,Ref!$B$12:$B$14,0))&"!"&ADDRESS(ROW(AC20),COLUMN(AC20)))*IF(DollarType=Ref!$B$17,1,(1+Inflation)^($B20-$B$11)),"-") -> 98.68608824 | AD20: =IFERROR(INDIRECT(INDEX(Ref!$C$4:$C$9,MATCH(State,Ref!$B$4:$B$9,0))&INDEX(Ref!$C$12:$C$14,MATCH(Counterfactual,Ref!$B$12:$B$14,0))&"!"&ADDRESS(ROW(AD20),COLUMN(AD20)))*IF(DollarType=Ref!$B$17,1,(1+Inflation)^($B20-$B$11)),"-") -> - | AE20: =IFERROR(INDIRECT(INDEX(Ref!$C$4:$C$9,MATCH(State,Ref!$B$4:$B$9,0))&INDEX(Ref!$C$12:$C$14,MATCH(Counterfactual,Ref!$B$12:$B$14,0))&"!"&ADDRESS(ROW(AE20),COLUMN(AE20)))*IF(DollarType=Ref!$B$17,1,(1+Inflation)^($B20-$B$11)),"-") -> 99.23679877 | AF20: =IFERROR(INDIRECT(INDEX(Ref!$C$4:$C$9,MATCH(State,Ref!$B$4:$B$9,0))&INDEX(Ref!$C$12:$C$14,MATCH(Counterfactual,Ref!$B$12:$B$14,0))&"!"&ADDRESS(ROW(AF20),COLUMN(AF20)))*IF(DollarType=Ref!$B$17,1,(1+Inflation)^($B20-$B$11)),"-") -> - | AG20: =IFERROR(INDIRECT(INDEX(Ref!$C$4:$C$9,MATCH(State,Ref!$B$4:$B$9,0))&INDEX(Ref!$C$12:$C$14,MATCH(Counterfactual,Ref!$B$12:$B$14,0))&"!"&ADDRESS(ROW(AG20),COLUMN(AG20)))*IF(DollarType=Ref!$B$17,1,(1+Inflation)^($B20-$B$11)),"-") -> - | AH20: =IFERROR(INDIRECT(INDEX(Ref!$C$4:$C$9,MATCH(State,Ref!$B$4:$B$9,0))&INDEX(Ref!$C$12:$C$14,MATCH(Counterfactual,Ref!$B$12:$B$14,0))&"!"&ADDRESS(ROW(AH20),COLUMN(AH20)))*IF(DollarType=Ref!$B$17,1,(1+Inflation)^($B20-$B$11)),"-") -> 84.01598436 | AJ20: 2030 | AK20: 0.07381287831 | AL20: 0.07461254997 | AM20: 0.0585161126 | AN20: 0.05694949911 | AO20: 0.03870729484 | AP20: 0.0407116924 | AQ20: 0.0445403245 | AR20: 0.04623986611 | AS20: 0.0004843006203 | AT20: 0.0004596458824 | AU20: 0.0006874219189 | AV20: 0.0005709610644 | AW20: 0.01331754981 | AX20: 0.01209467549 | AY20: 0.009087522826 | AZ20: 0.005829148247 | BA20: 0.01788243882 | BB20: 0.01614060461 | BC20: 0.01142032184 | BD20: 0.007456367615 | BE20: 0.0006719169716 | BF20: 0.0008096218767 | BG20: 47.59120798 | BH20: 58.59429527 | BI20: - | BJ20: 123.6339313 | BK20: - | BL20: 124.3238615 | BM20: - | BN20: - | BO20: 97.45854186
B21: 2031 | C21: =IFERROR(INDIRECT(INDEX(Ref!$C$4:$C$9,MATCH(State,Ref!$B$4:$B$9,0))&INDEX(Ref!$C$12:$C$14,MATCH(Counterfactual,Ref!$B$12:$B$14,0))&"!"&ADDRESS(ROW(C21),COLUMN(C21)))*IF(DollarType=Ref!$B$17,1,(1+Inflation)^($B21-$B$11)),"-") -> 0.04720148296 | D21: =IFERROR(INDIRECT(INDEX(Ref!$C$4:$C$9,MATCH(State,Ref!$B$4:$B$9,0))&INDEX(Ref!$C$12:$C$14,MATCH(Counterfactual,Ref!$B$12:$B$14,0))&"!"&ADDRESS(ROW(D21),COLUMN(D21)))*IF(DollarType=Ref!$B$17,1,(1+Inflation)^($B21-$B$11)),"-") -> 0.0478481112 | E21: =IFERROR(INDIRECT(INDEX(Ref!$C$4:$C$9,MATCH(State,Ref!$B$4:$B$9,0))&INDEX(Ref!$C$12:$C$14,MATCH(Counterfactual,Ref!$B$12:$B$14,0))&"!"&ADDRESS(ROW(E21),COLUMN(E21)))*IF(DollarType=Ref!$B$17,1,(1+Inflation)^($B21-$B$11)),"-") -> 0.03437756379 | F21: =IFERROR(INDIRECT(INDEX(Ref!$C$4:$C$9,MATCH(State,Ref!$B$4:$B$9,0))&INDEX(Ref!$C$12:$C$14,MATCH(Counterfactual,Ref!$B$12:$B$14,0))&"!"&ADDRESS(ROW(F21),COLUMN(F21)))*IF(DollarType=Ref!$B$17,1,(1+Inflation)^($B21-$B$11)),"-") -> 0.03247353614 | G21: =IFERROR(INDIRECT(INDEX(Ref!$C$4:$C$9,MATCH(State,Ref!$B$4:$B$9,0))&INDEX(Ref!$C$12:$C$14,MATCH(Counterfactual,Ref!$B$12:$B$14,0))&"!"&ADDRESS(ROW(G21),COLUMN(G21)))*IF(DollarType=Ref!$B$17,1,(1+Inflation)^($B21-$B$11)),"-") -> 0.01636982973 | H21: =IFERROR(INDIRECT(INDEX(Ref!$C$4:$C$9,MATCH(State,Ref!$B$4:$B$9,0))&INDEX(Ref!$C$12:$C$14,MATCH(Counterfactual,Ref!$B$12:$B$14,0))&"!"&ADDRESS(ROW(H21),COLUMN(H21)))*IF(DollarType=Ref!$B$17,1,(1+Inflation)^($B21-$B$11)),"-") -> 0.03245238175 | I21: =IFERROR(INDIRECT(INDEX(Ref!$C$4:$C$9,MATCH(State,Ref!$B$4:$B$9,0))&INDEX(Ref!$C$12:$C$14,MATCH(Counterfactual,Ref!$B$12:$B$14,0))&"!"&ADDRESS(ROW(I21),COLUMN(I21)))*IF(DollarType=Ref!$B$17,1,(1+Inflation)^($B21-$B$11)),"-") -> 0.03467897776 | J21: =IFERROR(INDIRECT(INDEX(Ref!$C$4:$C$9,MATCH(State,Ref!$B$4:$B$9,0))&INDEX(Ref!$C$12:$C$14,MATCH(Counterfactual,Ref!$B$12:$B$14,0))&"!"&ADDRESS(ROW(J21),COLUMN(J21)))*IF(DollarType=Ref!$B$17,1,(1+Inflation)^($B21-$B$11)),"-") -> 0.03621953063 | K21: =IFERROR(INDIRECT(INDEX(Ref!$C$4:$C$9,MATCH(State,Ref!$B$4:$B$9,0))&INDEX(Ref!$C$12:$C$14,MATCH(Counterfactual,Ref!$B$12:$B$14,0))&"!"&ADDRESS(ROW(K21),COLUMN(K21)))*IF(DollarType=Ref!$B$17,1,(1+Inflation)^($B21-$B$11)),"-") -> 0.03846241432 | L21: =IFERROR(INDIRECT(INDEX(Ref!$C$4:$C$9,MATCH(State,Ref!$B$4:$B$9,0))&INDEX(Ref!$C$12:$C$14,MATCH(Counterfactual,Ref!$B$12:$B$14,0))&"!"&ADDRESS(ROW(L21),COLUMN(L21)))*IF(DollarType=Ref!$B$17,1,(1+Inflation)^($B21-$B$11)),"-") -> 0.0004645499607 | M21: =IFERROR(INDIRECT(INDEX(Ref!$C$4:$C$9,MATCH(State,Ref!$B$4:$B$9,0))&INDEX(Ref!$C$12:$C$14,MATCH(Counterfactual,Ref!$B$12:$B$14,0))&"!"&ADDRESS(ROW(M21),COLUMN(M21)))*IF(DollarType=Ref!$B$17,1,(1+Inflation)^($B21-$B$11)),"-") -> 0.0004408577142 | N21: =IFERROR(INDIRECT(INDEX(Ref!$C$4:$C$9,MATCH(State,Ref!$B$4:$B$9,0))&INDEX(Ref!$C$12:$C$14,MATCH(Counterfactual,Ref!$B$12:$B$14,0))&"!"&ADDRESS(ROW(N21),COLUMN(N21)))*IF(DollarType=Ref!$B$17,1,(1+Inflation)^($B21-$B$11)),"-") -> 0.0006359762759 | O21: =IFERROR(INDIRECT(INDEX(Ref!$C$4:$C$9,MATCH(State,Ref!$B$4:$B$9,0))&INDEX(Ref!$C$12:$C$14,MATCH(Counterfactual,Ref!$B$12:$B$14,0))&"!"&ADDRESS(ROW(O21),COLUMN(O21)))*IF(DollarType=Ref!$B$17,1,(1+Inflation)^($B21-$B$11)),"-") -> 0.0005292478224 | P21: =IFERROR(INDIRECT(INDEX(Ref!$C$4:$C$9,MATCH(State,Ref!$B$4:$B$9,0))&INDEX(Ref!$C$12:$C$14,MATCH(Counterfactual,Ref!$B$12:$B$14,0))&"!"&ADDRESS(ROW(P21),COLUMN(P21)))*IF(DollarType=Ref!$B$17,1,(1+Inflation)^($B21-$B$11)),"-") -> 0.007949752877 | Q21: =IFERROR(INDIRECT(INDEX(Ref!$C$4:$C$9,MATCH(State,Ref!$B$4:$B$9,0))&INDEX(Ref!$C$12:$C$14,MATCH(Counterfactual,Ref!$B$12:$B$14,0))&"!"&ADDRESS(ROW(Q21),COLUMN(Q21)))*IF(DollarType=Ref!$B$17,1,(1+Inflation)^($B21-$B$11)),"-") -> 0.007228775944 | R21: =IFERROR(INDIRECT(INDEX(Ref!$C$4:$C$9,MATCH(State,Ref!$B$4:$B$9,0))&INDEX(Ref!$C$12:$C$14,MATCH(Counterfactual,Ref!$B$12:$B$14,0))&"!"&ADDRESS(ROW(R21),COLUMN(R21)))*IF(DollarType=Ref!$B$17,1,(1+Inflation)^($B21-$B$11)),"-") -> 0.005519637761 | S21: =IFERROR(INDIRECT(INDEX(Ref!$C$4:$C$9,MATCH(State,Ref!$B$4:$B$9,0))&INDEX(Ref!$C$12:$C$14,MATCH(Counterfactual,Ref!$B$12:$B$14,0))&"!"&ADDRESS(ROW(S21),COLUMN(S21)))*IF(DollarType=Ref!$B$17,1,(1+Inflation)^($B21-$B$11)),"-") -> 0.003488191325 | T21: =IFERROR(INDIRECT(INDEX(Ref!$C$4:$C$9,MATCH(State,Ref!$B$4:$B$9,0))&INDEX(Ref!$C$12:$C$14,MATCH(Counterfactual,Ref!$B$12:$B$14,0))&"!"&ADDRESS(ROW(T21),COLUMN(T21)))*IF(DollarType=Ref!$B$17,1,(1+Inflation)^($B21-$B$11)),"-") -> 0.01197528886 | U21: =IFERROR(INDIRECT(INDEX(Ref!$C$4:$C$9,MATCH(State,Ref!$B$4:$B$9,0))&INDEX(Ref!$C$12:$C$14,MATCH(Counterfactual,Ref!$B$12:$B$14,0))&"!"&ADDRESS(ROW(U21),COLUMN(U21)))*IF(DollarType=Ref!$B$17,1,(1+Inflation)^($B21-$B$11)),"-") -> 0.01079572325 | V21: =IFERROR(INDIRECT(INDEX(Ref!$C$4:$C$9,MATCH(State,Ref!$B$4:$B$9,0))&INDEX(Ref!$C$12:$C$14,MATCH(Counterfactual,Ref!$B$12:$B$14,0))&"!"&ADDRESS(ROW(V21),COLUMN(V21)))*IF(DollarType=Ref!$B$17,1,(1+Inflation)^($B21-$B$11)),"-") -> 0.007814933834 | W21: =IFERROR(INDIRECT(INDEX(Ref!$C$4:$C$9,MATCH(State,Ref!$B$4:$B$9,0))&INDEX(Ref!$C$12:$C$14,MATCH(Counterfactual,Ref!$B$12:$B$14,0))&"!"&ADDRESS(ROW(W21),COLUMN(W21)))*IF(DollarType=Ref!$B$17,1,(1+Inflation)^($B21-$B$11)),"-") -> 0.005019303233 | X21: =IFERROR(INDIRECT(INDEX(Ref!$C$4:$C$9,MATCH(State,Ref!$B$4:$B$9,0))&INDEX(Ref!$C$12:$C$14,MATCH(Counterfactual,Ref!$B$12:$B$14,0))&"!"&ADDRESS(ROW(X21),COLUMN(X21)))*IF(DollarType=Ref!$B$17,1,(1+Inflation)^($B21-$B$11)),"-") -> 0.0002144194766 | Y21: =IFERROR(INDIRECT(INDEX(Ref!$C$4:$C$9,MATCH(State,Ref!$B$4:$B$9,0))&INDEX(Ref!$C$12:$C$14,MATCH(Counterfactual,Ref!$B$12:$B$14,0))&"!"&ADDRESS(ROW(Y21),COLUMN(Y21)))*IF(DollarType=Ref!$B$17,1,(1+Inflation)^($B21-$B$11)),"-") -> 0.0002172290749 | Z21: =IFERROR(INDIRECT(INDEX(Ref!$C$4:$C$9,MATCH(State,Ref!$B$4:$B$9,0))&INDEX(Ref!$C$12:$C$14,MATCH(Counterfactual,Ref!$B$12:$B$14,0))&"!"&ADDRESS(ROW(Z21),COLUMN(Z21)))*IF(DollarType=Ref!$B$17,1,(1+Inflation)^($B21-$B$11)),"-") -> 44.0700556 | AA21: =IFERROR(INDIRECT(INDEX(Ref!$C$4:$C$9,MATCH(State,Ref!$B$4:$B$9,0))&INDEX(Ref!$C$12:$C$14,MATCH(Counterfactual,Ref!$B$12:$B$14,0))&"!"&ADDRESS(ROW(AA21),COLUMN(AA21)))*IF(DollarType=Ref!$B$17,1,(1+Inflation)^($B21-$B$11)),"-") -> 35.16790437 | AB21: =IFERROR(INDIRECT(INDEX(Ref!$C$4:$C$9,MATCH(State,Ref!$B$4:$B$9,0))&INDEX(Ref!$C$12:$C$14,MATCH(Counterfactual,Ref!$B$12:$B$14,0))&"!"&ADDRESS(ROW(AB21),COLUMN(AB21)))*IF(DollarType=Ref!$B$17,1,(1+Inflation)^($B21-$B$11)),"-") -> - | AC21: =IFERROR(INDIRECT(INDEX(Ref!$C$4:$C$9,MATCH(State,Ref!$B$4:$B$9,0))&INDEX(Ref!$C$12:$C$14,MATCH(Counterfactual,Ref!$B$12:$B$14,0))&"!"&ADDRESS(ROW(AC21),COLUMN(AC21)))*IF(DollarType=Ref!$B$17,1,(1+Inflation)^($B21-$B$11)),"-") -> 22.4449727 | AD21: =IFERROR(INDIRECT(INDEX(Ref!$C$4:$C$9,MATCH(State,Ref!$B$4:$B$9,0))&INDEX(Ref!$C$12:$C$14,MATCH(Counterfactual,Ref!$B$12:$B$14,0))&"!"&ADDRESS(ROW(AD21),COLUMN(AD21)))*IF(DollarType=Ref!$B$17,1,(1+Inflation)^($B21-$B$11)),"-") -> - | AE21: =IFERROR(INDIRECT(INDEX(Ref!$C$4:$C$9,MATCH(State,Ref!$B$4:$B$9,0))&INDEX(Ref!$C$12:$C$14,MATCH(Counterfactual,Ref!$B$12:$B$14,0))&"!"&ADDRESS(ROW(AE21),COLUMN(AE21)))*IF(DollarType=Ref!$B$17,1,(1+Inflation)^($B21-$B$11)),"-") -> 22.53586419 | AF21: =IFERROR(INDIRECT(INDEX(Ref!$C$4:$C$9,MATCH(State,Ref!$B$4:$B$9,0))&INDEX(Ref!$C$12:$C$14,MATCH(Counterfactual,Ref!$B$12:$B$14,0))&"!"&ADDRESS(ROW(AF21),COLUMN(AF21)))*IF(DollarType=Ref!$B$17,1,(1+Inflation)^($B21-$B$11)),"-") -> - | AG21: =IFERROR(INDIRECT(INDEX(Ref!$C$4:$C$9,MATCH(State,Ref!$B$4:$B$9,0))&INDEX(Ref!$C$12:$C$14,MATCH(Counterfactual,Ref!$B$12:$B$14,0))&"!"&ADDRESS(ROW(AG21),COLUMN(AG21)))*IF(DollarType=Ref!$B$17,1,(1+Inflation)^($B21-$B$11)),"-") -> - | AH21: =IFERROR(INDIRECT(INDEX(Ref!$C$4:$C$9,MATCH(State,Ref!$B$4:$B$9,0))&INDEX(Ref!$C$12:$C$14,MATCH(Counterfactual,Ref!$B$12:$B$14,0))&"!"&ADDRESS(ROW(AH21),COLUMN(AH21)))*IF(DollarType=Ref!$B$17,1,(1+Inflation)^($B21-$B$11)),"-") -> 84.01598436 | AJ21: 2031 | AK21: 0.0748361493 | AL21: 0.07559736007 | AM21: 0.05973983166 | AN21: 0.05749841031 | AO21: 0.03537309611 | AP21: 0.03780008576 | AQ21: 0.03947928839 | AR21: 0.04192403161 | AS21: 0.0005063594571 | AT21: 0.0004805349085 | AU21: 0.0006932141407 | AV21: 0.0005768801264 | AW21: 0.009358449086 | AX21: 0.008509715042 | AY21: 0.006497717572 | AZ21: 0.004106298828 | BA21: 0.01409731005 | BB21: 0.01270872541 | BC21: 0.009199740109 | BD21: 0.005908723766 | BE21: 0.0002524146079 | BF21: 0.0002557220669 | BG21: 51.1212645 | BH21: 44.05835059 | BI21: - | BJ21: 28.1190618 | BK21: - | BL21: 28.23293066 | BM21: - | BN21: - | BO21: 97.45854186
B22: 2032 | C22: =IFERROR(INDIRECT(INDEX(Ref!$C$4:$C$9,MATCH(State,Ref!$B$4:$B$9,0))&INDEX(Ref!$C$12:$C$14,MATCH(Counterfactual,Ref!$B$12:$B$14,0))&"!"&ADDRESS(ROW(C22),COLUMN(C22)))*IF(DollarType=Ref!$B$17,1,(1+Inflation)^($B22-$B$11)),"-") -> 0.049699307 | D22: =IFERROR(INDIRECT(INDEX(Ref!$C$4:$C$9,MATCH(State,Ref!$B$4:$B$9,0))&INDEX(Ref!$C$12:$C$14,MATCH(Counterfactual,Ref!$B$12:$B$14,0))&"!"&ADDRESS(ROW(D22),COLUMN(D22)))*IF(DollarType=Ref!$B$17,1,(1+Inflation)^($B22-$B$11)),"-") -> 0.04714379723 | E22: =IFERROR(INDIRECT(INDEX(Ref!$C$4:$C$9,MATCH(State,Ref!$B$4:$B$9,0))&INDEX(Ref!$C$12:$C$14,MATCH(Counterfactual,Ref!$B$12:$B$14,0))&"!"&ADDRESS(ROW(E22),COLUMN(E22)))*IF(DollarType=Ref!$B$17,1,(1+Inflation)^($B22-$B$11)),"-") -> 0.03706678982 | F22: =IFERROR(INDIRECT(INDEX(Ref!$C$4:$C$9,MATCH(State,Ref!$B$4:$B$9,0))&INDEX(Ref!$C$12:$C$14,MATCH(Counterfactual,Ref!$B$12:$B$14,0))&"!"&ADDRESS(ROW(F22),COLUMN(F22)))*IF(DollarType=Ref!$B$17,1,(1+Inflation)^($B22-$B$11)),"-") -> 0.03150494122 | G22: =IFERROR(INDIRECT(INDEX(Ref!$C$4:$C$9,MATCH(State,Ref!$B$4:$B$9,0))&INDEX(Ref!$C$12:$C$14,MATCH(Counterfactual,Ref!$B$12:$B$14,0))&"!"&ADDRESS(ROW(G22),COLUMN(G22)))*IF(DollarType=Ref!$B$17,1,(1+Inflation)^($B22-$B$11)),"-") -> 0.01509844228 | H22: =IFERROR(INDIRECT(INDEX(Ref!$C$4:$C$9,MATCH(State,Ref!$B$4:$B$9,0))&INDEX(Ref!$C$12:$C$14,MATCH(Counterfactual,Ref!$B$12:$B$14,0))&"!"&ADDRESS(ROW(H22),COLUMN(H22)))*IF(DollarType=Ref!$B$17,1,(1+Inflation)^($B22-$B$11)),"-") -> 0.02932772863 | I22: =IFERROR(INDIRECT(INDEX(Ref!$C$4:$C$9,MATCH(State,Ref!$B$4:$B$9,0))&INDEX(Ref!$C$12:$C$14,MATCH(Counterfactual,Ref!$B$12:$B$14,0))&"!"&ADDRESS(ROW(I22),COLUMN(I22)))*IF(DollarType=Ref!$B$17,1,(1+Inflation)^($B22-$B$11)),"-") -> 0.03276908168 | J22: =IFERROR(INDIRECT(INDEX(Ref!$C$4:$C$9,MATCH(State,Ref!$B$4:$B$9,0))&INDEX(Ref!$C$12:$C$14,MATCH(Counterfactual,Ref!$B$12:$B$14,0))&"!"&ADDRESS(ROW(J22),COLUMN(J22)))*IF(DollarType=Ref!$B$17,1,(1+Inflation)^($B22-$B$11)),"-") -> 0.03124510179 | K22: =IFERROR(INDIRECT(INDEX(Ref!$C$4:$C$9,MATCH(State,Ref!$B$4:$B$9,0))&INDEX(Ref!$C$12:$C$14,MATCH(Counterfactual,Ref!$B$12:$B$14,0))&"!"&ADDRESS(ROW(K22),COLUMN(K22)))*IF(DollarType=Ref!$B$17,1,(1+Inflation)^($B22-$B$11)),"-") -> 0.03526120442 | L22: =IFERROR(INDIRECT(INDEX(Ref!$C$4:$C$9,MATCH(State,Ref!$B$4:$B$9,0))&INDEX(Ref!$C$12:$C$14,MATCH(Counterfactual,Ref!$B$12:$B$14,0))&"!"&ADDRESS(ROW(L22),COLUMN(L22)))*IF(DollarType=Ref!$B$17,1,(1+Inflation)^($B22-$B$11)),"-") -> 0.0004637835542 | M22: =IFERROR(INDIRECT(INDEX(Ref!$C$4:$C$9,MATCH(State,Ref!$B$4:$B$9,0))&INDEX(Ref!$C$12:$C$14,MATCH(Counterfactual,Ref!$B$12:$B$14,0))&"!"&ADDRESS(ROW(M22),COLUMN(M22)))*IF(DollarType=Ref!$B$17,1,(1+Inflation)^($B22-$B$11)),"-") -> 0.0004736431651 | N22: =IFERROR(INDIRECT(INDEX(Ref!$C$4:$C$9,MATCH(State,Ref!$B$4:$B$9,0))&INDEX(Ref!$C$12:$C$14,MATCH(Counterfactual,Ref!$B$12:$B$14,0))&"!"&ADDRESS(ROW(N22),COLUMN(N22)))*IF(DollarType=Ref!$B$17,1,(1+Inflation)^($B22-$B$11)),"-") -> 0.0006313613856 | O22: =IFERROR(INDIRECT(INDEX(Ref!$C$4:$C$9,MATCH(State,Ref!$B$4:$B$9,0))&INDEX(Ref!$C$12:$C$14,MATCH(Counterfactual,Ref!$B$12:$B$14,0))&"!"&ADDRESS(ROW(O22),COLUMN(O22)))*IF(DollarType=Ref!$B$17,1,(1+Inflation)^($B22-$B$11)),"-") -> 0.0005426040522 | P22: =IFERROR(INDIRECT(INDEX(Ref!$C$4:$C$9,MATCH(State,Ref!$B$4:$B$9,0))&INDEX(Ref!$C$12:$C$14,MATCH(Counterfactual,Ref!$B$12:$B$14,0))&"!"&ADDRESS(ROW(P22),COLUMN(P22)))*IF(DollarType=Ref!$B$17,1,(1+Inflation)^($B22-$B$11)),"-") -> - | Q22: =IFERROR(INDIRECT(INDEX(Ref!$C$4:$C$9,MATCH(State,Ref!$B$4:$B$9,0))&INDEX(Ref!$C$12:$C$14,MATCH(Counterfactual,Ref!$B$12:$B$14,0))&"!"&ADDRESS(ROW(Q22),COLUMN(Q22)))*IF(DollarType=Ref!$B$17,1,(1+Inflation)^($B22-$B$11)),"-") -> - | R22: =IFERROR(INDIRECT(INDEX(Ref!$C$4:$C$9,MATCH(State,Ref!$B$4:$B$9,0))&INDEX(Ref!$C$12:$C$14,MATCH(Counterfactual,Ref!$B$12:$B$14,0))&"!"&ADDRESS(ROW(R22),COLUMN(R22)))*IF(DollarType=Ref!$B$17,1,(1+Inflation)^($B22-$B$11)),"-") -> - | S22: =IFERROR(INDIRECT(INDEX(Ref!$C$4:$C$9,MATCH(State,Ref!$B$4:$B$9,0))&INDEX(Ref!$C$12:$C$14,MATCH(Counterfactual,Ref!$B$12:$B$14,0))&"!"&ADDRESS(ROW(S22),COLUMN(S22)))*IF(DollarType=Ref!$B$17,1,(1+Inflation)^($B22-$B$11)),"-") -> - | T22: =IFERROR(INDIRECT(INDEX(Ref!$C$4:$C$9,MATCH(State,Ref!$B$4:$B$9,0))&INDEX(Ref!$C$12:$C$14,MATCH(Counterfactual,Ref!$B$12:$B$14,0))&"!"&ADDRESS(ROW(T22),COLUMN(T22)))*IF(DollarType=Ref!$B$17,1,(1+Inflation)^($B22-$B$11)),"-") -> - | U22: =IFERROR(INDIRECT(INDEX(Ref!$C$4:$C$9,MATCH(State,Ref!$B$4:$B$9,0))&INDEX(Ref!$C$12:$C$14,MATCH(Counterfactual,Ref!$B$12:$B$14,0))&"!"&ADDRESS(ROW(U22),COLUMN(U22)))*IF(DollarType=Ref!$B$17,1,(1+Inflation)^($B22-$B$11)),"-") -> - | V22: =IFERROR(INDIRECT(INDEX(Ref!$C$4:$C$9,MATCH(State,Ref!$B$4:$B$9,0))&INDEX(Ref!$C$12:$C$14,MATCH(Counterfactual,Ref!$B$12:$B$14,0))&"!"&ADDRESS(ROW(V22),COLUMN(V22)))*IF(DollarType=Ref!$B$17,1,(1+Inflation)^($B22-$B$11)),"-") -> - | W22: =IFERROR(INDIRECT(INDEX(Ref!$C$4:$C$9,MATCH(State,Ref!$B$4:$B$9,0))&INDEX(Ref!$C$12:$C$14,MATCH(Counterfactual,Ref!$B$12:$B$14,0))&"!"&ADDRESS(ROW(W22),COLUMN(W22)))*IF(DollarType=Ref!$B$17,1,(1+Inflation)^($B22-$B$11)),"-") -> - | X22: =IFERROR(INDIRECT(INDEX(Ref!$C$4:$C$9,MATCH(State,Ref!$B$4:$B$9,0))&INDEX(Ref!$C$12:$C$14,MATCH(Counterfactual,Ref!$B$12:$B$14,0))&"!"&ADDRESS(ROW(X22),COLUMN(X22)))*IF(DollarType=Ref!$B$17,1,(1+Inflation)^($B22-$B$11)),"-") -> 0.0001616492056 | Y22: =IFERROR(INDIRECT(INDEX(Ref!$C$4:$C$9,MATCH(State,Ref!$B$4:$B$9,0))&INDEX(Ref!$C$12:$C$14,MATCH(Counterfactual,Ref!$B$12:$B$14,0))&"!"&ADDRESS(ROW(Y22),COLUMN(Y22)))*IF(DollarType=Ref!$B$17,1,(1+Inflation)^($B22-$B$11)),"-") -> 0.0001372738549 | Z22: =IFERROR(INDIRECT(INDEX(Ref!$C$4:$C$9,MATCH(State,Ref!$B$4:$B$9,0))&INDEX(Ref!$C$12:$C$14,MATCH(Counterfactual,Ref!$B$12:$B$14,0))&"!"&ADDRESS(ROW(Z22),COLUMN(Z22)))*IF(DollarType=Ref!$B$17,1,(1+Inflation)^($B22-$B$11)),"-") -> 46.82298739 | AA22: =IFERROR(INDIRECT(INDEX(Ref!$C$4:$C$9,MATCH(State,Ref!$B$4:$B$9,0))&INDEX(Ref!$C$12:$C$14,MATCH(Counterfactual,Ref!$B$12:$B$14,0))&"!"&ADDRESS(ROW(AA22),COLUMN(AA22)))*IF(DollarType=Ref!$B$17,1,(1+Inflation)^($B22-$B$11)),"-") -> 26.68910281 | AB22: =IFERROR(INDIRECT(INDEX(Ref!$C$4:$C$9,MATCH(State,Ref!$B$4:$B$9,0))&INDEX(Ref!$C$12:$C$14,MATCH(Counterfactual,Ref!$B$12:$B$14,0))&"!"&ADDRESS(ROW(AB22),COLUMN(AB22)))*IF(DollarType=Ref!$B$17,1,(1+Inflation)^($B22-$B$11)),"-") -> - | AC22: =IFERROR(INDIRECT(INDEX(Ref!$C$4:$C$9,MATCH(State,Ref!$B$4:$B$9,0))&INDEX(Ref!$C$12:$C$14,MATCH(Counterfactual,Ref!$B$12:$B$14,0))&"!"&ADDRESS(ROW(AC22),COLUMN(AC22)))*IF(DollarType=Ref!$B$17,1,(1+Inflation)^($B22-$B$11)),"-") -> - | AD22: =IFERROR(INDIRECT(INDEX(Ref!$C$4:$C$9,MATCH(State,Ref!$B$4:$B$9,0))&INDEX(Ref!$C$12:$C$14,MATCH(Counterfactual,Ref!$B$12:$B$14,0))&"!"&ADDRESS(ROW(AD22),COLUMN(AD22)))*IF(DollarType=Ref!$B$17,1,(1+Inflation)^($B22-$B$11)),"-") -> - | AE22: =IFERROR(INDIRECT(INDEX(Ref!$C$4:$C$9,MATCH(State,Ref!$B$4:$B$9,0))&INDEX(Ref!$C$12:$C$14,MATCH(Counterfactual,Ref!$B$12:$B$14,0))&"!"&ADDRESS(ROW(AE22),COLUMN(AE22)))*IF(DollarType=Ref!$B$17,1,(1+Inflation)^($B22-$B$11)),"-") -> - | AF22: =IFERROR(INDIRECT(INDEX(Ref!$C$4:$C$9,MATCH(State,Ref!$B$4:$B$9,0))&INDEX(Ref!$C$12:$C$14,MATCH(Counterfactual,Ref!$B$12:$B$14,0))&"!"&ADDRESS(ROW(AF22),COLUMN(AF22)))*IF(DollarType=Ref!$B$17,1,(1+Inflation)^($B22-$B$11)),"-") -> - | AG22: =IFERROR(INDIRECT(INDEX(Ref!$C$4:$C$9,MATCH(State,Ref!$B$4:$B$9,0))&INDEX(Ref!$C$12:$C$14,MATCH(Counterfactual,Ref!$B$12:$B$14,0))&"!"&ADDRESS(ROW(AG22),COLUMN(AG22)))*IF(DollarType=Ref!$B$17,1,(1+Inflation)^($B22-$B$11)),"-") -> - | AH22: =IFERROR(INDIRECT(INDEX(Ref!$C$4:$C$9,MATCH(State,Ref!$B$4:$B$9,0))&INDEX(Ref!$C$12:$C$14,MATCH(Counterfactual,Ref!$B$12:$B$14,0))&"!"&ADDRESS(ROW(AH22),COLUMN(AH22)))*IF(DollarType=Ref!$B$17,1,(1+Inflation)^($B22-$B$11)),"-") -> 84.01598436 | AJ22: 2032 | AK22: 0.07627991045 | AL22: 0.07327156436 | AM22: 0.06140891123 | AN22: 0.05486150306 | AO22: 0.03196722421 | AP22: 0.03571829903 | AQ22: 0.03405716095 | AR22: 0.03843471282 | AS22: 0.000505524074 | AT22: 0.0005162710499 | AU22: 0.0006881839103 | AV22: 0.0005914384169 | AW22: - | AX22: - | AY22: - | AZ22: - | BA22: - | BB22: - | BC22: - | BD22: - | BE22: 0.0001902934448 | BF22: 0.000161598782 | BG22: 54.31466537 | BH22: 33.436108 | BI22: - | BJ22: - | BK22: - | BL22: - | BM22: - | BN22: - | BO22: 97.45854186
B23: 2033 | C23: =IFERROR(INDIRECT(INDEX(Ref!$C$4:$C$9,MATCH(State,Ref!$B$4:$B$9,0))&INDEX(Ref!$C$12:$C$14,MATCH(Counterfactual,Ref!$B$12:$B$14,0))&"!"&ADDRESS(ROW(C23),COLUMN(C23)))*IF(DollarType=Ref!$B$17,1,(1+Inflation)^($B23-$B$11)),"-") -> 0.04899779768 | D23: =IFERROR(INDIRECT(INDEX(Ref!$C$4:$C$9,MATCH(State,Ref!$B$4:$B$9,0))&INDEX(Ref!$C$12:$C$14,MATCH(Counterfactual,Ref!$B$12:$B$14,0))&"!"&ADDRESS(ROW(D23),COLUMN(D23)))*IF(DollarType=Ref!$B$17,1,(1+Inflation)^($B23-$B$11)),"-") -> 0.04789486773 | E23: =IFERROR(INDIRECT(INDEX(Ref!$C$4:$C$9,MATCH(State,Ref!$B$4:$B$9,0))&INDEX(Ref!$C$12:$C$14,MATCH(Counterfactual,Ref!$B$12:$B$14,0))&"!"&ADDRESS(ROW(E23),COLUMN(E23)))*IF(DollarType=Ref!$B$17,1,(1+Inflation)^($B23-$B$11)),"-") -> 0.0368329115 | F23: =IFERROR(INDIRECT(INDEX(Ref!$C$4:$C$9,MATCH(State,Ref!$B$4:$B$9,0))&INDEX(Ref!$C$12:$C$14,MATCH(Counterfactual,Ref!$B$12:$B$14,0))&"!"&ADDRESS(ROW(F23),COLUMN(F23)))*IF(DollarType=Ref!$B$17,1,(1+Inflation)^($B23-$B$11)),"-") -> 0.03317284392 | G23: =IFERROR(INDIRECT(INDEX(Ref!$C$4:$C$9,MATCH(State,Ref!$B$4:$B$9,0))&INDEX(Ref!$C$12:$C$14,MATCH(Counterfactual,Ref!$B$12:$B$14,0))&"!"&ADDRESS(ROW(G23),COLUMN(G23)))*IF(DollarType=Ref!$B$17,1,(1+Inflation)^($B23-$B$11)),"-") -> 0.007649406209 | H23: =IFERROR(INDIRECT(INDEX(Ref!$C$4:$C$9,MATCH(State,Ref!$B$4:$B$9,0))&INDEX(Ref!$C$12:$C$14,MATCH(Counterfactual,Ref!$B$12:$B$14,0))&"!"&ADDRESS(ROW(H23),COLUMN(H23)))*IF(DollarType=Ref!$B$17,1,(1+Inflation)^($B23-$B$11)),"-") -> 0.02719724378 | I23: =IFERROR(INDIRECT(INDEX(Ref!$C$4:$C$9,MATCH(State,Ref!$B$4:$B$9,0))&INDEX(Ref!$C$12:$C$14,MATCH(Counterfactual,Ref!$B$12:$B$14,0))&"!"&ADDRESS(ROW(I23),COLUMN(I23)))*IF(DollarType=Ref!$B$17,1,(1+Inflation)^($B23-$B$11)),"-") -> 0.02926805143 | J23: =IFERROR(INDIRECT(INDEX(Ref!$C$4:$C$9,MATCH(State,Ref!$B$4:$B$9,0))&INDEX(Ref!$C$12:$C$14,MATCH(Counterfactual,Ref!$B$12:$B$14,0))&"!"&ADDRESS(ROW(J23),COLUMN(J23)))*IF(DollarType=Ref!$B$17,1,(1+Inflation)^($B23-$B$11)),"-") -> 0.03075001281 | K23: =IFERROR(INDIRECT(INDEX(Ref!$C$4:$C$9,MATCH(State,Ref!$B$4:$B$9,0))&INDEX(Ref!$C$12:$C$14,MATCH(Counterfactual,Ref!$B$12:$B$14,0))&"!"&ADDRESS(ROW(K23),COLUMN(K23)))*IF(DollarType=Ref!$B$17,1,(1+Inflation)^($B23-$B$11)),"-") -> 0.03287099661 | L23: =IFERROR(INDIRECT(INDEX(Ref!$C$4:$C$9,MATCH(State,Ref!$B$4:$B$9,0))&INDEX(Ref!$C$12:$C$14,MATCH(Counterfactual,Ref!$B$12:$B$14,0))&"!"&ADDRESS(ROW(L23),COLUMN(L23)))*IF(DollarType=Ref!$B$17,1,(1+Inflation)^($B23-$B$11)),"-") -> 0.0004411126401 | M23: =IFERROR(INDIRECT(INDEX(Ref!$C$4:$C$9,MATCH(State,Ref!$B$4:$B$9,0))&INDEX(Ref!$C$12:$C$14,MATCH(Counterfactual,Ref!$B$12:$B$14,0))&"!"&ADDRESS(ROW(M23),COLUMN(M23)))*IF(DollarType=Ref!$B$17,1,(1+Inflation)^($B23-$B$11)),"-") -> 0.0004271897904 | N23: =IFERROR(INDIRECT(INDEX(Ref!$C$4:$C$9,MATCH(State,Ref!$B$4:$B$9,0))&INDEX(Ref!$C$12:$C$14,MATCH(Counterfactual,Ref!$B$12:$B$14,0))&"!"&ADDRESS(ROW(N23),COLUMN(N23)))*IF(DollarType=Ref!$B$17,1,(1+Inflation)^($B23-$B$11)),"-") -> 0.0005838000753 | O23: =IFERROR(INDIRECT(INDEX(Ref!$C$4:$C$9,MATCH(State,Ref!$B$4:$B$9,0))&INDEX(Ref!$C$12:$C$14,MATCH(Counterfactual,Ref!$B$12:$B$14,0))&"!"&ADDRESS(ROW(O23),COLUMN(O23)))*IF(DollarType=Ref!$B$17,1,(1+Inflation)^($B23-$B$11)),"-") -> 0.0005028182378 | P23: =IFERROR(INDIRECT(INDEX(Ref!$C$4:$C$9,MATCH(State,Ref!$B$4:$B$9,0))&INDEX(Ref!$C$12:$C$14,MATCH(Counterfactual,Ref!$B$12:$B$14,0))&"!"&ADDRESS(ROW(P23),COLUMN(P23)))*IF(DollarType=Ref!$B$17,1,(1+Inflation)^($B23-$B$11)),"-") -> - | Q23: =IFERROR(INDIRECT(INDEX(Ref!$C$4:$C$9,MATCH(State,Ref!$B$4:$B$9,0))&INDEX(Ref!$C$12:$C$14,MATCH(Counterfactual,Ref!$B$12:$B$14,0))&"!"&ADDRESS(ROW(Q23),COLUMN(Q23)))*IF(DollarType=Ref!$B$17,1,(1+Inflation)^($B23-$B$11)),"-") -> - | R23: =IFERROR(INDIRECT(INDEX(Ref!$C$4:$C$9,MATCH(State,Ref!$B$4:$B$9,0))&INDEX(Ref!$C$12:$C$14,MATCH(Counterfactual,Ref!$B$12:$B$14,0))&"!"&ADDRESS(ROW(R23),COLUMN(R23)))*IF(DollarType=Ref!$B$17,1,(1+Inflation)^($B23-$B$11)),"-") -> - | S23: =IFERROR(INDIRECT(INDEX(Ref!$C$4:$C$9,MATCH(State,Ref!$B$4:$B$9,0))&INDEX(Ref!$C$12:$C$14,MATCH(Counterfactual,Ref!$B$12:$B$14,0))&"!"&ADDRESS(ROW(S23),COLUMN(S23)))*IF(DollarType=Ref!$B$17,1,(1+Inflation)^($B23-$B$11)),"-") -> - | T23: =IFERROR(INDIRECT(INDEX(Ref!$C$4:$C$9,MATCH(State,Ref!$B$4:$B$9,0))&INDEX(Ref!$C$12:$C$14,MATCH(Counterfactual,Ref!$B$12:$B$14,0))&"!"&ADDRESS(ROW(T23),COLUMN(T23)))*IF(DollarType=Ref!$B$17,1,(1+Inflation)^($B23-$B$11)),"-") -> - | U23: =IFERROR(INDIRECT(INDEX(Ref!$C$4:$C$9,MATCH(State,Ref!$B$4:$B$9,0))&INDEX(Ref!$C$12:$C$14,MATCH(Counterfactual,Ref!$B$12:$B$14,0))&"!"&ADDRESS(ROW(U23),COLUMN(U23)))*IF(DollarType=Ref!$B$17,1,(1+Inflation)^($B23-$B$11)),"-") -> - | V23: =IFERROR(INDIRECT(INDEX(Ref!$C$4:$C$9,MATCH(State,Ref!$B$4:$B$9,0))&INDEX(Ref!$C$12:$C$14,MATCH(Counterfactual,Ref!$B$12:$B$14,0))&"!"&ADDRESS(ROW(V23),COLUMN(V23)))*IF(DollarType=Ref!$B$17,1,(1+Inflation)^($B23-$B$11)),"-") -> - | W23: =IFERROR(INDIRECT(INDEX(Ref!$C$4:$C$9,MATCH(State,Ref!$B$4:$B$9,0))&INDEX(Ref!$C$12:$C$14,MATCH(Counterfactual,Ref!$B$12:$B$14,0))&"!"&ADDRESS(ROW(W23),COLUMN(W23)))*IF(DollarType=Ref!$B$17,1,(1+Inflation)^($B23-$B$11)),"-") -> - | X23: =IFERROR(INDIRECT(INDEX(Ref!$C$4:$C$9,MATCH(State,Ref!$B$4:$B$9,0))&INDEX(Ref!$C$12:$C$14,MATCH(Counterfactual,Ref!$B$12:$B$14,0))&"!"&ADDRESS(ROW(X23),COLUMN(X23)))*IF(DollarType=Ref!$B$17,1,(1+Inflation)^($B23-$B$11)),"-") -> 0.0001619675615 | Y23: =IFERROR(INDIRECT(INDEX(Ref!$C$4:$C$9,MATCH(State,Ref!$B$4:$B$9,0))&INDEX(Ref!$C$12:$C$14,MATCH(Counterfactual,Ref!$B$12:$B$14,0))&"!"&ADDRESS(ROW(Y23),COLUMN(Y23)))*IF(DollarType=Ref!$B$17,1,(1+Inflation)^($B23-$B$11)),"-") -> 0.0001375442054 | Z23: =IFERROR(INDIRECT(INDEX(Ref!$C$4:$C$9,MATCH(State,Ref!$B$4:$B$9,0))&INDEX(Ref!$C$12:$C$14,MATCH(Counterfactual,Ref!$B$12:$B$14,0))&"!"&ADDRESS(ROW(Z23),COLUMN(Z23)))*IF(DollarType=Ref!$B$17,1,(1+Inflation)^($B23-$B$11)),"-") -> 46.3436459 | AA23: =IFERROR(INDIRECT(INDEX(Ref!$C$4:$C$9,MATCH(State,Ref!$B$4:$B$9,0))&INDEX(Ref!$C$12:$C$14,MATCH(Counterfactual,Ref!$B$12:$B$14,0))&"!"&ADDRESS(ROW(AA23),COLUMN(AA23)))*IF(DollarType=Ref!$B$17,1,(1+Inflation)^($B23-$B$11)),"-") -> 15.8495269 | AB23: =IFERROR(INDIRECT(INDEX(Ref!$C$4:$C$9,MATCH(State,Ref!$B$4:$B$9,0))&INDEX(Ref!$C$12:$C$14,MATCH(Counterfactual,Ref!$B$12:$B$14,0))&"!"&ADDRESS(ROW(AB23),COLUMN(AB23)))*IF(DollarType=Ref!$B$17,1,(1+Inflation)^($B23-$B$11)),"-") -> - | AC23: =IFERROR(INDIRECT(INDEX(Ref!$C$4:$C$9,MATCH(State,Ref!$B$4:$B$9,0))&INDEX(Ref!$C$12:$C$14,MATCH(Counterfactual,Ref!$B$12:$B$14,0))&"!"&ADDRESS(ROW(AC23),COLUMN(AC23)))*IF(DollarType=Ref!$B$17,1,(1+Inflation)^($B23-$B$11)),"-") -> - | AD23: =IFERROR(INDIRECT(INDEX(Ref!$C$4:$C$9,MATCH(State,Ref!$B$4:$B$9,0))&INDEX(Ref!$C$12:$C$14,MATCH(Counterfactual,Ref!$B$12:$B$14,0))&"!"&ADDRESS(ROW(AD23),COLUMN(AD23)))*IF(DollarType=Ref!$B$17,1,(1+Inflation)^($B23-$B$11)),"-") -> - | AE23: =IFERROR(INDIRECT(INDEX(Ref!$C$4:$C$9,MATCH(State,Ref!$B$4:$B$9,0))&INDEX(Ref!$C$12:$C$14,MATCH(Counterfactual,Ref!$B$12:$B$14,0))&"!"&ADDRESS(ROW(AE23),COLUMN(AE23)))*IF(DollarType=Ref!$B$17,1,(1+Inflation)^($B23-$B$11)),"-") -> - | AF23: =IFERROR(INDIRECT(INDEX(Ref!$C$4:$C$9,MATCH(State,Ref!$B$4:$B$9,0))&INDEX(Ref!$C$12:$C$14,MATCH(Counterfactual,Ref!$B$12:$B$14,0))&"!"&ADDRESS(ROW(AF23),COLUMN(AF23)))*IF(DollarType=Ref!$B$17,1,(1+Inflation)^($B23-$B$11)),"-") -> - | AG23: =IFERROR(INDIRECT(INDEX(Ref!$C$4:$C$9,MATCH(State,Ref!$B$4:$B$9,0))&INDEX(Ref!$C$12:$C$14,MATCH(Counterfactual,Ref!$B$12:$B$14,0))&"!"&ADDRESS(ROW(AG23),COLUMN(AG23)))*IF(DollarType=Ref!$B$17,1,(1+Inflation)^($B23-$B$11)),"-") -> - | AH23: =IFERROR(INDIRECT(INDEX(Ref!$C$4:$C$9,MATCH(State,Ref!$B$4:$B$9,0))&INDEX(Ref!$C$12:$C$14,MATCH(Counterfactual,Ref!$B$12:$B$14,0))&"!"&ADDRESS(ROW(AH23),COLUMN(AH23)))*IF(DollarType=Ref!$B$17,1,(1+Inflation)^($B23-$B$11)),"-") -> 84.01598436 | AJ23: 2033 | AK23: 0.06668508841 | AL23: 0.06538671928 | AM23: 0.05236458441 | AN23: 0.04805595286 | AO23: 0.02964499572 | AP23: 0.03190217606 | AQ23: 0.03351751396 | AR23: 0.0358293863 | AS23: 0.0004808127777 | AT23: 0.0004656368716 | AU23: 0.0006363420821 | AV23: 0.0005480718792 | AW23: - | AX23: - | AY23: - | AZ23: - | BA23: - | BB23: - | BC23: - | BD23: - | BE23: 0.0001906682134 | BF23: 0.0001619170386 | BG23: 53.75862924 | BH23: 19.8562873 | BI23: - | BJ23: - | BK23: - | BL23: - | BM23: - | BN23: - | BO23: 97.45854186
B24: 2034 | C24: =IFERROR(INDIRECT(INDEX(Ref!$C$4:$C$9,MATCH(State,Ref!$B$4:$B$9,0))&INDEX(Ref!$C$12:$C$14,MATCH(Counterfactual,Ref!$B$12:$B$14,0))&"!"&ADDRESS(ROW(C24),COLUMN(C24)))*IF(DollarType=Ref!$B$17,1,(1+Inflation)^($B24-$B$11)),"-") -> 0.04847231815 | D24: =IFERROR(INDIRECT(INDEX(Ref!$C$4:$C$9,MATCH(State,Ref!$B$4:$B$9,0))&INDEX(Ref!$C$12:$C$14,MATCH(Counterfactual,Ref!$B$12:$B$14,0))&"!"&ADDRESS(ROW(D24),COLUMN(D24)))*IF(DollarType=Ref!$B$17,1,(1+Inflation)^($B24-$B$11)),"-") -> 0.04938501745 | E24: =IFERROR(INDIRECT(INDEX(Ref!$C$4:$C$9,MATCH(State,Ref!$B$4:$B$9,0))&INDEX(Ref!$C$12:$C$14,MATCH(Counterfactual,Ref!$B$12:$B$14,0))&"!"&ADDRESS(ROW(E24),COLUMN(E24)))*IF(DollarType=Ref!$B$17,1,(1+Inflation)^($B24-$B$11)),"-") -> 0.03633715391 | F24: =IFERROR(INDIRECT(INDEX(Ref!$C$4:$C$9,MATCH(State,Ref!$B$4:$B$9,0))&INDEX(Ref!$C$12:$C$14,MATCH(Counterfactual,Ref!$B$12:$B$14,0))&"!"&ADDRESS(ROW(F24),COLUMN(F24)))*IF(DollarType=Ref!$B$17,1,(1+Inflation)^($B24-$B$11)),"-") -> 0.03468393677 | G24: =IFERROR(INDIRECT(INDEX(Ref!$C$4:$C$9,MATCH(State,Ref!$B$4:$B$9,0))&INDEX(Ref!$C$12:$C$14,MATCH(Counterfactual,Ref!$B$12:$B$14,0))&"!"&ADDRESS(ROW(G24),COLUMN(G24)))*IF(DollarType=Ref!$B$17,1,(1+Inflation)^($B24-$B$11)),"-") -> 0.008671965693 | H24: =IFERROR(INDIRECT(INDEX(Ref!$C$4:$C$9,MATCH(State,Ref!$B$4:$B$9,0))&INDEX(Ref!$C$12:$C$14,MATCH(Counterfactual,Ref!$B$12:$B$14,0))&"!"&ADDRESS(ROW(H24),COLUMN(H24)))*IF(DollarType=Ref!$B$17,1,(1+Inflation)^($B24-$B$11)),"-") -> 0.02570488539 | I24: =IFERROR(INDIRECT(INDEX(Ref!$C$4:$C$9,MATCH(State,Ref!$B$4:$B$9,0))&INDEX(Ref!$C$12:$C$14,MATCH(Counterfactual,Ref!$B$12:$B$14,0))&"!"&ADDRESS(ROW(I24),COLUMN(I24)))*IF(DollarType=Ref!$B$17,1,(1+Inflation)^($B24-$B$11)),"-") -> 0.02627138315 | J24: =IFERROR(INDIRECT(INDEX(Ref!$C$4:$C$9,MATCH(State,Ref!$B$4:$B$9,0))&INDEX(Ref!$C$12:$C$14,MATCH(Counterfactual,Ref!$B$12:$B$14,0))&"!"&ADDRESS(ROW(J24),COLUMN(J24)))*IF(DollarType=Ref!$B$17,1,(1+Inflation)^($B24-$B$11)),"-") -> 0.02849279067 | K24: =IFERROR(INDIRECT(INDEX(Ref!$C$4:$C$9,MATCH(State,Ref!$B$4:$B$9,0))&INDEX(Ref!$C$12:$C$14,MATCH(Counterfactual,Ref!$B$12:$B$14,0))&"!"&ADDRESS(ROW(K24),COLUMN(K24)))*IF(DollarType=Ref!$B$17,1,(1+Inflation)^($B24-$B$11)),"-") -> 0.0291756913 | L24: =IFERROR(INDIRECT(INDEX(Ref!$C$4:$C$9,MATCH(State,Ref!$B$4:$B$9,0))&INDEX(Ref!$C$12:$C$14,MATCH(Counterfactual,Ref!$B$12:$B$14,0))&"!"&ADDRESS(ROW(L24),COLUMN(L24)))*IF(DollarType=Ref!$B$17,1,(1+Inflation)^($B24-$B$11)),"-") -> 0.0004697281197 | M24: =IFERROR(INDIRECT(INDEX(Ref!$C$4:$C$9,MATCH(State,Ref!$B$4:$B$9,0))&INDEX(Ref!$C$12:$C$14,MATCH(Counterfactual,Ref!$B$12:$B$14,0))&"!"&ADDRESS(ROW(M24),COLUMN(M24)))*IF(DollarType=Ref!$B$17,1,(1+Inflation)^($B24-$B$11)),"-") -> 0.0004214956971 | N24: =IFERROR(INDIRECT(INDEX(Ref!$C$4:$C$9,MATCH(State,Ref!$B$4:$B$9,0))&INDEX(Ref!$C$12:$C$14,MATCH(Counterfactual,Ref!$B$12:$B$14,0))&"!"&ADDRESS(ROW(N24),COLUMN(N24)))*IF(DollarType=Ref!$B$17,1,(1+Inflation)^($B24-$B$11)),"-") -> 0.0006134121466 | O24: =IFERROR(INDIRECT(INDEX(Ref!$C$4:$C$9,MATCH(State,Ref!$B$4:$B$9,0))&INDEX(Ref!$C$12:$C$14,MATCH(Counterfactual,Ref!$B$12:$B$14,0))&"!"&ADDRESS(ROW(O24),COLUMN(O24)))*IF(DollarType=Ref!$B$17,1,(1+Inflation)^($B24-$B$11)),"-") -> 0.0004993568364 | P24: =IFERROR(INDIRECT(INDEX(Ref!$C$4:$C$9,MATCH(State,Ref!$B$4:$B$9,0))&INDEX(Ref!$C$12:$C$14,MATCH(Counterfactual,Ref!$B$12:$B$14,0))&"!"&ADDRESS(ROW(P24),COLUMN(P24)))*IF(DollarType=Ref!$B$17,1,(1+Inflation)^($B24-$B$11)),"-") -> - | Q24: =IFERROR(INDIRECT(INDEX(Ref!$C$4:$C$9,MATCH(State,Ref!$B$4:$B$9,0))&INDEX(Ref!$C$12:$C$14,MATCH(Counterfactual,Ref!$B$12:$B$14,0))&"!"&ADDRESS(ROW(Q24),COLUMN(Q24)))*IF(DollarType=Ref!$B$17,1,(1+Inflation)^($B24-$B$11)),"-") -> - | R24: =IFERROR(INDIRECT(INDEX(Ref!$C$4:$C$9,MATCH(State,Ref!$B$4:$B$9,0))&INDEX(Ref!$C$12:$C$14,MATCH(Counterfactual,Ref!$B$12:$B$14,0))&"!"&ADDRESS(ROW(R24),COLUMN(R24)))*IF(DollarType=Ref!$B$17,1,(1+Inflation)^($B24-$B$11)),"-") -> - | S24: =IFERROR(INDIRECT(INDEX(Ref!$C$4:$C$9,MATCH(State,Ref!$B$4:$B$9,0))&INDEX(Ref!$C$12:$C$14,MATCH(Counterfactual,Ref!$B$12:$B$14,0))&"!"&ADDRESS(ROW(S24),COLUMN(S24)))*IF(DollarType=Ref!$B$17,1,(1+Inflation)^($B24-$B$11)),"-") -> - | T24: =IFERROR(INDIRECT(INDEX(Ref!$C$4:$C$9,MATCH(State,Ref!$B$4:$B$9,0))&INDEX(Ref!$C$12:$C$14,MATCH(Counterfactual,Ref!$B$12:$B$14,0))&"!"&ADDRESS(ROW(T24),COLUMN(T24)))*IF(DollarType=Ref!$B$17,1,(1+Inflation)^($B24-$B$11)),"-") -> - | U24: =IFERROR(INDIRECT(INDEX(Ref!$C$4:$C$9,MATCH(State,Ref!$B$4:$B$9,0))&INDEX(Ref!$C$12:$C$14,MATCH(Counterfactual,Ref!$B$12:$B$14,0))&"!"&ADDRESS(ROW(U24),COLUMN(U24)))*IF(DollarType=Ref!$B$17,1,(1+Inflation)^($B24-$B$11)),"-") -> - | V24: =IFERROR(INDIRECT(INDEX(Ref!$C$4:$C$9,MATCH(State,Ref!$B$4:$B$9,0))&INDEX(Ref!$C$12:$C$14,MATCH(Counterfactual,Ref!$B$12:$B$14,0))&"!"&ADDRESS(ROW(V24),COLUMN(V24)))*IF(DollarType=Ref!$B$17,1,(1+Inflation)^($B24-$B$11)),"-") -> - | W24: =IFERROR(INDIRECT(INDEX(Ref!$C$4:$C$9,MATCH(State,Ref!$B$4:$B$9,0))&INDEX(Ref!$C$12:$C$14,MATCH(Counterfactual,Ref!$B$12:$B$14,0))&"!"&ADDRESS(ROW(W24),COLUMN(W24)))*IF(DollarType=Ref!$B$17,1,(1+Inflation)^($B24-$B$11)),"-") -> - | X24: =IFERROR(INDIRECT(INDEX(Ref!$C$4:$C$9,MATCH(State,Ref!$B$4:$B$9,0))&INDEX(Ref!$C$12:$C$14,MATCH(Counterfactual,Ref!$B$12:$B$14,0))&"!"&ADDRESS(ROW(X24),COLUMN(X24)))*IF(DollarType=Ref!$B$17,1,(1+Inflation)^($B24-$B$11)),"-") -> 0.0001623693447 | Y24: =IFERROR(INDIRECT(INDEX(Ref!$C$4:$C$9,MATCH(State,Ref!$B$4:$B$9,0))&INDEX(Ref!$C$12:$C$14,MATCH(Counterfactual,Ref!$B$12:$B$14,0))&"!"&ADDRESS(ROW(Y24),COLUMN(Y24)))*IF(DollarType=Ref!$B$17,1,(1+Inflation)^($B24-$B$11)),"-") -> 0.000137885403 | Z24: =IFERROR(INDIRECT(INDEX(Ref!$C$4:$C$9,MATCH(State,Ref!$B$4:$B$9,0))&INDEX(Ref!$C$12:$C$14,MATCH(Counterfactual,Ref!$B$12:$B$14,0))&"!"&ADDRESS(ROW(Z24),COLUMN(Z24)))*IF(DollarType=Ref!$B$17,1,(1+Inflation)^($B24-$B$11)),"-") -> 56.05245526 | AA24: =IFERROR(INDIRECT(INDEX(Ref!$C$4:$C$9,MATCH(State,Ref!$B$4:$B$9,0))&INDEX(Ref!$C$12:$C$14,MATCH(Counterfactual,Ref!$B$12:$B$14,0))&"!"&ADDRESS(ROW(AA24),COLUMN(AA24)))*IF(DollarType=Ref!$B$17,1,(1+Inflation)^($B24-$B$11)),"-") -> 6.3899799 | AB24: =IFERROR(INDIRECT(INDEX(Ref!$C$4:$C$9,MATCH(State,Ref!$B$4:$B$9,0))&INDEX(Ref!$C$12:$C$14,MATCH(Counterfactual,Ref!$B$12:$B$14,0))&"!"&ADDRESS(ROW(AB24),COLUMN(AB24)))*IF(DollarType=Ref!$B$17,1,(1+Inflation)^($B24-$B$11)),"-") -> - | AC24: =IFERROR(INDIRECT(INDEX(Ref!$C$4:$C$9,MATCH(State,Ref!$B$4:$B$9,0))&INDEX(Ref!$C$12:$C$14,MATCH(Counterfactual,Ref!$B$12:$B$14,0))&"!"&ADDRESS(ROW(AC24),COLUMN(AC24)))*IF(DollarType=Ref!$B$17,1,(1+Inflation)^($B24-$B$11)),"-") -> - | AD24: =IFERROR(INDIRECT(INDEX(Ref!$C$4:$C$9,MATCH(State,Ref!$B$4:$B$9,0))&INDEX(Ref!$C$12:$C$14,MATCH(Counterfactual,Ref!$B$12:$B$14,0))&"!"&ADDRESS(ROW(AD24),COLUMN(AD24)))*IF(DollarType=Ref!$B$17,1,(1+Inflation)^($B24-$B$11)),"-") -> - | AE24: =IFERROR(INDIRECT(INDEX(Ref!$C$4:$C$9,MATCH(State,Ref!$B$4:$B$9,0))&INDEX(Ref!$C$12:$C$14,MATCH(Counterfactual,Ref!$B$12:$B$14,0))&"!"&ADDRESS(ROW(AE24),COLUMN(AE24)))*IF(DollarType=Ref!$B$17,1,(1+Inflation)^($B24-$B$11)),"-") -> - | AF24: =IFERROR(INDIRECT(INDEX(Ref!$C$4:$C$9,MATCH(State,Ref!$B$4:$B$9,0))&INDEX(Ref!$C$12:$C$14,MATCH(Counterfactual,Ref!$B$12:$B$14,0))&"!"&ADDRESS(ROW(AF24),COLUMN(AF24)))*IF(DollarType=Ref!$B$17,1,(1+Inflation)^($B24-$B$11)),"-") -> - | AG24: =IFERROR(INDIRECT(INDEX(Ref!$C$4:$C$9,MATCH(State,Ref!$B$4:$B$9,0))&INDEX(Ref!$C$12:$C$14,MATCH(Counterfactual,Ref!$B$12:$B$14,0))&"!"&ADDRESS(ROW(AG24),COLUMN(AG24)))*IF(DollarType=Ref!$B$17,1,(1+Inflation)^($B24-$B$11)),"-") -> - | AH24: =IFERROR(INDIRECT(INDEX(Ref!$C$4:$C$9,MATCH(State,Ref!$B$4:$B$9,0))&INDEX(Ref!$C$12:$C$14,MATCH(Counterfactual,Ref!$B$12:$B$14,0))&"!"&ADDRESS(ROW(AH24),COLUMN(AH24)))*IF(DollarType=Ref!$B$17,1,(1+Inflation)^($B24-$B$11)),"-") -> 84.01598436 | AJ24: 2034 | AK24: 0.06727025094 | AL24: 0.06834468056 | AM24: 0.0529847356 | AN24: 0.05103856838 | AO24: 0.02801832507 | AP24: 0.02863580763 | AQ24: 0.03105714183 | AR24: 0.03180150351 | AS24: 0.0005120036505 | AT24: 0.0004594303098 | AU24: 0.0006686192398 | AV24: 0.0005442989517 | AW24: - | AX24: - | AY24: - | AZ24: - | BA24: - | BB24: - | BC24: - | BD24: - | BE24: 0.0001911411925 | BF24: 0.0001623186964 | BG24: 65.0208481 | BH24: 8.005366818 | BI24: - | BJ24: - | BK24: - | BL24: - | BM24: - | BN24: - | BO24: 97.45854186
B25: 2035 | C25: =IFERROR(INDIRECT(INDEX(Ref!$C$4:$C$9,MATCH(State,Ref!$B$4:$B$9,0))&INDEX(Ref!$C$12:$C$14,MATCH(Counterfactual,Ref!$B$12:$B$14,0))&"!"&ADDRESS(ROW(C25),COLUMN(C25)))*IF(DollarType=Ref!$B$17,1,(1+Inflation)^($B25-$B$11)),"-") -> 0.04952935938 | D25: =IFERROR(INDIRECT(INDEX(Ref!$C$4:$C$9,MATCH(State,Ref!$B$4:$B$9,0))&INDEX(Ref!$C$12:$C$14,MATCH(Counterfactual,Ref!$B$12:$B$14,0))&"!"&ADDRESS(ROW(D25),COLUMN(D25)))*IF(DollarType=Ref!$B$17,1,(1+Inflation)^($B25-$B$11)),"-") -> 0.05031758505 | E25: =IFERROR(INDIRECT(INDEX(Ref!$C$4:$C$9,MATCH(State,Ref!$B$4:$B$9,0))&INDEX(Ref!$C$12:$C$14,MATCH(Counterfactual,Ref!$B$12:$B$14,0))&"!"&ADDRESS(ROW(E25),COLUMN(E25)))*IF(DollarType=Ref!$B$17,1,(1+Inflation)^($B25-$B$11)),"-") -> 0.03731109116 | F25: =IFERROR(INDIRECT(INDEX(Ref!$C$4:$C$9,MATCH(State,Ref!$B$4:$B$9,0))&INDEX(Ref!$C$12:$C$14,MATCH(Counterfactual,Ref!$B$12:$B$14,0))&"!"&ADDRESS(ROW(F25),COLUMN(F25)))*IF(DollarType=Ref!$B$17,1,(1+Inflation)^($B25-$B$11)),"-") -> 0.0353298006 | G25: =IFERROR(INDIRECT(INDEX(Ref!$C$4:$C$9,MATCH(State,Ref!$B$4:$B$9,0))&INDEX(Ref!$C$12:$C$14,MATCH(Counterfactual,Ref!$B$12:$B$14,0))&"!"&ADDRESS(ROW(G25),COLUMN(G25)))*IF(DollarType=Ref!$B$17,1,(1+Inflation)^($B25-$B$11)),"-") -> 0.01066140027 | H25: =IFERROR(INDIRECT(INDEX(Ref!$C$4:$C$9,MATCH(State,Ref!$B$4:$B$9,0))&INDEX(Ref!$C$12:$C$14,MATCH(Counterfactual,Ref!$B$12:$B$14,0))&"!"&ADDRESS(ROW(H25),COLUMN(H25)))*IF(DollarType=Ref!$B$17,1,(1+Inflation)^($B25-$B$11)),"-") -> 0.0234928116 | I25: =IFERROR(INDIRECT(INDEX(Ref!$C$4:$C$9,MATCH(State,Ref!$B$4:$B$9,0))&INDEX(Ref!$C$12:$C$14,MATCH(Counterfactual,Ref!$B$12:$B$14,0))&"!"&ADDRESS(ROW(I25),COLUMN(I25)))*IF(DollarType=Ref!$B$17,1,(1+Inflation)^($B25-$B$11)),"-") -> 0.02346795284 | J25: =IFERROR(INDIRECT(INDEX(Ref!$C$4:$C$9,MATCH(State,Ref!$B$4:$B$9,0))&INDEX(Ref!$C$12:$C$14,MATCH(Counterfactual,Ref!$B$12:$B$14,0))&"!"&ADDRESS(ROW(J25),COLUMN(J25)))*IF(DollarType=Ref!$B$17,1,(1+Inflation)^($B25-$B$11)),"-") -> 0.02586334621 | K25: =IFERROR(INDIRECT(INDEX(Ref!$C$4:$C$9,MATCH(State,Ref!$B$4:$B$9,0))&INDEX(Ref!$C$12:$C$14,MATCH(Counterfactual,Ref!$B$12:$B$14,0))&"!"&ADDRESS(ROW(K25),COLUMN(K25)))*IF(DollarType=Ref!$B$17,1,(1+Inflation)^($B25-$B$11)),"-") -> 0.02695546705 | L25: =IFERROR(INDIRECT(INDEX(Ref!$C$4:$C$9,MATCH(State,Ref!$B$4:$B$9,0))&INDEX(Ref!$C$12:$C$14,MATCH(Counterfactual,Ref!$B$12:$B$14,0))&"!"&ADDRESS(ROW(L25),COLUMN(L25)))*IF(DollarType=Ref!$B$17,1,(1+Inflation)^($B25-$B$11)),"-") -> 0.000419786944 | M25: =IFERROR(INDIRECT(INDEX(Ref!$C$4:$C$9,MATCH(State,Ref!$B$4:$B$9,0))&INDEX(Ref!$C$12:$C$14,MATCH(Counterfactual,Ref!$B$12:$B$14,0))&"!"&ADDRESS(ROW(M25),COLUMN(M25)))*IF(DollarType=Ref!$B$17,1,(1+Inflation)^($B25-$B$11)),"-") -> 0.0003994889496 | N25: =IFERROR(INDIRECT(INDEX(Ref!$C$4:$C$9,MATCH(State,Ref!$B$4:$B$9,0))&INDEX(Ref!$C$12:$C$14,MATCH(Counterfactual,Ref!$B$12:$B$14,0))&"!"&ADDRESS(ROW(N25),COLUMN(N25)))*IF(DollarType=Ref!$B$17,1,(1+Inflation)^($B25-$B$11)),"-") -> 0.0005455051811 | O25: =IFERROR(INDIRECT(INDEX(Ref!$C$4:$C$9,MATCH(State,Ref!$B$4:$B$9,0))&INDEX(Ref!$C$12:$C$14,MATCH(Counterfactual,Ref!$B$12:$B$14,0))&"!"&ADDRESS(ROW(O25),COLUMN(O25)))*IF(DollarType=Ref!$B$17,1,(1+Inflation)^($B25-$B$11)),"-") -> 0.0004708666045 | P25: =IFERROR(INDIRECT(INDEX(Ref!$C$4:$C$9,MATCH(State,Ref!$B$4:$B$9,0))&INDEX(Ref!$C$12:$C$14,MATCH(Counterfactual,Ref!$B$12:$B$14,0))&"!"&ADDRESS(ROW(P25),COLUMN(P25)))*IF(DollarType=Ref!$B$17,1,(1+Inflation)^($B25-$B$11)),"-") -> - | Q25: =IFERROR(INDIRECT(INDEX(Ref!$C$4:$C$9,MATCH(State,Ref!$B$4:$B$9,0))&INDEX(Ref!$C$12:$C$14,MATCH(Counterfactual,Ref!$B$12:$B$14,0))&"!"&ADDRESS(ROW(Q25),COLUMN(Q25)))*IF(DollarType=Ref!$B$17,1,(1+Inflation)^($B25-$B$11)),"-") -> - | R25: =IFERROR(INDIRECT(INDEX(Ref!$C$4:$C$9,MATCH(State,Ref!$B$4:$B$9,0))&INDEX(Ref!$C$12:$C$14,MATCH(Counterfactual,Ref!$B$12:$B$14,0))&"!"&ADDRESS(ROW(R25),COLUMN(R25)))*IF(DollarType=Ref!$B$17,1,(1+Inflation)^($B25-$B$11)),"-") -> - | S25: =IFERROR(INDIRECT(INDEX(Ref!$C$4:$C$9,MATCH(State,Ref!$B$4:$B$9,0))&INDEX(Ref!$C$12:$C$14,MATCH(Counterfactual,Ref!$B$12:$B$14,0))&"!"&ADDRESS(ROW(S25),COLUMN(S25)))*IF(DollarType=Ref!$B$17,1,(1+Inflation)^($B25-$B$11)),"-") -> - | T25: =IFERROR(INDIRECT(INDEX(Ref!$C$4:$C$9,MATCH(State,Ref!$B$4:$B$9,0))&INDEX(Ref!$C$12:$C$14,MATCH(Counterfactual,Ref!$B$12:$B$14,0))&"!"&ADDRESS(ROW(T25),COLUMN(T25)))*IF(DollarType=Ref!$B$17,1,(1+Inflation)^($B25-$B$11)),"-") -> - | U25: =IFERROR(INDIRECT(INDEX(Ref!$C$4:$C$9,MATCH(State,Ref!$B$4:$B$9,0))&INDEX(Ref!$C$12:$C$14,MATCH(Counterfactual,Ref!$B$12:$B$14,0))&"!"&ADDRESS(ROW(U25),COLUMN(U25)))*IF(DollarType=Ref!$B$17,1,(1+Inflation)^($B25-$B$11)),"-") -> - | V25: =IFERROR(INDIRECT(INDEX(Ref!$C$4:$C$9,MATCH(State,Ref!$B$4:$B$9,0))&INDEX(Ref!$C$12:$C$14,MATCH(Counterfactual,Ref!$B$12:$B$14,0))&"!"&ADDRESS(ROW(V25),COLUMN(V25)))*IF(DollarType=Ref!$B$17,1,(1+Inflation)^($B25-$B$11)),"-") -> - | W25: =IFERROR(INDIRECT(INDEX(Ref!$C$4:$C$9,MATCH(State,Ref!$B$4:$B$9,0))&INDEX(Ref!$C$12:$C$14,MATCH(Counterfactual,Ref!$B$12:$B$14,0))&"!"&ADDRESS(ROW(W25),COLUMN(W25)))*IF(DollarType=Ref!$B$17,1,(1+Inflation)^($B25-$B$11)),"-") -> - | X25: =IFERROR(INDIRECT(INDEX(Ref!$C$4:$C$9,MATCH(State,Ref!$B$4:$B$9,0))&INDEX(Ref!$C$12:$C$14,MATCH(Counterfactual,Ref!$B$12:$B$14,0))&"!"&ADDRESS(ROW(X25),COLUMN(X25)))*IF(DollarType=Ref!$B$17,1,(1+Inflation)^($B25-$B$11)),"-") -> 0.0001628641144 | Y25: =IFERROR(INDIRECT(INDEX(Ref!$C$4:$C$9,MATCH(State,Ref!$B$4:$B$9,0))&INDEX(Ref!$C$12:$C$14,MATCH(Counterfactual,Ref!$B$12:$B$14,0))&"!"&ADDRESS(ROW(Y25),COLUMN(Y25)))*IF(DollarType=Ref!$B$17,1,(1+Inflation)^($B25-$B$11)),"-") -> 0.0001383055656 | Z25: =IFERROR(INDIRECT(INDEX(Ref!$C$4:$C$9,MATCH(State,Ref!$B$4:$B$9,0))&INDEX(Ref!$C$12:$C$14,MATCH(Counterfactual,Ref!$B$12:$B$14,0))&"!"&ADDRESS(ROW(Z25),COLUMN(Z25)))*IF(DollarType=Ref!$B$17,1,(1+Inflation)^($B25-$B$11)),"-") -> 43.9141765 | AA25: =IFERROR(INDIRECT(INDEX(Ref!$C$4:$C$9,MATCH(State,Ref!$B$4:$B$9,0))&INDEX(Ref!$C$12:$C$14,MATCH(Counterfactual,Ref!$B$12:$B$14,0))&"!"&ADDRESS(ROW(AA25),COLUMN(AA25)))*IF(DollarType=Ref!$B$17,1,(1+Inflation)^($B25-$B$11)),"-") -> - | AB25: =IFERROR(INDIRECT(INDEX(Ref!$C$4:$C$9,MATCH(State,Ref!$B$4:$B$9,0))&INDEX(Ref!$C$12:$C$14,MATCH(Counterfactual,Ref!$B$12:$B$14,0))&"!"&ADDRESS(ROW(AB25),COLUMN(AB25)))*IF(DollarType=Ref!$B$17,1,(1+Inflation)^($B25-$B$11)),"-") -> - | AC25: =IFERROR(INDIRECT(INDEX(Ref!$C$4:$C$9,MATCH(State,Ref!$B$4:$B$9,0))&INDEX(Ref!$C$12:$C$14,MATCH(Counterfactual,Ref!$B$12:$B$14,0))&"!"&ADDRESS(ROW(AC25),COLUMN(AC25)))*IF(DollarType=Ref!$B$17,1,(1+Inflation)^($B25-$B$11)),"-") -> - | AD25: =IFERROR(INDIRECT(INDEX(Ref!$C$4:$C$9,MATCH(State,Ref!$B$4:$B$9,0))&INDEX(Ref!$C$12:$C$14,MATCH(Counterfactual,Ref!$B$12:$B$14,0))&"!"&ADDRESS(ROW(AD25),COLUMN(AD25)))*IF(DollarType=Ref!$B$17,1,(1+Inflation)^($B25-$B$11)),"-") -> - | AE25: =IFERROR(INDIRECT(INDEX(Ref!$C$4:$C$9,MATCH(State,Ref!$B$4:$B$9,0))&INDEX(Ref!$C$12:$C$14,MATCH(Counterfactual,Ref!$B$12:$B$14,0))&"!"&ADDRESS(ROW(AE25),COLUMN(AE25)))*IF(DollarType=Ref!$B$17,1,(1+Inflation)^($B25-$B$11)),"-") -> - | AF25: =IFERROR(INDIRECT(INDEX(Ref!$C$4:$C$9,MATCH(State,Ref!$B$4:$B$9,0))&INDEX(Ref!$C$12:$C$14,MATCH(Counterfactual,Ref!$B$12:$B$14,0))&"!"&ADDRESS(ROW(AF25),COLUMN(AF25)))*IF(DollarType=Ref!$B$17,1,(1+Inflation)^($B25-$B$11)),"-") -> - | AG25: =IFERROR(INDIRECT(INDEX(Ref!$C$4:$C$9,MATCH(State,Ref!$B$4:$B$9,0))&INDEX(Ref!$C$12:$C$14,MATCH(Counterfactual,Ref!$B$12:$B$14,0))&"!"&ADDRESS(ROW(AG25),COLUMN(AG25)))*IF(DollarType=Ref!$B$17,1,(1+Inflation)^($B25-$B$11)),"-") -> - | AH25: =IFERROR(INDIRECT(INDEX(Ref!$C$4:$C$9,MATCH(State,Ref!$B$4:$B$9,0))&INDEX(Ref!$C$12:$C$14,MATCH(Counterfactual,Ref!$B$12:$B$14,0))&"!"&ADDRESS(ROW(AH25),COLUMN(AH25)))*IF(DollarType=Ref!$B$17,1,(1+Inflation)^($B25-$B$11)),"-") -> 84.01598436 | AJ25: 2035 | AK25: 0.07085656226 | AL25: 0.07178446152 | AM25: 0.05647321692 | AN25: 0.05414084167 | AO25: 0.02560716464 | AP25: 0.02558006859 | AQ25: 0.02819104737 | AR25: 0.02938145908 | AS25: 0.0004575677689 | AT25: 0.000435442955 | AU25: 0.0005946006474 | AV25: 0.0005132445989 | AW25: - | AX25: - | AY25: - | AZ25: - | BA25: - | BB25: - | BC25: - | BD25: - | BE25: 0.0001917236355 | BF25: 0.0001628133118 | BG25: 50.94044474 | BH25: - | BI25: - | BJ25: - | BK25: - | BL25: - | BM25: - | BN25: - | BO25: 97.45854186
B26: 2036 | C26: =IFERROR(INDIRECT(INDEX(Ref!$C$4:$C$9,MATCH(State,Ref!$B$4:$B$9,0))&INDEX(Ref!$C$12:$C$14,MATCH(Counterfactual,Ref!$B$12:$B$14,0))&"!"&ADDRESS(ROW(C26),COLUMN(C26)))*IF(DollarType=Ref!$B$17,1,(1+Inflation)^($B26-$B$11)),"-") -> 0.05009523769 | D26: =IFERROR(INDIRECT(INDEX(Ref!$C$4:$C$9,MATCH(State,Ref!$B$4:$B$9,0))&INDEX(Ref!$C$12:$C$14,MATCH(Counterfactual,Ref!$B$12:$B$14,0))&"!"&ADDRESS(ROW(D26),COLUMN(D26)))*IF(DollarType=Ref!$B$17,1,(1+Inflation)^($B26-$B$11)),"-") -> 0.05097810279 | E26: =IFERROR(INDIRECT(INDEX(Ref!$C$4:$C$9,MATCH(State,Ref!$B$4:$B$9,0))&INDEX(Ref!$C$12:$C$14,MATCH(Counterfactual,Ref!$B$12:$B$14,0))&"!"&ADDRESS(ROW(E26),COLUMN(E26)))*IF(DollarType=Ref!$B$17,1,(1+Inflation)^($B26-$B$11)),"-") -> 0.03808153983 | F26: =IFERROR(INDIRECT(INDEX(Ref!$C$4:$C$9,MATCH(State,Ref!$B$4:$B$9,0))&INDEX(Ref!$C$12:$C$14,MATCH(Counterfactual,Ref!$B$12:$B$14,0))&"!"&ADDRESS(ROW(F26),COLUMN(F26)))*IF(DollarType=Ref!$B$17,1,(1+Inflation)^($B26-$B$11)),"-") -> 0.03610040317 | G26: =IFERROR(INDIRECT(INDEX(Ref!$C$4:$C$9,MATCH(State,Ref!$B$4:$B$9,0))&INDEX(Ref!$C$12:$C$14,MATCH(Counterfactual,Ref!$B$12:$B$14,0))&"!"&ADDRESS(ROW(G26),COLUMN(G26)))*IF(DollarType=Ref!$B$17,1,(1+Inflation)^($B26-$B$11)),"-") -> 0.009257342571 | H26: =IFERROR(INDIRECT(INDEX(Ref!$C$4:$C$9,MATCH(State,Ref!$B$4:$B$9,0))&INDEX(Ref!$C$12:$C$14,MATCH(Counterfactual,Ref!$B$12:$B$14,0))&"!"&ADDRESS(ROW(H26),COLUMN(H26)))*IF(DollarType=Ref!$B$17,1,(1+Inflation)^($B26-$B$11)),"-") -> 0.02163146579 | I26: =IFERROR(INDIRECT(INDEX(Ref!$C$4:$C$9,MATCH(State,Ref!$B$4:$B$9,0))&INDEX(Ref!$C$12:$C$14,MATCH(Counterfactual,Ref!$B$12:$B$14,0))&"!"&ADDRESS(ROW(I26),COLUMN(I26)))*IF(DollarType=Ref!$B$17,1,(1+Inflation)^($B26-$B$11)),"-") -> 0.0213800776 | J26: =IFERROR(INDIRECT(INDEX(Ref!$C$4:$C$9,MATCH(State,Ref!$B$4:$B$9,0))&INDEX(Ref!$C$12:$C$14,MATCH(Counterfactual,Ref!$B$12:$B$14,0))&"!"&ADDRESS(ROW(J26),COLUMN(J26)))*IF(DollarType=Ref!$B$17,1,(1+Inflation)^($B26-$B$11)),"-") -> 0.02366376883 | K26: =IFERROR(INDIRECT(INDEX(Ref!$C$4:$C$9,MATCH(State,Ref!$B$4:$B$9,0))&INDEX(Ref!$C$12:$C$14,MATCH(Counterfactual,Ref!$B$12:$B$14,0))&"!"&ADDRESS(ROW(K26),COLUMN(K26)))*IF(DollarType=Ref!$B$17,1,(1+Inflation)^($B26-$B$11)),"-") -> 0.02459947596 | L26: =IFERROR(INDIRECT(INDEX(Ref!$C$4:$C$9,MATCH(State,Ref!$B$4:$B$9,0))&INDEX(Ref!$C$12:$C$14,MATCH(Counterfactual,Ref!$B$12:$B$14,0))&"!"&ADDRESS(ROW(L26),COLUMN(L26)))*IF(DollarType=Ref!$B$17,1,(1+Inflation)^($B26-$B$11)),"-") -> 0.0004163462002 | M26: =IFERROR(INDIRECT(INDEX(Ref!$C$4:$C$9,MATCH(State,Ref!$B$4:$B$9,0))&INDEX(Ref!$C$12:$C$14,MATCH(Counterfactual,Ref!$B$12:$B$14,0))&"!"&ADDRESS(ROW(M26),COLUMN(M26)))*IF(DollarType=Ref!$B$17,1,(1+Inflation)^($B26-$B$11)),"-") -> 0.0003938149635 | N26: =IFERROR(INDIRECT(INDEX(Ref!$C$4:$C$9,MATCH(State,Ref!$B$4:$B$9,0))&INDEX(Ref!$C$12:$C$14,MATCH(Counterfactual,Ref!$B$12:$B$14,0))&"!"&ADDRESS(ROW(N26),COLUMN(N26)))*IF(DollarType=Ref!$B$17,1,(1+Inflation)^($B26-$B$11)),"-") -> 0.0005317652509 | O26: =IFERROR(INDIRECT(INDEX(Ref!$C$4:$C$9,MATCH(State,Ref!$B$4:$B$9,0))&INDEX(Ref!$C$12:$C$14,MATCH(Counterfactual,Ref!$B$12:$B$14,0))&"!"&ADDRESS(ROW(O26),COLUMN(O26)))*IF(DollarType=Ref!$B$17,1,(1+Inflation)^($B26-$B$11)),"-") -> 0.0004606002194 | P26: =IFERROR(INDIRECT(INDEX(Ref!$C$4:$C$9,MATCH(State,Ref!$B$4:$B$9,0))&INDEX(Ref!$C$12:$C$14,MATCH(Counterfactual,Ref!$B$12:$B$14,0))&"!"&ADDRESS(ROW(P26),COLUMN(P26)))*IF(DollarType=Ref!$B$17,1,(1+Inflation)^($B26-$B$11)),"-") -> - | Q26: =IFERROR(INDIRECT(INDEX(Ref!$C$4:$C$9,MATCH(State,Ref!$B$4:$B$9,0))&INDEX(Ref!$C$12:$C$14,MATCH(Counterfactual,Ref!$B$12:$B$14,0))&"!"&ADDRESS(ROW(Q26),COLUMN(Q26)))*IF(DollarType=Ref!$B$17,1,(1+Inflation)^($B26-$B$11)),"-") -> - | R26: =IFERROR(INDIRECT(INDEX(Ref!$C$4:$C$9,MATCH(State,Ref!$B$4:$B$9,0))&INDEX(Ref!$C$12:$C$14,MATCH(Counterfactual,Ref!$B$12:$B$14,0))&"!"&ADDRESS(ROW(R26),COLUMN(R26)))*IF(DollarType=Ref!$B$17,1,(1+Inflation)^($B26-$B$11)),"-") -> - | S26: =IFERROR(INDIRECT(INDEX(Ref!$C$4:$C$9,MATCH(State,Ref!$B$4:$B$9,0))&INDEX(Ref!$C$12:$C$14,MATCH(Counterfactual,Ref!$B$12:$B$14,0))&"!"&ADDRESS(ROW(S26),COLUMN(S26)))*IF(DollarType=Ref!$B$17,1,(1+Inflation)^($B26-$B$11)),"-") -> - | T26: =IFERROR(INDIRECT(INDEX(Ref!$C$4:$C$9,MATCH(State,Ref!$B$4:$B$9,0))&INDEX(Ref!$C$12:$C$14,MATCH(Counterfactual,Ref!$B$12:$B$14,0))&"!"&ADDRESS(ROW(T26),COLUMN(T26)))*IF(DollarType=Ref!$B$17,1,(1+Inflation)^($B26-$B$11)),"-") -> - | U26: =IFERROR(INDIRECT(INDEX(Ref!$C$4:$C$9,MATCH(State,Ref!$B$4:$B$9,0))&INDEX(Ref!$C$12:$C$14,MATCH(Counterfactual,Ref!$B$12:$B$14,0))&"!"&ADDRESS(ROW(U26),COLUMN(U26)))*IF(DollarType=Ref!$B$17,1,(1+Inflation)^($B26-$B$11)),"-") -> - | V26: =IFERROR(INDIRECT(INDEX(Ref!$C$4:$C$9,MATCH(State,Ref!$B$4:$B$9,0))&INDEX(Ref!$C$12:$C$14,MATCH(Counterfactual,Ref!$B$12:$B$14,0))&"!"&ADDRESS(ROW(V26),COLUMN(V26)))*IF(DollarType=Ref!$B$17,1,(1+Inflation)^($B26-$B$11)),"-") -> - | W26: =IFERROR(INDIRECT(INDEX(Ref!$C$4:$C$9,MATCH(State,Ref!$B$4:$B$9,0))&INDEX(Ref!$C$12:$C$14,MATCH(Counterfactual,Ref!$B$12:$B$14,0))&"!"&ADDRESS(ROW(W26),COLUMN(W26)))*IF(DollarType=Ref!$B$17,1,(1+Inflation)^($B26-$B$11)),"-") -> - | X26: =IFERROR(INDIRECT(INDEX(Ref!$C$4:$C$9,MATCH(State,Ref!$B$4:$B$9,0))&INDEX(Ref!$C$12:$C$14,MATCH(Counterfactual,Ref!$B$12:$B$14,0))&"!"&ADDRESS(ROW(X26),COLUMN(X26)))*IF(DollarType=Ref!$B$17,1,(1+Inflation)^($B26-$B$11)),"-") -> 0.0001632766849 | Y26: =IFERROR(INDIRECT(INDEX(Ref!$C$4:$C$9,MATCH(State,Ref!$B$4:$B$9,0))&INDEX(Ref!$C$12:$C$14,MATCH(Counterfactual,Ref!$B$12:$B$14,0))&"!"&ADDRESS(ROW(Y26),COLUMN(Y26)))*IF(DollarType=Ref!$B$17,1,(1+Inflation)^($B26-$B$11)),"-") -> 0.0001386559239 | Z26: =IFERROR(INDIRECT(INDEX(Ref!$C$4:$C$9,MATCH(State,Ref!$B$4:$B$9,0))&INDEX(Ref!$C$12:$C$14,MATCH(Counterfactual,Ref!$B$12:$B$14,0))&"!"&ADDRESS(ROW(Z26),COLUMN(Z26)))*IF(DollarType=Ref!$B$17,1,(1+Inflation)^($B26-$B$11)),"-") -> 45.28817342 | AA26: =IFERROR(INDIRECT(INDEX(Ref!$C$4:$C$9,MATCH(State,Ref!$B$4:$B$9,0))&INDEX(Ref!$C$12:$C$14,MATCH(Counterfactual,Ref!$B$12:$B$14,0))&"!"&ADDRESS(ROW(AA26),COLUMN(AA26)))*IF(DollarType=Ref!$B$17,1,(1+Inflation)^($B26-$B$11)),"-") -> - | AB26: =IFERROR(INDIRECT(INDEX(Ref!$C$4:$C$9,MATCH(State,Ref!$B$4:$B$9,0))&INDEX(Ref!$C$12:$C$14,MATCH(Counterfactual,Ref!$B$12:$B$14,0))&"!"&ADDRESS(ROW(AB26),COLUMN(AB26)))*IF(DollarType=Ref!$B$17,1,(1+Inflation)^($B26-$B$11)),"-") -> - | AC26: =IFERROR(INDIRECT(INDEX(Ref!$C$4:$C$9,MATCH(State,Ref!$B$4:$B$9,0))&INDEX(Ref!$C$12:$C$14,MATCH(Counterfactual,Ref!$B$12:$B$14,0))&"!"&ADDRESS(ROW(AC26),COLUMN(AC26)))*IF(DollarType=Ref!$B$17,1,(1+Inflation)^($B26-$B$11)),"-") -> - | AD26: =IFERROR(INDIRECT(INDEX(Ref!$C$4:$C$9,MATCH(State,Ref!$B$4:$B$9,0))&INDEX(Ref!$C$12:$C$14,MATCH(Counterfactual,Ref!$B$12:$B$14,0))&"!"&ADDRESS(ROW(AD26),COLUMN(AD26)))*IF(DollarType=Ref!$B$17,1,(1+Inflation)^($B26-$B$11)),"-") -> - | AE26: =IFERROR(INDIRECT(INDEX(Ref!$C$4:$C$9,MATCH(State,Ref!$B$4:$B$9,0))&INDEX(Ref!$C$12:$C$14,MATCH(Counterfactual,Ref!$B$12:$B$14,0))&"!"&ADDRESS(ROW(AE26),COLUMN(AE26)))*IF(DollarType=Ref!$B$17,1,(1+Inflation)^($B26-$B$11)),"-") -> - | AF26: =IFERROR(INDIRECT(INDEX(Ref!$C$4:$C$9,MATCH(State,Ref!$B$4:$B$9,0))&INDEX(Ref!$C$12:$C$14,MATCH(Counterfactual,Ref!$B$12:$B$14,0))&"!"&ADDRESS(ROW(AF26),COLUMN(AF26)))*IF(DollarType=Ref!$B$17,1,(1+Inflation)^($B26-$B$11)),"-") -> - | AG26: =IFERROR(INDIRECT(INDEX(Ref!$C$4:$C$9,MATCH(State,Ref!$B$4:$B$9,0))&INDEX(Ref!$C$12:$C$14,MATCH(Counterfactual,Ref!$B$12:$B$14,0))&"!"&ADDRESS(ROW(AG26),COLUMN(AG26)))*IF(DollarType=Ref!$B$17,1,(1+Inflation)^($B26-$B$11)),"-") -> - | AH26: =IFERROR(INDIRECT(INDEX(Ref!$C$4:$C$9,MATCH(State,Ref!$B$4:$B$9,0))&INDEX(Ref!$C$12:$C$14,MATCH(Counterfactual,Ref!$B$12:$B$14,0))&"!"&ADDRESS(ROW(AH26),COLUMN(AH26)))*IF(DollarType=Ref!$B$17,1,(1+Inflation)^($B26-$B$11)),"-") -> 84.01598436 | AJ26: 2036 | AK26: 0.06986985749 | AL26: 0.07090916628 | AM26: 0.05572733236 | AN26: 0.05339513829 | AO26: 0.02357829772 | AP26: 0.02330428458 | AQ26: 0.02579350803 | AR26: 0.0268134288 | AS26: 0.0004538173582 | AT26: 0.0004292583102 | AU26: 0.0005796241235 | AV26: 0.0005020542391 | AW26: - | AX26: - | AY26: - | AZ26: - | BA26: - | BB26: - | BC26: - | BD26: - | BE26: 0.0001922093135 | BF26: 0.0001632257537 | BG26: 52.53428116 | BH26: - | BI26: - | BJ26: - | BK26: - | BL26: - | BM26: - | BN26: - | BO26: 97.45854186
B27: 2037 | C27: =IFERROR(INDIRECT(INDEX(Ref!$C$4:$C$9,MATCH(State,Ref!$B$4:$B$9,0))&INDEX(Ref!$C$12:$C$14,MATCH(Counterfactual,Ref!$B$12:$B$14,0))&"!"&ADDRESS(ROW(C27),COLUMN(C27)))*IF(DollarType=Ref!$B$17,1,(1+Inflation)^($B27-$B$11)),"-") -> 0.05066758123 | D27: =IFERROR(INDIRECT(INDEX(Ref!$C$4:$C$9,MATCH(State,Ref!$B$4:$B$9,0))&INDEX(Ref!$C$12:$C$14,MATCH(Counterfactual,Ref!$B$12:$B$14,0))&"!"&ADDRESS(ROW(D27),COLUMN(D27)))*IF(DollarType=Ref!$B$17,1,(1+Inflation)^($B27-$B$11)),"-") -> 0.05164729113 | E27: =IFERROR(INDIRECT(INDEX(Ref!$C$4:$C$9,MATCH(State,Ref!$B$4:$B$9,0))&INDEX(Ref!$C$12:$C$14,MATCH(Counterfactual,Ref!$B$12:$B$14,0))&"!"&ADDRESS(ROW(E27),COLUMN(E27)))*IF(DollarType=Ref!$B$17,1,(1+Inflation)^($B27-$B$11)),"-") -> 0.03886789773 | F27: =IFERROR(INDIRECT(INDEX(Ref!$C$4:$C$9,MATCH(State,Ref!$B$4:$B$9,0))&INDEX(Ref!$C$12:$C$14,MATCH(Counterfactual,Ref!$B$12:$B$14,0))&"!"&ADDRESS(ROW(F27),COLUMN(F27)))*IF(DollarType=Ref!$B$17,1,(1+Inflation)^($B27-$B$11)),"-") -> 0.03688781388 | G27: =IFERROR(INDIRECT(INDEX(Ref!$C$4:$C$9,MATCH(State,Ref!$B$4:$B$9,0))&INDEX(Ref!$C$12:$C$14,MATCH(Counterfactual,Ref!$B$12:$B$14,0))&"!"&ADDRESS(ROW(G27),COLUMN(G27)))*IF(DollarType=Ref!$B$17,1,(1+Inflation)^($B27-$B$11)),"-") -> 0.008038192852 | H27: =IFERROR(INDIRECT(INDEX(Ref!$C$4:$C$9,MATCH(State,Ref!$B$4:$B$9,0))&INDEX(Ref!$C$12:$C$14,MATCH(Counterfactual,Ref!$B$12:$B$14,0))&"!"&ADDRESS(ROW(H27),COLUMN(H27)))*IF(DollarType=Ref!$B$17,1,(1+Inflation)^($B27-$B$11)),"-") -> 0.01991759524 | I27: =IFERROR(INDIRECT(INDEX(Ref!$C$4:$C$9,MATCH(State,Ref!$B$4:$B$9,0))&INDEX(Ref!$C$12:$C$14,MATCH(Counterfactual,Ref!$B$12:$B$14,0))&"!"&ADDRESS(ROW(I27),COLUMN(I27)))*IF(DollarType=Ref!$B$17,1,(1+Inflation)^($B27-$B$11)),"-") -> 0.01947795452 | J27: =IFERROR(INDIRECT(INDEX(Ref!$C$4:$C$9,MATCH(State,Ref!$B$4:$B$9,0))&INDEX(Ref!$C$12:$C$14,MATCH(Counterfactual,Ref!$B$12:$B$14,0))&"!"&ADDRESS(ROW(J27),COLUMN(J27)))*IF(DollarType=Ref!$B$17,1,(1+Inflation)^($B27-$B$11)),"-") -> 0.02165125699 | K27: =IFERROR(INDIRECT(INDEX(Ref!$C$4:$C$9,MATCH(State,Ref!$B$4:$B$9,0))&INDEX(Ref!$C$12:$C$14,MATCH(Counterfactual,Ref!$B$12:$B$14,0))&"!"&ADDRESS(ROW(K27),COLUMN(K27)))*IF(DollarType=Ref!$B$17,1,(1+Inflation)^($B27-$B$11)),"-") -> 0.02244940578 | L27: =IFERROR(INDIRECT(INDEX(Ref!$C$4:$C$9,MATCH(State,Ref!$B$4:$B$9,0))&INDEX(Ref!$C$12:$C$14,MATCH(Counterfactual,Ref!$B$12:$B$14,0))&"!"&ADDRESS(ROW(L27),COLUMN(L27)))*IF(DollarType=Ref!$B$17,1,(1+Inflation)^($B27-$B$11)),"-") -> 0.0004129336581 | M27: =IFERROR(INDIRECT(INDEX(Ref!$C$4:$C$9,MATCH(State,Ref!$B$4:$B$9,0))&INDEX(Ref!$C$12:$C$14,MATCH(Counterfactual,Ref!$B$12:$B$14,0))&"!"&ADDRESS(ROW(M27),COLUMN(M27)))*IF(DollarType=Ref!$B$17,1,(1+Inflation)^($B27-$B$11)),"-") -> 0.0003882215656 | N27: =IFERROR(INDIRECT(INDEX(Ref!$C$4:$C$9,MATCH(State,Ref!$B$4:$B$9,0))&INDEX(Ref!$C$12:$C$14,MATCH(Counterfactual,Ref!$B$12:$B$14,0))&"!"&ADDRESS(ROW(N27),COLUMN(N27)))*IF(DollarType=Ref!$B$17,1,(1+Inflation)^($B27-$B$11)),"-") -> 0.0005183713956 | O27: =IFERROR(INDIRECT(INDEX(Ref!$C$4:$C$9,MATCH(State,Ref!$B$4:$B$9,0))&INDEX(Ref!$C$12:$C$14,MATCH(Counterfactual,Ref!$B$12:$B$14,0))&"!"&ADDRESS(ROW(O27),COLUMN(O27)))*IF(DollarType=Ref!$B$17,1,(1+Inflation)^($B27-$B$11)),"-") -> 0.000450557674 | P27: =IFERROR(INDIRECT(INDEX(Ref!$C$4:$C$9,MATCH(State,Ref!$B$4:$B$9,0))&INDEX(Ref!$C$12:$C$14,MATCH(Counterfactual,Ref!$B$12:$B$14,0))&"!"&ADDRESS(ROW(P27),COLUMN(P27)))*IF(DollarType=Ref!$B$17,1,(1+Inflation)^($B27-$B$11)),"-") -> - | Q27: =IFERROR(INDIRECT(INDEX(Ref!$C$4:$C$9,MATCH(State,Ref!$B$4:$B$9,0))&INDEX(Ref!$C$12:$C$14,MATCH(Counterfactual,Ref!$B$12:$B$14,0))&"!"&ADDRESS(ROW(Q27),COLUMN(Q27)))*IF(DollarType=Ref!$B$17,1,(1+Inflation)^($B27-$B$11)),"-") -> - | R27: =IFERROR(INDIRECT(INDEX(Ref!$C$4:$C$9,MATCH(State,Ref!$B$4:$B$9,0))&INDEX(Ref!$C$12:$C$14,MATCH(Counterfactual,Ref!$B$12:$B$14,0))&"!"&ADDRESS(ROW(R27),COLUMN(R27)))*IF(DollarType=Ref!$B$17,1,(1+Inflation)^($B27-$B$11)),"-") -> - | S27: =IFERROR(INDIRECT(INDEX(Ref!$C$4:$C$9,MATCH(State,Ref!$B$4:$B$9,0))&INDEX(Ref!$C$12:$C$14,MATCH(Counterfactual,Ref!$B$12:$B$14,0))&"!"&ADDRESS(ROW(S27),COLUMN(S27)))*IF(DollarType=Ref!$B$17,1,(1+Inflation)^($B27-$B$11)),"-") -> - | T27: =IFERROR(INDIRECT(INDEX(Ref!$C$4:$C$9,MATCH(State,Ref!$B$4:$B$9,0))&INDEX(Ref!$C$12:$C$14,MATCH(Counterfactual,Ref!$B$12:$B$14,0))&"!"&ADDRESS(ROW(T27),COLUMN(T27)))*IF(DollarType=Ref!$B$17,1,(1+Inflation)^($B27-$B$11)),"-") -> - | U27: =IFERROR(INDIRECT(INDEX(Ref!$C$4:$C$9,MATCH(State,Ref!$B$4:$B$9,0))&INDEX(Ref!$C$12:$C$14,MATCH(Counterfactual,Ref!$B$12:$B$14,0))&"!"&ADDRESS(ROW(U27),COLUMN(U27)))*IF(DollarType=Ref!$B$17,1,(1+Inflation)^($B27-$B$11)),"-") -> - | V27: =IFERROR(INDIRECT(INDEX(Ref!$C$4:$C$9,MATCH(State,Ref!$B$4:$B$9,0))&INDEX(Ref!$C$12:$C$14,MATCH(Counterfactual,Ref!$B$12:$B$14,0))&"!"&ADDRESS(ROW(V27),COLUMN(V27)))*IF(DollarType=Ref!$B$17,1,(1+Inflation)^($B27-$B$11)),"-") -> - | W27: =IFERROR(INDIRECT(INDEX(Ref!$C$4:$C$9,MATCH(State,Ref!$B$4:$B$9,0))&INDEX(Ref!$C$12:$C$14,MATCH(Counterfactual,Ref!$B$12:$B$14,0))&"!"&ADDRESS(ROW(W27),COLUMN(W27)))*IF(DollarType=Ref!$B$17,1,(1+Inflation)^($B27-$B$11)),"-") -> - | X27: =IFERROR(INDIRECT(INDEX(Ref!$C$4:$C$9,MATCH(State,Ref!$B$4:$B$9,0))&INDEX(Ref!$C$12:$C$14,MATCH(Counterfactual,Ref!$B$12:$B$14,0))&"!"&ADDRESS(ROW(X27),COLUMN(X27)))*IF(DollarType=Ref!$B$17,1,(1+Inflation)^($B27-$B$11)),"-") -> 0.0001636903006 | Y27: =IFERROR(INDIRECT(INDEX(Ref!$C$4:$C$9,MATCH(State,Ref!$B$4:$B$9,0))&INDEX(Ref!$C$12:$C$14,MATCH(Counterfactual,Ref!$B$12:$B$14,0))&"!"&ADDRESS(ROW(Y27),COLUMN(Y27)))*IF(DollarType=Ref!$B$17,1,(1+Inflation)^($B27-$B$11)),"-") -> 0.0001390071698 | Z27: =IFERROR(INDIRECT(INDEX(Ref!$C$4:$C$9,MATCH(State,Ref!$B$4:$B$9,0))&INDEX(Ref!$C$12:$C$14,MATCH(Counterfactual,Ref!$B$12:$B$14,0))&"!"&ADDRESS(ROW(Z27),COLUMN(Z27)))*IF(DollarType=Ref!$B$17,1,(1+Inflation)^($B27-$B$11)),"-") -> 46.70516026 | AA27: =IFERROR(INDIRECT(INDEX(Ref!$C$4:$C$9,MATCH(State,Ref!$B$4:$B$9,0))&INDEX(Ref!$C$12:$C$14,MATCH(Counterfactual,Ref!$B$12:$B$14,0))&"!"&ADDRESS(ROW(AA27),COLUMN(AA27)))*IF(DollarType=Ref!$B$17,1,(1+Inflation)^($B27-$B$11)),"-") -> - | AB27: =IFERROR(INDIRECT(INDEX(Ref!$C$4:$C$9,MATCH(State,Ref!$B$4:$B$9,0))&INDEX(Ref!$C$12:$C$14,MATCH(Counterfactual,Ref!$B$12:$B$14,0))&"!"&ADDRESS(ROW(AB27),COLUMN(AB27)))*IF(DollarType=Ref!$B$17,1,(1+Inflation)^($B27-$B$11)),"-") -> - | AC27: =IFERROR(INDIRECT(INDEX(Ref!$C$4:$C$9,MATCH(State,Ref!$B$4:$B$9,0))&INDEX(Ref!$C$12:$C$14,MATCH(Counterfactual,Ref!$B$12:$B$14,0))&"!"&ADDRESS(ROW(AC27),COLUMN(AC27)))*IF(DollarType=Ref!$B$17,1,(1+Inflation)^($B27-$B$11)),"-") -> - | AD27: =IFERROR(INDIRECT(INDEX(Ref!$C$4:$C$9,MATCH(State,Ref!$B$4:$B$9,0))&INDEX(Ref!$C$12:$C$14,MATCH(Counterfactual,Ref!$B$12:$B$14,0))&"!"&ADDRESS(ROW(AD27),COLUMN(AD27)))*IF(DollarType=Ref!$B$17,1,(1+Inflation)^($B27-$B$11)),"-") -> - | AE27: =IFERROR(INDIRECT(INDEX(Ref!$C$4:$C$9,MATCH(State,Ref!$B$4:$B$9,0))&INDEX(Ref!$C$12:$C$14,MATCH(Counterfactual,Ref!$B$12:$B$14,0))&"!"&ADDRESS(ROW(AE27),COLUMN(AE27)))*IF(DollarType=Ref!$B$17,1,(1+Inflation)^($B27-$B$11)),"-") -> - | AF27: =IFERROR(INDIRECT(INDEX(Ref!$C$4:$C$9,MATCH(State,Ref!$B$4:$B$9,0))&INDEX(Ref!$C$12:$C$14,MATCH(Counterfactual,Ref!$B$12:$B$14,0))&"!"&ADDRESS(ROW(AF27),COLUMN(AF27)))*IF(DollarType=Ref!$B$17,1,(1+Inflation)^($B27-$B$11)),"-") -> - | AG27: =IFERROR(INDIRECT(INDEX(Ref!$C$4:$C$9,MATCH(State,Ref!$B$4:$B$9,0))&INDEX(Ref!$C$12:$C$14,MATCH(Counterfactual,Ref!$B$12:$B$14,0))&"!"&ADDRESS(ROW(AG27),COLUMN(AG27)))*IF(DollarType=Ref!$B$17,1,(1+Inflation)^($B27-$B$11)),"-") -> - | AH27: =IFERROR(INDIRECT(INDEX(Ref!$C$4:$C$9,MATCH(State,Ref!$B$4:$B$9,0))&INDEX(Ref!$C$12:$C$14,MATCH(Counterfactual,Ref!$B$12:$B$14,0))&"!"&ADDRESS(ROW(AH27),COLUMN(AH27)))*IF(DollarType=Ref!$B$17,1,(1+Inflation)^($B27-$B$11)),"-") -> 84.01598436 | AJ27: 2037 | AK27: 0.06910843725 | AL27: 0.07026175174 | AM27: 0.05521784983 | AN27: 0.05288689513 | AO27: 0.02171017881 | AP27: 0.02123097043 | AQ27: 0.02359987012 | AR27: 0.0244698523 | AS27: 0.0004500976873 | AT27: 0.0004231615066 | AU27: 0.0005650248212 | AV27: 0.0004911078647 | AW27: - | AX27: - | AY27: - | AZ27: - | BA27: - | BB27: - | BC27: - | BD27: - | BE27: 0.0001926962219 | BF27: 0.0001636392403 | BG27: 54.17798591 | BH27: - | BI27: - | BJ27: - | BK27: - | BL27: - | BM27: - | BN27: - | BO27: 97.45854186
B28: 2038 | C28: =IFERROR(INDIRECT(INDEX(Ref!$C$4:$C$9,MATCH(State,Ref!$B$4:$B$9,0))&INDEX(Ref!$C$12:$C$14,MATCH(Counterfactual,Ref!$B$12:$B$14,0))&"!"&ADDRESS(ROW(C28),COLUMN(C28)))*IF(DollarType=Ref!$B$17,1,(1+Inflation)^($B28-$B$11)),"-") -> 0.05124646386 | D28: =IFERROR(INDIRECT(INDEX(Ref!$C$4:$C$9,MATCH(State,Ref!$B$4:$B$9,0))&INDEX(Ref!$C$12:$C$14,MATCH(Counterfactual,Ref!$B$12:$B$14,0))&"!"&ADDRESS(ROW(D28),COLUMN(D28)))*IF(DollarType=Ref!$B$17,1,(1+Inflation)^($B28-$B$11)),"-") -> 0.05232526389 | E28: =IFERROR(INDIRECT(INDEX(Ref!$C$4:$C$9,MATCH(State,Ref!$B$4:$B$9,0))&INDEX(Ref!$C$12:$C$14,MATCH(Counterfactual,Ref!$B$12:$B$14,0))&"!"&ADDRESS(ROW(E28),COLUMN(E28)))*IF(DollarType=Ref!$B$17,1,(1+Inflation)^($B28-$B$11)),"-") -> 0.03967049339 | F28: =IFERROR(INDIRECT(INDEX(Ref!$C$4:$C$9,MATCH(State,Ref!$B$4:$B$9,0))&INDEX(Ref!$C$12:$C$14,MATCH(Counterfactual,Ref!$B$12:$B$14,0))&"!"&ADDRESS(ROW(F28),COLUMN(F28)))*IF(DollarType=Ref!$B$17,1,(1+Inflation)^($B28-$B$11)),"-") -> 0.03769239935 | G28: =IFERROR(INDIRECT(INDEX(Ref!$C$4:$C$9,MATCH(State,Ref!$B$4:$B$9,0))&INDEX(Ref!$C$12:$C$14,MATCH(Counterfactual,Ref!$B$12:$B$14,0))&"!"&ADDRESS(ROW(G28),COLUMN(G28)))*IF(DollarType=Ref!$B$17,1,(1+Inflation)^($B28-$B$11)),"-") -> 0.00697959958 | H28: =IFERROR(INDIRECT(INDEX(Ref!$C$4:$C$9,MATCH(State,Ref!$B$4:$B$9,0))&INDEX(Ref!$C$12:$C$14,MATCH(Counterfactual,Ref!$B$12:$B$14,0))&"!"&ADDRESS(ROW(H28),COLUMN(H28)))*IF(DollarType=Ref!$B$17,1,(1+Inflation)^($B28-$B$11)),"-") -> 0.0183395154 | I28: =IFERROR(INDIRECT(INDEX(Ref!$C$4:$C$9,MATCH(State,Ref!$B$4:$B$9,0))&INDEX(Ref!$C$12:$C$14,MATCH(Counterfactual,Ref!$B$12:$B$14,0))&"!"&ADDRESS(ROW(I28),COLUMN(I28)))*IF(DollarType=Ref!$B$17,1,(1+Inflation)^($B28-$B$11)),"-") -> 0.01774505778 | J28: =IFERROR(INDIRECT(INDEX(Ref!$C$4:$C$9,MATCH(State,Ref!$B$4:$B$9,0))&INDEX(Ref!$C$12:$C$14,MATCH(Counterfactual,Ref!$B$12:$B$14,0))&"!"&ADDRESS(ROW(J28),COLUMN(J28)))*IF(DollarType=Ref!$B$17,1,(1+Inflation)^($B28-$B$11)),"-") -> 0.01980990148 | K28: =IFERROR(INDIRECT(INDEX(Ref!$C$4:$C$9,MATCH(State,Ref!$B$4:$B$9,0))&INDEX(Ref!$C$12:$C$14,MATCH(Counterfactual,Ref!$B$12:$B$14,0))&"!"&ADDRESS(ROW(K28),COLUMN(K28)))*IF(DollarType=Ref!$B$17,1,(1+Inflation)^($B28-$B$11)),"-") -> 0.02048725836 | L28: =IFERROR(INDIRECT(INDEX(Ref!$C$4:$C$9,MATCH(State,Ref!$B$4:$B$9,0))&INDEX(Ref!$C$12:$C$14,MATCH(Counterfactual,Ref!$B$12:$B$14,0))&"!"&ADDRESS(ROW(L28),COLUMN(L28)))*IF(DollarType=Ref!$B$17,1,(1+Inflation)^($B28-$B$11)),"-") -> 0.0004095490866 | M28: =IFERROR(INDIRECT(INDEX(Ref!$C$4:$C$9,MATCH(State,Ref!$B$4:$B$9,0))&INDEX(Ref!$C$12:$C$14,MATCH(Counterfactual,Ref!$B$12:$B$14,0))&"!"&ADDRESS(ROW(M28),COLUMN(M28)))*IF(DollarType=Ref!$B$17,1,(1+Inflation)^($B28-$B$11)),"-") -> 0.0003827076115 | N28: =IFERROR(INDIRECT(INDEX(Ref!$C$4:$C$9,MATCH(State,Ref!$B$4:$B$9,0))&INDEX(Ref!$C$12:$C$14,MATCH(Counterfactual,Ref!$B$12:$B$14,0))&"!"&ADDRESS(ROW(N28),COLUMN(N28)))*IF(DollarType=Ref!$B$17,1,(1+Inflation)^($B28-$B$11)),"-") -> 0.0005053148985 | O28: =IFERROR(INDIRECT(INDEX(Ref!$C$4:$C$9,MATCH(State,Ref!$B$4:$B$9,0))&INDEX(Ref!$C$12:$C$14,MATCH(Counterfactual,Ref!$B$12:$B$14,0))&"!"&ADDRESS(ROW(O28),COLUMN(O28)))*IF(DollarType=Ref!$B$17,1,(1+Inflation)^($B28-$B$11)),"-") -> 0.000440734088 | P28: =IFERROR(INDIRECT(INDEX(Ref!$C$4:$C$9,MATCH(State,Ref!$B$4:$B$9,0))&INDEX(Ref!$C$12:$C$14,MATCH(Counterfactual,Ref!$B$12:$B$14,0))&"!"&ADDRESS(ROW(P28),COLUMN(P28)))*IF(DollarType=Ref!$B$17,1,(1+Inflation)^($B28-$B$11)),"-") -> - | Q28: =IFERROR(INDIRECT(INDEX(Ref!$C$4:$C$9,MATCH(State,Ref!$B$4:$B$9,0))&INDEX(Ref!$C$12:$C$14,MATCH(Counterfactual,Ref!$B$12:$B$14,0))&"!"&ADDRESS(ROW(Q28),COLUMN(Q28)))*IF(DollarType=Ref!$B$17,1,(1+Inflation)^($B28-$B$11)),"-") -> - | R28: =IFERROR(INDIRECT(INDEX(Ref!$C$4:$C$9,MATCH(State,Ref!$B$4:$B$9,0))&INDEX(Ref!$C$12:$C$14,MATCH(Counterfactual,Ref!$B$12:$B$14,0))&"!"&ADDRESS(ROW(R28),COLUMN(R28)))*IF(DollarType=Ref!$B$17,1,(1+Inflation)^($B28-$B$11)),"-") -> - | S28: =IFERROR(INDIRECT(INDEX(Ref!$C$4:$C$9,MATCH(State,Ref!$B$4:$B$9,0))&INDEX(Ref!$C$12:$C$14,MATCH(Counterfactual,Ref!$B$12:$B$14,0))&"!"&ADDRESS(ROW(S28),COLUMN(S28)))*IF(DollarType=Ref!$B$17,1,(1+Inflation)^($B28-$B$11)),"-") -> - | T28: =IFERROR(INDIRECT(INDEX(Ref!$C$4:$C$9,MATCH(State,Ref!$B$4:$B$9,0))&INDEX(Ref!$C$12:$C$14,MATCH(Counterfactual,Ref!$B$12:$B$14,0))&"!"&ADDRESS(ROW(T28),COLUMN(T28)))*IF(DollarType=Ref!$B$17,1,(1+Inflation)^($B28-$B$11)),"-") -> - | U28: =IFERROR(INDIRECT(INDEX(Ref!$C$4:$C$9,MATCH(State,Ref!$B$4:$B$9,0))&INDEX(Ref!$C$12:$C$14,MATCH(Counterfactual,Ref!$B$12:$B$14,0))&"!"&ADDRESS(ROW(U28),COLUMN(U28)))*IF(DollarType=Ref!$B$17,1,(1+Inflation)^($B28-$B$11)),"-") -> - | V28: =IFERROR(INDIRECT(INDEX(Ref!$C$4:$C$9,MATCH(State,Ref!$B$4:$B$9,0))&INDEX(Ref!$C$12:$C$14,MATCH(Counterfactual,Ref!$B$12:$B$14,0))&"!"&ADDRESS(ROW(V28),COLUMN(V28)))*IF(DollarType=Ref!$B$17,1,(1+Inflation)^($B28-$B$11)),"-") -> - | W28: =IFERROR(INDIRECT(INDEX(Ref!$C$4:$C$9,MATCH(State,Ref!$B$4:$B$9,0))&INDEX(Ref!$C$12:$C$14,MATCH(Counterfactual,Ref!$B$12:$B$14,0))&"!"&ADDRESS(ROW(W28),COLUMN(W28)))*IF(DollarType=Ref!$B$17,1,(1+Inflation)^($B28-$B$11)),"-") -> - | X28: =IFERROR(INDIRECT(INDEX(Ref!$C$4:$C$9,MATCH(State,Ref!$B$4:$B$9,0))&INDEX(Ref!$C$12:$C$14,MATCH(Counterfactual,Ref!$B$12:$B$14,0))&"!"&ADDRESS(ROW(X28),COLUMN(X28)))*IF(DollarType=Ref!$B$17,1,(1+Inflation)^($B28-$B$11)),"-") -> 0.0001641049641 | Y28: =IFERROR(INDIRECT(INDEX(Ref!$C$4:$C$9,MATCH(State,Ref!$B$4:$B$9,0))&INDEX(Ref!$C$12:$C$14,MATCH(Counterfactual,Ref!$B$12:$B$14,0))&"!"&ADDRESS(ROW(Y28),COLUMN(Y28)))*IF(DollarType=Ref!$B$17,1,(1+Inflation)^($B28-$B$11)),"-") -> 0.0001393593055 | Z28: =IFERROR(INDIRECT(INDEX(Ref!$C$4:$C$9,MATCH(State,Ref!$B$4:$B$9,0))&INDEX(Ref!$C$12:$C$14,MATCH(Counterfactual,Ref!$B$12:$B$14,0))&"!"&ADDRESS(ROW(Z28),COLUMN(Z28)))*IF(DollarType=Ref!$B$17,1,(1+Inflation)^($B28-$B$11)),"-") -> 48.16648212 | AA28: =IFERROR(INDIRECT(INDEX(Ref!$C$4:$C$9,MATCH(State,Ref!$B$4:$B$9,0))&INDEX(Ref!$C$12:$C$14,MATCH(Counterfactual,Ref!$B$12:$B$14,0))&"!"&ADDRESS(ROW(AA28),COLUMN(AA28)))*IF(DollarType=Ref!$B$17,1,(1+Inflation)^($B28-$B$11)),"-") -> - | AB28: =IFERROR(INDIRECT(INDEX(Ref!$C$4:$C$9,MATCH(State,Ref!$B$4:$B$9,0))&INDEX(Ref!$C$12:$C$14,MATCH(Counterfactual,Ref!$B$12:$B$14,0))&"!"&ADDRESS(ROW(AB28),COLUMN(AB28)))*IF(DollarType=Ref!$B$17,1,(1+Inflation)^($B28-$B$11)),"-") -> - | AC28: =IFERROR(INDIRECT(INDEX(Ref!$C$4:$C$9,MATCH(State,Ref!$B$4:$B$9,0))&INDEX(Ref!$C$12:$C$14,MATCH(Counterfactual,Ref!$B$12:$B$14,0))&"!"&ADDRESS(ROW(AC28),COLUMN(AC28)))*IF(DollarType=Ref!$B$17,1,(1+Inflation)^($B28-$B$11)),"-") -> - | AD28: =IFERROR(INDIRECT(INDEX(Ref!$C$4:$C$9,MATCH(State,Ref!$B$4:$B$9,0))&INDEX(Ref!$C$12:$C$14,MATCH(Counterfactual,Ref!$B$12:$B$14,0))&"!"&ADDRESS(ROW(AD28),COLUMN(AD28)))*IF(DollarType=Ref!$B$17,1,(1+Inflation)^($B28-$B$11)),"-") -> - | AE28: =IFERROR(INDIRECT(INDEX(Ref!$C$4:$C$9,MATCH(State,Ref!$B$4:$B$9,0))&INDEX(Ref!$C$12:$C$14,MATCH(Counterfactual,Ref!$B$12:$B$14,0))&"!"&ADDRESS(ROW(AE28),COLUMN(AE28)))*IF(DollarType=Ref!$B$17,1,(1+Inflation)^($B28-$B$11)),"-") -> - | AF28: =IFERROR(INDIRECT(INDEX(Ref!$C$4:$C$9,MATCH(State,Ref!$B$4:$B$9,0))&INDEX(Ref!$C$12:$C$14,MATCH(Counterfactual,Ref!$B$12:$B$14,0))&"!"&ADDRESS(ROW(AF28),COLUMN(AF28)))*IF(DollarType=Ref!$B$17,1,(1+Inflation)^($B28-$B$11)),"-") -> - | AG28: =IFERROR(INDIRECT(INDEX(Ref!$C$4:$C$9,MATCH(State,Ref!$B$4:$B$9,0))&INDEX(Ref!$C$12:$C$14,MATCH(Counterfactual,Ref!$B$12:$B$14,0))&"!"&ADDRESS(ROW(AG28),COLUMN(AG28)))*IF(DollarType=Ref!$B$17,1,(1+Inflation)^($B28-$B$11)),"-") -> - | AH28: =IFERROR(INDIRECT(INDEX(Ref!$C$4:$C$9,MATCH(State,Ref!$B$4:$B$9,0))&INDEX(Ref!$C$12:$C$14,MATCH(Counterfactual,Ref!$B$12:$B$14,0))&"!"&ADDRESS(ROW(AH28),COLUMN(AH28)))*IF(DollarType=Ref!$B$17,1,(1+Inflation)^($B28-$B$11)),"-") -> 84.01598436 | AJ28: 2038 | AK28: 0.06854372188 | AL28: 0.06981368528 | AM28: 0.05491648945 | AN28: 0.05258787714 | AO28: 0.01999007178 | AP28: 0.01934211298 | AQ28: 0.02159279261 | AR28: 0.02233111162 | AS28: 0.0004464085044 | AT28: 0.0004171512965 | AU28: 0.0005507932394 | AV28: 0.0004804001559 | AW28: - | AX28: - | AY28: - | AZ28: - | BA28: - | BB28: - | BC28: - | BD28: - | BE28: 0.0001931843637 | BF28: 0.0001640537744 | BG28: 55.87311926 | BH28: - | BI28: - | BJ28: - | BK28: - | BL28: - | BM28: - | BN28: - | BO28: 97.45854186
B29: 2039 | C29: =IFERROR(INDIRECT(INDEX(Ref!$C$4:$C$9,MATCH(State,Ref!$B$4:$B$9,0))&INDEX(Ref!$C$12:$C$14,MATCH(Counterfactual,Ref!$B$12:$B$14,0))&"!"&ADDRESS(ROW(C29),COLUMN(C29)))*IF(DollarType=Ref!$B$17,1,(1+Inflation)^($B29-$B$11)),"-") -> 0.05183196028 | D29: =IFERROR(INDIRECT(INDEX(Ref!$C$4:$C$9,MATCH(State,Ref!$B$4:$B$9,0))&INDEX(Ref!$C$12:$C$14,MATCH(Counterfactual,Ref!$B$12:$B$14,0))&"!"&ADDRESS(ROW(D29),COLUMN(D29)))*IF(DollarType=Ref!$B$17,1,(1+Inflation)^($B29-$B$11)),"-") -> 0.05301213638 | E29: =IFERROR(INDIRECT(INDEX(Ref!$C$4:$C$9,MATCH(State,Ref!$B$4:$B$9,0))&INDEX(Ref!$C$12:$C$14,MATCH(Counterfactual,Ref!$B$12:$B$14,0))&"!"&ADDRESS(ROW(E29),COLUMN(E29)))*IF(DollarType=Ref!$B$17,1,(1+Inflation)^($B29-$B$11)),"-") -> 0.04048966211 | F29: =IFERROR(INDIRECT(INDEX(Ref!$C$4:$C$9,MATCH(State,Ref!$B$4:$B$9,0))&INDEX(Ref!$C$12:$C$14,MATCH(Counterfactual,Ref!$B$12:$B$14,0))&"!"&ADDRESS(ROW(F29),COLUMN(F29)))*IF(DollarType=Ref!$B$17,1,(1+Inflation)^($B29-$B$11)),"-") -> 0.03851453418 | G29: =IFERROR(INDIRECT(INDEX(Ref!$C$4:$C$9,MATCH(State,Ref!$B$4:$B$9,0))&INDEX(Ref!$C$12:$C$14,MATCH(Counterfactual,Ref!$B$12:$B$14,0))&"!"&ADDRESS(ROW(G29),COLUMN(G29)))*IF(DollarType=Ref!$B$17,1,(1+Inflation)^($B29-$B$11)),"-") -> 0.006060418206 | H29: =IFERROR(INDIRECT(INDEX(Ref!$C$4:$C$9,MATCH(State,Ref!$B$4:$B$9,0))&INDEX(Ref!$C$12:$C$14,MATCH(Counterfactual,Ref!$B$12:$B$14,0))&"!"&ADDRESS(ROW(H29),COLUMN(H29)))*IF(DollarType=Ref!$B$17,1,(1+Inflation)^($B29-$B$11)),"-") -> 0.01688646752 | I29: =IFERROR(INDIRECT(INDEX(Ref!$C$4:$C$9,MATCH(State,Ref!$B$4:$B$9,0))&INDEX(Ref!$C$12:$C$14,MATCH(Counterfactual,Ref!$B$12:$B$14,0))&"!"&ADDRESS(ROW(I29),COLUMN(I29)))*IF(DollarType=Ref!$B$17,1,(1+Inflation)^($B29-$B$11)),"-") -> 0.0161663318 | J29: =IFERROR(INDIRECT(INDEX(Ref!$C$4:$C$9,MATCH(State,Ref!$B$4:$B$9,0))&INDEX(Ref!$C$12:$C$14,MATCH(Counterfactual,Ref!$B$12:$B$14,0))&"!"&ADDRESS(ROW(J29),COLUMN(J29)))*IF(DollarType=Ref!$B$17,1,(1+Inflation)^($B29-$B$11)),"-") -> 0.01812514612 | K29: =IFERROR(INDIRECT(INDEX(Ref!$C$4:$C$9,MATCH(State,Ref!$B$4:$B$9,0))&INDEX(Ref!$C$12:$C$14,MATCH(Counterfactual,Ref!$B$12:$B$14,0))&"!"&ADDRESS(ROW(K29),COLUMN(K29)))*IF(DollarType=Ref!$B$17,1,(1+Inflation)^($B29-$B$11)),"-") -> 0.0186966087 | L29: =IFERROR(INDIRECT(INDEX(Ref!$C$4:$C$9,MATCH(State,Ref!$B$4:$B$9,0))&INDEX(Ref!$C$12:$C$14,MATCH(Counterfactual,Ref!$B$12:$B$14,0))&"!"&ADDRESS(ROW(L29),COLUMN(L29)))*IF(DollarType=Ref!$B$17,1,(1+Inflation)^($B29-$B$11)),"-") -> 0.0004061922564 | M29: =IFERROR(INDIRECT(INDEX(Ref!$C$4:$C$9,MATCH(State,Ref!$B$4:$B$9,0))&INDEX(Ref!$C$12:$C$14,MATCH(Counterfactual,Ref!$B$12:$B$14,0))&"!"&ADDRESS(ROW(M29),COLUMN(M29)))*IF(DollarType=Ref!$B$17,1,(1+Inflation)^($B29-$B$11)),"-") -> 0.0003772719726 | N29: =IFERROR(INDIRECT(INDEX(Ref!$C$4:$C$9,MATCH(State,Ref!$B$4:$B$9,0))&INDEX(Ref!$C$12:$C$14,MATCH(Counterfactual,Ref!$B$12:$B$14,0))&"!"&ADDRESS(ROW(N29),COLUMN(N29)))*IF(DollarType=Ref!$B$17,1,(1+Inflation)^($B29-$B$11)),"-") -> 0.0004925872624 | O29: =IFERROR(INDIRECT(INDEX(Ref!$C$4:$C$9,MATCH(State,Ref!$B$4:$B$9,0))&INDEX(Ref!$C$12:$C$14,MATCH(Counterfactual,Ref!$B$12:$B$14,0))&"!"&ADDRESS(ROW(O29),COLUMN(O29)))*IF(DollarType=Ref!$B$17,1,(1+Inflation)^($B29-$B$11)),"-") -> 0.0004311246872 | P29: =IFERROR(INDIRECT(INDEX(Ref!$C$4:$C$9,MATCH(State,Ref!$B$4:$B$9,0))&INDEX(Ref!$C$12:$C$14,MATCH(Counterfactual,Ref!$B$12:$B$14,0))&"!"&ADDRESS(ROW(P29),COLUMN(P29)))*IF(DollarType=Ref!$B$17,1,(1+Inflation)^($B29-$B$11)),"-") -> - | Q29: =IFERROR(INDIRECT(INDEX(Ref!$C$4:$C$9,MATCH(State,Ref!$B$4:$B$9,0))&INDEX(Ref!$C$12:$C$14,MATCH(Counterfactual,Ref!$B$12:$B$14,0))&"!"&ADDRESS(ROW(Q29),COLUMN(Q29)))*IF(DollarType=Ref!$B$17,1,(1+Inflation)^($B29-$B$11)),"-") -> - | R29: =IFERROR(INDIRECT(INDEX(Ref!$C$4:$C$9,MATCH(State,Ref!$B$4:$B$9,0))&INDEX(Ref!$C$12:$C$14,MATCH(Counterfactual,Ref!$B$12:$B$14,0))&"!"&ADDRESS(ROW(R29),COLUMN(R29)))*IF(DollarType=Ref!$B$17,1,(1+Inflation)^($B29-$B$11)),"-") -> - | S29: =IFERROR(INDIRECT(INDEX(Ref!$C$4:$C$9,MATCH(State,Ref!$B$4:$B$9,0))&INDEX(Ref!$C$12:$C$14,MATCH(Counterfactual,Ref!$B$12:$B$14,0))&"!"&ADDRESS(ROW(S29),COLUMN(S29)))*IF(DollarType=Ref!$B$17,1,(1+Inflation)^($B29-$B$11)),"-") -> - | T29: =IFERROR(INDIRECT(INDEX(Ref!$C$4:$C$9,MATCH(State,Ref!$B$4:$B$9,0))&INDEX(Ref!$C$12:$C$14,MATCH(Counterfactual,Ref!$B$12:$B$14,0))&"!"&ADDRESS(ROW(T29),COLUMN(T29)))*IF(DollarType=Ref!$B$17,1,(1+Inflation)^($B29-$B$11)),"-") -> - | U29: =IFERROR(INDIRECT(INDEX(Ref!$C$4:$C$9,MATCH(State,Ref!$B$4:$B$9,0))&INDEX(Ref!$C$12:$C$14,MATCH(Counterfactual,Ref!$B$12:$B$14,0))&"!"&ADDRESS(ROW(U29),COLUMN(U29)))*IF(DollarType=Ref!$B$17,1,(1+Inflation)^($B29-$B$11)),"-") -> - | V29: =IFERROR(INDIRECT(INDEX(Ref!$C$4:$C$9,MATCH(State,Ref!$B$4:$B$9,0))&INDEX(Ref!$C$12:$C$14,MATCH(Counterfactual,Ref!$B$12:$B$14,0))&"!"&ADDRESS(ROW(V29),COLUMN(V29)))*IF(DollarType=Ref!$B$17,1,(1+Inflation)^($B29-$B$11)),"-") -> - | W29: =IFERROR(INDIRECT(INDEX(Ref!$C$4:$C$9,MATCH(State,Ref!$B$4:$B$9,0))&INDEX(Ref!$C$12:$C$14,MATCH(Counterfactual,Ref!$B$12:$B$14,0))&"!"&ADDRESS(ROW(W29),COLUMN(W29)))*IF(DollarType=Ref!$B$17,1,(1+Inflation)^($B29-$B$11)),"-") -> - | X29: =IFERROR(INDIRECT(INDEX(Ref!$C$4:$C$9,MATCH(State,Ref!$B$4:$B$9,0))&INDEX(Ref!$C$12:$C$14,MATCH(Counterfactual,Ref!$B$12:$B$14,0))&"!"&ADDRESS(ROW(X29),COLUMN(X29)))*IF(DollarType=Ref!$B$17,1,(1+Inflation)^($B29-$B$11)),"-") -> 0.000164520678 | Y29: =IFERROR(INDIRECT(INDEX(Ref!$C$4:$C$9,MATCH(State,Ref!$B$4:$B$9,0))&INDEX(Ref!$C$12:$C$14,MATCH(Counterfactual,Ref!$B$12:$B$14,0))&"!"&ADDRESS(ROW(Y29),COLUMN(Y29)))*IF(DollarType=Ref!$B$17,1,(1+Inflation)^($B29-$B$11)),"-") -> 0.0001397123332 | Z29: =IFERROR(INDIRECT(INDEX(Ref!$C$4:$C$9,MATCH(State,Ref!$B$4:$B$9,0))&INDEX(Ref!$C$12:$C$14,MATCH(Counterfactual,Ref!$B$12:$B$14,0))&"!"&ADDRESS(ROW(Z29),COLUMN(Z29)))*IF(DollarType=Ref!$B$17,1,(1+Inflation)^($B29-$B$11)),"-") -> 49.67352616 | AA29: =IFERROR(INDIRECT(INDEX(Ref!$C$4:$C$9,MATCH(State,Ref!$B$4:$B$9,0))&INDEX(Ref!$C$12:$C$14,MATCH(Counterfactual,Ref!$B$12:$B$14,0))&"!"&ADDRESS(ROW(AA29),COLUMN(AA29)))*IF(DollarType=Ref!$B$17,1,(1+Inflation)^($B29-$B$11)),"-") -> - | AB29: =IFERROR(INDIRECT(INDEX(Ref!$C$4:$C$9,MATCH(State,Ref!$B$4:$B$9,0))&INDEX(Ref!$C$12:$C$14,MATCH(Counterfactual,Ref!$B$12:$B$14,0))&"!"&ADDRESS(ROW(AB29),COLUMN(AB29)))*IF(DollarType=Ref!$B$17,1,(1+Inflation)^($B29-$B$11)),"-") -> - | AC29: =IFERROR(INDIRECT(INDEX(Ref!$C$4:$C$9,MATCH(State,Ref!$B$4:$B$9,0))&INDEX(Ref!$C$12:$C$14,MATCH(Counterfactual,Ref!$B$12:$B$14,0))&"!"&ADDRESS(ROW(AC29),COLUMN(AC29)))*IF(DollarType=Ref!$B$17,1,(1+Inflation)^($B29-$B$11)),"-") -> - | AD29: =IFERROR(INDIRECT(INDEX(Ref!$C$4:$C$9,MATCH(State,Ref!$B$4:$B$9,0))&INDEX(Ref!$C$12:$C$14,MATCH(Counterfactual,Ref!$B$12:$B$14,0))&"!"&ADDRESS(ROW(AD29),COLUMN(AD29)))*IF(DollarType=Ref!$B$17,1,(1+Inflation)^($B29-$B$11)),"-") -> - | AE29: =IFERROR(INDIRECT(INDEX(Ref!$C$4:$C$9,MATCH(State,Ref!$B$4:$B$9,0))&INDEX(Ref!$C$12:$C$14,MATCH(Counterfactual,Ref!$B$12:$B$14,0))&"!"&ADDRESS(ROW(AE29),COLUMN(AE29)))*IF(DollarType=Ref!$B$17,1,(1+Inflation)^($B29-$B$11)),"-") -> - | AF29: =IFERROR(INDIRECT(INDEX(Ref!$C$4:$C$9,MATCH(State,Ref!$B$4:$B$9,0))&INDEX(Ref!$C$12:$C$14,MATCH(Counterfactual,Ref!$B$12:$B$14,0))&"!"&ADDRESS(ROW(AF29),COLUMN(AF29)))*IF(DollarType=Ref!$B$17,1,(1+Inflation)^($B29-$B$11)),"-") -> - | AG29: =IFERROR(INDIRECT(INDEX(Ref!$C$4:$C$9,MATCH(State,Ref!$B$4:$B$9,0))&INDEX(Ref!$C$12:$C$14,MATCH(Counterfactual,Ref!$B$12:$B$14,0))&"!"&ADDRESS(ROW(AG29),COLUMN(AG29)))*IF(DollarType=Ref!$B$17,1,(1+Inflation)^($B29-$B$11)),"-") -> - | AH29: =IFERROR(INDIRECT(INDEX(Ref!$C$4:$C$9,MATCH(State,Ref!$B$4:$B$9,0))&INDEX(Ref!$C$12:$C$14,MATCH(Counterfactual,Ref!$B$12:$B$14,0))&"!"&ADDRESS(ROW(AH29),COLUMN(AH29)))*IF(DollarType=Ref!$B$17,1,(1+Inflation)^($B29-$B$11)),"-") -> 84.01598436 | AJ29: 2039 | AK29: 0.06815090795 | AL29: 0.06954021126 | AM29: 0.05479875454 | AN29: 0.05247363395 | AO29: 0.0184062496 | AP29: 0.01762130166 | AQ29: 0.01975640927 | AR29: 0.02037930348 | AS29: 0.0004427495595 | AT29: 0.0004112264501 | AU29: 0.000536920116 | AV29: 0.0004699259091 | AW29: - | AX29: - | AY29: - | AZ29: - | BA29: - | BB29: - | BC29: - | BD29: - | BE29: 0.0001936737421 | BF29: 0.0001644693587 | BG29: 57.62129035 | BH29: - | BI29: - | BJ29: - | BK29: - | BL29: - | BM29: - | BN29: - | BO29: 97.45854186
B30: 2040 | C30: =IFERROR(INDIRECT(INDEX(Ref!$C$4:$C$9,MATCH(State,Ref!$B$4:$B$9,0))&INDEX(Ref!$C$12:$C$14,MATCH(Counterfactual,Ref!$B$12:$B$14,0))&"!"&ADDRESS(ROW(C30),COLUMN(C30)))*IF(DollarType=Ref!$B$17,1,(1+Inflation)^($B30-$B$11)),"-") -> 0.05242414606 | D30: =IFERROR(INDIRECT(INDEX(Ref!$C$4:$C$9,MATCH(State,Ref!$B$4:$B$9,0))&INDEX(Ref!$C$12:$C$14,MATCH(Counterfactual,Ref!$B$12:$B$14,0))&"!"&ADDRESS(ROW(D30),COLUMN(D30)))*IF(DollarType=Ref!$B$17,1,(1+Inflation)^($B30-$B$11)),"-") -> 0.05370802544 | E30: =IFERROR(INDIRECT(INDEX(Ref!$C$4:$C$9,MATCH(State,Ref!$B$4:$B$9,0))&INDEX(Ref!$C$12:$C$14,MATCH(Counterfactual,Ref!$B$12:$B$14,0))&"!"&ADDRESS(ROW(E30),COLUMN(E30)))*IF(DollarType=Ref!$B$17,1,(1+Inflation)^($B30-$B$11)),"-") -> 0.0413257461 | F30: =IFERROR(INDIRECT(INDEX(Ref!$C$4:$C$9,MATCH(State,Ref!$B$4:$B$9,0))&INDEX(Ref!$C$12:$C$14,MATCH(Counterfactual,Ref!$B$12:$B$14,0))&"!"&ADDRESS(ROW(F30),COLUMN(F30)))*IF(DollarType=Ref!$B$17,1,(1+Inflation)^($B30-$B$11)),"-") -> 0.03935460117 | G30: =IFERROR(INDIRECT(INDEX(Ref!$C$4:$C$9,MATCH(State,Ref!$B$4:$B$9,0))&INDEX(Ref!$C$12:$C$14,MATCH(Counterfactual,Ref!$B$12:$B$14,0))&"!"&ADDRESS(ROW(G30),COLUMN(G30)))*IF(DollarType=Ref!$B$17,1,(1+Inflation)^($B30-$B$11)),"-") -> 0.005262288819 | H30: =IFERROR(INDIRECT(INDEX(Ref!$C$4:$C$9,MATCH(State,Ref!$B$4:$B$9,0))&INDEX(Ref!$C$12:$C$14,MATCH(Counterfactual,Ref!$B$12:$B$14,0))&"!"&ADDRESS(ROW(H30),COLUMN(H30)))*IF(DollarType=Ref!$B$17,1,(1+Inflation)^($B30-$B$11)),"-") -> 0.01554854527 | I30: =IFERROR(INDIRECT(INDEX(Ref!$C$4:$C$9,MATCH(State,Ref!$B$4:$B$9,0))&INDEX(Ref!$C$12:$C$14,MATCH(Counterfactual,Ref!$B$12:$B$14,0))&"!"&ADDRESS(ROW(I30),COLUMN(I30)))*IF(DollarType=Ref!$B$17,1,(1+Inflation)^($B30-$B$11)),"-") -> 0.01472806047 | J30: =IFERROR(INDIRECT(INDEX(Ref!$C$4:$C$9,MATCH(State,Ref!$B$4:$B$9,0))&INDEX(Ref!$C$12:$C$14,MATCH(Counterfactual,Ref!$B$12:$B$14,0))&"!"&ADDRESS(ROW(J30),COLUMN(J30)))*IF(DollarType=Ref!$B$17,1,(1+Inflation)^($B30-$B$11)),"-") -> 0.01658367268 | K30: =IFERROR(INDIRECT(INDEX(Ref!$C$4:$C$9,MATCH(State,Ref!$B$4:$B$9,0))&INDEX(Ref!$C$12:$C$14,MATCH(Counterfactual,Ref!$B$12:$B$14,0))&"!"&ADDRESS(ROW(K30),COLUMN(K30)))*IF(DollarType=Ref!$B$17,1,(1+Inflation)^($B30-$B$11)),"-") -> 0.01706246734 | L30: =IFERROR(INDIRECT(INDEX(Ref!$C$4:$C$9,MATCH(State,Ref!$B$4:$B$9,0))&INDEX(Ref!$C$12:$C$14,MATCH(Counterfactual,Ref!$B$12:$B$14,0))&"!"&ADDRESS(ROW(L30),COLUMN(L30)))*IF(DollarType=Ref!$B$17,1,(1+Inflation)^($B30-$B$11)),"-") -> 0.0004028629402 | M30: =IFERROR(INDIRECT(INDEX(Ref!$C$4:$C$9,MATCH(State,Ref!$B$4:$B$9,0))&INDEX(Ref!$C$12:$C$14,MATCH(Counterfactual,Ref!$B$12:$B$14,0))&"!"&ADDRESS(ROW(M30),COLUMN(M30)))*IF(DollarType=Ref!$B$17,1,(1+Inflation)^($B30-$B$11)),"-") -> 0.0003719135367 | N30: =IFERROR(INDIRECT(INDEX(Ref!$C$4:$C$9,MATCH(State,Ref!$B$4:$B$9,0))&INDEX(Ref!$C$12:$C$14,MATCH(Counterfactual,Ref!$B$12:$B$14,0))&"!"&ADDRESS(ROW(N30),COLUMN(N30)))*IF(DollarType=Ref!$B$17,1,(1+Inflation)^($B30-$B$11)),"-") -> 0.0004801802041 | O30: =IFERROR(INDIRECT(INDEX(Ref!$C$4:$C$9,MATCH(State,Ref!$B$4:$B$9,0))&INDEX(Ref!$C$12:$C$14,MATCH(Counterfactual,Ref!$B$12:$B$14,0))&"!"&ADDRESS(ROW(O30),COLUMN(O30)))*IF(DollarType=Ref!$B$17,1,(1+Inflation)^($B30-$B$11)),"-") -> 0.0004217248019 | P30: =IFERROR(INDIRECT(INDEX(Ref!$C$4:$C$9,MATCH(State,Ref!$B$4:$B$9,0))&INDEX(Ref!$C$12:$C$14,MATCH(Counterfactual,Ref!$B$12:$B$14,0))&"!"&ADDRESS(ROW(P30),COLUMN(P30)))*IF(DollarType=Ref!$B$17,1,(1+Inflation)^($B30-$B$11)),"-") -> - | Q30: =IFERROR(INDIRECT(INDEX(Ref!$C$4:$C$9,MATCH(State,Ref!$B$4:$B$9,0))&INDEX(Ref!$C$12:$C$14,MATCH(Counterfactual,Ref!$B$12:$B$14,0))&"!"&ADDRESS(ROW(Q30),COLUMN(Q30)))*IF(DollarType=Ref!$B$17,1,(1+Inflation)^($B30-$B$11)),"-") -> - | R30: =IFERROR(INDIRECT(INDEX(Ref!$C$4:$C$9,MATCH(State,Ref!$B$4:$B$9,0))&INDEX(Ref!$C$12:$C$14,MATCH(Counterfactual,Ref!$B$12:$B$14,0))&"!"&ADDRESS(ROW(R30),COLUMN(R30)))*IF(DollarType=Ref!$B$17,1,(1+Inflation)^($B30-$B$11)),"-") -> - | S30: =IFERROR(INDIRECT(INDEX(Ref!$C$4:$C$9,MATCH(State,Ref!$B$4:$B$9,0))&INDEX(Ref!$C$12:$C$14,MATCH(Counterfactual,Ref!$B$12:$B$14,0))&"!"&ADDRESS(ROW(S30),COLUMN(S30)))*IF(DollarType=Ref!$B$17,1,(1+Inflation)^($B30-$B$11)),"-") -> - | T30: =IFERROR(INDIRECT(INDEX(Ref!$C$4:$C$9,MATCH(State,Ref!$B$4:$B$9,0))&INDEX(Ref!$C$12:$C$14,MATCH(Counterfactual,Ref!$B$12:$B$14,0))&"!"&ADDRESS(ROW(T30),COLUMN(T30)))*IF(DollarType=Ref!$B$17,1,(1+Inflation)^($B30-$B$11)),"-") -> - | U30: =IFERROR(INDIRECT(INDEX(Ref!$C$4:$C$9,MATCH(State,Ref!$B$4:$B$9,0))&INDEX(Ref!$C$12:$C$14,MATCH(Counterfactual,Ref!$B$12:$B$14,0))&"!"&ADDRESS(ROW(U30),COLUMN(U30)))*IF(DollarType=Ref!$B$17,1,(1+Inflation)^($B30-$B$11)),"-") -> - | V30: =IFERROR(INDIRECT(INDEX(Ref!$C$4:$C$9,MATCH(State,Ref!$B$4:$B$9,0))&INDEX(Ref!$C$12:$C$14,MATCH(Counterfactual,Ref!$B$12:$B$14,0))&"!"&ADDRESS(ROW(V30),COLUMN(V30)))*IF(DollarType=Ref!$B$17,1,(1+Inflation)^($B30-$B$11)),"-") -> - | W30: =IFERROR(INDIRECT(INDEX(Ref!$C$4:$C$9,MATCH(State,Ref!$B$4:$B$9,0))&INDEX(Ref!$C$12:$C$14,MATCH(Counterfactual,Ref!$B$12:$B$14,0))&"!"&ADDRESS(ROW(W30),COLUMN(W30)))*IF(DollarType=Ref!$B$17,1,(1+Inflation)^($B30-$B$11)),"-") -> - | X30: =IFERROR(INDIRECT(INDEX(Ref!$C$4:$C$9,MATCH(State,Ref!$B$4:$B$9,0))&INDEX(Ref!$C$12:$C$14,MATCH(Counterfactual,Ref!$B$12:$B$14,0))&"!"&ADDRESS(ROW(X30),COLUMN(X30)))*IF(DollarType=Ref!$B$17,1,(1+Inflation)^($B30-$B$11)),"-") -> 0.000164937445 | Y30: =IFERROR(INDIRECT(INDEX(Ref!$C$4:$C$9,MATCH(State,Ref!$B$4:$B$9,0))&INDEX(Ref!$C$12:$C$14,MATCH(Counterfactual,Ref!$B$12:$B$14,0))&"!"&ADDRESS(ROW(Y30),COLUMN(Y30)))*IF(DollarType=Ref!$B$17,1,(1+Inflation)^($B30-$B$11)),"-") -> 0.0001400662552 | Z30: =IFERROR(INDIRECT(INDEX(Ref!$C$4:$C$9,MATCH(State,Ref!$B$4:$B$9,0))&INDEX(Ref!$C$12:$C$14,MATCH(Counterfactual,Ref!$B$12:$B$14,0))&"!"&ADDRESS(ROW(Z30),COLUMN(Z30)))*IF(DollarType=Ref!$B$17,1,(1+Inflation)^($B30-$B$11)),"-") -> 51.22772294 | AA30: =IFERROR(INDIRECT(INDEX(Ref!$C$4:$C$9,MATCH(State,Ref!$B$4:$B$9,0))&INDEX(Ref!$C$12:$C$14,MATCH(Counterfactual,Ref!$B$12:$B$14,0))&"!"&ADDRESS(ROW(AA30),COLUMN(AA30)))*IF(DollarType=Ref!$B$17,1,(1+Inflation)^($B30-$B$11)),"-") -> - | AB30: =IFERROR(INDIRECT(INDEX(Ref!$C$4:$C$9,MATCH(State,Ref!$B$4:$B$9,0))&INDEX(Ref!$C$12:$C$14,MATCH(Counterfactual,Ref!$B$12:$B$14,0))&"!"&ADDRESS(ROW(AB30),COLUMN(AB30)))*IF(DollarType=Ref!$B$17,1,(1+Inflation)^($B30-$B$11)),"-") -> - | AC30: =IFERROR(INDIRECT(INDEX(Ref!$C$4:$C$9,MATCH(State,Ref!$B$4:$B$9,0))&INDEX(Ref!$C$12:$C$14,MATCH(Counterfactual,Ref!$B$12:$B$14,0))&"!"&ADDRESS(ROW(AC30),COLUMN(AC30)))*IF(DollarType=Ref!$B$17,1,(1+Inflation)^($B30-$B$11)),"-") -> - | AD30: =IFERROR(INDIRECT(INDEX(Ref!$C$4:$C$9,MATCH(State,Ref!$B$4:$B$9,0))&INDEX(Ref!$C$12:$C$14,MATCH(Counterfactual,Ref!$B$12:$B$14,0))&"!"&ADDRESS(ROW(AD30),COLUMN(AD30)))*IF(DollarType=Ref!$B$17,1,(1+Inflation)^($B30-$B$11)),"-") -> - | AE30: =IFERROR(INDIRECT(INDEX(Ref!$C$4:$C$9,MATCH(State,Ref!$B$4:$B$9,0))&INDEX(Ref!$C$12:$C$14,MATCH(Counterfactual,Ref!$B$12:$B$14,0))&"!"&ADDRESS(ROW(AE30),COLUMN(AE30)))*IF(DollarType=Ref!$B$17,1,(1+Inflation)^($B30-$B$11)),"-") -> - | AF30: =IFERROR(INDIRECT(INDEX(Ref!$C$4:$C$9,MATCH(State,Ref!$B$4:$B$9,0))&INDEX(Ref!$C$12:$C$14,MATCH(Counterfactual,Ref!$B$12:$B$14,0))&"!"&ADDRESS(ROW(AF30),COLUMN(AF30)))*IF(DollarType=Ref!$B$17,1,(1+Inflation)^($B30-$B$11)),"-") -> - | AG30: =IFERROR(INDIRECT(INDEX(Ref!$C$4:$C$9,MATCH(State,Ref!$B$4:$B$9,0))&INDEX(Ref!$C$12:$C$14,MATCH(Counterfactual,Ref!$B$12:$B$14,0))&"!"&ADDRESS(ROW(AG30),COLUMN(AG30)))*IF(DollarType=Ref!$B$17,1,(1+Inflation)^($B30-$B$11)),"-") -> - | AH30: =IFERROR(INDIRECT(INDEX(Ref!$C$4:$C$9,MATCH(State,Ref!$B$4:$B$9,0))&INDEX(Ref!$C$12:$C$14,MATCH(Counterfactual,Ref!$B$12:$B$14,0))&"!"&ADDRESS(ROW(AH30),COLUMN(AH30)))*IF(DollarType=Ref!$B$17,1,(1+Inflation)^($B30-$B$11)),"-") -> 84.01598436 | AJ30: 2040 | AK30: 0.06790847114 | AL30: 0.06941985394 | AM30: 0.0548434347 | AN30: 0.05252300289 | AO30: 0.01694791434 | AP30: 0.01605358591 | AQ30: 0.01807620322 | AR30: 0.0185980894 | AS30: 0.0004391206048 | AT30: 0.000405385755 | AU30: 0.0005233964224 | AV30: 0.0004596800341 | AW30: - | AX30: - | AY30: - | AZ30: - | BA30: - | BB30: - | BC30: - | BD30: - | BE30: 0.0001941643602 | BF30: 0.0001648859956 | BG30: 59.42415861 | BH30: - | BI30: - | BJ30: - | BK30: - | BL30: - | BM30: - | BN30: - | BO30: 97.45854186
B31: 2041 | C31: =IFERROR(INDIRECT(INDEX(Ref!$C$4:$C$9,MATCH(State,Ref!$B$4:$B$9,0))&INDEX(Ref!$C$12:$C$14,MATCH(Counterfactual,Ref!$B$12:$B$14,0))&"!"&ADDRESS(ROW(C31),COLUMN(C31)))*IF(DollarType=Ref!$B$17,1,(1+Inflation)^($B31-$B$11)),"-") -> 0.05302309763 | D31: =IFERROR(INDIRECT(INDEX(Ref!$C$4:$C$9,MATCH(State,Ref!$B$4:$B$9,0))&INDEX(Ref!$C$12:$C$14,MATCH(Counterfactual,Ref!$B$12:$B$14,0))&"!"&ADDRESS(ROW(D31),COLUMN(D31)))*IF(DollarType=Ref!$B$17,1,(1+Inflation)^($B31-$B$11)),"-") -> 0.05441304941 | E31: =IFERROR(INDIRECT(INDEX(Ref!$C$4:$C$9,MATCH(State,Ref!$B$4:$B$9,0))&INDEX(Ref!$C$12:$C$14,MATCH(Counterfactual,Ref!$B$12:$B$14,0))&"!"&ADDRESS(ROW(E31),COLUMN(E31)))*IF(DollarType=Ref!$B$17,1,(1+Inflation)^($B31-$B$11)),"-") -> 0.04217909466 | F31: =IFERROR(INDIRECT(INDEX(Ref!$C$4:$C$9,MATCH(State,Ref!$B$4:$B$9,0))&INDEX(Ref!$C$12:$C$14,MATCH(Counterfactual,Ref!$B$12:$B$14,0))&"!"&ADDRESS(ROW(F31),COLUMN(F31)))*IF(DollarType=Ref!$B$17,1,(1+Inflation)^($B31-$B$11)),"-") -> 0.04021299143 | G31: =IFERROR(INDIRECT(INDEX(Ref!$C$4:$C$9,MATCH(State,Ref!$B$4:$B$9,0))&INDEX(Ref!$C$12:$C$14,MATCH(Counterfactual,Ref!$B$12:$B$14,0))&"!"&ADDRESS(ROW(G31),COLUMN(G31)))*IF(DollarType=Ref!$B$17,1,(1+Inflation)^($B31-$B$11)),"-") -> 0.004569269425 | H31: =IFERROR(INDIRECT(INDEX(Ref!$C$4:$C$9,MATCH(State,Ref!$B$4:$B$9,0))&INDEX(Ref!$C$12:$C$14,MATCH(Counterfactual,Ref!$B$12:$B$14,0))&"!"&ADDRESS(ROW(H31),COLUMN(H31)))*IF(DollarType=Ref!$B$17,1,(1+Inflation)^($B31-$B$11)),"-") -> 0.01431662718 | I31: =IFERROR(INDIRECT(INDEX(Ref!$C$4:$C$9,MATCH(State,Ref!$B$4:$B$9,0))&INDEX(Ref!$C$12:$C$14,MATCH(Counterfactual,Ref!$B$12:$B$14,0))&"!"&ADDRESS(ROW(I31),COLUMN(I31)))*IF(DollarType=Ref!$B$17,1,(1+Inflation)^($B31-$B$11)),"-") -> 0.01341774793 | J31: =IFERROR(INDIRECT(INDEX(Ref!$C$4:$C$9,MATCH(State,Ref!$B$4:$B$9,0))&INDEX(Ref!$C$12:$C$14,MATCH(Counterfactual,Ref!$B$12:$B$14,0))&"!"&ADDRESS(ROW(J31),COLUMN(J31)))*IF(DollarType=Ref!$B$17,1,(1+Inflation)^($B31-$B$11)),"-") -> 0.01517329557 | K31: =IFERROR(INDIRECT(INDEX(Ref!$C$4:$C$9,MATCH(State,Ref!$B$4:$B$9,0))&INDEX(Ref!$C$12:$C$14,MATCH(Counterfactual,Ref!$B$12:$B$14,0))&"!"&ADDRESS(ROW(K31),COLUMN(K31)))*IF(DollarType=Ref!$B$17,1,(1+Inflation)^($B31-$B$11)),"-") -> 0.01557115499 | L31: =IFERROR(INDIRECT(INDEX(Ref!$C$4:$C$9,MATCH(State,Ref!$B$4:$B$9,0))&INDEX(Ref!$C$12:$C$14,MATCH(Counterfactual,Ref!$B$12:$B$14,0))&"!"&ADDRESS(ROW(L31),COLUMN(L31)))*IF(DollarType=Ref!$B$17,1,(1+Inflation)^($B31-$B$11)),"-") -> 0.0003995609124 | M31: =IFERROR(INDIRECT(INDEX(Ref!$C$4:$C$9,MATCH(State,Ref!$B$4:$B$9,0))&INDEX(Ref!$C$12:$C$14,MATCH(Counterfactual,Ref!$B$12:$B$14,0))&"!"&ADDRESS(ROW(M31),COLUMN(M31)))*IF(DollarType=Ref!$B$17,1,(1+Inflation)^($B31-$B$11)),"-") -> 0.0003666312073 | N31: =IFERROR(INDIRECT(INDEX(Ref!$C$4:$C$9,MATCH(State,Ref!$B$4:$B$9,0))&INDEX(Ref!$C$12:$C$14,MATCH(Counterfactual,Ref!$B$12:$B$14,0))&"!"&ADDRESS(ROW(N31),COLUMN(N31)))*IF(DollarType=Ref!$B$17,1,(1+Inflation)^($B31-$B$11)),"-") -> 0.0004680856489 | O31: =IFERROR(INDIRECT(INDEX(Ref!$C$4:$C$9,MATCH(State,Ref!$B$4:$B$9,0))&INDEX(Ref!$C$12:$C$14,MATCH(Counterfactual,Ref!$B$12:$B$14,0))&"!"&ADDRESS(ROW(O31),COLUMN(O31)))*IF(DollarType=Ref!$B$17,1,(1+Inflation)^($B31-$B$11)),"-") -> 0.0004125298639 | P31: =IFERROR(INDIRECT(INDEX(Ref!$C$4:$C$9,MATCH(State,Ref!$B$4:$B$9,0))&INDEX(Ref!$C$12:$C$14,MATCH(Counterfactual,Ref!$B$12:$B$14,0))&"!"&ADDRESS(ROW(P31),COLUMN(P31)))*IF(DollarType=Ref!$B$17,1,(1+Inflation)^($B31-$B$11)),"-") -> - | Q31: =IFERROR(INDIRECT(INDEX(Ref!$C$4:$C$9,MATCH(State,Ref!$B$4:$B$9,0))&INDEX(Ref!$C$12:$C$14,MATCH(Counterfactual,Ref!$B$12:$B$14,0))&"!"&ADDRESS(ROW(Q31),COLUMN(Q31)))*IF(DollarType=Ref!$B$17,1,(1+Inflation)^($B31-$B$11)),"-") -> - | R31: =IFERROR(INDIRECT(INDEX(Ref!$C$4:$C$9,MATCH(State,Ref!$B$4:$B$9,0))&INDEX(Ref!$C$12:$C$14,MATCH(Counterfactual,Ref!$B$12:$B$14,0))&"!"&ADDRESS(ROW(R31),COLUMN(R31)))*IF(DollarType=Ref!$B$17,1,(1+Inflation)^($B31-$B$11)),"-") -> - | S31: =IFERROR(INDIRECT(INDEX(Ref!$C$4:$C$9,MATCH(State,Ref!$B$4:$B$9,0))&INDEX(Ref!$C$12:$C$14,MATCH(Counterfactual,Ref!$B$12:$B$14,0))&"!"&ADDRESS(ROW(S31),COLUMN(S31)))*IF(DollarType=Ref!$B$17,1,(1+Inflation)^($B31-$B$11)),"-") -> - | T31: =IFERROR(INDIRECT(INDEX(Ref!$C$4:$C$9,MATCH(State,Ref!$B$4:$B$9,0))&INDEX(Ref!$C$12:$C$14,MATCH(Counterfactual,Ref!$B$12:$B$14,0))&"!"&ADDRESS(ROW(T31),COLUMN(T31)))*IF(DollarType=Ref!$B$17,1,(1+Inflation)^($B31-$B$11)),"-") -> - | U31: =IFERROR(INDIRECT(INDEX(Ref!$C$4:$C$9,MATCH(State,Ref!$B$4:$B$9,0))&INDEX(Ref!$C$12:$C$14,MATCH(Counterfactual,Ref!$B$12:$B$14,0))&"!"&ADDRESS(ROW(U31),COLUMN(U31)))*IF(DollarType=Ref!$B$17,1,(1+Inflation)^($B31-$B$11)),"-") -> - | V31: =IFERROR(INDIRECT(INDEX(Ref!$C$4:$C$9,MATCH(State,Ref!$B$4:$B$9,0))&INDEX(Ref!$C$12:$C$14,MATCH(Counterfactual,Ref!$B$12:$B$14,0))&"!"&ADDRESS(ROW(V31),COLUMN(V31)))*IF(DollarType=Ref!$B$17,1,(1+Inflation)^($B31-$B$11)),"-") -> - | W31: =IFERROR(INDIRECT(INDEX(Ref!$C$4:$C$9,MATCH(State,Ref!$B$4:$B$9,0))&INDEX(Ref!$C$12:$C$14,MATCH(Counterfactual,Ref!$B$12:$B$14,0))&"!"&ADDRESS(ROW(W31),COLUMN(W31)))*IF(DollarType=Ref!$B$17,1,(1+Inflation)^($B31-$B$11)),"-") -> - | X31: =IFERROR(INDIRECT(INDEX(Ref!$C$4:$C$9,MATCH(State,Ref!$B$4:$B$9,0))&INDEX(Ref!$C$12:$C$14,MATCH(Counterfactual,Ref!$B$12:$B$14,0))&"!"&ADDRESS(ROW(X31),COLUMN(X31)))*IF(DollarType=Ref!$B$17,1,(1+Inflation)^($B31-$B$11)),"-") -> 0.0001653552677 | Y31: =IFERROR(INDIRECT(INDEX(Ref!$C$4:$C$9,MATCH(State,Ref!$B$4:$B$9,0))&INDEX(Ref!$C$12:$C$14,MATCH(Counterfactual,Ref!$B$12:$B$14,0))&"!"&ADDRESS(ROW(Y31),COLUMN(Y31)))*IF(DollarType=Ref!$B$17,1,(1+Inflation)^($B31-$B$11)),"-") -> 0.0001404210738 | Z31: =IFERROR(INDIRECT(INDEX(Ref!$C$4:$C$9,MATCH(State,Ref!$B$4:$B$9,0))&INDEX(Ref!$C$12:$C$14,MATCH(Counterfactual,Ref!$B$12:$B$14,0))&"!"&ADDRESS(ROW(Z31),COLUMN(Z31)))*IF(DollarType=Ref!$B$17,1,(1+Inflation)^($B31-$B$11)),"-") -> 52.83054779 | AA31: =IFERROR(INDIRECT(INDEX(Ref!$C$4:$C$9,MATCH(State,Ref!$B$4:$B$9,0))&INDEX(Ref!$C$12:$C$14,MATCH(Counterfactual,Ref!$B$12:$B$14,0))&"!"&ADDRESS(ROW(AA31),COLUMN(AA31)))*IF(DollarType=Ref!$B$17,1,(1+Inflation)^($B31-$B$11)),"-") -> - | AB31: =IFERROR(INDIRECT(INDEX(Ref!$C$4:$C$9,MATCH(State,Ref!$B$4:$B$9,0))&INDEX(Ref!$C$12:$C$14,MATCH(Counterfactual,Ref!$B$12:$B$14,0))&"!"&ADDRESS(ROW(AB31),COLUMN(AB31)))*IF(DollarType=Ref!$B$17,1,(1+Inflation)^($B31-$B$11)),"-") -> - | AC31: =IFERROR(INDIRECT(INDEX(Ref!$C$4:$C$9,MATCH(State,Ref!$B$4:$B$9,0))&INDEX(Ref!$C$12:$C$14,MATCH(Counterfactual,Ref!$B$12:$B$14,0))&"!"&ADDRESS(ROW(AC31),COLUMN(AC31)))*IF(DollarType=Ref!$B$17,1,(1+Inflation)^($B31-$B$11)),"-") -> - | AD31: =IFERROR(INDIRECT(INDEX(Ref!$C$4:$C$9,MATCH(State,Ref!$B$4:$B$9,0))&INDEX(Ref!$C$12:$C$14,MATCH(Counterfactual,Ref!$B$12:$B$14,0))&"!"&ADDRESS(ROW(AD31),COLUMN(AD31)))*IF(DollarType=Ref!$B$17,1,(1+Inflation)^($B31-$B$11)),"-") -> - | AE31: =IFERROR(INDIRECT(INDEX(Ref!$C$4:$C$9,MATCH(State,Ref!$B$4:$B$9,0))&INDEX(Ref!$C$12:$C$14,MATCH(Counterfactual,Ref!$B$12:$B$14,0))&"!"&ADDRESS(ROW(AE31),COLUMN(AE31)))*IF(DollarType=Ref!$B$17,1,(1+Inflation)^($B31-$B$11)),"-") -> - | AF31: =IFERROR(INDIRECT(INDEX(Ref!$C$4:$C$9,MATCH(State,Ref!$B$4:$B$9,0))&INDEX(Ref!$C$12:$C$14,MATCH(Counterfactual,Ref!$B$12:$B$14,0))&"!"&ADDRESS(ROW(AF31),COLUMN(AF31)))*IF(DollarType=Ref!$B$17,1,(1+Inflation)^($B31-$B$11)),"-") -> - | AG31: =IFERROR(INDIRECT(INDEX(Ref!$C$4:$C$9,MATCH(State,Ref!$B$4:$B$9,0))&INDEX(Ref!$C$12:$C$14,MATCH(Counterfactual,Ref!$B$12:$B$14,0))&"!"&ADDRESS(ROW(AG31),COLUMN(AG31)))*IF(DollarType=Ref!$B$17,1,(1+Inflation)^($B31-$B$11)),"-") -> - | AH31: =IFERROR(INDIRECT(INDEX(Ref!$C$4:$C$9,MATCH(State,Ref!$B$4:$B$9,0))&INDEX(Ref!$C$12:$C$14,MATCH(Counterfactual,Ref!$B$12:$B$14,0))&"!"&ADDRESS(ROW(AH31),COLUMN(AH31)))*IF(DollarType=Ref!$B$17,1,(1+Inflation)^($B31-$B$11)),"-") -> 84.01598436 | AJ31: 2041 | AK31: 0.0677977345 | AL31: 0.06943398573 | AM31: 0.0550321742 | AN31: 0.05271767748 | AO31: 0.01560512363 | AP31: 0.01462534524 | AQ31: 0.01653889218 | AR31: 0.01697255894 | AS31: 0.0004355213945 | AT31: 0.0003996280159 | AU31: 0.0005102133573 | AV31: 0.0004496575517 | AW31: - | AX31: - | AY31: - | AZ31: - | BA31: - | BB31: - | BC31: - | BD31: - | BE31: 0.0001946562212 | BF31: 0.0001653036881 | BG31: 61.28343543 | BH31: - | BI31: - | BJ31: - | BK31: - | BL31: - | BM31: - | BN31: - | BO31: 97.45854186
B32: 2042 | C32: =IFERROR(INDIRECT(INDEX(Ref!$C$4:$C$9,MATCH(State,Ref!$B$4:$B$9,0))&INDEX(Ref!$C$12:$C$14,MATCH(Counterfactual,Ref!$B$12:$B$14,0))&"!"&ADDRESS(ROW(C32),COLUMN(C32)))*IF(DollarType=Ref!$B$17,1,(1+Inflation)^($B32-$B$11)),"-") -> 0.05362889229 | D32: =IFERROR(INDIRECT(INDEX(Ref!$C$4:$C$9,MATCH(State,Ref!$B$4:$B$9,0))&INDEX(Ref!$C$12:$C$14,MATCH(Counterfactual,Ref!$B$12:$B$14,0))&"!"&ADDRESS(ROW(D32),COLUMN(D32)))*IF(DollarType=Ref!$B$17,1,(1+Inflation)^($B32-$B$11)),"-") -> 0.05512732821 | E32: =IFERROR(INDIRECT(INDEX(Ref!$C$4:$C$9,MATCH(State,Ref!$B$4:$B$9,0))&INDEX(Ref!$C$12:$C$14,MATCH(Counterfactual,Ref!$B$12:$B$14,0))&"!"&ADDRESS(ROW(E32),COLUMN(E32)))*IF(DollarType=Ref!$B$17,1,(1+Inflation)^($B32-$B$11)),"-") -> 0.04305006428 | F32: =IFERROR(INDIRECT(INDEX(Ref!$C$4:$C$9,MATCH(State,Ref!$B$4:$B$9,0))&INDEX(Ref!$C$12:$C$14,MATCH(Counterfactual,Ref!$B$12:$B$14,0))&"!"&ADDRESS(ROW(F32),COLUMN(F32)))*IF(DollarType=Ref!$B$17,1,(1+Inflation)^($B32-$B$11)),"-") -> 0.04109010463 | G32: =IFERROR(INDIRECT(INDEX(Ref!$C$4:$C$9,MATCH(State,Ref!$B$4:$B$9,0))&INDEX(Ref!$C$12:$C$14,MATCH(Counterfactual,Ref!$B$12:$B$14,0))&"!"&ADDRESS(ROW(G32),COLUMN(G32)))*IF(DollarType=Ref!$B$17,1,(1+Inflation)^($B32-$B$11)),"-") -> 0.003967517519 | H32: =IFERROR(INDIRECT(INDEX(Ref!$C$4:$C$9,MATCH(State,Ref!$B$4:$B$9,0))&INDEX(Ref!$C$12:$C$14,MATCH(Counterfactual,Ref!$B$12:$B$14,0))&"!"&ADDRESS(ROW(H32),COLUMN(H32)))*IF(DollarType=Ref!$B$17,1,(1+Inflation)^($B32-$B$11)),"-") -> 0.01318231451 | I32: =IFERROR(INDIRECT(INDEX(Ref!$C$4:$C$9,MATCH(State,Ref!$B$4:$B$9,0))&INDEX(Ref!$C$12:$C$14,MATCH(Counterfactual,Ref!$B$12:$B$14,0))&"!"&ADDRESS(ROW(I32),COLUMN(I32)))*IF(DollarType=Ref!$B$17,1,(1+Inflation)^($B32-$B$11)),"-") -> 0.01222401008 | J32: =IFERROR(INDIRECT(INDEX(Ref!$C$4:$C$9,MATCH(State,Ref!$B$4:$B$9,0))&INDEX(Ref!$C$12:$C$14,MATCH(Counterfactual,Ref!$B$12:$B$14,0))&"!"&ADDRESS(ROW(J32),COLUMN(J32)))*IF(DollarType=Ref!$B$17,1,(1+Inflation)^($B32-$B$11)),"-") -> 0.01388286558 | K32: =IFERROR(INDIRECT(INDEX(Ref!$C$4:$C$9,MATCH(State,Ref!$B$4:$B$9,0))&INDEX(Ref!$C$12:$C$14,MATCH(Counterfactual,Ref!$B$12:$B$14,0))&"!"&ADDRESS(ROW(K32),COLUMN(K32)))*IF(DollarType=Ref!$B$17,1,(1+Inflation)^($B32-$B$11)),"-") -> 0.01421018795 | L32: =IFERROR(INDIRECT(INDEX(Ref!$C$4:$C$9,MATCH(State,Ref!$B$4:$B$9,0))&INDEX(Ref!$C$12:$C$14,MATCH(Counterfactual,Ref!$B$12:$B$14,0))&"!"&ADDRESS(ROW(L32),COLUMN(L32)))*IF(DollarType=Ref!$B$17,1,(1+Inflation)^($B32-$B$11)),"-") -> 0.0003962859493 | M32: =IFERROR(INDIRECT(INDEX(Ref!$C$4:$C$9,MATCH(State,Ref!$B$4:$B$9,0))&INDEX(Ref!$C$12:$C$14,MATCH(Counterfactual,Ref!$B$12:$B$14,0))&"!"&ADDRESS(ROW(M32),COLUMN(M32)))*IF(DollarType=Ref!$B$17,1,(1+Inflation)^($B32-$B$11)),"-") -> 0.0003614239033 | N32: =IFERROR(INDIRECT(INDEX(Ref!$C$4:$C$9,MATCH(State,Ref!$B$4:$B$9,0))&INDEX(Ref!$C$12:$C$14,MATCH(Counterfactual,Ref!$B$12:$B$14,0))&"!"&ADDRESS(ROW(N32),COLUMN(N32)))*IF(DollarType=Ref!$B$17,1,(1+Inflation)^($B32-$B$11)),"-") -> 0.0004562957258 | O32: =IFERROR(INDIRECT(INDEX(Ref!$C$4:$C$9,MATCH(State,Ref!$B$4:$B$9,0))&INDEX(Ref!$C$12:$C$14,MATCH(Counterfactual,Ref!$B$12:$B$14,0))&"!"&ADDRESS(ROW(O32),COLUMN(O32)))*IF(DollarType=Ref!$B$17,1,(1+Inflation)^($B32-$B$11)),"-") -> 0.0004035354047 | P32: =IFERROR(INDIRECT(INDEX(Ref!$C$4:$C$9,MATCH(State,Ref!$B$4:$B$9,0))&INDEX(Ref!$C$12:$C$14,MATCH(Counterfactual,Ref!$B$12:$B$14,0))&"!"&ADDRESS(ROW(P32),COLUMN(P32)))*IF(DollarType=Ref!$B$17,1,(1+Inflation)^($B32-$B$11)),"-") -> - | Q32: =IFERROR(INDIRECT(INDEX(Ref!$C$4:$C$9,MATCH(State,Ref!$B$4:$B$9,0))&INDEX(Ref!$C$12:$C$14,MATCH(Counterfactual,Ref!$B$12:$B$14,0))&"!"&ADDRESS(ROW(Q32),COLUMN(Q32)))*IF(DollarType=Ref!$B$17,1,(1+Inflation)^($B32-$B$11)),"-") -> - | R32: =IFERROR(INDIRECT(INDEX(Ref!$C$4:$C$9,MATCH(State,Ref!$B$4:$B$9,0))&INDEX(Ref!$C$12:$C$14,MATCH(Counterfactual,Ref!$B$12:$B$14,0))&"!"&ADDRESS(ROW(R32),COLUMN(R32)))*IF(DollarType=Ref!$B$17,1,(1+Inflation)^($B32-$B$11)),"-") -> - | S32: =IFERROR(INDIRECT(INDEX(Ref!$C$4:$C$9,MATCH(State,Ref!$B$4:$B$9,0))&INDEX(Ref!$C$12:$C$14,MATCH(Counterfactual,Ref!$B$12:$B$14,0))&"!"&ADDRESS(ROW(S32),COLUMN(S32)))*IF(DollarType=Ref!$B$17,1,(1+Inflation)^($B32-$B$11)),"-") -> - | T32: =IFERROR(INDIRECT(INDEX(Ref!$C$4:$C$9,MATCH(State,Ref!$B$4:$B$9,0))&INDEX(Ref!$C$12:$C$14,MATCH(Counterfactual,Ref!$B$12:$B$14,0))&"!"&ADDRESS(ROW(T32),COLUMN(T32)))*IF(DollarType=Ref!$B$17,1,(1+Inflation)^($B32-$B$11)),"-") -> - | U32: =IFERROR(INDIRECT(INDEX(Ref!$C$4:$C$9,MATCH(State,Ref!$B$4:$B$9,0))&INDEX(Ref!$C$12:$C$14,MATCH(Counterfactual,Ref!$B$12:$B$14,0))&"!"&ADDRESS(ROW(U32),COLUMN(U32)))*IF(DollarType=Ref!$B$17,1,(1+Inflation)^($B32-$B$11)),"-") -> - | V32: =IFERROR(INDIRECT(INDEX(Ref!$C$4:$C$9,MATCH(State,Ref!$B$4:$B$9,0))&INDEX(Ref!$C$12:$C$14,MATCH(Counterfactual,Ref!$B$12:$B$14,0))&"!"&ADDRESS(ROW(V32),COLUMN(V32)))*IF(DollarType=Ref!$B$17,1,(1+Inflation)^($B32-$B$11)),"-") -> - | W32: =IFERROR(INDIRECT(INDEX(Ref!$C$4:$C$9,MATCH(State,Ref!$B$4:$B$9,0))&INDEX(Ref!$C$12:$C$14,MATCH(Counterfactual,Ref!$B$12:$B$14,0))&"!"&ADDRESS(ROW(W32),COLUMN(W32)))*IF(DollarType=Ref!$B$17,1,(1+Inflation)^($B32-$B$11)),"-") -> - | X32: =IFERROR(INDIRECT(INDEX(Ref!$C$4:$C$9,MATCH(State,Ref!$B$4:$B$9,0))&INDEX(Ref!$C$12:$C$14,MATCH(Counterfactual,Ref!$B$12:$B$14,0))&"!"&ADDRESS(ROW(X32),COLUMN(X32)))*IF(DollarType=Ref!$B$17,1,(1+Inflation)^($B32-$B$11)),"-") -> 0.0001657741489 | Y32: =IFERROR(INDIRECT(INDEX(Ref!$C$4:$C$9,MATCH(State,Ref!$B$4:$B$9,0))&INDEX(Ref!$C$12:$C$14,MATCH(Counterfactual,Ref!$B$12:$B$14,0))&"!"&ADDRESS(ROW(Y32),COLUMN(Y32)))*IF(DollarType=Ref!$B$17,1,(1+Inflation)^($B32-$B$11)),"-") -> 0.0001407767912 | Z32: =IFERROR(INDIRECT(INDEX(Ref!$C$4:$C$9,MATCH(State,Ref!$B$4:$B$9,0))&INDEX(Ref!$C$12:$C$14,MATCH(Counterfactual,Ref!$B$12:$B$14,0))&"!"&ADDRESS(ROW(Z32),COLUMN(Z32)))*IF(DollarType=Ref!$B$17,1,(1+Inflation)^($B32-$B$11)),"-") -> 54.48352219 | AA32: =IFERROR(INDIRECT(INDEX(Ref!$C$4:$C$9,MATCH(State,Ref!$B$4:$B$9,0))&INDEX(Ref!$C$12:$C$14,MATCH(Counterfactual,Ref!$B$12:$B$14,0))&"!"&ADDRESS(ROW(AA32),COLUMN(AA32)))*IF(DollarType=Ref!$B$17,1,(1+Inflation)^($B32-$B$11)),"-") -> - | AB32: =IFERROR(INDIRECT(INDEX(Ref!$C$4:$C$9,MATCH(State,Ref!$B$4:$B$9,0))&INDEX(Ref!$C$12:$C$14,MATCH(Counterfactual,Ref!$B$12:$B$14,0))&"!"&ADDRESS(ROW(AB32),COLUMN(AB32)))*IF(DollarType=Ref!$B$17,1,(1+Inflation)^($B32-$B$11)),"-") -> - | AC32: =IFERROR(INDIRECT(INDEX(Ref!$C$4:$C$9,MATCH(State,Ref!$B$4:$B$9,0))&INDEX(Ref!$C$12:$C$14,MATCH(Counterfactual,Ref!$B$12:$B$14,0))&"!"&ADDRESS(ROW(AC32),COLUMN(AC32)))*IF(DollarType=Ref!$B$17,1,(1+Inflation)^($B32-$B$11)),"-") -> - | AD32: =IFERROR(INDIRECT(INDEX(Ref!$C$4:$C$9,MATCH(State,Ref!$B$4:$B$9,0))&INDEX(Ref!$C$12:$C$14,MATCH(Counterfactual,Ref!$B$12:$B$14,0))&"!"&ADDRESS(ROW(AD32),COLUMN(AD32)))*IF(DollarType=Ref!$B$17,1,(1+Inflation)^($B32-$B$11)),"-") -> - | AE32: =IFERROR(INDIRECT(INDEX(Ref!$C$4:$C$9,MATCH(State,Ref!$B$4:$B$9,0))&INDEX(Ref!$C$12:$C$14,MATCH(Counterfactual,Ref!$B$12:$B$14,0))&"!"&ADDRESS(ROW(AE32),COLUMN(AE32)))*IF(DollarType=Ref!$B$17,1,(1+Inflation)^($B32-$B$11)),"-") -> - | AF32: =IFERROR(INDIRECT(INDEX(Ref!$C$4:$C$9,MATCH(State,Ref!$B$4:$B$9,0))&INDEX(Ref!$C$12:$C$14,MATCH(Counterfactual,Ref!$B$12:$B$14,0))&"!"&ADDRESS(ROW(AF32),COLUMN(AF32)))*IF(DollarType=Ref!$B$17,1,(1+Inflation)^($B32-$B$11)),"-") -> - | AG32: =IFERROR(INDIRECT(INDEX(Ref!$C$4:$C$9,MATCH(State,Ref!$B$4:$B$9,0))&INDEX(Ref!$C$12:$C$14,MATCH(Counterfactual,Ref!$B$12:$B$14,0))&"!"&ADDRESS(ROW(AG32),COLUMN(AG32)))*IF(DollarType=Ref!$B$17,1,(1+Inflation)^($B32-$B$11)),"-") -> - | AH32: =IFERROR(INDIRECT(INDEX(Ref!$C$4:$C$9,MATCH(State,Ref!$B$4:$B$9,0))&INDEX(Ref!$C$12:$C$14,MATCH(Counterfactual,Ref!$B$12:$B$14,0))&"!"&ADDRESS(ROW(AH32),COLUMN(AH32)))*IF(DollarType=Ref!$B$17,1,(1+Inflation)^($B32-$B$11)),"-") -> 84.01598436 | AJ32: 2042 | AK32: 0.06780249362 | AL32: 0.06956645239 | AM32: 0.0553490973 | AN32: 0.0530418328 | AO32: 0.01436872281 | AP32: 0.01332417098 | AQ32: 0.01513232348 | AR32: 0.01548910486 | AS32: 0.0004319516848 | AT32: 0.0003939520546 | AU32: 0.0004973623411 | AV32: 0.0004398535911 | AW32: - | AX32: - | AY32: - | AZ32: - | BA32: - | BB32: - | BC32: - | BD32: - | BE32: 0.0001951493281 | BF32: 0.0001657224386 | BG32: 63.20088574 | BH32: - | BI32: - | BJ32: - | BK32: - | BL32: - | BM32: - | BN32: - | BO32: 97.45854186
B33: 2043 | C33: =IFERROR(INDIRECT(INDEX(Ref!$C$4:$C$9,MATCH(State,Ref!$B$4:$B$9,0))&INDEX(Ref!$C$12:$C$14,MATCH(Counterfactual,Ref!$B$12:$B$14,0))&"!"&ADDRESS(ROW(C33),COLUMN(C33)))*IF(DollarType=Ref!$B$17,1,(1+Inflation)^($B33-$B$11)),"-") -> 0.05424160821 | D33: =IFERROR(INDIRECT(INDEX(Ref!$C$4:$C$9,MATCH(State,Ref!$B$4:$B$9,0))&INDEX(Ref!$C$12:$C$14,MATCH(Counterfactual,Ref!$B$12:$B$14,0))&"!"&ADDRESS(ROW(D33),COLUMN(D33)))*IF(DollarType=Ref!$B$17,1,(1+Inflation)^($B33-$B$11)),"-") -> 0.05585098334 | E33: =IFERROR(INDIRECT(INDEX(Ref!$C$4:$C$9,MATCH(State,Ref!$B$4:$B$9,0))&INDEX(Ref!$C$12:$C$14,MATCH(Counterfactual,Ref!$B$12:$B$14,0))&"!"&ADDRESS(ROW(E33),COLUMN(E33)))*IF(DollarType=Ref!$B$17,1,(1+Inflation)^($B33-$B$11)),"-") -> 0.04393901884 | F33: =IFERROR(INDIRECT(INDEX(Ref!$C$4:$C$9,MATCH(State,Ref!$B$4:$B$9,0))&INDEX(Ref!$C$12:$C$14,MATCH(Counterfactual,Ref!$B$12:$B$14,0))&"!"&ADDRESS(ROW(F33),COLUMN(F33)))*IF(DollarType=Ref!$B$17,1,(1+Inflation)^($B33-$B$11)),"-") -> 0.04198634915 | G33: =IFERROR(INDIRECT(INDEX(Ref!$C$4:$C$9,MATCH(State,Ref!$B$4:$B$9,0))&INDEX(Ref!$C$12:$C$14,MATCH(Counterfactual,Ref!$B$12:$B$14,0))&"!"&ADDRESS(ROW(G33),COLUMN(G33)))*IF(DollarType=Ref!$B$17,1,(1+Inflation)^($B33-$B$11)),"-") -> 0.00344501359 | H33: =IFERROR(INDIRECT(INDEX(Ref!$C$4:$C$9,MATCH(State,Ref!$B$4:$B$9,0))&INDEX(Ref!$C$12:$C$14,MATCH(Counterfactual,Ref!$B$12:$B$14,0))&"!"&ADDRESS(ROW(H33),COLUMN(H33)))*IF(DollarType=Ref!$B$17,1,(1+Inflation)^($B33-$B$11)),"-") -> 0.01213787393 | I33: =IFERROR(INDIRECT(INDEX(Ref!$C$4:$C$9,MATCH(State,Ref!$B$4:$B$9,0))&INDEX(Ref!$C$12:$C$14,MATCH(Counterfactual,Ref!$B$12:$B$14,0))&"!"&ADDRESS(ROW(I33),COLUMN(I33)))*IF(DollarType=Ref!$B$17,1,(1+Inflation)^($B33-$B$11)),"-") -> 0.01113647559 | J33: =IFERROR(INDIRECT(INDEX(Ref!$C$4:$C$9,MATCH(State,Ref!$B$4:$B$9,0))&INDEX(Ref!$C$12:$C$14,MATCH(Counterfactual,Ref!$B$12:$B$14,0))&"!"&ADDRESS(ROW(J33),COLUMN(J33)))*IF(DollarType=Ref!$B$17,1,(1+Inflation)^($B33-$B$11)),"-") -> 0.01270218166 | K33: =IFERROR(INDIRECT(INDEX(Ref!$C$4:$C$9,MATCH(State,Ref!$B$4:$B$9,0))&INDEX(Ref!$C$12:$C$14,MATCH(Counterfactual,Ref!$B$12:$B$14,0))&"!"&ADDRESS(ROW(K33),COLUMN(K33)))*IF(DollarType=Ref!$B$17,1,(1+Inflation)^($B33-$B$11)),"-") -> 0.01296817362 | L33: =IFERROR(INDIRECT(INDEX(Ref!$C$4:$C$9,MATCH(State,Ref!$B$4:$B$9,0))&INDEX(Ref!$C$12:$C$14,MATCH(Counterfactual,Ref!$B$12:$B$14,0))&"!"&ADDRESS(ROW(L33),COLUMN(L33)))*IF(DollarType=Ref!$B$17,1,(1+Inflation)^($B33-$B$11)),"-") -> 0.0003930378292 | M33: =IFERROR(INDIRECT(INDEX(Ref!$C$4:$C$9,MATCH(State,Ref!$B$4:$B$9,0))&INDEX(Ref!$C$12:$C$14,MATCH(Counterfactual,Ref!$B$12:$B$14,0))&"!"&ADDRESS(ROW(M33),COLUMN(M33)))*IF(DollarType=Ref!$B$17,1,(1+Inflation)^($B33-$B$11)),"-") -> 0.0003562905593 | N33: =IFERROR(INDIRECT(INDEX(Ref!$C$4:$C$9,MATCH(State,Ref!$B$4:$B$9,0))&INDEX(Ref!$C$12:$C$14,MATCH(Counterfactual,Ref!$B$12:$B$14,0))&"!"&ADDRESS(ROW(N33),COLUMN(N33)))*IF(DollarType=Ref!$B$17,1,(1+Inflation)^($B33-$B$11)),"-") -> 0.0004448027617 | O33: =IFERROR(INDIRECT(INDEX(Ref!$C$4:$C$9,MATCH(State,Ref!$B$4:$B$9,0))&INDEX(Ref!$C$12:$C$14,MATCH(Counterfactual,Ref!$B$12:$B$14,0))&"!"&ADDRESS(ROW(O33),COLUMN(O33)))*IF(DollarType=Ref!$B$17,1,(1+Inflation)^($B33-$B$11)),"-") -> 0.0003947370533 | P33: =IFERROR(INDIRECT(INDEX(Ref!$C$4:$C$9,MATCH(State,Ref!$B$4:$B$9,0))&INDEX(Ref!$C$12:$C$14,MATCH(Counterfactual,Ref!$B$12:$B$14,0))&"!"&ADDRESS(ROW(P33),COLUMN(P33)))*IF(DollarType=Ref!$B$17,1,(1+Inflation)^($B33-$B$11)),"-") -> - | Q33: =IFERROR(INDIRECT(INDEX(Ref!$C$4:$C$9,MATCH(State,Ref!$B$4:$B$9,0))&INDEX(Ref!$C$12:$C$14,MATCH(Counterfactual,Ref!$B$12:$B$14,0))&"!"&ADDRESS(ROW(Q33),COLUMN(Q33)))*IF(DollarType=Ref!$B$17,1,(1+Inflation)^($B33-$B$11)),"-") -> - | R33: =IFERROR(INDIRECT(INDEX(Ref!$C$4:$C$9,MATCH(State,Ref!$B$4:$B$9,0))&INDEX(Ref!$C$12:$C$14,MATCH(Counterfactual,Ref!$B$12:$B$14,0))&"!"&ADDRESS(ROW(R33),COLUMN(R33)))*IF(DollarType=Ref!$B$17,1,(1+Inflation)^($B33-$B$11)),"-") -> - | S33: =IFERROR(INDIRECT(INDEX(Ref!$C$4:$C$9,MATCH(State,Ref!$B$4:$B$9,0))&INDEX(Ref!$C$12:$C$14,MATCH(Counterfactual,Ref!$B$12:$B$14,0))&"!"&ADDRESS(ROW(S33),COLUMN(S33)))*IF(DollarType=Ref!$B$17,1,(1+Inflation)^($B33-$B$11)),"-") -> - | T33: =IFERROR(INDIRECT(INDEX(Ref!$C$4:$C$9,MATCH(State,Ref!$B$4:$B$9,0))&INDEX(Ref!$C$12:$C$14,MATCH(Counterfactual,Ref!$B$12:$B$14,0))&"!"&ADDRESS(ROW(T33),COLUMN(T33)))*IF(DollarType=Ref!$B$17,1,(1+Inflation)^($B33-$B$11)),"-") -> - | U33: =IFERROR(INDIRECT(INDEX(Ref!$C$4:$C$9,MATCH(State,Ref!$B$4:$B$9,0))&INDEX(Ref!$C$12:$C$14,MATCH(Counterfactual,Ref!$B$12:$B$14,0))&"!"&ADDRESS(ROW(U33),COLUMN(U33)))*IF(DollarType=Ref!$B$17,1,(1+Inflation)^($B33-$B$11)),"-") -> - | V33: =IFERROR(INDIRECT(INDEX(Ref!$C$4:$C$9,MATCH(State,Ref!$B$4:$B$9,0))&INDEX(Ref!$C$12:$C$14,MATCH(Counterfactual,Ref!$B$12:$B$14,0))&"!"&ADDRESS(ROW(V33),COLUMN(V33)))*IF(DollarType=Ref!$B$17,1,(1+Inflation)^($B33-$B$11)),"-") -> - | W33: =IFERROR(INDIRECT(INDEX(Ref!$C$4:$C$9,MATCH(State,Ref!$B$4:$B$9,0))&INDEX(Ref!$C$12:$C$14,MATCH(Counterfactual,Ref!$B$12:$B$14,0))&"!"&ADDRESS(ROW(W33),COLUMN(W33)))*IF(DollarType=Ref!$B$17,1,(1+Inflation)^($B33-$B$11)),"-") -> - | X33: =IFERROR(INDIRECT(INDEX(Ref!$C$4:$C$9,MATCH(State,Ref!$B$4:$B$9,0))&INDEX(Ref!$C$12:$C$14,MATCH(Counterfactual,Ref!$B$12:$B$14,0))&"!"&ADDRESS(ROW(X33),COLUMN(X33)))*IF(DollarType=Ref!$B$17,1,(1+Inflation)^($B33-$B$11)),"-") -> 0.0001661940912 | Y33: =IFERROR(INDIRECT(INDEX(Ref!$C$4:$C$9,MATCH(State,Ref!$B$4:$B$9,0))&INDEX(Ref!$C$12:$C$14,MATCH(Counterfactual,Ref!$B$12:$B$14,0))&"!"&ADDRESS(ROW(Y33),COLUMN(Y33)))*IF(DollarType=Ref!$B$17,1,(1+Inflation)^($B33-$B$11)),"-") -> 0.0001411334097 | Z33: =IFERROR(INDIRECT(INDEX(Ref!$C$4:$C$9,MATCH(State,Ref!$B$4:$B$9,0))&INDEX(Ref!$C$12:$C$14,MATCH(Counterfactual,Ref!$B$12:$B$14,0))&"!"&ADDRESS(ROW(Z33),COLUMN(Z33)))*IF(DollarType=Ref!$B$17,1,(1+Inflation)^($B33-$B$11)),"-") -> 56.18821524 | AA33: =IFERROR(INDIRECT(INDEX(Ref!$C$4:$C$9,MATCH(State,Ref!$B$4:$B$9,0))&INDEX(Ref!$C$12:$C$14,MATCH(Counterfactual,Ref!$B$12:$B$14,0))&"!"&ADDRESS(ROW(AA33),COLUMN(AA33)))*IF(DollarType=Ref!$B$17,1,(1+Inflation)^($B33-$B$11)),"-") -> - | AB33: =IFERROR(INDIRECT(INDEX(Ref!$C$4:$C$9,MATCH(State,Ref!$B$4:$B$9,0))&INDEX(Ref!$C$12:$C$14,MATCH(Counterfactual,Ref!$B$12:$B$14,0))&"!"&ADDRESS(ROW(AB33),COLUMN(AB33)))*IF(DollarType=Ref!$B$17,1,(1+Inflation)^($B33-$B$11)),"-") -> - | AC33: =IFERROR(INDIRECT(INDEX(Ref!$C$4:$C$9,MATCH(State,Ref!$B$4:$B$9,0))&INDEX(Ref!$C$12:$C$14,MATCH(Counterfactual,Ref!$B$12:$B$14,0))&"!"&ADDRESS(ROW(AC33),COLUMN(AC33)))*IF(DollarType=Ref!$B$17,1,(1+Inflation)^($B33-$B$11)),"-") -> - | AD33: =IFERROR(INDIRECT(INDEX(Ref!$C$4:$C$9,MATCH(State,Ref!$B$4:$B$9,0))&INDEX(Ref!$C$12:$C$14,MATCH(Counterfactual,Ref!$B$12:$B$14,0))&"!"&ADDRESS(ROW(AD33),COLUMN(AD33)))*IF(DollarType=Ref!$B$17,1,(1+Inflation)^($B33-$B$11)),"-") -> - | AE33: =IFERROR(INDIRECT(INDEX(Ref!$C$4:$C$9,MATCH(State,Ref!$B$4:$B$9,0))&INDEX(Ref!$C$12:$C$14,MATCH(Counterfactual,Ref!$B$12:$B$14,0))&"!"&ADDRESS(ROW(AE33),COLUMN(AE33)))*IF(DollarType=Ref!$B$17,1,(1+Inflation)^($B33-$B$11)),"-") -> - | AF33: =IFERROR(INDIRECT(INDEX(Ref!$C$4:$C$9,MATCH(State,Ref!$B$4:$B$9,0))&INDEX(Ref!$C$12:$C$14,MATCH(Counterfactual,Ref!$B$12:$B$14,0))&"!"&ADDRESS(ROW(AF33),COLUMN(AF33)))*IF(DollarType=Ref!$B$17,1,(1+Inflation)^($B33-$B$11)),"-") -> - | AG33: =IFERROR(INDIRECT(INDEX(Ref!$C$4:$C$9,MATCH(State,Ref!$B$4:$B$9,0))&INDEX(Ref!$C$12:$C$14,MATCH(Counterfactual,Ref!$B$12:$B$14,0))&"!"&ADDRESS(ROW(AG33),COLUMN(AG33)))*IF(DollarType=Ref!$B$17,1,(1+Inflation)^($B33-$B$11)),"-") -> - | AH33: =IFERROR(INDIRECT(INDEX(Ref!$C$4:$C$9,MATCH(State,Ref!$B$4:$B$9,0))&INDEX(Ref!$C$12:$C$14,MATCH(Counterfactual,Ref!$B$12:$B$14,0))&"!"&ADDRESS(ROW(AH33),COLUMN(AH33)))*IF(DollarType=Ref!$B$17,1,(1+Inflation)^($B33-$B$11)),"-") -> 84.01598436 | AJ33: 2043 | AK33: 0.06790869119 | AL33: 0.06980324758 | AM33: 0.05578048297 | AN33: 0.05348180022 | AO33: 0.01323028258 | AP33: 0.01213875839 | AQ33: 0.01384537801 | AR33: 0.01413530925 | AS33: 0.0004284112338 | AT33: 0.0003883567097 | AU33: 0.0004848350103 | AV33: 0.000430263388 | AW33: - | AX33: - | AY33: - | AZ33: - | BA33: - | BB33: - | BC33: - | BD33: - | BE33: 0.0001956436842 | BF33: 0.0001661422499 | BG33: 65.17832967 | BH33: - | BI33: - | BJ33: - | BK33: - | BL33: - | BM33: - | BN33: - | BO33: 97.45854186
B34: 2044 | C34: =IFERROR(INDIRECT(INDEX(Ref!$C$4:$C$9,MATCH(State,Ref!$B$4:$B$9,0))&INDEX(Ref!$C$12:$C$14,MATCH(Counterfactual,Ref!$B$12:$B$14,0))&"!"&ADDRESS(ROW(C34),COLUMN(C34)))*IF(DollarType=Ref!$B$17,1,(1+Inflation)^($B34-$B$11)),"-") -> 0.05486132449 | D34: =IFERROR(INDIRECT(INDEX(Ref!$C$4:$C$9,MATCH(State,Ref!$B$4:$B$9,0))&INDEX(Ref!$C$12:$C$14,MATCH(Counterfactual,Ref!$B$12:$B$14,0))&"!"&ADDRESS(ROW(D34),COLUMN(D34)))*IF(DollarType=Ref!$B$17,1,(1+Inflation)^($B34-$B$11)),"-") -> 0.05658413786 | E34: =IFERROR(INDIRECT(INDEX(Ref!$C$4:$C$9,MATCH(State,Ref!$B$4:$B$9,0))&INDEX(Ref!$C$12:$C$14,MATCH(Counterfactual,Ref!$B$12:$B$14,0))&"!"&ADDRESS(ROW(E34),COLUMN(E34)))*IF(DollarType=Ref!$B$17,1,(1+Inflation)^($B34-$B$11)),"-") -> 0.0448463297 | F34: =IFERROR(INDIRECT(INDEX(Ref!$C$4:$C$9,MATCH(State,Ref!$B$4:$B$9,0))&INDEX(Ref!$C$12:$C$14,MATCH(Counterfactual,Ref!$B$12:$B$14,0))&"!"&ADDRESS(ROW(F34),COLUMN(F34)))*IF(DollarType=Ref!$B$17,1,(1+Inflation)^($B34-$B$11)),"-") -> 0.04290214228 | G34: =IFERROR(INDIRECT(INDEX(Ref!$C$4:$C$9,MATCH(State,Ref!$B$4:$B$9,0))&INDEX(Ref!$C$12:$C$14,MATCH(Counterfactual,Ref!$B$12:$B$14,0))&"!"&ADDRESS(ROW(G34),COLUMN(G34)))*IF(DollarType=Ref!$B$17,1,(1+Inflation)^($B34-$B$11)),"-") -> 0.00299132104 | H34: =IFERROR(INDIRECT(INDEX(Ref!$C$4:$C$9,MATCH(State,Ref!$B$4:$B$9,0))&INDEX(Ref!$C$12:$C$14,MATCH(Counterfactual,Ref!$B$12:$B$14,0))&"!"&ADDRESS(ROW(H34),COLUMN(H34)))*IF(DollarType=Ref!$B$17,1,(1+Inflation)^($B34-$B$11)),"-") -> 0.01117618483 | I34: =IFERROR(INDIRECT(INDEX(Ref!$C$4:$C$9,MATCH(State,Ref!$B$4:$B$9,0))&INDEX(Ref!$C$12:$C$14,MATCH(Counterfactual,Ref!$B$12:$B$14,0))&"!"&ADDRESS(ROW(I34),COLUMN(I34)))*IF(DollarType=Ref!$B$17,1,(1+Inflation)^($B34-$B$11)),"-") -> 0.01014569588 | J34: =IFERROR(INDIRECT(INDEX(Ref!$C$4:$C$9,MATCH(State,Ref!$B$4:$B$9,0))&INDEX(Ref!$C$12:$C$14,MATCH(Counterfactual,Ref!$B$12:$B$14,0))&"!"&ADDRESS(ROW(J34),COLUMN(J34)))*IF(DollarType=Ref!$B$17,1,(1+Inflation)^($B34-$B$11)),"-") -> 0.01162191033 | K34: =IFERROR(INDIRECT(INDEX(Ref!$C$4:$C$9,MATCH(State,Ref!$B$4:$B$9,0))&INDEX(Ref!$C$12:$C$14,MATCH(Counterfactual,Ref!$B$12:$B$14,0))&"!"&ADDRESS(ROW(K34),COLUMN(K34)))*IF(DollarType=Ref!$B$17,1,(1+Inflation)^($B34-$B$11)),"-") -> 0.01183471519 | L34: =IFERROR(INDIRECT(INDEX(Ref!$C$4:$C$9,MATCH(State,Ref!$B$4:$B$9,0))&INDEX(Ref!$C$12:$C$14,MATCH(Counterfactual,Ref!$B$12:$B$14,0))&"!"&ADDRESS(ROW(L34),COLUMN(L34)))*IF(DollarType=Ref!$B$17,1,(1+Inflation)^($B34-$B$11)),"-") -> 0.000389816332 | M34: =IFERROR(INDIRECT(INDEX(Ref!$C$4:$C$9,MATCH(State,Ref!$B$4:$B$9,0))&INDEX(Ref!$C$12:$C$14,MATCH(Counterfactual,Ref!$B$12:$B$14,0))&"!"&ADDRESS(ROW(M34),COLUMN(M34)))*IF(DollarType=Ref!$B$17,1,(1+Inflation)^($B34-$B$11)),"-") -> 0.0003512301248 | N34: =IFERROR(INDIRECT(INDEX(Ref!$C$4:$C$9,MATCH(State,Ref!$B$4:$B$9,0))&INDEX(Ref!$C$12:$C$14,MATCH(Counterfactual,Ref!$B$12:$B$14,0))&"!"&ADDRESS(ROW(N34),COLUMN(N34)))*IF(DollarType=Ref!$B$17,1,(1+Inflation)^($B34-$B$11)),"-") -> 0.0004335992771 | O34: =IFERROR(INDIRECT(INDEX(Ref!$C$4:$C$9,MATCH(State,Ref!$B$4:$B$9,0))&INDEX(Ref!$C$12:$C$14,MATCH(Counterfactual,Ref!$B$12:$B$14,0))&"!"&ADDRESS(ROW(O34),COLUMN(O34)))*IF(DollarType=Ref!$B$17,1,(1+Inflation)^($B34-$B$11)),"-") -> 0.0003861305337 | P34: =IFERROR(INDIRECT(INDEX(Ref!$C$4:$C$9,MATCH(State,Ref!$B$4:$B$9,0))&INDEX(Ref!$C$12:$C$14,MATCH(Counterfactual,Ref!$B$12:$B$14,0))&"!"&ADDRESS(ROW(P34),COLUMN(P34)))*IF(DollarType=Ref!$B$17,1,(1+Inflation)^($B34-$B$11)),"-") -> - | Q34: =IFERROR(INDIRECT(INDEX(Ref!$C$4:$C$9,MATCH(State,Ref!$B$4:$B$9,0))&INDEX(Ref!$C$12:$C$14,MATCH(Counterfactual,Ref!$B$12:$B$14,0))&"!"&ADDRESS(ROW(Q34),COLUMN(Q34)))*IF(DollarType=Ref!$B$17,1,(1+Inflation)^($B34-$B$11)),"-") -> - | R34: =IFERROR(INDIRECT(INDEX(Ref!$C$4:$C$9,MATCH(State,Ref!$B$4:$B$9,0))&INDEX(Ref!$C$12:$C$14,MATCH(Counterfactual,Ref!$B$12:$B$14,0))&"!"&ADDRESS(ROW(R34),COLUMN(R34)))*IF(DollarType=Ref!$B$17,1,(1+Inflation)^($B34-$B$11)),"-") -> - | S34: =IFERROR(INDIRECT(INDEX(Ref!$C$4:$C$9,MATCH(State,Ref!$B$4:$B$9,0))&INDEX(Ref!$C$12:$C$14,MATCH(Counterfactual,Ref!$B$12:$B$14,0))&"!"&ADDRESS(ROW(S34),COLUMN(S34)))*IF(DollarType=Ref!$B$17,1,(1+Inflation)^($B34-$B$11)),"-") -> - | T34: =IFERROR(INDIRECT(INDEX(Ref!$C$4:$C$9,MATCH(State,Ref!$B$4:$B$9,0))&INDEX(Ref!$C$12:$C$14,MATCH(Counterfactual,Ref!$B$12:$B$14,0))&"!"&ADDRESS(ROW(T34),COLUMN(T34)))*IF(DollarType=Ref!$B$17,1,(1+Inflation)^($B34-$B$11)),"-") -> - | U34: =IFERROR(INDIRECT(INDEX(Ref!$C$4:$C$9,MATCH(State,Ref!$B$4:$B$9,0))&INDEX(Ref!$C$12:$C$14,MATCH(Counterfactual,Ref!$B$12:$B$14,0))&"!"&ADDRESS(ROW(U34),COLUMN(U34)))*IF(DollarType=Ref!$B$17,1,(1+Inflation)^($B34-$B$11)),"-") -> - | V34: =IFERROR(INDIRECT(INDEX(Ref!$C$4:$C$9,MATCH(State,Ref!$B$4:$B$9,0))&INDEX(Ref!$C$12:$C$14,MATCH(Counterfactual,Ref!$B$12:$B$14,0))&"!"&ADDRESS(ROW(V34),COLUMN(V34)))*IF(DollarType=Ref!$B$17,1,(1+Inflation)^($B34-$B$11)),"-") -> - | W34: =IFERROR(INDIRECT(INDEX(Ref!$C$4:$C$9,MATCH(State,Ref!$B$4:$B$9,0))&INDEX(Ref!$C$12:$C$14,MATCH(Counterfactual,Ref!$B$12:$B$14,0))&"!"&ADDRESS(ROW(W34),COLUMN(W34)))*IF(DollarType=Ref!$B$17,1,(1+Inflation)^($B34-$B$11)),"-") -> - | X34: =IFERROR(INDIRECT(INDEX(Ref!$C$4:$C$9,MATCH(State,Ref!$B$4:$B$9,0))&INDEX(Ref!$C$12:$C$14,MATCH(Counterfactual,Ref!$B$12:$B$14,0))&"!"&ADDRESS(ROW(X34),COLUMN(X34)))*IF(DollarType=Ref!$B$17,1,(1+Inflation)^($B34-$B$11)),"-") -> 0.0001666150974 | Y34: =IFERROR(INDIRECT(INDEX(Ref!$C$4:$C$9,MATCH(State,Ref!$B$4:$B$9,0))&INDEX(Ref!$C$12:$C$14,MATCH(Counterfactual,Ref!$B$12:$B$14,0))&"!"&ADDRESS(ROW(Y34),COLUMN(Y34)))*IF(DollarType=Ref!$B$17,1,(1+Inflation)^($B34-$B$11)),"-") -> 0.0001414909316 | Z34: =IFERROR(INDIRECT(INDEX(Ref!$C$4:$C$9,MATCH(State,Ref!$B$4:$B$9,0))&INDEX(Ref!$C$12:$C$14,MATCH(Counterfactual,Ref!$B$12:$B$14,0))&"!"&ADDRESS(ROW(Z34),COLUMN(Z34)))*IF(DollarType=Ref!$B$17,1,(1+Inflation)^($B34-$B$11)),"-") -> 57.94624511 | AA34: =IFERROR(INDIRECT(INDEX(Ref!$C$4:$C$9,MATCH(State,Ref!$B$4:$B$9,0))&INDEX(Ref!$C$12:$C$14,MATCH(Counterfactual,Ref!$B$12:$B$14,0))&"!"&ADDRESS(ROW(AA34),COLUMN(AA34)))*IF(DollarType=Ref!$B$17,1,(1+Inflation)^($B34-$B$11)),"-") -> - | AB34: =IFERROR(INDIRECT(INDEX(Ref!$C$4:$C$9,MATCH(State,Ref!$B$4:$B$9,0))&INDEX(Ref!$C$12:$C$14,MATCH(Counterfactual,Ref!$B$12:$B$14,0))&"!"&ADDRESS(ROW(AB34),COLUMN(AB34)))*IF(DollarType=Ref!$B$17,1,(1+Inflation)^($B34-$B$11)),"-") -> - | AC34: =IFERROR(INDIRECT(INDEX(Ref!$C$4:$C$9,MATCH(State,Ref!$B$4:$B$9,0))&INDEX(Ref!$C$12:$C$14,MATCH(Counterfactual,Ref!$B$12:$B$14,0))&"!"&ADDRESS(ROW(AC34),COLUMN(AC34)))*IF(DollarType=Ref!$B$17,1,(1+Inflation)^($B34-$B$11)),"-") -> - | AD34: =IFERROR(INDIRECT(INDEX(Ref!$C$4:$C$9,MATCH(State,Ref!$B$4:$B$9,0))&INDEX(Ref!$C$12:$C$14,MATCH(Counterfactual,Ref!$B$12:$B$14,0))&"!"&ADDRESS(ROW(AD34),COLUMN(AD34)))*IF(DollarType=Ref!$B$17,1,(1+Inflation)^($B34-$B$11)),"-") -> - | AE34: =IFERROR(INDIRECT(INDEX(Ref!$C$4:$C$9,MATCH(State,Ref!$B$4:$B$9,0))&INDEX(Ref!$C$12:$C$14,MATCH(Counterfactual,Ref!$B$12:$B$14,0))&"!"&ADDRESS(ROW(AE34),COLUMN(AE34)))*IF(DollarType=Ref!$B$17,1,(1+Inflation)^($B34-$B$11)),"-") -> - | AF34: =IFERROR(INDIRECT(INDEX(Ref!$C$4:$C$9,MATCH(State,Ref!$B$4:$B$9,0))&INDEX(Ref!$C$12:$C$14,MATCH(Counterfactual,Ref!$B$12:$B$14,0))&"!"&ADDRESS(ROW(AF34),COLUMN(AF34)))*IF(DollarType=Ref!$B$17,1,(1+Inflation)^($B34-$B$11)),"-") -> - | AG34: =IFERROR(INDIRECT(INDEX(Ref!$C$4:$C$9,MATCH(State,Ref!$B$4:$B$9,0))&INDEX(Ref!$C$12:$C$14,MATCH(Counterfactual,Ref!$B$12:$B$14,0))&"!"&ADDRESS(ROW(AG34),COLUMN(AG34)))*IF(DollarType=Ref!$B$17,1,(1+Inflation)^($B34-$B$11)),"-") -> - | AH34: =IFERROR(INDIRECT(INDEX(Ref!$C$4:$C$9,MATCH(State,Ref!$B$4:$B$9,0))&INDEX(Ref!$C$12:$C$14,MATCH(Counterfactual,Ref!$B$12:$B$14,0))&"!"&ADDRESS(ROW(AH34),COLUMN(AH34)))*IF(DollarType=Ref!$B$17,1,(1+Inflation)^($B34-$B$11)),"-") -> 84.01598436 | AJ34: 2044 | AK34: 0.06810413431 | AL34: 0.07013223022 | AM34: 0.05631448245 | AN34: 0.05402578502 | AO34: 0.01218204147 | AP34: 0.0110588085 | AQ34: 0.01266788226 | AR34: 0.01289983956 | AS34: 0.0004248998019 | AT34: 0.000382840836 | AU34: 0.000472623212 | AV34: 0.0004208822818 | AW34: - | AX34: - | AY34: - | AZ34: - | BA34: - | BB34: - | BC34: - | BD34: - | BE34: 0.0001961392926 | BF34: 0.0001665631247 | BG34: 67.21764433 | BH34: - | BI34: - | BJ34: - | BK34: - | BL34: - | BM34: - | BN34: - | BO34: 97.45854186
B35: 2045 | C35: =IFERROR(INDIRECT(INDEX(Ref!$C$4:$C$9,MATCH(State,Ref!$B$4:$B$9,0))&INDEX(Ref!$C$12:$C$14,MATCH(Counterfactual,Ref!$B$12:$B$14,0))&"!"&ADDRESS(ROW(C35),COLUMN(C35)))*IF(DollarType=Ref!$B$17,1,(1+Inflation)^($B35-$B$11)),"-") -> 0.05548812108 | D35: =IFERROR(INDIRECT(INDEX(Ref!$C$4:$C$9,MATCH(State,Ref!$B$4:$B$9,0))&INDEX(Ref!$C$12:$C$14,MATCH(Counterfactual,Ref!$B$12:$B$14,0))&"!"&ADDRESS(ROW(D35),COLUMN(D35)))*IF(DollarType=Ref!$B$17,1,(1+Inflation)^($B35-$B$11)),"-") -> 0.05732691649 | E35: =IFERROR(INDIRECT(INDEX(Ref!$C$4:$C$9,MATCH(State,Ref!$B$4:$B$9,0))&INDEX(Ref!$C$12:$C$14,MATCH(Counterfactual,Ref!$B$12:$B$14,0))&"!"&ADDRESS(ROW(E35),COLUMN(E35)))*IF(DollarType=Ref!$B$17,1,(1+Inflation)^($B35-$B$11)),"-") -> 0.04577237592 | F35: =IFERROR(INDIRECT(INDEX(Ref!$C$4:$C$9,MATCH(State,Ref!$B$4:$B$9,0))&INDEX(Ref!$C$12:$C$14,MATCH(Counterfactual,Ref!$B$12:$B$14,0))&"!"&ADDRESS(ROW(F35),COLUMN(F35)))*IF(DollarType=Ref!$B$17,1,(1+Inflation)^($B35-$B$11)),"-") -> 0.0438379104 | G35: =IFERROR(INDIRECT(INDEX(Ref!$C$4:$C$9,MATCH(State,Ref!$B$4:$B$9,0))&INDEX(Ref!$C$12:$C$14,MATCH(Counterfactual,Ref!$B$12:$B$14,0))&"!"&ADDRESS(ROW(G35),COLUMN(G35)))*IF(DollarType=Ref!$B$17,1,(1+Inflation)^($B35-$B$11)),"-") -> 0.002597377727 | H35: =IFERROR(INDIRECT(INDEX(Ref!$C$4:$C$9,MATCH(State,Ref!$B$4:$B$9,0))&INDEX(Ref!$C$12:$C$14,MATCH(Counterfactual,Ref!$B$12:$B$14,0))&"!"&ADDRESS(ROW(H35),COLUMN(H35)))*IF(DollarType=Ref!$B$17,1,(1+Inflation)^($B35-$B$11)),"-") -> 0.01029069079 | I35: =IFERROR(INDIRECT(INDEX(Ref!$C$4:$C$9,MATCH(State,Ref!$B$4:$B$9,0))&INDEX(Ref!$C$12:$C$14,MATCH(Counterfactual,Ref!$B$12:$B$14,0))&"!"&ADDRESS(ROW(I35),COLUMN(I35)))*IF(DollarType=Ref!$B$17,1,(1+Inflation)^($B35-$B$11)),"-") -> 0.009243062938 | J35: =IFERROR(INDIRECT(INDEX(Ref!$C$4:$C$9,MATCH(State,Ref!$B$4:$B$9,0))&INDEX(Ref!$C$12:$C$14,MATCH(Counterfactual,Ref!$B$12:$B$14,0))&"!"&ADDRESS(ROW(J35),COLUMN(J35)))*IF(DollarType=Ref!$B$17,1,(1+Inflation)^($B35-$B$11)),"-") -> 0.01063351189 | K35: =IFERROR(INDIRECT(INDEX(Ref!$C$4:$C$9,MATCH(State,Ref!$B$4:$B$9,0))&INDEX(Ref!$C$12:$C$14,MATCH(Counterfactual,Ref!$B$12:$B$14,0))&"!"&ADDRESS(ROW(K35),COLUMN(K35)))*IF(DollarType=Ref!$B$17,1,(1+Inflation)^($B35-$B$11)),"-") -> 0.01080032452 | L35: =IFERROR(INDIRECT(INDEX(Ref!$C$4:$C$9,MATCH(State,Ref!$B$4:$B$9,0))&INDEX(Ref!$C$12:$C$14,MATCH(Counterfactual,Ref!$B$12:$B$14,0))&"!"&ADDRESS(ROW(L35),COLUMN(L35)))*IF(DollarType=Ref!$B$17,1,(1+Inflation)^($B35-$B$11)),"-") -> 0.0003866212395 | M35: =IFERROR(INDIRECT(INDEX(Ref!$C$4:$C$9,MATCH(State,Ref!$B$4:$B$9,0))&INDEX(Ref!$C$12:$C$14,MATCH(Counterfactual,Ref!$B$12:$B$14,0))&"!"&ADDRESS(ROW(M35),COLUMN(M35)))*IF(DollarType=Ref!$B$17,1,(1+Inflation)^($B35-$B$11)),"-") -> 0.0003462415642 | N35: =IFERROR(INDIRECT(INDEX(Ref!$C$4:$C$9,MATCH(State,Ref!$B$4:$B$9,0))&INDEX(Ref!$C$12:$C$14,MATCH(Counterfactual,Ref!$B$12:$B$14,0))&"!"&ADDRESS(ROW(N35),COLUMN(N35)))*IF(DollarType=Ref!$B$17,1,(1+Inflation)^($B35-$B$11)),"-") -> 0.0004226779806 | O35: =IFERROR(INDIRECT(INDEX(Ref!$C$4:$C$9,MATCH(State,Ref!$B$4:$B$9,0))&INDEX(Ref!$C$12:$C$14,MATCH(Counterfactual,Ref!$B$12:$B$14,0))&"!"&ADDRESS(ROW(O35),COLUMN(O35)))*IF(DollarType=Ref!$B$17,1,(1+Inflation)^($B35-$B$11)),"-") -> 0.0003777116637 | P35: =IFERROR(INDIRECT(INDEX(Ref!$C$4:$C$9,MATCH(State,Ref!$B$4:$B$9,0))&INDEX(Ref!$C$12:$C$14,MATCH(Counterfactual,Ref!$B$12:$B$14,0))&"!"&ADDRESS(ROW(P35),COLUMN(P35)))*IF(DollarType=Ref!$B$17,1,(1+Inflation)^($B35-$B$11)),"-") -> - | Q35: =IFERROR(INDIRECT(INDEX(Ref!$C$4:$C$9,MATCH(State,Ref!$B$4:$B$9,0))&INDEX(Ref!$C$12:$C$14,MATCH(Counterfactual,Ref!$B$12:$B$14,0))&"!"&ADDRESS(ROW(Q35),COLUMN(Q35)))*IF(DollarType=Ref!$B$17,1,(1+Inflation)^($B35-$B$11)),"-") -> - | R35: =IFERROR(INDIRECT(INDEX(Ref!$C$4:$C$9,MATCH(State,Ref!$B$4:$B$9,0))&INDEX(Ref!$C$12:$C$14,MATCH(Counterfactual,Ref!$B$12:$B$14,0))&"!"&ADDRESS(ROW(R35),COLUMN(R35)))*IF(DollarType=Ref!$B$17,1,(1+Inflation)^($B35-$B$11)),"-") -> - | S35: =IFERROR(INDIRECT(INDEX(Ref!$C$4:$C$9,MATCH(State,Ref!$B$4:$B$9,0))&INDEX(Ref!$C$12:$C$14,MATCH(Counterfactual,Ref!$B$12:$B$14,0))&"!"&ADDRESS(ROW(S35),COLUMN(S35)))*IF(DollarType=Ref!$B$17,1,(1+Inflation)^($B35-$B$11)),"-") -> - | T35: =IFERROR(INDIRECT(INDEX(Ref!$C$4:$C$9,MATCH(State,Ref!$B$4:$B$9,0))&INDEX(Ref!$C$12:$C$14,MATCH(Counterfactual,Ref!$B$12:$B$14,0))&"!"&ADDRESS(ROW(T35),COLUMN(T35)))*IF(DollarType=Ref!$B$17,1,(1+Inflation)^($B35-$B$11)),"-") -> - | U35: =IFERROR(INDIRECT(INDEX(Ref!$C$4:$C$9,MATCH(State,Ref!$B$4:$B$9,0))&INDEX(Ref!$C$12:$C$14,MATCH(Counterfactual,Ref!$B$12:$B$14,0))&"!"&ADDRESS(ROW(U35),COLUMN(U35)))*IF(DollarType=Ref!$B$17,1,(1+Inflation)^($B35-$B$11)),"-") -> - | V35: =IFERROR(INDIRECT(INDEX(Ref!$C$4:$C$9,MATCH(State,Ref!$B$4:$B$9,0))&INDEX(Ref!$C$12:$C$14,MATCH(Counterfactual,Ref!$B$12:$B$14,0))&"!"&ADDRESS(ROW(V35),COLUMN(V35)))*IF(DollarType=Ref!$B$17,1,(1+Inflation)^($B35-$B$11)),"-") -> - | W35: =IFERROR(INDIRECT(INDEX(Ref!$C$4:$C$9,MATCH(State,Ref!$B$4:$B$9,0))&INDEX(Ref!$C$12:$C$14,MATCH(Counterfactual,Ref!$B$12:$B$14,0))&"!"&ADDRESS(ROW(W35),COLUMN(W35)))*IF(DollarType=Ref!$B$17,1,(1+Inflation)^($B35-$B$11)),"-") -> - | X35: =IFERROR(INDIRECT(INDEX(Ref!$C$4:$C$9,MATCH(State,Ref!$B$4:$B$9,0))&INDEX(Ref!$C$12:$C$14,MATCH(Counterfactual,Ref!$B$12:$B$14,0))&"!"&ADDRESS(ROW(X35),COLUMN(X35)))*IF(DollarType=Ref!$B$17,1,(1+Inflation)^($B35-$B$11)),"-") -> 0.00016703717 | Y35: =IFERROR(INDIRECT(INDEX(Ref!$C$4:$C$9,MATCH(State,Ref!$B$4:$B$9,0))&INDEX(Ref!$C$12:$C$14,MATCH(Counterfactual,Ref!$B$12:$B$14,0))&"!"&ADDRESS(ROW(Y35),COLUMN(Y35)))*IF(DollarType=Ref!$B$17,1,(1+Inflation)^($B35-$B$11)),"-") -> 0.0001418493592 | Z35: =IFERROR(INDIRECT(INDEX(Ref!$C$4:$C$9,MATCH(State,Ref!$B$4:$B$9,0))&INDEX(Ref!$C$12:$C$14,MATCH(Counterfactual,Ref!$B$12:$B$14,0))&"!"&ADDRESS(ROW(Z35),COLUMN(Z35)))*IF(DollarType=Ref!$B$17,1,(1+Inflation)^($B35-$B$11)),"-") -> 59.75928064 | AA35: =IFERROR(INDIRECT(INDEX(Ref!$C$4:$C$9,MATCH(State,Ref!$B$4:$B$9,0))&INDEX(Ref!$C$12:$C$14,MATCH(Counterfactual,Ref!$B$12:$B$14,0))&"!"&ADDRESS(ROW(AA35),COLUMN(AA35)))*IF(DollarType=Ref!$B$17,1,(1+Inflation)^($B35-$B$11)),"-") -> - | AB35: =IFERROR(INDIRECT(INDEX(Ref!$C$4:$C$9,MATCH(State,Ref!$B$4:$B$9,0))&INDEX(Ref!$C$12:$C$14,MATCH(Counterfactual,Ref!$B$12:$B$14,0))&"!"&ADDRESS(ROW(AB35),COLUMN(AB35)))*IF(DollarType=Ref!$B$17,1,(1+Inflation)^($B35-$B$11)),"-") -> - | AC35: =IFERROR(INDIRECT(INDEX(Ref!$C$4:$C$9,MATCH(State,Ref!$B$4:$B$9,0))&INDEX(Ref!$C$12:$C$14,MATCH(Counterfactual,Ref!$B$12:$B$14,0))&"!"&ADDRESS(ROW(AC35),COLUMN(AC35)))*IF(DollarType=Ref!$B$17,1,(1+Inflation)^($B35-$B$11)),"-") -> - | AD35: =IFERROR(INDIRECT(INDEX(Ref!$C$4:$C$9,MATCH(State,Ref!$B$4:$B$9,0))&INDEX(Ref!$C$12:$C$14,MATCH(Counterfactual,Ref!$B$12:$B$14,0))&"!"&ADDRESS(ROW(AD35),COLUMN(AD35)))*IF(DollarType=Ref!$B$17,1,(1+Inflation)^($B35-$B$11)),"-") -> - | AE35: =IFERROR(INDIRECT(INDEX(Ref!$C$4:$C$9,MATCH(State,Ref!$B$4:$B$9,0))&INDEX(Ref!$C$12:$C$14,MATCH(Counterfactual,Ref!$B$12:$B$14,0))&"!"&ADDRESS(ROW(AE35),COLUMN(AE35)))*IF(DollarType=Ref!$B$17,1,(1+Inflation)^($B35-$B$11)),"-") -> - | AF35: =IFERROR(INDIRECT(INDEX(Ref!$C$4:$C$9,MATCH(State,Ref!$B$4:$B$9,0))&INDEX(Ref!$C$12:$C$14,MATCH(Counterfactual,Ref!$B$12:$B$14,0))&"!"&ADDRESS(ROW(AF35),COLUMN(AF35)))*IF(DollarType=Ref!$B$17,1,(1+Inflation)^($B35-$B$11)),"-") -> - | AG35: =IFERROR(INDIRECT(INDEX(Ref!$C$4:$C$9,MATCH(State,Ref!$B$4:$B$9,0))&INDEX(Ref!$C$12:$C$14,MATCH(Counterfactual,Ref!$B$12:$B$14,0))&"!"&ADDRESS(ROW(AG35),COLUMN(AG35)))*IF(DollarType=Ref!$B$17,1,(1+Inflation)^($B35-$B$11)),"-") -> - | AH35: =IFERROR(INDIRECT(INDEX(Ref!$C$4:$C$9,MATCH(State,Ref!$B$4:$B$9,0))&INDEX(Ref!$C$12:$C$14,MATCH(Counterfactual,Ref!$B$12:$B$14,0))&"!"&ADDRESS(ROW(AH35),COLUMN(AH35)))*IF(DollarType=Ref!$B$17,1,(1+Inflation)^($B35-$B$11)),"-") -> 84.01598436 | AJ35: 2045 | AK35: 0.0683782492 | AL35: 0.07054287916 | AM35: 0.05694087399 | AN35: 0.05466362118 | AO35: 0.01121685296 | AP35: 0.0100749386 | AQ35: 0.01159052796 | AR35: 0.01177235373 | AS35: 0.000421417151 | AT35: 0.000377403305 | AU35: 0.0004607189989 | AV35: 0.0004117057134 | AW35: - | AX35: - | AY35: - | AZ35: - | BA35: - | BB35: - | BC35: - | BD35: - | BE35: 0.0001966361565 | BF35: 0.0001669850657 | BG35: 69.32076554 | BH35: - | BI35: - | BJ35: - | BK35: - | BL35: - | BM35: - | BN35: - | BO35: 97.45854186
B36: 2046 | C36: =IFERROR(INDIRECT(INDEX(Ref!$C$4:$C$9,MATCH(State,Ref!$B$4:$B$9,0))&INDEX(Ref!$C$12:$C$14,MATCH(Counterfactual,Ref!$B$12:$B$14,0))&"!"&ADDRESS(ROW(C36),COLUMN(C36)))*IF(DollarType=Ref!$B$17,1,(1+Inflation)^($B36-$B$11)),"-") -> 0.0561220789 | D36: =IFERROR(INDIRECT(INDEX(Ref!$C$4:$C$9,MATCH(State,Ref!$B$4:$B$9,0))&INDEX(Ref!$C$12:$C$14,MATCH(Counterfactual,Ref!$B$12:$B$14,0))&"!"&ADDRESS(ROW(D36),COLUMN(D36)))*IF(DollarType=Ref!$B$17,1,(1+Inflation)^($B36-$B$11)),"-") -> 0.05807944556 | E36: =IFERROR(INDIRECT(INDEX(Ref!$C$4:$C$9,MATCH(State,Ref!$B$4:$B$9,0))&INDEX(Ref!$C$12:$C$14,MATCH(Counterfactual,Ref!$B$12:$B$14,0))&"!"&ADDRESS(ROW(E36),COLUMN(E36)))*IF(DollarType=Ref!$B$17,1,(1+Inflation)^($B36-$B$11)),"-") -> 0.04671754436 | F36: =IFERROR(INDIRECT(INDEX(Ref!$C$4:$C$9,MATCH(State,Ref!$B$4:$B$9,0))&INDEX(Ref!$C$12:$C$14,MATCH(Counterfactual,Ref!$B$12:$B$14,0))&"!"&ADDRESS(ROW(F36),COLUMN(F36)))*IF(DollarType=Ref!$B$17,1,(1+Inflation)^($B36-$B$11)),"-") -> 0.0447940892 | G36: =IFERROR(INDIRECT(INDEX(Ref!$C$4:$C$9,MATCH(State,Ref!$B$4:$B$9,0))&INDEX(Ref!$C$12:$C$14,MATCH(Counterfactual,Ref!$B$12:$B$14,0))&"!"&ADDRESS(ROW(G36),COLUMN(G36)))*IF(DollarType=Ref!$B$17,1,(1+Inflation)^($B36-$B$11)),"-") -> 0.002255314948 | H36: =IFERROR(INDIRECT(INDEX(Ref!$C$4:$C$9,MATCH(State,Ref!$B$4:$B$9,0))&INDEX(Ref!$C$12:$C$14,MATCH(Counterfactual,Ref!$B$12:$B$14,0))&"!"&ADDRESS(ROW(H36),COLUMN(H36)))*IF(DollarType=Ref!$B$17,1,(1+Inflation)^($B36-$B$11)),"-") -> 0.009475354826 | I36: =IFERROR(INDIRECT(INDEX(Ref!$C$4:$C$9,MATCH(State,Ref!$B$4:$B$9,0))&INDEX(Ref!$C$12:$C$14,MATCH(Counterfactual,Ref!$B$12:$B$14,0))&"!"&ADDRESS(ROW(I36),COLUMN(I36)))*IF(DollarType=Ref!$B$17,1,(1+Inflation)^($B36-$B$11)),"-") -> 0.008420734617 | J36: =IFERROR(INDIRECT(INDEX(Ref!$C$4:$C$9,MATCH(State,Ref!$B$4:$B$9,0))&INDEX(Ref!$C$12:$C$14,MATCH(Counterfactual,Ref!$B$12:$B$14,0))&"!"&ADDRESS(ROW(J36),COLUMN(J36)))*IF(DollarType=Ref!$B$17,1,(1+Inflation)^($B36-$B$11)),"-") -> 0.009729172908 | K36: =IFERROR(INDIRECT(INDEX(Ref!$C$4:$C$9,MATCH(State,Ref!$B$4:$B$9,0))&INDEX(Ref!$C$12:$C$14,MATCH(Counterfactual,Ref!$B$12:$B$14,0))&"!"&ADDRESS(ROW(K36),COLUMN(K36)))*IF(DollarType=Ref!$B$17,1,(1+Inflation)^($B36-$B$11)),"-") -> 0.009856342799 | L36: =IFERROR(INDIRECT(INDEX(Ref!$C$4:$C$9,MATCH(State,Ref!$B$4:$B$9,0))&INDEX(Ref!$C$12:$C$14,MATCH(Counterfactual,Ref!$B$12:$B$14,0))&"!"&ADDRESS(ROW(L36),COLUMN(L36)))*IF(DollarType=Ref!$B$17,1,(1+Inflation)^($B36-$B$11)),"-") -> 0.0003834523352 | M36: =IFERROR(INDIRECT(INDEX(Ref!$C$4:$C$9,MATCH(State,Ref!$B$4:$B$9,0))&INDEX(Ref!$C$12:$C$14,MATCH(Counterfactual,Ref!$B$12:$B$14,0))&"!"&ADDRESS(ROW(M36),COLUMN(M36)))*IF(DollarType=Ref!$B$17,1,(1+Inflation)^($B36-$B$11)),"-") -> 0.0003413238566 | N36: =IFERROR(INDIRECT(INDEX(Ref!$C$4:$C$9,MATCH(State,Ref!$B$4:$B$9,0))&INDEX(Ref!$C$12:$C$14,MATCH(Counterfactual,Ref!$B$12:$B$14,0))&"!"&ADDRESS(ROW(N36),COLUMN(N36)))*IF(DollarType=Ref!$B$17,1,(1+Inflation)^($B36-$B$11)),"-") -> 0.0004120317647 | O36: =IFERROR(INDIRECT(INDEX(Ref!$C$4:$C$9,MATCH(State,Ref!$B$4:$B$9,0))&INDEX(Ref!$C$12:$C$14,MATCH(Counterfactual,Ref!$B$12:$B$14,0))&"!"&ADDRESS(ROW(O36),COLUMN(O36)))*IF(DollarType=Ref!$B$17,1,(1+Inflation)^($B36-$B$11)),"-") -> 0.0003694763516 | P36: =IFERROR(INDIRECT(INDEX(Ref!$C$4:$C$9,MATCH(State,Ref!$B$4:$B$9,0))&INDEX(Ref!$C$12:$C$14,MATCH(Counterfactual,Ref!$B$12:$B$14,0))&"!"&ADDRESS(ROW(P36),COLUMN(P36)))*IF(DollarType=Ref!$B$17,1,(1+Inflation)^($B36-$B$11)),"-") -> - | Q36: =IFERROR(INDIRECT(INDEX(Ref!$C$4:$C$9,MATCH(State,Ref!$B$4:$B$9,0))&INDEX(Ref!$C$12:$C$14,MATCH(Counterfactual,Ref!$B$12:$B$14,0))&"!"&ADDRESS(ROW(Q36),COLUMN(Q36)))*IF(DollarType=Ref!$B$17,1,(1+Inflation)^($B36-$B$11)),"-") -> - | R36: =IFERROR(INDIRECT(INDEX(Ref!$C$4:$C$9,MATCH(State,Ref!$B$4:$B$9,0))&INDEX(Ref!$C$12:$C$14,MATCH(Counterfactual,Ref!$B$12:$B$14,0))&"!"&ADDRESS(ROW(R36),COLUMN(R36)))*IF(DollarType=Ref!$B$17,1,(1+Inflation)^($B36-$B$11)),"-") -> - | S36: =IFERROR(INDIRECT(INDEX(Ref!$C$4:$C$9,MATCH(State,Ref!$B$4:$B$9,0))&INDEX(Ref!$C$12:$C$14,MATCH(Counterfactual,Ref!$B$12:$B$14,0))&"!"&ADDRESS(ROW(S36),COLUMN(S36)))*IF(DollarType=Ref!$B$17,1,(1+Inflation)^($B36-$B$11)),"-") -> - | T36: =IFERROR(INDIRECT(INDEX(Ref!$C$4:$C$9,MATCH(State,Ref!$B$4:$B$9,0))&INDEX(Ref!$C$12:$C$14,MATCH(Counterfactual,Ref!$B$12:$B$14,0))&"!"&ADDRESS(ROW(T36),COLUMN(T36)))*IF(DollarType=Ref!$B$17,1,(1+Inflation)^($B36-$B$11)),"-") -> - | U36: =IFERROR(INDIRECT(INDEX(Ref!$C$4:$C$9,MATCH(State,Ref!$B$4:$B$9,0))&INDEX(Ref!$C$12:$C$14,MATCH(Counterfactual,Ref!$B$12:$B$14,0))&"!"&ADDRESS(ROW(U36),COLUMN(U36)))*IF(DollarType=Ref!$B$17,1,(1+Inflation)^($B36-$B$11)),"-") -> - | V36: =IFERROR(INDIRECT(INDEX(Ref!$C$4:$C$9,MATCH(State,Ref!$B$4:$B$9,0))&INDEX(Ref!$C$12:$C$14,MATCH(Counterfactual,Ref!$B$12:$B$14,0))&"!"&ADDRESS(ROW(V36),COLUMN(V36)))*IF(DollarType=Ref!$B$17,1,(1+Inflation)^($B36-$B$11)),"-") -> - | W36: =IFERROR(INDIRECT(INDEX(Ref!$C$4:$C$9,MATCH(State,Ref!$B$4:$B$9,0))&INDEX(Ref!$C$12:$C$14,MATCH(Counterfactual,Ref!$B$12:$B$14,0))&"!"&ADDRESS(ROW(W36),COLUMN(W36)))*IF(DollarType=Ref!$B$17,1,(1+Inflation)^($B36-$B$11)),"-") -> - | X36: =IFERROR(INDIRECT(INDEX(Ref!$C$4:$C$9,MATCH(State,Ref!$B$4:$B$9,0))&INDEX(Ref!$C$12:$C$14,MATCH(Counterfactual,Ref!$B$12:$B$14,0))&"!"&ADDRESS(ROW(X36),COLUMN(X36)))*IF(DollarType=Ref!$B$17,1,(1+Inflation)^($B36-$B$11)),"-") -> 0.0001674603118 | Y36: =IFERROR(INDIRECT(INDEX(Ref!$C$4:$C$9,MATCH(State,Ref!$B$4:$B$9,0))&INDEX(Ref!$C$12:$C$14,MATCH(Counterfactual,Ref!$B$12:$B$14,0))&"!"&ADDRESS(ROW(Y36),COLUMN(Y36)))*IF(DollarType=Ref!$B$17,1,(1+Inflation)^($B36-$B$11)),"-") -> 0.0001422086948 | Z36: =IFERROR(INDIRECT(INDEX(Ref!$C$4:$C$9,MATCH(State,Ref!$B$4:$B$9,0))&INDEX(Ref!$C$12:$C$14,MATCH(Counterfactual,Ref!$B$12:$B$14,0))&"!"&ADDRESS(ROW(Z36),COLUMN(Z36)))*IF(DollarType=Ref!$B$17,1,(1+Inflation)^($B36-$B$11)),"-") -> 61.62904284 | AA36: =IFERROR(INDIRECT(INDEX(Ref!$C$4:$C$9,MATCH(State,Ref!$B$4:$B$9,0))&INDEX(Ref!$C$12:$C$14,MATCH(Counterfactual,Ref!$B$12:$B$14,0))&"!"&ADDRESS(ROW(AA36),COLUMN(AA36)))*IF(DollarType=Ref!$B$17,1,(1+Inflation)^($B36-$B$11)),"-") -> - | AB36: =IFERROR(INDIRECT(INDEX(Ref!$C$4:$C$9,MATCH(State,Ref!$B$4:$B$9,0))&INDEX(Ref!$C$12:$C$14,MATCH(Counterfactual,Ref!$B$12:$B$14,0))&"!"&ADDRESS(ROW(AB36),COLUMN(AB36)))*IF(DollarType=Ref!$B$17,1,(1+Inflation)^($B36-$B$11)),"-") -> - | AC36: =IFERROR(INDIRECT(INDEX(Ref!$C$4:$C$9,MATCH(State,Ref!$B$4:$B$9,0))&INDEX(Ref!$C$12:$C$14,MATCH(Counterfactual,Ref!$B$12:$B$14,0))&"!"&ADDRESS(ROW(AC36),COLUMN(AC36)))*IF(DollarType=Ref!$B$17,1,(1+Inflation)^($B36-$B$11)),"-") -> - | AD36: =IFERROR(INDIRECT(INDEX(Ref!$C$4:$C$9,MATCH(State,Ref!$B$4:$B$9,0))&INDEX(Ref!$C$12:$C$14,MATCH(Counterfactual,Ref!$B$12:$B$14,0))&"!"&ADDRESS(ROW(AD36),COLUMN(AD36)))*IF(DollarType=Ref!$B$17,1,(1+Inflation)^($B36-$B$11)),"-") -> - | AE36: =IFERROR(INDIRECT(INDEX(Ref!$C$4:$C$9,MATCH(State,Ref!$B$4:$B$9,0))&INDEX(Ref!$C$12:$C$14,MATCH(Counterfactual,Ref!$B$12:$B$14,0))&"!"&ADDRESS(ROW(AE36),COLUMN(AE36)))*IF(DollarType=Ref!$B$17,1,(1+Inflation)^($B36-$B$11)),"-") -> - | AF36: =IFERROR(INDIRECT(INDEX(Ref!$C$4:$C$9,MATCH(State,Ref!$B$4:$B$9,0))&INDEX(Ref!$C$12:$C$14,MATCH(Counterfactual,Ref!$B$12:$B$14,0))&"!"&ADDRESS(ROW(AF36),COLUMN(AF36)))*IF(DollarType=Ref!$B$17,1,(1+Inflation)^($B36-$B$11)),"-") -> - | AG36: =IFERROR(INDIRECT(INDEX(Ref!$C$4:$C$9,MATCH(State,Ref!$B$4:$B$9,0))&INDEX(Ref!$C$12:$C$14,MATCH(Counterfactual,Ref!$B$12:$B$14,0))&"!"&ADDRESS(ROW(AG36),COLUMN(AG36)))*IF(DollarType=Ref!$B$17,1,(1+Inflation)^($B36-$B$11)),"-") -> - | AH36: =IFERROR(INDIRECT(INDEX(Ref!$C$4:$C$9,MATCH(State,Ref!$B$4:$B$9,0))&INDEX(Ref!$C$12:$C$14,MATCH(Counterfactual,Ref!$B$12:$B$14,0))&"!"&ADDRESS(ROW(AH36),COLUMN(AH36)))*IF(DollarType=Ref!$B$17,1,(1+Inflation)^($B36-$B$11)),"-") -> 84.01598436 | AJ36: 2046 | AK36: 0.06872186804 | AL36: 0.07102608007 | AM36: 0.05765084998 | AN36: 0.05538655856 | AO36: 0.01032813676 | AP36: 0.009178600732 | AQ36: 0.01060479847 | AR36: 0.01074341365 | AS36: 0.0004179630454 | AT36: 0.0003720430037 | AU36: 0.0004491146235 | AV36: 0.0004027292233 | AW36: - | AX36: - | AY36: - | AZ36: - | BA36: - | BB36: - | BC36: - | BD36: - | BE36: 0.000197134279 | BF36: 0.0001674080755 | BG36: 71.48968969 | BH36: - | BI36: - | BJ36: - | BK36: - | BL36: - | BM36: - | BN36: - | BO36: 97.45854186
B37: 2047 | C37: =IFERROR(INDIRECT(INDEX(Ref!$C$4:$C$9,MATCH(State,Ref!$B$4:$B$9,0))&INDEX(Ref!$C$12:$C$14,MATCH(Counterfactual,Ref!$B$12:$B$14,0))&"!"&ADDRESS(ROW(C37),COLUMN(C37)))*IF(DollarType=Ref!$B$17,1,(1+Inflation)^($B37-$B$11)),"-") -> 0.05676327975 | D37: =IFERROR(INDIRECT(INDEX(Ref!$C$4:$C$9,MATCH(State,Ref!$B$4:$B$9,0))&INDEX(Ref!$C$12:$C$14,MATCH(Counterfactual,Ref!$B$12:$B$14,0))&"!"&ADDRESS(ROW(D37),COLUMN(D37)))*IF(DollarType=Ref!$B$17,1,(1+Inflation)^($B37-$B$11)),"-") -> 0.05884185306 | E37: =IFERROR(INDIRECT(INDEX(Ref!$C$4:$C$9,MATCH(State,Ref!$B$4:$B$9,0))&INDEX(Ref!$C$12:$C$14,MATCH(Counterfactual,Ref!$B$12:$B$14,0))&"!"&ADDRESS(ROW(E37),COLUMN(E37)))*IF(DollarType=Ref!$B$17,1,(1+Inflation)^($B37-$B$11)),"-") -> 0.04768222988 | F37: =IFERROR(INDIRECT(INDEX(Ref!$C$4:$C$9,MATCH(State,Ref!$B$4:$B$9,0))&INDEX(Ref!$C$12:$C$14,MATCH(Counterfactual,Ref!$B$12:$B$14,0))&"!"&ADDRESS(ROW(F37),COLUMN(F37)))*IF(DollarType=Ref!$B$17,1,(1+Inflation)^($B37-$B$11)),"-") -> 0.04577112388 | G37: =IFERROR(INDIRECT(INDEX(Ref!$C$4:$C$9,MATCH(State,Ref!$B$4:$B$9,0))&INDEX(Ref!$C$12:$C$14,MATCH(Counterfactual,Ref!$B$12:$B$14,0))&"!"&ADDRESS(ROW(G37),COLUMN(G37)))*IF(DollarType=Ref!$B$17,1,(1+Inflation)^($B37-$B$11)),"-") -> 0.001958300274 | H37: =IFERROR(INDIRECT(INDEX(Ref!$C$4:$C$9,MATCH(State,Ref!$B$4:$B$9,0))&INDEX(Ref!$C$12:$C$14,MATCH(Counterfactual,Ref!$B$12:$B$14,0))&"!"&ADDRESS(ROW(H37),COLUMN(H37)))*IF(DollarType=Ref!$B$17,1,(1+Inflation)^($B37-$B$11)),"-") -> 0.008724618292 | I37: =IFERROR(INDIRECT(INDEX(Ref!$C$4:$C$9,MATCH(State,Ref!$B$4:$B$9,0))&INDEX(Ref!$C$12:$C$14,MATCH(Counterfactual,Ref!$B$12:$B$14,0))&"!"&ADDRESS(ROW(I37),COLUMN(I37)))*IF(DollarType=Ref!$B$17,1,(1+Inflation)^($B37-$B$11)),"-") -> 0.007671566446 | J37: =IFERROR(INDIRECT(INDEX(Ref!$C$4:$C$9,MATCH(State,Ref!$B$4:$B$9,0))&INDEX(Ref!$C$12:$C$14,MATCH(Counterfactual,Ref!$B$12:$B$14,0))&"!"&ADDRESS(ROW(J37),COLUMN(J37)))*IF(DollarType=Ref!$B$17,1,(1+Inflation)^($B37-$B$11)),"-") -> 0.008901744452 | K37: =IFERROR(INDIRECT(INDEX(Ref!$C$4:$C$9,MATCH(State,Ref!$B$4:$B$9,0))&INDEX(Ref!$C$12:$C$14,MATCH(Counterfactual,Ref!$B$12:$B$14,0))&"!"&ADDRESS(ROW(K37),COLUMN(K37)))*IF(DollarType=Ref!$B$17,1,(1+Inflation)^($B37-$B$11)),"-") -> 0.008994867992 | L37: =IFERROR(INDIRECT(INDEX(Ref!$C$4:$C$9,MATCH(State,Ref!$B$4:$B$9,0))&INDEX(Ref!$C$12:$C$14,MATCH(Counterfactual,Ref!$B$12:$B$14,0))&"!"&ADDRESS(ROW(L37),COLUMN(L37)))*IF(DollarType=Ref!$B$17,1,(1+Inflation)^($B37-$B$11)),"-") -> 0.0003803094046 | M37: =IFERROR(INDIRECT(INDEX(Ref!$C$4:$C$9,MATCH(State,Ref!$B$4:$B$9,0))&INDEX(Ref!$C$12:$C$14,MATCH(Counterfactual,Ref!$B$12:$B$14,0))&"!"&ADDRESS(ROW(M37),COLUMN(M37)))*IF(DollarType=Ref!$B$17,1,(1+Inflation)^($B37-$B$11)),"-") -> 0.0003364759958 | N37: =IFERROR(INDIRECT(INDEX(Ref!$C$4:$C$9,MATCH(State,Ref!$B$4:$B$9,0))&INDEX(Ref!$C$12:$C$14,MATCH(Counterfactual,Ref!$B$12:$B$14,0))&"!"&ADDRESS(ROW(N37),COLUMN(N37)))*IF(DollarType=Ref!$B$17,1,(1+Inflation)^($B37-$B$11)),"-") -> 0.0004016537006 | O37: =IFERROR(INDIRECT(INDEX(Ref!$C$4:$C$9,MATCH(State,Ref!$B$4:$B$9,0))&INDEX(Ref!$C$12:$C$14,MATCH(Counterfactual,Ref!$B$12:$B$14,0))&"!"&ADDRESS(ROW(O37),COLUMN(O37)))*IF(DollarType=Ref!$B$17,1,(1+Inflation)^($B37-$B$11)),"-") -> 0.0003614205955 | P37: =IFERROR(INDIRECT(INDEX(Ref!$C$4:$C$9,MATCH(State,Ref!$B$4:$B$9,0))&INDEX(Ref!$C$12:$C$14,MATCH(Counterfactual,Ref!$B$12:$B$14,0))&"!"&ADDRESS(ROW(P37),COLUMN(P37)))*IF(DollarType=Ref!$B$17,1,(1+Inflation)^($B37-$B$11)),"-") -> - | Q37: =IFERROR(INDIRECT(INDEX(Ref!$C$4:$C$9,MATCH(State,Ref!$B$4:$B$9,0))&INDEX(Ref!$C$12:$C$14,MATCH(Counterfactual,Ref!$B$12:$B$14,0))&"!"&ADDRESS(ROW(Q37),COLUMN(Q37)))*IF(DollarType=Ref!$B$17,1,(1+Inflation)^($B37-$B$11)),"-") -> - | R37: =IFERROR(INDIRECT(INDEX(Ref!$C$4:$C$9,MATCH(State,Ref!$B$4:$B$9,0))&INDEX(Ref!$C$12:$C$14,MATCH(Counterfactual,Ref!$B$12:$B$14,0))&"!"&ADDRESS(ROW(R37),COLUMN(R37)))*IF(DollarType=Ref!$B$17,1,(1+Inflation)^($B37-$B$11)),"-") -> - | S37: =IFERROR(INDIRECT(INDEX(Ref!$C$4:$C$9,MATCH(State,Ref!$B$4:$B$9,0))&INDEX(Ref!$C$12:$C$14,MATCH(Counterfactual,Ref!$B$12:$B$14,0))&"!"&ADDRESS(ROW(S37),COLUMN(S37)))*IF(DollarType=Ref!$B$17,1,(1+Inflation)^($B37-$B$11)),"-") -> - | T37: =IFERROR(INDIRECT(INDEX(Ref!$C$4:$C$9,MATCH(State,Ref!$B$4:$B$9,0))&INDEX(Ref!$C$12:$C$14,MATCH(Counterfactual,Ref!$B$12:$B$14,0))&"!"&ADDRESS(ROW(T37),COLUMN(T37)))*IF(DollarType=Ref!$B$17,1,(1+Inflation)^($B37-$B$11)),"-") -> - | U37: =IFERROR(INDIRECT(INDEX(Ref!$C$4:$C$9,MATCH(State,Ref!$B$4:$B$9,0))&INDEX(Ref!$C$12:$C$14,MATCH(Counterfactual,Ref!$B$12:$B$14,0))&"!"&ADDRESS(ROW(U37),COLUMN(U37)))*IF(DollarType=Ref!$B$17,1,(1+Inflation)^($B37-$B$11)),"-") -> - | V37: =IFERROR(INDIRECT(INDEX(Ref!$C$4:$C$9,MATCH(State,Ref!$B$4:$B$9,0))&INDEX(Ref!$C$12:$C$14,MATCH(Counterfactual,Ref!$B$12:$B$14,0))&"!"&ADDRESS(ROW(V37),COLUMN(V37)))*IF(DollarType=Ref!$B$17,1,(1+Inflation)^($B37-$B$11)),"-") -> - | W37: =IFERROR(INDIRECT(INDEX(Ref!$C$4:$C$9,MATCH(State,Ref!$B$4:$B$9,0))&INDEX(Ref!$C$12:$C$14,MATCH(Counterfactual,Ref!$B$12:$B$14,0))&"!"&ADDRESS(ROW(W37),COLUMN(W37)))*IF(DollarType=Ref!$B$17,1,(1+Inflation)^($B37-$B$11)),"-") -> - | X37: =IFERROR(INDIRECT(INDEX(Ref!$C$4:$C$9,MATCH(State,Ref!$B$4:$B$9,0))&INDEX(Ref!$C$12:$C$14,MATCH(Counterfactual,Ref!$B$12:$B$14,0))&"!"&ADDRESS(ROW(X37),COLUMN(X37)))*IF(DollarType=Ref!$B$17,1,(1+Inflation)^($B37-$B$11)),"-") -> 0.0001678845255 | Y37: =IFERROR(INDIRECT(INDEX(Ref!$C$4:$C$9,MATCH(State,Ref!$B$4:$B$9,0))&INDEX(Ref!$C$12:$C$14,MATCH(Counterfactual,Ref!$B$12:$B$14,0))&"!"&ADDRESS(ROW(Y37),COLUMN(Y37)))*IF(DollarType=Ref!$B$17,1,(1+Inflation)^($B37-$B$11)),"-") -> 0.0001425689406 | Z37: =IFERROR(INDIRECT(INDEX(Ref!$C$4:$C$9,MATCH(State,Ref!$B$4:$B$9,0))&INDEX(Ref!$C$12:$C$14,MATCH(Counterfactual,Ref!$B$12:$B$14,0))&"!"&ADDRESS(ROW(Z37),COLUMN(Z37)))*IF(DollarType=Ref!$B$17,1,(1+Inflation)^($B37-$B$11)),"-") -> 63.55730659 | AA37: =IFERROR(INDIRECT(INDEX(Ref!$C$4:$C$9,MATCH(State,Ref!$B$4:$B$9,0))&INDEX(Ref!$C$12:$C$14,MATCH(Counterfactual,Ref!$B$12:$B$14,0))&"!"&ADDRESS(ROW(AA37),COLUMN(AA37)))*IF(DollarType=Ref!$B$17,1,(1+Inflation)^($B37-$B$11)),"-") -> - | AB37: =IFERROR(INDIRECT(INDEX(Ref!$C$4:$C$9,MATCH(State,Ref!$B$4:$B$9,0))&INDEX(Ref!$C$12:$C$14,MATCH(Counterfactual,Ref!$B$12:$B$14,0))&"!"&ADDRESS(ROW(AB37),COLUMN(AB37)))*IF(DollarType=Ref!$B$17,1,(1+Inflation)^($B37-$B$11)),"-") -> - | AC37: =IFERROR(INDIRECT(INDEX(Ref!$C$4:$C$9,MATCH(State,Ref!$B$4:$B$9,0))&INDEX(Ref!$C$12:$C$14,MATCH(Counterfactual,Ref!$B$12:$B$14,0))&"!"&ADDRESS(ROW(AC37),COLUMN(AC37)))*IF(DollarType=Ref!$B$17,1,(1+Inflation)^($B37-$B$11)),"-") -> - | AD37: =IFERROR(INDIRECT(INDEX(Ref!$C$4:$C$9,MATCH(State,Ref!$B$4:$B$9,0))&INDEX(Ref!$C$12:$C$14,MATCH(Counterfactual,Ref!$B$12:$B$14,0))&"!"&ADDRESS(ROW(AD37),COLUMN(AD37)))*IF(DollarType=Ref!$B$17,1,(1+Inflation)^($B37-$B$11)),"-") -> - | AE37: =IFERROR(INDIRECT(INDEX(Ref!$C$4:$C$9,MATCH(State,Ref!$B$4:$B$9,0))&INDEX(Ref!$C$12:$C$14,MATCH(Counterfactual,Ref!$B$12:$B$14,0))&"!"&ADDRESS(ROW(AE37),COLUMN(AE37)))*IF(DollarType=Ref!$B$17,1,(1+Inflation)^($B37-$B$11)),"-") -> - | AF37: =IFERROR(INDIRECT(INDEX(Ref!$C$4:$C$9,MATCH(State,Ref!$B$4:$B$9,0))&INDEX(Ref!$C$12:$C$14,MATCH(Counterfactual,Ref!$B$12:$B$14,0))&"!"&ADDRESS(ROW(AF37),COLUMN(AF37)))*IF(DollarType=Ref!$B$17,1,(1+Inflation)^($B37-$B$11)),"-") -> - | AG37: =IFERROR(INDIRECT(INDEX(Ref!$C$4:$C$9,MATCH(State,Ref!$B$4:$B$9,0))&INDEX(Ref!$C$12:$C$14,MATCH(Counterfactual,Ref!$B$12:$B$14,0))&"!"&ADDRESS(ROW(AG37),COLUMN(AG37)))*IF(DollarType=Ref!$B$17,1,(1+Inflation)^($B37-$B$11)),"-") -> - | AH37: =IFERROR(INDIRECT(INDEX(Ref!$C$4:$C$9,MATCH(State,Ref!$B$4:$B$9,0))&INDEX(Ref!$C$12:$C$14,MATCH(Counterfactual,Ref!$B$12:$B$14,0))&"!"&ADDRESS(ROW(AH37),COLUMN(AH37)))*IF(DollarType=Ref!$B$17,1,(1+Inflation)^($B37-$B$11)),"-") -> 84.01598436 | AJ37: 2047 | AK37: 0.06912704401 | AL37: 0.07157394051 | AM37: 0.0584368321 | AN37: 0.05618707811 | AO37: 0.009509833938 | AP37: 0.008362007426 | AQ37: 0.009702901452 | AR37: 0.009804406111 | AS37: 0.000414537251 | AT37: 0.0003667588355 | AU37: 0.0004378025337 | AV37: 0.0003939484491 | AW37: - | AX37: - | AY37: - | AZ37: - | BA37: - | BB37: - | BC37: - | BD37: - | BE37: 0.0001976336634 | BF37: 0.0001678321569 | BG37: 73.72647564 | BH37: - | BI37: - | BJ37: - | BK37: - | BL37: - | BM37: - | BN37: - | BO37: 97.45854186
B38: 2048 | C38: =IFERROR(INDIRECT(INDEX(Ref!$C$4:$C$9,MATCH(State,Ref!$B$4:$B$9,0))&INDEX(Ref!$C$12:$C$14,MATCH(Counterfactual,Ref!$B$12:$B$14,0))&"!"&ADDRESS(ROW(C38),COLUMN(C38)))*IF(DollarType=Ref!$B$17,1,(1+Inflation)^($B38-$B$11)),"-") -> 0.0574118064 | D38: =IFERROR(INDIRECT(INDEX(Ref!$C$4:$C$9,MATCH(State,Ref!$B$4:$B$9,0))&INDEX(Ref!$C$12:$C$14,MATCH(Counterfactual,Ref!$B$12:$B$14,0))&"!"&ADDRESS(ROW(D38),COLUMN(D38)))*IF(DollarType=Ref!$B$17,1,(1+Inflation)^($B38-$B$11)),"-") -> 0.05961426866 | E38: =IFERROR(INDIRECT(INDEX(Ref!$C$4:$C$9,MATCH(State,Ref!$B$4:$B$9,0))&INDEX(Ref!$C$12:$C$14,MATCH(Counterfactual,Ref!$B$12:$B$14,0))&"!"&ADDRESS(ROW(E38),COLUMN(E38)))*IF(DollarType=Ref!$B$17,1,(1+Inflation)^($B38-$B$11)),"-") -> 0.04866683551 | F38: =IFERROR(INDIRECT(INDEX(Ref!$C$4:$C$9,MATCH(State,Ref!$B$4:$B$9,0))&INDEX(Ref!$C$12:$C$14,MATCH(Counterfactual,Ref!$B$12:$B$14,0))&"!"&ADDRESS(ROW(F38),COLUMN(F38)))*IF(DollarType=Ref!$B$17,1,(1+Inflation)^($B38-$B$11)),"-") -> 0.04676946933 | G38: =IFERROR(INDIRECT(INDEX(Ref!$C$4:$C$9,MATCH(State,Ref!$B$4:$B$9,0))&INDEX(Ref!$C$12:$C$14,MATCH(Counterfactual,Ref!$B$12:$B$14,0))&"!"&ADDRESS(ROW(G38),COLUMN(G38)))*IF(DollarType=Ref!$B$17,1,(1+Inflation)^($B38-$B$11)),"-") -> 0.001700401075 | H38: =IFERROR(INDIRECT(INDEX(Ref!$C$4:$C$9,MATCH(State,Ref!$B$4:$B$9,0))&INDEX(Ref!$C$12:$C$14,MATCH(Counterfactual,Ref!$B$12:$B$14,0))&"!"&ADDRESS(ROW(H38),COLUMN(H38)))*IF(DollarType=Ref!$B$17,1,(1+Inflation)^($B38-$B$11)),"-") -> 0.008033362944 | I38: =IFERROR(INDIRECT(INDEX(Ref!$C$4:$C$9,MATCH(State,Ref!$B$4:$B$9,0))&INDEX(Ref!$C$12:$C$14,MATCH(Counterfactual,Ref!$B$12:$B$14,0))&"!"&ADDRESS(ROW(I38),COLUMN(I38)))*IF(DollarType=Ref!$B$17,1,(1+Inflation)^($B38-$B$11)),"-") -> 0.006989049579 | J38: =IFERROR(INDIRECT(INDEX(Ref!$C$4:$C$9,MATCH(State,Ref!$B$4:$B$9,0))&INDEX(Ref!$C$12:$C$14,MATCH(Counterfactual,Ref!$B$12:$B$14,0))&"!"&ADDRESS(ROW(J38),COLUMN(J38)))*IF(DollarType=Ref!$B$17,1,(1+Inflation)^($B38-$B$11)),"-") -> 0.00814468558 | K38: =IFERROR(INDIRECT(INDEX(Ref!$C$4:$C$9,MATCH(State,Ref!$B$4:$B$9,0))&INDEX(Ref!$C$12:$C$14,MATCH(Counterfactual,Ref!$B$12:$B$14,0))&"!"&ADDRESS(ROW(K38),COLUMN(K38)))*IF(DollarType=Ref!$B$17,1,(1+Inflation)^($B38-$B$11)),"-") -> 0.008208688744 | L38: =IFERROR(INDIRECT(INDEX(Ref!$C$4:$C$9,MATCH(State,Ref!$B$4:$B$9,0))&INDEX(Ref!$C$12:$C$14,MATCH(Counterfactual,Ref!$B$12:$B$14,0))&"!"&ADDRESS(ROW(L38),COLUMN(L38)))*IF(DollarType=Ref!$B$17,1,(1+Inflation)^($B38-$B$11)),"-") -> 0.0003771922347 | M38: =IFERROR(INDIRECT(INDEX(Ref!$C$4:$C$9,MATCH(State,Ref!$B$4:$B$9,0))&INDEX(Ref!$C$12:$C$14,MATCH(Counterfactual,Ref!$B$12:$B$14,0))&"!"&ADDRESS(ROW(M38),COLUMN(M38)))*IF(DollarType=Ref!$B$17,1,(1+Inflation)^($B38-$B$11)),"-") -> 0.0003316969898 | N38: =IFERROR(INDIRECT(INDEX(Ref!$C$4:$C$9,MATCH(State,Ref!$B$4:$B$9,0))&INDEX(Ref!$C$12:$C$14,MATCH(Counterfactual,Ref!$B$12:$B$14,0))&"!"&ADDRESS(ROW(N38),COLUMN(N38)))*IF(DollarType=Ref!$B$17,1,(1+Inflation)^($B38-$B$11)),"-") -> 0.0003915370344 | O38: =IFERROR(INDIRECT(INDEX(Ref!$C$4:$C$9,MATCH(State,Ref!$B$4:$B$9,0))&INDEX(Ref!$C$12:$C$14,MATCH(Counterfactual,Ref!$B$12:$B$14,0))&"!"&ADDRESS(ROW(O38),COLUMN(O38)))*IF(DollarType=Ref!$B$17,1,(1+Inflation)^($B38-$B$11)),"-") -> 0.0003535404805 | P38: =IFERROR(INDIRECT(INDEX(Ref!$C$4:$C$9,MATCH(State,Ref!$B$4:$B$9,0))&INDEX(Ref!$C$12:$C$14,MATCH(Counterfactual,Ref!$B$12:$B$14,0))&"!"&ADDRESS(ROW(P38),COLUMN(P38)))*IF(DollarType=Ref!$B$17,1,(1+Inflation)^($B38-$B$11)),"-") -> - | Q38: =IFERROR(INDIRECT(INDEX(Ref!$C$4:$C$9,MATCH(State,Ref!$B$4:$B$9,0))&INDEX(Ref!$C$12:$C$14,MATCH(Counterfactual,Ref!$B$12:$B$14,0))&"!"&ADDRESS(ROW(Q38),COLUMN(Q38)))*IF(DollarType=Ref!$B$17,1,(1+Inflation)^($B38-$B$11)),"-") -> - | R38: =IFERROR(INDIRECT(INDEX(Ref!$C$4:$C$9,MATCH(State,Ref!$B$4:$B$9,0))&INDEX(Ref!$C$12:$C$14,MATCH(Counterfactual,Ref!$B$12:$B$14,0))&"!"&ADDRESS(ROW(R38),COLUMN(R38)))*IF(DollarType=Ref!$B$17,1,(1+Inflation)^($B38-$B$11)),"-") -> - | S38: =IFERROR(INDIRECT(INDEX(Ref!$C$4:$C$9,MATCH(State,Ref!$B$4:$B$9,0))&INDEX(Ref!$C$12:$C$14,MATCH(Counterfactual,Ref!$B$12:$B$14,0))&"!"&ADDRESS(ROW(S38),COLUMN(S38)))*IF(DollarType=Ref!$B$17,1,(1+Inflation)^($B38-$B$11)),"-") -> - | T38: =IFERROR(INDIRECT(INDEX(Ref!$C$4:$C$9,MATCH(State,Ref!$B$4:$B$9,0))&INDEX(Ref!$C$12:$C$14,MATCH(Counterfactual,Ref!$B$12:$B$14,0))&"!"&ADDRESS(ROW(T38),COLUMN(T38)))*IF(DollarType=Ref!$B$17,1,(1+Inflation)^($B38-$B$11)),"-") -> - | U38: =IFERROR(INDIRECT(INDEX(Ref!$C$4:$C$9,MATCH(State,Ref!$B$4:$B$9,0))&INDEX(Ref!$C$12:$C$14,MATCH(Counterfactual,Ref!$B$12:$B$14,0))&"!"&ADDRESS(ROW(U38),COLUMN(U38)))*IF(DollarType=Ref!$B$17,1,(1+Inflation)^($B38-$B$11)),"-") -> - | V38: =IFERROR(INDIRECT(INDEX(Ref!$C$4:$C$9,MATCH(State,Ref!$B$4:$B$9,0))&INDEX(Ref!$C$12:$C$14,MATCH(Counterfactual,Ref!$B$12:$B$14,0))&"!"&ADDRESS(ROW(V38),COLUMN(V38)))*IF(DollarType=Ref!$B$17,1,(1+Inflation)^($B38-$B$11)),"-") -> - | W38: =IFERROR(INDIRECT(INDEX(Ref!$C$4:$C$9,MATCH(State,Ref!$B$4:$B$9,0))&INDEX(Ref!$C$12:$C$14,MATCH(Counterfactual,Ref!$B$12:$B$14,0))&"!"&ADDRESS(ROW(W38),COLUMN(W38)))*IF(DollarType=Ref!$B$17,1,(1+Inflation)^($B38-$B$11)),"-") -> - | X38: =IFERROR(INDIRECT(INDEX(Ref!$C$4:$C$9,MATCH(State,Ref!$B$4:$B$9,0))&INDEX(Ref!$C$12:$C$14,MATCH(Counterfactual,Ref!$B$12:$B$14,0))&"!"&ADDRESS(ROW(X38),COLUMN(X38)))*IF(DollarType=Ref!$B$17,1,(1+Inflation)^($B38-$B$11)),"-") -> 0.0001683098139 | Y38: =IFERROR(INDIRECT(INDEX(Ref!$C$4:$C$9,MATCH(State,Ref!$B$4:$B$9,0))&INDEX(Ref!$C$12:$C$14,MATCH(Counterfactual,Ref!$B$12:$B$14,0))&"!"&ADDRESS(ROW(Y38),COLUMN(Y38)))*IF(DollarType=Ref!$B$17,1,(1+Inflation)^($B38-$B$11)),"-") -> 0.000142930099 | Z38: =IFERROR(INDIRECT(INDEX(Ref!$C$4:$C$9,MATCH(State,Ref!$B$4:$B$9,0))&INDEX(Ref!$C$12:$C$14,MATCH(Counterfactual,Ref!$B$12:$B$14,0))&"!"&ADDRESS(ROW(Z38),COLUMN(Z38)))*IF(DollarType=Ref!$B$17,1,(1+Inflation)^($B38-$B$11)),"-") -> 65.5459023 | AA38: =IFERROR(INDIRECT(INDEX(Ref!$C$4:$C$9,MATCH(State,Ref!$B$4:$B$9,0))&INDEX(Ref!$C$12:$C$14,MATCH(Counterfactual,Ref!$B$12:$B$14,0))&"!"&ADDRESS(ROW(AA38),COLUMN(AA38)))*IF(DollarType=Ref!$B$17,1,(1+Inflation)^($B38-$B$11)),"-") -> - | AB38: =IFERROR(INDIRECT(INDEX(Ref!$C$4:$C$9,MATCH(State,Ref!$B$4:$B$9,0))&INDEX(Ref!$C$12:$C$14,MATCH(Counterfactual,Ref!$B$12:$B$14,0))&"!"&ADDRESS(ROW(AB38),COLUMN(AB38)))*IF(DollarType=Ref!$B$17,1,(1+Inflation)^($B38-$B$11)),"-") -> - | AC38: =IFERROR(INDIRECT(INDEX(Ref!$C$4:$C$9,MATCH(State,Ref!$B$4:$B$9,0))&INDEX(Ref!$C$12:$C$14,MATCH(Counterfactual,Ref!$B$12:$B$14,0))&"!"&ADDRESS(ROW(AC38),COLUMN(AC38)))*IF(DollarType=Ref!$B$17,1,(1+Inflation)^($B38-$B$11)),"-") -> - | AD38: =IFERROR(INDIRECT(INDEX(Ref!$C$4:$C$9,MATCH(State,Ref!$B$4:$B$9,0))&INDEX(Ref!$C$12:$C$14,MATCH(Counterfactual,Ref!$B$12:$B$14,0))&"!"&ADDRESS(ROW(AD38),COLUMN(AD38)))*IF(DollarType=Ref!$B$17,1,(1+Inflation)^($B38-$B$11)),"-") -> - | AE38: =IFERROR(INDIRECT(INDEX(Ref!$C$4:$C$9,MATCH(State,Ref!$B$4:$B$9,0))&INDEX(Ref!$C$12:$C$14,MATCH(Counterfactual,Ref!$B$12:$B$14,0))&"!"&ADDRESS(ROW(AE38),COLUMN(AE38)))*IF(DollarType=Ref!$B$17,1,(1+Inflation)^($B38-$B$11)),"-") -> - | AF38: =IFERROR(INDIRECT(INDEX(Ref!$C$4:$C$9,MATCH(State,Ref!$B$4:$B$9,0))&INDEX(Ref!$C$12:$C$14,MATCH(Counterfactual,Ref!$B$12:$B$14,0))&"!"&ADDRESS(ROW(AF38),COLUMN(AF38)))*IF(DollarType=Ref!$B$17,1,(1+Inflation)^($B38-$B$11)),"-") -> - | AG38: =IFERROR(INDIRECT(INDEX(Ref!$C$4:$C$9,MATCH(State,Ref!$B$4:$B$9,0))&INDEX(Ref!$C$12:$C$14,MATCH(Counterfactual,Ref!$B$12:$B$14,0))&"!"&ADDRESS(ROW(AG38),COLUMN(AG38)))*IF(DollarType=Ref!$B$17,1,(1+Inflation)^($B38-$B$11)),"-") -> - | AH38: =IFERROR(INDIRECT(INDEX(Ref!$C$4:$C$9,MATCH(State,Ref!$B$4:$B$9,0))&INDEX(Ref!$C$12:$C$14,MATCH(Counterfactual,Ref!$B$12:$B$14,0))&"!"&ADDRESS(ROW(AH38),COLUMN(AH38)))*IF(DollarType=Ref!$B$17,1,(1+Inflation)^($B38-$B$11)),"-") -> 84.01598436 | AJ38: 2048 | AK38: 0.06958689064 | AL38: 0.07217962922 | AM38: 0.05929231091 | AN38: 0.05705873144 | AO38: 0.008756365609 | AP38: 0.007618064041 | AQ38: 0.008877707282 | AR38: 0.008947470731 | AS38: 0.0004111395358 | AT38: 0.0003615497188 | AU38: 0.0004267753675 | AV38: 0.0003853591237 | AW38: - | AX38: - | AY38: - | AZ38: - | BA38: - | BB38: - | BC38: - | BD38: - | BE38: 0.0001981343129 | BF38: 0.0001682573126 | BG38: 76.03324667 | BH38: - | BI38: - | BJ38: - | BK38: - | BL38: - | BM38: - | BN38: - | BO38: 97.45854186
B39: 2049 | C39: =IFERROR(INDIRECT(INDEX(Ref!$C$4:$C$9,MATCH(State,Ref!$B$4:$B$9,0))&INDEX(Ref!$C$12:$C$14,MATCH(Counterfactual,Ref!$B$12:$B$14,0))&"!"&ADDRESS(ROW(C39),COLUMN(C39)))*IF(DollarType=Ref!$B$17,1,(1+Inflation)^($B39-$B$11)),"-") -> 0.05806774253 | D39: =IFERROR(INDIRECT(INDEX(Ref!$C$4:$C$9,MATCH(State,Ref!$B$4:$B$9,0))&INDEX(Ref!$C$12:$C$14,MATCH(Counterfactual,Ref!$B$12:$B$14,0))&"!"&ADDRESS(ROW(D39),COLUMN(D39)))*IF(DollarType=Ref!$B$17,1,(1+Inflation)^($B39-$B$11)),"-") -> 0.06039682375 | E39: =IFERROR(INDIRECT(INDEX(Ref!$C$4:$C$9,MATCH(State,Ref!$B$4:$B$9,0))&INDEX(Ref!$C$12:$C$14,MATCH(Counterfactual,Ref!$B$12:$B$14,0))&"!"&ADDRESS(ROW(E39),COLUMN(E39)))*IF(DollarType=Ref!$B$17,1,(1+Inflation)^($B39-$B$11)),"-") -> 0.04967177257 | F39: =IFERROR(INDIRECT(INDEX(Ref!$C$4:$C$9,MATCH(State,Ref!$B$4:$B$9,0))&INDEX(Ref!$C$12:$C$14,MATCH(Counterfactual,Ref!$B$12:$B$14,0))&"!"&ADDRESS(ROW(F39),COLUMN(F39)))*IF(DollarType=Ref!$B$17,1,(1+Inflation)^($B39-$B$11)),"-") -> 0.04778959037 | G39: =IFERROR(INDIRECT(INDEX(Ref!$C$4:$C$9,MATCH(State,Ref!$B$4:$B$9,0))&INDEX(Ref!$C$12:$C$14,MATCH(Counterfactual,Ref!$B$12:$B$14,0))&"!"&ADDRESS(ROW(G39),COLUMN(G39)))*IF(DollarType=Ref!$B$17,1,(1+Inflation)^($B39-$B$11)),"-") -> 0.001476466023 | H39: =IFERROR(INDIRECT(INDEX(Ref!$C$4:$C$9,MATCH(State,Ref!$B$4:$B$9,0))&INDEX(Ref!$C$12:$C$14,MATCH(Counterfactual,Ref!$B$12:$B$14,0))&"!"&ADDRESS(ROW(H39),COLUMN(H39)))*IF(DollarType=Ref!$B$17,1,(1+Inflation)^($B39-$B$11)),"-") -> 0.007396876062 | I39: =IFERROR(INDIRECT(INDEX(Ref!$C$4:$C$9,MATCH(State,Ref!$B$4:$B$9,0))&INDEX(Ref!$C$12:$C$14,MATCH(Counterfactual,Ref!$B$12:$B$14,0))&"!"&ADDRESS(ROW(I39),COLUMN(I39)))*IF(DollarType=Ref!$B$17,1,(1+Inflation)^($B39-$B$11)),"-") -> 0.006367254245 | J39: =IFERROR(INDIRECT(INDEX(Ref!$C$4:$C$9,MATCH(State,Ref!$B$4:$B$9,0))&INDEX(Ref!$C$12:$C$14,MATCH(Counterfactual,Ref!$B$12:$B$14,0))&"!"&ADDRESS(ROW(J39),COLUMN(J39)))*IF(DollarType=Ref!$B$17,1,(1+Inflation)^($B39-$B$11)),"-") -> 0.007452011631 | K39: =IFERROR(INDIRECT(INDEX(Ref!$C$4:$C$9,MATCH(State,Ref!$B$4:$B$9,0))&INDEX(Ref!$C$12:$C$14,MATCH(Counterfactual,Ref!$B$12:$B$14,0))&"!"&ADDRESS(ROW(K39),COLUMN(K39)))*IF(DollarType=Ref!$B$17,1,(1+Inflation)^($B39-$B$11)),"-") -> 0.007491223991 | L39: =IFERROR(INDIRECT(INDEX(Ref!$C$4:$C$9,MATCH(State,Ref!$B$4:$B$9,0))&INDEX(Ref!$C$12:$C$14,MATCH(Counterfactual,Ref!$B$12:$B$14,0))&"!"&ADDRESS(ROW(L39),COLUMN(L39)))*IF(DollarType=Ref!$B$17,1,(1+Inflation)^($B39-$B$11)),"-") -> 0.0003741006144 | M39: =IFERROR(INDIRECT(INDEX(Ref!$C$4:$C$9,MATCH(State,Ref!$B$4:$B$9,0))&INDEX(Ref!$C$12:$C$14,MATCH(Counterfactual,Ref!$B$12:$B$14,0))&"!"&ADDRESS(ROW(M39),COLUMN(M39)))*IF(DollarType=Ref!$B$17,1,(1+Inflation)^($B39-$B$11)),"-") -> 0.0003269858604 | N39: =IFERROR(INDIRECT(INDEX(Ref!$C$4:$C$9,MATCH(State,Ref!$B$4:$B$9,0))&INDEX(Ref!$C$12:$C$14,MATCH(Counterfactual,Ref!$B$12:$B$14,0))&"!"&ADDRESS(ROW(N39),COLUMN(N39)))*IF(DollarType=Ref!$B$17,1,(1+Inflation)^($B39-$B$11)),"-") -> 0.0003816751821 | O39: =IFERROR(INDIRECT(INDEX(Ref!$C$4:$C$9,MATCH(State,Ref!$B$4:$B$9,0))&INDEX(Ref!$C$12:$C$14,MATCH(Counterfactual,Ref!$B$12:$B$14,0))&"!"&ADDRESS(ROW(O39),COLUMN(O39)))*IF(DollarType=Ref!$B$17,1,(1+Inflation)^($B39-$B$11)),"-") -> 0.0003458321769 | P39: =IFERROR(INDIRECT(INDEX(Ref!$C$4:$C$9,MATCH(State,Ref!$B$4:$B$9,0))&INDEX(Ref!$C$12:$C$14,MATCH(Counterfactual,Ref!$B$12:$B$14,0))&"!"&ADDRESS(ROW(P39),COLUMN(P39)))*IF(DollarType=Ref!$B$17,1,(1+Inflation)^($B39-$B$11)),"-") -> - | Q39: =IFERROR(INDIRECT(INDEX(Ref!$C$4:$C$9,MATCH(State,Ref!$B$4:$B$9,0))&INDEX(Ref!$C$12:$C$14,MATCH(Counterfactual,Ref!$B$12:$B$14,0))&"!"&ADDRESS(ROW(Q39),COLUMN(Q39)))*IF(DollarType=Ref!$B$17,1,(1+Inflation)^($B39-$B$11)),"-") -> - | R39: =IFERROR(INDIRECT(INDEX(Ref!$C$4:$C$9,MATCH(State,Ref!$B$4:$B$9,0))&INDEX(Ref!$C$12:$C$14,MATCH(Counterfactual,Ref!$B$12:$B$14,0))&"!"&ADDRESS(ROW(R39),COLUMN(R39)))*IF(DollarType=Ref!$B$17,1,(1+Inflation)^($B39-$B$11)),"-") -> - | S39: =IFERROR(INDIRECT(INDEX(Ref!$C$4:$C$9,MATCH(State,Ref!$B$4:$B$9,0))&INDEX(Ref!$C$12:$C$14,MATCH(Counterfactual,Ref!$B$12:$B$14,0))&"!"&ADDRESS(ROW(S39),COLUMN(S39)))*IF(DollarType=Ref!$B$17,1,(1+Inflation)^($B39-$B$11)),"-") -> - | T39: =IFERROR(INDIRECT(INDEX(Ref!$C$4:$C$9,MATCH(State,Ref!$B$4:$B$9,0))&INDEX(Ref!$C$12:$C$14,MATCH(Counterfactual,Ref!$B$12:$B$14,0))&"!"&ADDRESS(ROW(T39),COLUMN(T39)))*IF(DollarType=Ref!$B$17,1,(1+Inflation)^($B39-$B$11)),"-") -> - | U39: =IFERROR(INDIRECT(INDEX(Ref!$C$4:$C$9,MATCH(State,Ref!$B$4:$B$9,0))&INDEX(Ref!$C$12:$C$14,MATCH(Counterfactual,Ref!$B$12:$B$14,0))&"!"&ADDRESS(ROW(U39),COLUMN(U39)))*IF(DollarType=Ref!$B$17,1,(1+Inflation)^($B39-$B$11)),"-") -> - | V39: =IFERROR(INDIRECT(INDEX(Ref!$C$4:$C$9,MATCH(State,Ref!$B$4:$B$9,0))&INDEX(Ref!$C$12:$C$14,MATCH(Counterfactual,Ref!$B$12:$B$14,0))&"!"&ADDRESS(ROW(V39),COLUMN(V39)))*IF(DollarType=Ref!$B$17,1,(1+Inflation)^($B39-$B$11)),"-") -> - | W39: =IFERROR(INDIRECT(INDEX(Ref!$C$4:$C$9,MATCH(State,Ref!$B$4:$B$9,0))&INDEX(Ref!$C$12:$C$14,MATCH(Counterfactual,Ref!$B$12:$B$14,0))&"!"&ADDRESS(ROW(W39),COLUMN(W39)))*IF(DollarType=Ref!$B$17,1,(1+Inflation)^($B39-$B$11)),"-") -> - | X39: =IFERROR(INDIRECT(INDEX(Ref!$C$4:$C$9,MATCH(State,Ref!$B$4:$B$9,0))&INDEX(Ref!$C$12:$C$14,MATCH(Counterfactual,Ref!$B$12:$B$14,0))&"!"&ADDRESS(ROW(X39),COLUMN(X39)))*IF(DollarType=Ref!$B$17,1,(1+Inflation)^($B39-$B$11)),"-") -> 0.0001687361796 | Y39: =IFERROR(INDIRECT(INDEX(Ref!$C$4:$C$9,MATCH(State,Ref!$B$4:$B$9,0))&INDEX(Ref!$C$12:$C$14,MATCH(Counterfactual,Ref!$B$12:$B$14,0))&"!"&ADDRESS(ROW(Y39),COLUMN(Y39)))*IF(DollarType=Ref!$B$17,1,(1+Inflation)^($B39-$B$11)),"-") -> 0.0001432921724 | Z39: =IFERROR(INDIRECT(INDEX(Ref!$C$4:$C$9,MATCH(State,Ref!$B$4:$B$9,0))&INDEX(Ref!$C$12:$C$14,MATCH(Counterfactual,Ref!$B$12:$B$14,0))&"!"&ADDRESS(ROW(Z39),COLUMN(Z39)))*IF(DollarType=Ref!$B$17,1,(1+Inflation)^($B39-$B$11)),"-") -> 67.59671766 | AA39: =IFERROR(INDIRECT(INDEX(Ref!$C$4:$C$9,MATCH(State,Ref!$B$4:$B$9,0))&INDEX(Ref!$C$12:$C$14,MATCH(Counterfactual,Ref!$B$12:$B$14,0))&"!"&ADDRESS(ROW(AA39),COLUMN(AA39)))*IF(DollarType=Ref!$B$17,1,(1+Inflation)^($B39-$B$11)),"-") -> - | AB39: =IFERROR(INDIRECT(INDEX(Ref!$C$4:$C$9,MATCH(State,Ref!$B$4:$B$9,0))&INDEX(Ref!$C$12:$C$14,MATCH(Counterfactual,Ref!$B$12:$B$14,0))&"!"&ADDRESS(ROW(AB39),COLUMN(AB39)))*IF(DollarType=Ref!$B$17,1,(1+Inflation)^($B39-$B$11)),"-") -> - | AC39: =IFERROR(INDIRECT(INDEX(Ref!$C$4:$C$9,MATCH(State,Ref!$B$4:$B$9,0))&INDEX(Ref!$C$12:$C$14,MATCH(Counterfactual,Ref!$B$12:$B$14,0))&"!"&ADDRESS(ROW(AC39),COLUMN(AC39)))*IF(DollarType=Ref!$B$17,1,(1+Inflation)^($B39-$B$11)),"-") -> - | AD39: =IFERROR(INDIRECT(INDEX(Ref!$C$4:$C$9,MATCH(State,Ref!$B$4:$B$9,0))&INDEX(Ref!$C$12:$C$14,MATCH(Counterfactual,Ref!$B$12:$B$14,0))&"!"&ADDRESS(ROW(AD39),COLUMN(AD39)))*IF(DollarType=Ref!$B$17,1,(1+Inflation)^($B39-$B$11)),"-") -> - | AE39: =IFERROR(INDIRECT(INDEX(Ref!$C$4:$C$9,MATCH(State,Ref!$B$4:$B$9,0))&INDEX(Ref!$C$12:$C$14,MATCH(Counterfactual,Ref!$B$12:$B$14,0))&"!"&ADDRESS(ROW(AE39),COLUMN(AE39)))*IF(DollarType=Ref!$B$17,1,(1+Inflation)^($B39-$B$11)),"-") -> - | AF39: =IFERROR(INDIRECT(INDEX(Ref!$C$4:$C$9,MATCH(State,Ref!$B$4:$B$9,0))&INDEX(Ref!$C$12:$C$14,MATCH(Counterfactual,Ref!$B$12:$B$14,0))&"!"&ADDRESS(ROW(AF39),COLUMN(AF39)))*IF(DollarType=Ref!$B$17,1,(1+Inflation)^($B39-$B$11)),"-") -> - | AG39: =IFERROR(INDIRECT(INDEX(Ref!$C$4:$C$9,MATCH(State,Ref!$B$4:$B$9,0))&INDEX(Ref!$C$12:$C$14,MATCH(Counterfactual,Ref!$B$12:$B$14,0))&"!"&ADDRESS(ROW(AG39),COLUMN(AG39)))*IF(DollarType=Ref!$B$17,1,(1+Inflation)^($B39-$B$11)),"-") -> - | AH39: =IFERROR(INDIRECT(INDEX(Ref!$C$4:$C$9,MATCH(State,Ref!$B$4:$B$9,0))&INDEX(Ref!$C$12:$C$14,MATCH(Counterfactual,Ref!$B$12:$B$14,0))&"!"&ADDRESS(ROW(AH39),COLUMN(AH39)))*IF(DollarType=Ref!$B$17,1,(1+Inflation)^($B39-$B$11)),"-") -> 84.01598436 | AJ39: 2049 | AK39: 0.07009544231 | AL39: 0.07283723672 | AM39: 0.06021170648 | AN39: 0.05799600159 | AO39: 0.008062594907 | AP39: 0.006940307127 | AQ39: 0.008122692678 | AR39: 0.00816543415 | AS39: 0.0004077696697 | AT39: 0.0003564145879 | AU39: 0.0004160259485 | AV39: 0.0003769570728 | AW39: - | AX39: - | AY39: - | AZ39: - | BA39: - | BB39: - | BC39: - | BD39: - | BE39: 0.0001986362306 | BF39: 0.0001686835453 | BG39: 78.41219248 | BH39: - | BI39: - | BJ39: - | BK39: - | BL39: - | BM39: - | BN39: - | BO39: 97.45854186
B40: 2050 | C40: =IFERROR(INDIRECT(INDEX(Ref!$C$4:$C$9,MATCH(State,Ref!$B$4:$B$9,0))&INDEX(Ref!$C$12:$C$14,MATCH(Counterfactual,Ref!$B$12:$B$14,0))&"!"&ADDRESS(ROW(C40),COLUMN(C40)))*IF(DollarType=Ref!$B$17,1,(1+Inflation)^($B40-$B$11)),"-") -> 0.0587311728 | D40: =IFERROR(INDIRECT(INDEX(Ref!$C$4:$C$9,MATCH(State,Ref!$B$4:$B$9,0))&INDEX(Ref!$C$12:$C$14,MATCH(Counterfactual,Ref!$B$12:$B$14,0))&"!"&ADDRESS(ROW(D40),COLUMN(D40)))*IF(DollarType=Ref!$B$17,1,(1+Inflation)^($B40-$B$11)),"-") -> 0.06118965142 | E40: =IFERROR(INDIRECT(INDEX(Ref!$C$4:$C$9,MATCH(State,Ref!$B$4:$B$9,0))&INDEX(Ref!$C$12:$C$14,MATCH(Counterfactual,Ref!$B$12:$B$14,0))&"!"&ADDRESS(ROW(E40),COLUMN(E40)))*IF(DollarType=Ref!$B$17,1,(1+Inflation)^($B40-$B$11)),"-") -> 0.0506974609 | F40: =IFERROR(INDIRECT(INDEX(Ref!$C$4:$C$9,MATCH(State,Ref!$B$4:$B$9,0))&INDEX(Ref!$C$12:$C$14,MATCH(Counterfactual,Ref!$B$12:$B$14,0))&"!"&ADDRESS(ROW(F40),COLUMN(F40)))*IF(DollarType=Ref!$B$17,1,(1+Inflation)^($B40-$B$11)),"-") -> 0.04883196198 | G40: =IFERROR(INDIRECT(INDEX(Ref!$C$4:$C$9,MATCH(State,Ref!$B$4:$B$9,0))&INDEX(Ref!$C$12:$C$14,MATCH(Counterfactual,Ref!$B$12:$B$14,0))&"!"&ADDRESS(ROW(G40),COLUMN(G40)))*IF(DollarType=Ref!$B$17,1,(1+Inflation)^($B40-$B$11)),"-") -> 0.001282022194 | H40: =IFERROR(INDIRECT(INDEX(Ref!$C$4:$C$9,MATCH(State,Ref!$B$4:$B$9,0))&INDEX(Ref!$C$12:$C$14,MATCH(Counterfactual,Ref!$B$12:$B$14,0))&"!"&ADDRESS(ROW(H40),COLUMN(H40)))*IF(DollarType=Ref!$B$17,1,(1+Inflation)^($B40-$B$11)),"-") -> 0.006810818315 | I40: =IFERROR(INDIRECT(INDEX(Ref!$C$4:$C$9,MATCH(State,Ref!$B$4:$B$9,0))&INDEX(Ref!$C$12:$C$14,MATCH(Counterfactual,Ref!$B$12:$B$14,0))&"!"&ADDRESS(ROW(I40),COLUMN(I40)))*IF(DollarType=Ref!$B$17,1,(1+Inflation)^($B40-$B$11)),"-") -> 0.005800778227 | J40: =IFERROR(INDIRECT(INDEX(Ref!$C$4:$C$9,MATCH(State,Ref!$B$4:$B$9,0))&INDEX(Ref!$C$12:$C$14,MATCH(Counterfactual,Ref!$B$12:$B$14,0))&"!"&ADDRESS(ROW(J40),COLUMN(J40)))*IF(DollarType=Ref!$B$17,1,(1+Inflation)^($B40-$B$11)),"-") -> 0.006818246918 | K40: =IFERROR(INDIRECT(INDEX(Ref!$C$4:$C$9,MATCH(State,Ref!$B$4:$B$9,0))&INDEX(Ref!$C$12:$C$14,MATCH(Counterfactual,Ref!$B$12:$B$14,0))&"!"&ADDRESS(ROW(K40),COLUMN(K40)))*IF(DollarType=Ref!$B$17,1,(1+Inflation)^($B40-$B$11)),"-") -> 0.006836467873 | L40: =IFERROR(INDIRECT(INDEX(Ref!$C$4:$C$9,MATCH(State,Ref!$B$4:$B$9,0))&INDEX(Ref!$C$12:$C$14,MATCH(Counterfactual,Ref!$B$12:$B$14,0))&"!"&ADDRESS(ROW(L40),COLUMN(L40)))*IF(DollarType=Ref!$B$17,1,(1+Inflation)^($B40-$B$11)),"-") -> 0.0003710343342 | M40: =IFERROR(INDIRECT(INDEX(Ref!$C$4:$C$9,MATCH(State,Ref!$B$4:$B$9,0))&INDEX(Ref!$C$12:$C$14,MATCH(Counterfactual,Ref!$B$12:$B$14,0))&"!"&ADDRESS(ROW(M40),COLUMN(M40)))*IF(DollarType=Ref!$B$17,1,(1+Inflation)^($B40-$B$11)),"-") -> 0.0003223416438 | N40: =IFERROR(INDIRECT(INDEX(Ref!$C$4:$C$9,MATCH(State,Ref!$B$4:$B$9,0))&INDEX(Ref!$C$12:$C$14,MATCH(Counterfactual,Ref!$B$12:$B$14,0))&"!"&ADDRESS(ROW(N40),COLUMN(N40)))*IF(DollarType=Ref!$B$17,1,(1+Inflation)^($B40-$B$11)),"-") -> 0.0003720617255 | O40: =IFERROR(INDIRECT(INDEX(Ref!$C$4:$C$9,MATCH(State,Ref!$B$4:$B$9,0))&INDEX(Ref!$C$12:$C$14,MATCH(Counterfactual,Ref!$B$12:$B$14,0))&"!"&ADDRESS(ROW(O40),COLUMN(O40)))*IF(DollarType=Ref!$B$17,1,(1+Inflation)^($B40-$B$11)),"-") -> 0.0003382919388 | P40: =IFERROR(INDIRECT(INDEX(Ref!$C$4:$C$9,MATCH(State,Ref!$B$4:$B$9,0))&INDEX(Ref!$C$12:$C$14,MATCH(Counterfactual,Ref!$B$12:$B$14,0))&"!"&ADDRESS(ROW(P40),COLUMN(P40)))*IF(DollarType=Ref!$B$17,1,(1+Inflation)^($B40-$B$11)),"-") -> - | Q40: =IFERROR(INDIRECT(INDEX(Ref!$C$4:$C$9,MATCH(State,Ref!$B$4:$B$9,0))&INDEX(Ref!$C$12:$C$14,MATCH(Counterfactual,Ref!$B$12:$B$14,0))&"!"&ADDRESS(ROW(Q40),COLUMN(Q40)))*IF(DollarType=Ref!$B$17,1,(1+Inflation)^($B40-$B$11)),"-") -> - | R40: =IFERROR(INDIRECT(INDEX(Ref!$C$4:$C$9,MATCH(State,Ref!$B$4:$B$9,0))&INDEX(Ref!$C$12:$C$14,MATCH(Counterfactual,Ref!$B$12:$B$14,0))&"!"&ADDRESS(ROW(R40),COLUMN(R40)))*IF(DollarType=Ref!$B$17,1,(1+Inflation)^($B40-$B$11)),"-") -> - | S40: =IFERROR(INDIRECT(INDEX(Ref!$C$4:$C$9,MATCH(State,Ref!$B$4:$B$9,0))&INDEX(Ref!$C$12:$C$14,MATCH(Counterfactual,Ref!$B$12:$B$14,0))&"!"&ADDRESS(ROW(S40),COLUMN(S40)))*IF(DollarType=Ref!$B$17,1,(1+Inflation)^($B40-$B$11)),"-") -> - | T40: =IFERROR(INDIRECT(INDEX(Ref!$C$4:$C$9,MATCH(State,Ref!$B$4:$B$9,0))&INDEX(Ref!$C$12:$C$14,MATCH(Counterfactual,Ref!$B$12:$B$14,0))&"!"&ADDRESS(ROW(T40),COLUMN(T40)))*IF(DollarType=Ref!$B$17,1,(1+Inflation)^($B40-$B$11)),"-") -> - | U40: =IFERROR(INDIRECT(INDEX(Ref!$C$4:$C$9,MATCH(State,Ref!$B$4:$B$9,0))&INDEX(Ref!$C$12:$C$14,MATCH(Counterfactual,Ref!$B$12:$B$14,0))&"!"&ADDRESS(ROW(U40),COLUMN(U40)))*IF(DollarType=Ref!$B$17,1,(1+Inflation)^($B40-$B$11)),"-") -> - | V40: =IFERROR(INDIRECT(INDEX(Ref!$C$4:$C$9,MATCH(State,Ref!$B$4:$B$9,0))&INDEX(Ref!$C$12:$C$14,MATCH(Counterfactual,Ref!$B$12:$B$14,0))&"!"&ADDRESS(ROW(V40),COLUMN(V40)))*IF(DollarType=Ref!$B$17,1,(1+Inflation)^($B40-$B$11)),"-") -> - | W40: =IFERROR(INDIRECT(INDEX(Ref!$C$4:$C$9,MATCH(State,Ref!$B$4:$B$9,0))&INDEX(Ref!$C$12:$C$14,MATCH(Counterfactual,Ref!$B$12:$B$14,0))&"!"&ADDRESS(ROW(W40),COLUMN(W40)))*IF(DollarType=Ref!$B$17,1,(1+Inflation)^($B40-$B$11)),"-") -> - | X40: =IFERROR(INDIRECT(INDEX(Ref!$C$4:$C$9,MATCH(State,Ref!$B$4:$B$9,0))&INDEX(Ref!$C$12:$C$14,MATCH(Counterfactual,Ref!$B$12:$B$14,0))&"!"&ADDRESS(ROW(X40),COLUMN(X40)))*IF(DollarType=Ref!$B$17,1,(1+Inflation)^($B40-$B$11)),"-") -> 0.0001691636254 | Y40: =IFERROR(INDIRECT(INDEX(Ref!$C$4:$C$9,MATCH(State,Ref!$B$4:$B$9,0))&INDEX(Ref!$C$12:$C$14,MATCH(Counterfactual,Ref!$B$12:$B$14,0))&"!"&ADDRESS(ROW(Y40),COLUMN(Y40)))*IF(DollarType=Ref!$B$17,1,(1+Inflation)^($B40-$B$11)),"-") -> 0.0001436551629 | Z40: =IFERROR(INDIRECT(INDEX(Ref!$C$4:$C$9,MATCH(State,Ref!$B$4:$B$9,0))&INDEX(Ref!$C$12:$C$14,MATCH(Counterfactual,Ref!$B$12:$B$14,0))&"!"&ADDRESS(ROW(Z40),COLUMN(Z40)))*IF(DollarType=Ref!$B$17,1,(1+Inflation)^($B40-$B$11)),"-") -> 69.7116994 | AA40: =IFERROR(INDIRECT(INDEX(Ref!$C$4:$C$9,MATCH(State,Ref!$B$4:$B$9,0))&INDEX(Ref!$C$12:$C$14,MATCH(Counterfactual,Ref!$B$12:$B$14,0))&"!"&ADDRESS(ROW(AA40),COLUMN(AA40)))*IF(DollarType=Ref!$B$17,1,(1+Inflation)^($B40-$B$11)),"-") -> - | AB40: =IFERROR(INDIRECT(INDEX(Ref!$C$4:$C$9,MATCH(State,Ref!$B$4:$B$9,0))&INDEX(Ref!$C$12:$C$14,MATCH(Counterfactual,Ref!$B$12:$B$14,0))&"!"&ADDRESS(ROW(AB40),COLUMN(AB40)))*IF(DollarType=Ref!$B$17,1,(1+Inflation)^($B40-$B$11)),"-") -> - | AC40: =IFERROR(INDIRECT(INDEX(Ref!$C$4:$C$9,MATCH(State,Ref!$B$4:$B$9,0))&INDEX(Ref!$C$12:$C$14,MATCH(Counterfactual,Ref!$B$12:$B$14,0))&"!"&ADDRESS(ROW(AC40),COLUMN(AC40)))*IF(DollarType=Ref!$B$17,1,(1+Inflation)^($B40-$B$11)),"-") -> - | AD40: =IFERROR(INDIRECT(INDEX(Ref!$C$4:$C$9,MATCH(State,Ref!$B$4:$B$9,0))&INDEX(Ref!$C$12:$C$14,MATCH(Counterfactual,Ref!$B$12:$B$14,0))&"!"&ADDRESS(ROW(AD40),COLUMN(AD40)))*IF(DollarType=Ref!$B$17,1,(1+Inflation)^($B40-$B$11)),"-") -> - | AE40: =IFERROR(INDIRECT(INDEX(Ref!$C$4:$C$9,MATCH(State,Ref!$B$4:$B$9,0))&INDEX(Ref!$C$12:$C$14,MATCH(Counterfactual,Ref!$B$12:$B$14,0))&"!"&ADDRESS(ROW(AE40),COLUMN(AE40)))*IF(DollarType=Ref!$B$17,1,(1+Inflation)^($B40-$B$11)),"-") -> - | AF40: =IFERROR(INDIRECT(INDEX(Ref!$C$4:$C$9,MATCH(State,Ref!$B$4:$B$9,0))&INDEX(Ref!$C$12:$C$14,MATCH(Counterfactual,Ref!$B$12:$B$14,0))&"!"&ADDRESS(ROW(AF40),COLUMN(AF40)))*IF(DollarType=Ref!$B$17,1,(1+Inflation)^($B40-$B$11)),"-") -> - | AG40: =IFERROR(INDIRECT(INDEX(Ref!$C$4:$C$9,MATCH(State,Ref!$B$4:$B$9,0))&INDEX(Ref!$C$12:$C$14,MATCH(Counterfactual,Ref!$B$12:$B$14,0))&"!"&ADDRESS(ROW(AG40),COLUMN(AG40)))*IF(DollarType=Ref!$B$17,1,(1+Inflation)^($B40-$B$11)),"-") -> - | AH40: =IFERROR(INDIRECT(INDEX(Ref!$C$4:$C$9,MATCH(State,Ref!$B$4:$B$9,0))&INDEX(Ref!$C$12:$C$14,MATCH(Counterfactual,Ref!$B$12:$B$14,0))&"!"&ADDRESS(ROW(AH40),COLUMN(AH40)))*IF(DollarType=Ref!$B$17,1,(1+Inflation)^($B40-$B$11)),"-") -> 84.01598436 | AJ40: 2050 | AK40: 0.07064753315 | AL40: 0.07354165417 | AM40: 0.0611902475 | AN40: 0.05899418217 | AO40: 0.007423791964 | AP40: 0.006322848267 | AQ40: 0.007431889141 | AR40: 0.007451749982 | AS40: 0.0004044274243 | AT40: 0.0003513523917 | AU40: 0.0004055472808 | AV40: 0.0003687382132 | AW40: - | AX40: - | AY40: - | AZ40: - | BA40: - | BB40: - | BC40: - | BD40: - | BE40: 0.0001991394198 | BF40: 0.0001691108577 | BG40: 80.8655713 | BH40: - | BI40: - | BJ40: - | BK40: - | BL40: - | BM40: - | BN40: - | BO40: 97.45854186
B41: 2051 | C41: =IFERROR(INDIRECT(INDEX(Ref!$C$4:$C$9,MATCH(State,Ref!$B$4:$B$9,0))&INDEX(Ref!$C$12:$C$14,MATCH(Counterfactual,Ref!$B$12:$B$14,0))&"!"&ADDRESS(ROW(C41),COLUMN(C41)))*IF(DollarType=Ref!$B$17,1,(1+Inflation)^($B41-$B$11)),"-") -> 0.05940218284 | D41: =IFERROR(INDIRECT(INDEX(Ref!$C$4:$C$9,MATCH(State,Ref!$B$4:$B$9,0))&INDEX(Ref!$C$12:$C$14,MATCH(Counterfactual,Ref!$B$12:$B$14,0))&"!"&ADDRESS(ROW(D41),COLUMN(D41)))*IF(DollarType=Ref!$B$17,1,(1+Inflation)^($B41-$B$11)),"-") -> 0.06199288651 | E41: =IFERROR(INDIRECT(INDEX(Ref!$C$4:$C$9,MATCH(State,Ref!$B$4:$B$9,0))&INDEX(Ref!$C$12:$C$14,MATCH(Counterfactual,Ref!$B$12:$B$14,0))&"!"&ADDRESS(ROW(E41),COLUMN(E41)))*IF(DollarType=Ref!$B$17,1,(1+Inflation)^($B41-$B$11)),"-") -> 0.051744329 | F41: =IFERROR(INDIRECT(INDEX(Ref!$C$4:$C$9,MATCH(State,Ref!$B$4:$B$9,0))&INDEX(Ref!$C$12:$C$14,MATCH(Counterfactual,Ref!$B$12:$B$14,0))&"!"&ADDRESS(ROW(F41),COLUMN(F41)))*IF(DollarType=Ref!$B$17,1,(1+Inflation)^($B41-$B$11)),"-") -> 0.04989706948 | G41: =IFERROR(INDIRECT(INDEX(Ref!$C$4:$C$9,MATCH(State,Ref!$B$4:$B$9,0))&INDEX(Ref!$C$12:$C$14,MATCH(Counterfactual,Ref!$B$12:$B$14,0))&"!"&ADDRESS(ROW(G41),COLUMN(G41)))*IF(DollarType=Ref!$B$17,1,(1+Inflation)^($B41-$B$11)),"-") -> 0.001113185729 | H41: =IFERROR(INDIRECT(INDEX(Ref!$C$4:$C$9,MATCH(State,Ref!$B$4:$B$9,0))&INDEX(Ref!$C$12:$C$14,MATCH(Counterfactual,Ref!$B$12:$B$14,0))&"!"&ADDRESS(ROW(H41),COLUMN(H41)))*IF(DollarType=Ref!$B$17,1,(1+Inflation)^($B41-$B$11)),"-") -> 0.006271194182 | I41: =IFERROR(INDIRECT(INDEX(Ref!$C$4:$C$9,MATCH(State,Ref!$B$4:$B$9,0))&INDEX(Ref!$C$12:$C$14,MATCH(Counterfactual,Ref!$B$12:$B$14,0))&"!"&ADDRESS(ROW(I41),COLUMN(I41)))*IF(DollarType=Ref!$B$17,1,(1+Inflation)^($B41-$B$11)),"-") -> 0.005284699925 | J41: =IFERROR(INDIRECT(INDEX(Ref!$C$4:$C$9,MATCH(State,Ref!$B$4:$B$9,0))&INDEX(Ref!$C$12:$C$14,MATCH(Counterfactual,Ref!$B$12:$B$14,0))&"!"&ADDRESS(ROW(J41),COLUMN(J41)))*IF(DollarType=Ref!$B$17,1,(1+Inflation)^($B41-$B$11)),"-") -> 0.006238381438 | K41: =IFERROR(INDIRECT(INDEX(Ref!$C$4:$C$9,MATCH(State,Ref!$B$4:$B$9,0))&INDEX(Ref!$C$12:$C$14,MATCH(Counterfactual,Ref!$B$12:$B$14,0))&"!"&ADDRESS(ROW(K41),COLUMN(K41)))*IF(DollarType=Ref!$B$17,1,(1+Inflation)^($B41-$B$11)),"-") -> 0.006238939463 | L41: =IFERROR(INDIRECT(INDEX(Ref!$C$4:$C$9,MATCH(State,Ref!$B$4:$B$9,0))&INDEX(Ref!$C$12:$C$14,MATCH(Counterfactual,Ref!$B$12:$B$14,0))&"!"&ADDRESS(ROW(L41),COLUMN(L41)))*IF(DollarType=Ref!$B$17,1,(1+Inflation)^($B41-$B$11)),"-") -> 0.0003679931866 | M41: =IFERROR(INDIRECT(INDEX(Ref!$C$4:$C$9,MATCH(State,Ref!$B$4:$B$9,0))&INDEX(Ref!$C$12:$C$14,MATCH(Counterfactual,Ref!$B$12:$B$14,0))&"!"&ADDRESS(ROW(M41),COLUMN(M41)))*IF(DollarType=Ref!$B$17,1,(1+Inflation)^($B41-$B$11)),"-") -> 0.0003177633895 | N41: =IFERROR(INDIRECT(INDEX(Ref!$C$4:$C$9,MATCH(State,Ref!$B$4:$B$9,0))&INDEX(Ref!$C$12:$C$14,MATCH(Counterfactual,Ref!$B$12:$B$14,0))&"!"&ADDRESS(ROW(N41),COLUMN(N41)))*IF(DollarType=Ref!$B$17,1,(1+Inflation)^($B41-$B$11)),"-") -> 0.0003626904082 | O41: =IFERROR(INDIRECT(INDEX(Ref!$C$4:$C$9,MATCH(State,Ref!$B$4:$B$9,0))&INDEX(Ref!$C$12:$C$14,MATCH(Counterfactual,Ref!$B$12:$B$14,0))&"!"&ADDRESS(ROW(O41),COLUMN(O41)))*IF(DollarType=Ref!$B$17,1,(1+Inflation)^($B41-$B$11)),"-") -> 0.0003309161017 | P41: =IFERROR(INDIRECT(INDEX(Ref!$C$4:$C$9,MATCH(State,Ref!$B$4:$B$9,0))&INDEX(Ref!$C$12:$C$14,MATCH(Counterfactual,Ref!$B$12:$B$14,0))&"!"&ADDRESS(ROW(P41),COLUMN(P41)))*IF(DollarType=Ref!$B$17,1,(1+Inflation)^($B41-$B$11)),"-") -> - | Q41: =IFERROR(INDIRECT(INDEX(Ref!$C$4:$C$9,MATCH(State,Ref!$B$4:$B$9,0))&INDEX(Ref!$C$12:$C$14,MATCH(Counterfactual,Ref!$B$12:$B$14,0))&"!"&ADDRESS(ROW(Q41),COLUMN(Q41)))*IF(DollarType=Ref!$B$17,1,(1+Inflation)^($B41-$B$11)),"-") -> - | R41: =IFERROR(INDIRECT(INDEX(Ref!$C$4:$C$9,MATCH(State,Ref!$B$4:$B$9,0))&INDEX(Ref!$C$12:$C$14,MATCH(Counterfactual,Ref!$B$12:$B$14,0))&"!"&ADDRESS(ROW(R41),COLUMN(R41)))*IF(DollarType=Ref!$B$17,1,(1+Inflation)^($B41-$B$11)),"-") -> - | S41: =IFERROR(INDIRECT(INDEX(Ref!$C$4:$C$9,MATCH(State,Ref!$B$4:$B$9,0))&INDEX(Ref!$C$12:$C$14,MATCH(Counterfactual,Ref!$B$12:$B$14,0))&"!"&ADDRESS(ROW(S41),COLUMN(S41)))*IF(DollarType=Ref!$B$17,1,(1+Inflation)^($B41-$B$11)),"-") -> - | T41: =IFERROR(INDIRECT(INDEX(Ref!$C$4:$C$9,MATCH(State,Ref!$B$4:$B$9,0))&INDEX(Ref!$C$12:$C$14,MATCH(Counterfactual,Ref!$B$12:$B$14,0))&"!"&ADDRESS(ROW(T41),COLUMN(T41)))*IF(DollarType=Ref!$B$17,1,(1+Inflation)^($B41-$B$11)),"-") -> - | U41: =IFERROR(INDIRECT(INDEX(Ref!$C$4:$C$9,MATCH(State,Ref!$B$4:$B$9,0))&INDEX(Ref!$C$12:$C$14,MATCH(Counterfactual,Ref!$B$12:$B$14,0))&"!"&ADDRESS(ROW(U41),COLUMN(U41)))*IF(DollarType=Ref!$B$17,1,(1+Inflation)^($B41-$B$11)),"-") -> - | V41: =IFERROR(INDIRECT(INDEX(Ref!$C$4:$C$9,MATCH(State,Ref!$B$4:$B$9,0))&INDEX(Ref!$C$12:$C$14,MATCH(Counterfactual,Ref!$B$12:$B$14,0))&"!"&ADDRESS(ROW(V41),COLUMN(V41)))*IF(DollarType=Ref!$B$17,1,(1+Inflation)^($B41-$B$11)),"-") -> - | W41: =IFERROR(INDIRECT(INDEX(Ref!$C$4:$C$9,MATCH(State,Ref!$B$4:$B$9,0))&INDEX(Ref!$C$12:$C$14,MATCH(Counterfactual,Ref!$B$12:$B$14,0))&"!"&ADDRESS(ROW(W41),COLUMN(W41)))*IF(DollarType=Ref!$B$17,1,(1+Inflation)^($B41-$B$11)),"-") -> - | X41: =IFERROR(INDIRECT(INDEX(Ref!$C$4:$C$9,MATCH(State,Ref!$B$4:$B$9,0))&INDEX(Ref!$C$12:$C$14,MATCH(Counterfactual,Ref!$B$12:$B$14,0))&"!"&ADDRESS(ROW(X41),COLUMN(X41)))*IF(DollarType=Ref!$B$17,1,(1+Inflation)^($B41-$B$11)),"-") -> 0.000169592154 | Y41: =IFERROR(INDIRECT(INDEX(Ref!$C$4:$C$9,MATCH(State,Ref!$B$4:$B$9,0))&INDEX(Ref!$C$12:$C$14,MATCH(Counterfactual,Ref!$B$12:$B$14,0))&"!"&ADDRESS(ROW(Y41),COLUMN(Y41)))*IF(DollarType=Ref!$B$17,1,(1+Inflation)^($B41-$B$11)),"-") -> 0.0001440190729 | Z41: =IFERROR(INDIRECT(INDEX(Ref!$C$4:$C$9,MATCH(State,Ref!$B$4:$B$9,0))&INDEX(Ref!$C$12:$C$14,MATCH(Counterfactual,Ref!$B$12:$B$14,0))&"!"&ADDRESS(ROW(Z41),COLUMN(Z41)))*IF(DollarType=Ref!$B$17,1,(1+Inflation)^($B41-$B$11)),"-") -> 71.89285518 | AA41: =IFERROR(INDIRECT(INDEX(Ref!$C$4:$C$9,MATCH(State,Ref!$B$4:$B$9,0))&INDEX(Ref!$C$12:$C$14,MATCH(Counterfactual,Ref!$B$12:$B$14,0))&"!"&ADDRESS(ROW(AA41),COLUMN(AA41)))*IF(DollarType=Ref!$B$17,1,(1+Inflation)^($B41-$B$11)),"-") -> - | AB41: =IFERROR(INDIRECT(INDEX(Ref!$C$4:$C$9,MATCH(State,Ref!$B$4:$B$9,0))&INDEX(Ref!$C$12:$C$14,MATCH(Counterfactual,Ref!$B$12:$B$14,0))&"!"&ADDRESS(ROW(AB41),COLUMN(AB41)))*IF(DollarType=Ref!$B$17,1,(1+Inflation)^($B41-$B$11)),"-") -> - | AC41: =IFERROR(INDIRECT(INDEX(Ref!$C$4:$C$9,MATCH(State,Ref!$B$4:$B$9,0))&INDEX(Ref!$C$12:$C$14,MATCH(Counterfactual,Ref!$B$12:$B$14,0))&"!"&ADDRESS(ROW(AC41),COLUMN(AC41)))*IF(DollarType=Ref!$B$17,1,(1+Inflation)^($B41-$B$11)),"-") -> - | AD41: =IFERROR(INDIRECT(INDEX(Ref!$C$4:$C$9,MATCH(State,Ref!$B$4:$B$9,0))&INDEX(Ref!$C$12:$C$14,MATCH(Counterfactual,Ref!$B$12:$B$14,0))&"!"&ADDRESS(ROW(AD41),COLUMN(AD41)))*IF(DollarType=Ref!$B$17,1,(1+Inflation)^($B41-$B$11)),"-") -> - | AE41: =IFERROR(INDIRECT(INDEX(Ref!$C$4:$C$9,MATCH(State,Ref!$B$4:$B$9,0))&INDEX(Ref!$C$12:$C$14,MATCH(Counterfactual,Ref!$B$12:$B$14,0))&"!"&ADDRESS(ROW(AE41),COLUMN(AE41)))*IF(DollarType=Ref!$B$17,1,(1+Inflation)^($B41-$B$11)),"-") -> - | AF41: =IFERROR(INDIRECT(INDEX(Ref!$C$4:$C$9,MATCH(State,Ref!$B$4:$B$9,0))&INDEX(Ref!$C$12:$C$14,MATCH(Counterfactual,Ref!$B$12:$B$14,0))&"!"&ADDRESS(ROW(AF41),COLUMN(AF41)))*IF(DollarType=Ref!$B$17,1,(1+Inflation)^($B41-$B$11)),"-") -> - | AG41: =IFERROR(INDIRECT(INDEX(Ref!$C$4:$C$9,MATCH(State,Ref!$B$4:$B$9,0))&INDEX(Ref!$C$12:$C$14,MATCH(Counterfactual,Ref!$B$12:$B$14,0))&"!"&ADDRESS(ROW(AG41),COLUMN(AG41)))*IF(DollarType=Ref!$B$17,1,(1+Inflation)^($B41-$B$11)),"-") -> - | AH41: =IFERROR(INDIRECT(INDEX(Ref!$C$4:$C$9,MATCH(State,Ref!$B$4:$B$9,0))&INDEX(Ref!$C$12:$C$14,MATCH(Counterfactual,Ref!$B$12:$B$14,0))&"!"&ADDRESS(ROW(AH41),COLUMN(AH41)))*IF(DollarType=Ref!$B$17,1,(1+Inflation)^($B41-$B$11)),"-") -> 84.01598436 | AJ41: 2051 | AK41: 0.07123869188 | AL41: 0.07428846824 | AM41: 0.06222386634 | AN41: 0.06004927243 | AO41: 0.006835601659 | AP41: 0.005760322919 | AQ41: 0.006799835767 | AR41: 0.006800444015 | AS41: 0.0004011125734 | AT41: 0.0003463620945 | AU41: 0.000395332545 | AV41: 0.0003606985509 | AW41: - | AX41: - | AY41: - | AZ41: - | BA41: - | BB41: - | BC41: - | BD41: - | BE41: 0.0001996438837 | BF41: 0.0001695392527 | BG41: 83.39571201 | BH41: - | BI41: - | BJ41: - | BK41: - | BL41: - | BM41: - | BN41: - | BO41: 97.45854186
B42: 2052 | C42: =IFERROR(INDIRECT(INDEX(Ref!$C$4:$C$9,MATCH(State,Ref!$B$4:$B$9,0))&INDEX(Ref!$C$12:$C$14,MATCH(Counterfactual,Ref!$B$12:$B$14,0))&"!"&ADDRESS(ROW(C42),COLUMN(C42)))*IF(DollarType=Ref!$B$17,1,(1+Inflation)^($B42-$B$11)),"-") -> 0.06008085924 | D42: =IFERROR(INDIRECT(INDEX(Ref!$C$4:$C$9,MATCH(State,Ref!$B$4:$B$9,0))&INDEX(Ref!$C$12:$C$14,MATCH(Counterfactual,Ref!$B$12:$B$14,0))&"!"&ADDRESS(ROW(D42),COLUMN(D42)))*IF(DollarType=Ref!$B$17,1,(1+Inflation)^($B42-$B$11)),"-") -> 0.06280666566 | E42: =IFERROR(INDIRECT(INDEX(Ref!$C$4:$C$9,MATCH(State,Ref!$B$4:$B$9,0))&INDEX(Ref!$C$12:$C$14,MATCH(Counterfactual,Ref!$B$12:$B$14,0))&"!"&ADDRESS(ROW(E42),COLUMN(E42)))*IF(DollarType=Ref!$B$17,1,(1+Inflation)^($B42-$B$11)),"-") -> 0.05281281421 | F42: =IFERROR(INDIRECT(INDEX(Ref!$C$4:$C$9,MATCH(State,Ref!$B$4:$B$9,0))&INDEX(Ref!$C$12:$C$14,MATCH(Counterfactual,Ref!$B$12:$B$14,0))&"!"&ADDRESS(ROW(F42),COLUMN(F42)))*IF(DollarType=Ref!$B$17,1,(1+Inflation)^($B42-$B$11)),"-") -> 0.05098540876 | G42: =IFERROR(INDIRECT(INDEX(Ref!$C$4:$C$9,MATCH(State,Ref!$B$4:$B$9,0))&INDEX(Ref!$C$12:$C$14,MATCH(Counterfactual,Ref!$B$12:$B$14,0))&"!"&ADDRESS(ROW(G42),COLUMN(G42)))*IF(DollarType=Ref!$B$17,1,(1+Inflation)^($B42-$B$11)),"-") -> 0.0009665842543 | H42: =IFERROR(INDIRECT(INDEX(Ref!$C$4:$C$9,MATCH(State,Ref!$B$4:$B$9,0))&INDEX(Ref!$C$12:$C$14,MATCH(Counterfactual,Ref!$B$12:$B$14,0))&"!"&ADDRESS(ROW(H42),COLUMN(H42)))*IF(DollarType=Ref!$B$17,1,(1+Inflation)^($B42-$B$11)),"-") -> 0.005774324707 | I42: =IFERROR(INDIRECT(INDEX(Ref!$C$4:$C$9,MATCH(State,Ref!$B$4:$B$9,0))&INDEX(Ref!$C$12:$C$14,MATCH(Counterfactual,Ref!$B$12:$B$14,0))&"!"&ADDRESS(ROW(I42),COLUMN(I42)))*IF(DollarType=Ref!$B$17,1,(1+Inflation)^($B42-$B$11)),"-") -> 0.004814535604 | J42: =IFERROR(INDIRECT(INDEX(Ref!$C$4:$C$9,MATCH(State,Ref!$B$4:$B$9,0))&INDEX(Ref!$C$12:$C$14,MATCH(Counterfactual,Ref!$B$12:$B$14,0))&"!"&ADDRESS(ROW(J42),COLUMN(J42)))*IF(DollarType=Ref!$B$17,1,(1+Inflation)^($B42-$B$11)),"-") -> 0.00570783127 | K42: =IFERROR(INDIRECT(INDEX(Ref!$C$4:$C$9,MATCH(State,Ref!$B$4:$B$9,0))&INDEX(Ref!$C$12:$C$14,MATCH(Counterfactual,Ref!$B$12:$B$14,0))&"!"&ADDRESS(ROW(K42),COLUMN(K42)))*IF(DollarType=Ref!$B$17,1,(1+Inflation)^($B42-$B$11)),"-") -> 0.005693636882 | L42: =IFERROR(INDIRECT(INDEX(Ref!$C$4:$C$9,MATCH(State,Ref!$B$4:$B$9,0))&INDEX(Ref!$C$12:$C$14,MATCH(Counterfactual,Ref!$B$12:$B$14,0))&"!"&ADDRESS(ROW(L42),COLUMN(L42)))*IF(DollarType=Ref!$B$17,1,(1+Inflation)^($B42-$B$11)),"-") -> 0.0003649769654 | M42: =IFERROR(INDIRECT(INDEX(Ref!$C$4:$C$9,MATCH(State,Ref!$B$4:$B$9,0))&INDEX(Ref!$C$12:$C$14,MATCH(Counterfactual,Ref!$B$12:$B$14,0))&"!"&ADDRESS(ROW(M42),COLUMN(M42)))*IF(DollarType=Ref!$B$17,1,(1+Inflation)^($B42-$B$11)),"-") -> 0.0003132501606 | N42: =IFERROR(INDIRECT(INDEX(Ref!$C$4:$C$9,MATCH(State,Ref!$B$4:$B$9,0))&INDEX(Ref!$C$12:$C$14,MATCH(Counterfactual,Ref!$B$12:$B$14,0))&"!"&ADDRESS(ROW(N42),COLUMN(N42)))*IF(DollarType=Ref!$B$17,1,(1+Inflation)^($B42-$B$11)),"-") -> 0.0003535551313 | O42: =IFERROR(INDIRECT(INDEX(Ref!$C$4:$C$9,MATCH(State,Ref!$B$4:$B$9,0))&INDEX(Ref!$C$12:$C$14,MATCH(Counterfactual,Ref!$B$12:$B$14,0))&"!"&ADDRESS(ROW(O42),COLUMN(O42)))*IF(DollarType=Ref!$B$17,1,(1+Inflation)^($B42-$B$11)),"-") -> 0.0003237010814 | P42: =IFERROR(INDIRECT(INDEX(Ref!$C$4:$C$9,MATCH(State,Ref!$B$4:$B$9,0))&INDEX(Ref!$C$12:$C$14,MATCH(Counterfactual,Ref!$B$12:$B$14,0))&"!"&ADDRESS(ROW(P42),COLUMN(P42)))*IF(DollarType=Ref!$B$17,1,(1+Inflation)^($B42-$B$11)),"-") -> - | Q42: =IFERROR(INDIRECT(INDEX(Ref!$C$4:$C$9,MATCH(State,Ref!$B$4:$B$9,0))&INDEX(Ref!$C$12:$C$14,MATCH(Counterfactual,Ref!$B$12:$B$14,0))&"!"&ADDRESS(ROW(Q42),COLUMN(Q42)))*IF(DollarType=Ref!$B$17,1,(1+Inflation)^($B42-$B$11)),"-") -> - | R42: =IFERROR(INDIRECT(INDEX(Ref!$C$4:$C$9,MATCH(State,Ref!$B$4:$B$9,0))&INDEX(Ref!$C$12:$C$14,MATCH(Counterfactual,Ref!$B$12:$B$14,0))&"!"&ADDRESS(ROW(R42),COLUMN(R42)))*IF(DollarType=Ref!$B$17,1,(1+Inflation)^($B42-$B$11)),"-") -> - | S42: =IFERROR(INDIRECT(INDEX(Ref!$C$4:$C$9,MATCH(State,Ref!$B$4:$B$9,0))&INDEX(Ref!$C$12:$C$14,MATCH(Counterfactual,Ref!$B$12:$B$14,0))&"!"&ADDRESS(ROW(S42),COLUMN(S42)))*IF(DollarType=Ref!$B$17,1,(1+Inflation)^($B42-$B$11)),"-") -> - | T42: =IFERROR(INDIRECT(INDEX(Ref!$C$4:$C$9,MATCH(State,Ref!$B$4:$B$9,0))&INDEX(Ref!$C$12:$C$14,MATCH(Counterfactual,Ref!$B$12:$B$14,0))&"!"&ADDRESS(ROW(T42),COLUMN(T42)))*IF(DollarType=Ref!$B$17,1,(1+Inflation)^($B42-$B$11)),"-") -> - | U42: =IFERROR(INDIRECT(INDEX(Ref!$C$4:$C$9,MATCH(State,Ref!$B$4:$B$9,0))&INDEX(Ref!$C$12:$C$14,MATCH(Counterfactual,Ref!$B$12:$B$14,0))&"!"&ADDRESS(ROW(U42),COLUMN(U42)))*IF(DollarType=Ref!$B$17,1,(1+Inflation)^($B42-$B$11)),"-") -> - | V42: =IFERROR(INDIRECT(INDEX(Ref!$C$4:$C$9,MATCH(State,Ref!$B$4:$B$9,0))&INDEX(Ref!$C$12:$C$14,MATCH(Counterfactual,Ref!$B$12:$B$14,0))&"!"&ADDRESS(ROW(V42),COLUMN(V42)))*IF(DollarType=Ref!$B$17,1,(1+Inflation)^($B42-$B$11)),"-") -> - | W42: =IFERROR(INDIRECT(INDEX(Ref!$C$4:$C$9,MATCH(State,Ref!$B$4:$B$9,0))&INDEX(Ref!$C$12:$C$14,MATCH(Counterfactual,Ref!$B$12:$B$14,0))&"!"&ADDRESS(ROW(W42),COLUMN(W42)))*IF(DollarType=Ref!$B$17,1,(1+Inflation)^($B42-$B$11)),"-") -> - | X42: =IFERROR(INDIRECT(INDEX(Ref!$C$4:$C$9,MATCH(State,Ref!$B$4:$B$9,0))&INDEX(Ref!$C$12:$C$14,MATCH(Counterfactual,Ref!$B$12:$B$14,0))&"!"&ADDRESS(ROW(X42),COLUMN(X42)))*IF(DollarType=Ref!$B$17,1,(1+Inflation)^($B42-$B$11)),"-") -> 0.0001700217681 | Y42: =IFERROR(INDIRECT(INDEX(Ref!$C$4:$C$9,MATCH(State,Ref!$B$4:$B$9,0))&INDEX(Ref!$C$12:$C$14,MATCH(Counterfactual,Ref!$B$12:$B$14,0))&"!"&ADDRESS(ROW(Y42),COLUMN(Y42)))*IF(DollarType=Ref!$B$17,1,(1+Inflation)^($B42-$B$11)),"-") -> 0.0001443839049 | Z42: =IFERROR(INDIRECT(INDEX(Ref!$C$4:$C$9,MATCH(State,Ref!$B$4:$B$9,0))&INDEX(Ref!$C$12:$C$14,MATCH(Counterfactual,Ref!$B$12:$B$14,0))&"!"&ADDRESS(ROW(Z42),COLUMN(Z42)))*IF(DollarType=Ref!$B$17,1,(1+Inflation)^($B42-$B$11)),"-") -> 74.14225546 | AA42: =IFERROR(INDIRECT(INDEX(Ref!$C$4:$C$9,MATCH(State,Ref!$B$4:$B$9,0))&INDEX(Ref!$C$12:$C$14,MATCH(Counterfactual,Ref!$B$12:$B$14,0))&"!"&ADDRESS(ROW(AA42),COLUMN(AA42)))*IF(DollarType=Ref!$B$17,1,(1+Inflation)^($B42-$B$11)),"-") -> - | AB42: =IFERROR(INDIRECT(INDEX(Ref!$C$4:$C$9,MATCH(State,Ref!$B$4:$B$9,0))&INDEX(Ref!$C$12:$C$14,MATCH(Counterfactual,Ref!$B$12:$B$14,0))&"!"&ADDRESS(ROW(AB42),COLUMN(AB42)))*IF(DollarType=Ref!$B$17,1,(1+Inflation)^($B42-$B$11)),"-") -> - | AC42: =IFERROR(INDIRECT(INDEX(Ref!$C$4:$C$9,MATCH(State,Ref!$B$4:$B$9,0))&INDEX(Ref!$C$12:$C$14,MATCH(Counterfactual,Ref!$B$12:$B$14,0))&"!"&ADDRESS(ROW(AC42),COLUMN(AC42)))*IF(DollarType=Ref!$B$17,1,(1+Inflation)^($B42-$B$11)),"-") -> - | AD42: =IFERROR(INDIRECT(INDEX(Ref!$C$4:$C$9,MATCH(State,Ref!$B$4:$B$9,0))&INDEX(Ref!$C$12:$C$14,MATCH(Counterfactual,Ref!$B$12:$B$14,0))&"!"&ADDRESS(ROW(AD42),COLUMN(AD42)))*IF(DollarType=Ref!$B$17,1,(1+Inflation)^($B42-$B$11)),"-") -> - | AE42: =IFERROR(INDIRECT(INDEX(Ref!$C$4:$C$9,MATCH(State,Ref!$B$4:$B$9,0))&INDEX(Ref!$C$12:$C$14,MATCH(Counterfactual,Ref!$B$12:$B$14,0))&"!"&ADDRESS(ROW(AE42),COLUMN(AE42)))*IF(DollarType=Ref!$B$17,1,(1+Inflation)^($B42-$B$11)),"-") -> - | AF42: =IFERROR(INDIRECT(INDEX(Ref!$C$4:$C$9,MATCH(State,Ref!$B$4:$B$9,0))&INDEX(Ref!$C$12:$C$14,MATCH(Counterfactual,Ref!$B$12:$B$14,0))&"!"&ADDRESS(ROW(AF42),COLUMN(AF42)))*IF(DollarType=Ref!$B$17,1,(1+Inflation)^($B42-$B$11)),"-") -> - | AG42: =IFERROR(INDIRECT(INDEX(Ref!$C$4:$C$9,MATCH(State,Ref!$B$4:$B$9,0))&INDEX(Ref!$C$12:$C$14,MATCH(Counterfactual,Ref!$B$12:$B$14,0))&"!"&ADDRESS(ROW(AG42),COLUMN(AG42)))*IF(DollarType=Ref!$B$17,1,(1+Inflation)^($B42-$B$11)),"-") -> - | AH42: =IFERROR(INDIRECT(INDEX(Ref!$C$4:$C$9,MATCH(State,Ref!$B$4:$B$9,0))&INDEX(Ref!$C$12:$C$14,MATCH(Counterfactual,Ref!$B$12:$B$14,0))&"!"&ADDRESS(ROW(AH42),COLUMN(AH42)))*IF(DollarType=Ref!$B$17,1,(1+Inflation)^($B42-$B$11)),"-") -> 84.01598436 | AJ42: 2052 | AK42: 0.07186505048 | AL42: 0.0750738698 | AM42: 0.06330910787 | AN42: 0.06115788618 | AO42: 0.00629401393 | AP42: 0.005247843808 | AQ42: 0.006221536084 | AR42: 0.006206064201 | AS42: 0.0003978248923 | AT42: 0.0003414426751 | AU42: 0.0003853750931 | AV42: 0.0003528341787 | AW42: - | AX42: - | AY42: - | AZ42: - | BA42: - | BB42: - | BC42: - | BD42: - | BE42: 0.0002001496254 | BF42: 0.0001699687328 | BG42: 86.00501634 | BH42: - | BI42: - | BJ42: - | BK42: - | BL42: - | BM42: - | BN42: - | BO42: 97.45854186
B43: 2053 | C43: =IFERROR(INDIRECT(INDEX(Ref!$C$4:$C$9,MATCH(State,Ref!$B$4:$B$9,0))&INDEX(Ref!$C$12:$C$14,MATCH(Counterfactual,Ref!$B$12:$B$14,0))&"!"&ADDRESS(ROW(C43),COLUMN(C43)))*IF(DollarType=Ref!$B$17,1,(1+Inflation)^($B43-$B$11)),"-") -> 0.06076728959 | D43: =IFERROR(INDIRECT(INDEX(Ref!$C$4:$C$9,MATCH(State,Ref!$B$4:$B$9,0))&INDEX(Ref!$C$12:$C$14,MATCH(Counterfactual,Ref!$B$12:$B$14,0))&"!"&ADDRESS(ROW(D43),COLUMN(D43)))*IF(DollarType=Ref!$B$17,1,(1+Inflation)^($B43-$B$11)),"-") -> 0.06363112726 | E43: =IFERROR(INDIRECT(INDEX(Ref!$C$4:$C$9,MATCH(State,Ref!$B$4:$B$9,0))&INDEX(Ref!$C$12:$C$14,MATCH(Counterfactual,Ref!$B$12:$B$14,0))&"!"&ADDRESS(ROW(E43),COLUMN(E43)))*IF(DollarType=Ref!$B$17,1,(1+Inflation)^($B43-$B$11)),"-") -> 0.05390336292 | F43: =IFERROR(INDIRECT(INDEX(Ref!$C$4:$C$9,MATCH(State,Ref!$B$4:$B$9,0))&INDEX(Ref!$C$12:$C$14,MATCH(Counterfactual,Ref!$B$12:$B$14,0))&"!"&ADDRESS(ROW(F43),COLUMN(F43)))*IF(DollarType=Ref!$B$17,1,(1+Inflation)^($B43-$B$11)),"-") -> 0.05209748657 | G43: =IFERROR(INDIRECT(INDEX(Ref!$C$4:$C$9,MATCH(State,Ref!$B$4:$B$9,0))&INDEX(Ref!$C$12:$C$14,MATCH(Counterfactual,Ref!$B$12:$B$14,0))&"!"&ADDRESS(ROW(G43),COLUMN(G43)))*IF(DollarType=Ref!$B$17,1,(1+Inflation)^($B43-$B$11)),"-") -> 0.0008392895244 | H43: =IFERROR(INDIRECT(INDEX(Ref!$C$4:$C$9,MATCH(State,Ref!$B$4:$B$9,0))&INDEX(Ref!$C$12:$C$14,MATCH(Counterfactual,Ref!$B$12:$B$14,0))&"!"&ADDRESS(ROW(H43),COLUMN(H43)))*IF(DollarType=Ref!$B$17,1,(1+Inflation)^($B43-$B$11)),"-") -> 0.005316822418 | I43: =IFERROR(INDIRECT(INDEX(Ref!$C$4:$C$9,MATCH(State,Ref!$B$4:$B$9,0))&INDEX(Ref!$C$12:$C$14,MATCH(Counterfactual,Ref!$B$12:$B$14,0))&"!"&ADDRESS(ROW(I43),COLUMN(I43)))*IF(DollarType=Ref!$B$17,1,(1+Inflation)^($B43-$B$11)),"-") -> 0.004386200429 | J43: =IFERROR(INDIRECT(INDEX(Ref!$C$4:$C$9,MATCH(State,Ref!$B$4:$B$9,0))&INDEX(Ref!$C$12:$C$14,MATCH(Counterfactual,Ref!$B$12:$B$14,0))&"!"&ADDRESS(ROW(J43),COLUMN(J43)))*IF(DollarType=Ref!$B$17,1,(1+Inflation)^($B43-$B$11)),"-") -> 0.005222402338 | K43: =IFERROR(INDIRECT(INDEX(Ref!$C$4:$C$9,MATCH(State,Ref!$B$4:$B$9,0))&INDEX(Ref!$C$12:$C$14,MATCH(Counterfactual,Ref!$B$12:$B$14,0))&"!"&ADDRESS(ROW(K43),COLUMN(K43)))*IF(DollarType=Ref!$B$17,1,(1+Inflation)^($B43-$B$11)),"-") -> 0.005195995431 | L43: =IFERROR(INDIRECT(INDEX(Ref!$C$4:$C$9,MATCH(State,Ref!$B$4:$B$9,0))&INDEX(Ref!$C$12:$C$14,MATCH(Counterfactual,Ref!$B$12:$B$14,0))&"!"&ADDRESS(ROW(L43),COLUMN(L43)))*IF(DollarType=Ref!$B$17,1,(1+Inflation)^($B43-$B$11)),"-") -> 0.0003619854664 | M43: =IFERROR(INDIRECT(INDEX(Ref!$C$4:$C$9,MATCH(State,Ref!$B$4:$B$9,0))&INDEX(Ref!$C$12:$C$14,MATCH(Counterfactual,Ref!$B$12:$B$14,0))&"!"&ADDRESS(ROW(M43),COLUMN(M43)))*IF(DollarType=Ref!$B$17,1,(1+Inflation)^($B43-$B$11)),"-") -> 0.0003088010337 | N43: =IFERROR(INDIRECT(INDEX(Ref!$C$4:$C$9,MATCH(State,Ref!$B$4:$B$9,0))&INDEX(Ref!$C$12:$C$14,MATCH(Counterfactual,Ref!$B$12:$B$14,0))&"!"&ADDRESS(ROW(N43),COLUMN(N43)))*IF(DollarType=Ref!$B$17,1,(1+Inflation)^($B43-$B$11)),"-") -> 0.0003446499494 | O43: =IFERROR(INDIRECT(INDEX(Ref!$C$4:$C$9,MATCH(State,Ref!$B$4:$B$9,0))&INDEX(Ref!$C$12:$C$14,MATCH(Counterfactual,Ref!$B$12:$B$14,0))&"!"&ADDRESS(ROW(O43),COLUMN(O43)))*IF(DollarType=Ref!$B$17,1,(1+Inflation)^($B43-$B$11)),"-") -> 0.0003166433713 | P43: =IFERROR(INDIRECT(INDEX(Ref!$C$4:$C$9,MATCH(State,Ref!$B$4:$B$9,0))&INDEX(Ref!$C$12:$C$14,MATCH(Counterfactual,Ref!$B$12:$B$14,0))&"!"&ADDRESS(ROW(P43),COLUMN(P43)))*IF(DollarType=Ref!$B$17,1,(1+Inflation)^($B43-$B$11)),"-") -> - | Q43: =IFERROR(INDIRECT(INDEX(Ref!$C$4:$C$9,MATCH(State,Ref!$B$4:$B$9,0))&INDEX(Ref!$C$12:$C$14,MATCH(Counterfactual,Ref!$B$12:$B$14,0))&"!"&ADDRESS(ROW(Q43),COLUMN(Q43)))*IF(DollarType=Ref!$B$17,1,(1+Inflation)^($B43-$B$11)),"-") -> - | R43: =IFERROR(INDIRECT(INDEX(Ref!$C$4:$C$9,MATCH(State,Ref!$B$4:$B$9,0))&INDEX(Ref!$C$12:$C$14,MATCH(Counterfactual,Ref!$B$12:$B$14,0))&"!"&ADDRESS(ROW(R43),COLUMN(R43)))*IF(DollarType=Ref!$B$17,1,(1+Inflation)^($B43-$B$11)),"-") -> - | S43: =IFERROR(INDIRECT(INDEX(Ref!$C$4:$C$9,MATCH(State,Ref!$B$4:$B$9,0))&INDEX(Ref!$C$12:$C$14,MATCH(Counterfactual,Ref!$B$12:$B$14,0))&"!"&ADDRESS(ROW(S43),COLUMN(S43)))*IF(DollarType=Ref!$B$17,1,(1+Inflation)^($B43-$B$11)),"-") -> - | T43: =IFERROR(INDIRECT(INDEX(Ref!$C$4:$C$9,MATCH(State,Ref!$B$4:$B$9,0))&INDEX(Ref!$C$12:$C$14,MATCH(Counterfactual,Ref!$B$12:$B$14,0))&"!"&ADDRESS(ROW(T43),COLUMN(T43)))*IF(DollarType=Ref!$B$17,1,(1+Inflation)^($B43-$B$11)),"-") -> - | U43: =IFERROR(INDIRECT(INDEX(Ref!$C$4:$C$9,MATCH(State,Ref!$B$4:$B$9,0))&INDEX(Ref!$C$12:$C$14,MATCH(Counterfactual,Ref!$B$12:$B$14,0))&"!"&ADDRESS(ROW(U43),COLUMN(U43)))*IF(DollarType=Ref!$B$17,1,(1+Inflation)^($B43-$B$11)),"-") -> - | V43: =IFERROR(INDIRECT(INDEX(Ref!$C$4:$C$9,MATCH(State,Ref!$B$4:$B$9,0))&INDEX(Ref!$C$12:$C$14,MATCH(Counterfactual,Ref!$B$12:$B$14,0))&"!"&ADDRESS(ROW(V43),COLUMN(V43)))*IF(DollarType=Ref!$B$17,1,(1+Inflation)^($B43-$B$11)),"-") -> - | W43: =IFERROR(INDIRECT(INDEX(Ref!$C$4:$C$9,MATCH(State,Ref!$B$4:$B$9,0))&INDEX(Ref!$C$12:$C$14,MATCH(Counterfactual,Ref!$B$12:$B$14,0))&"!"&ADDRESS(ROW(W43),COLUMN(W43)))*IF(DollarType=Ref!$B$17,1,(1+Inflation)^($B43-$B$11)),"-") -> - | X43: =IFERROR(INDIRECT(INDEX(Ref!$C$4:$C$9,MATCH(State,Ref!$B$4:$B$9,0))&INDEX(Ref!$C$12:$C$14,MATCH(Counterfactual,Ref!$B$12:$B$14,0))&"!"&ADDRESS(ROW(X43),COLUMN(X43)))*IF(DollarType=Ref!$B$17,1,(1+Inflation)^($B43-$B$11)),"-") -> 0.0001704524706 | Y43: =IFERROR(INDIRECT(INDEX(Ref!$C$4:$C$9,MATCH(State,Ref!$B$4:$B$9,0))&INDEX(Ref!$C$12:$C$14,MATCH(Counterfactual,Ref!$B$12:$B$14,0))&"!"&ADDRESS(ROW(Y43),COLUMN(Y43)))*IF(DollarType=Ref!$B$17,1,(1+Inflation)^($B43-$B$11)),"-") -> 0.000144749661 | Z43: =IFERROR(INDIRECT(INDEX(Ref!$C$4:$C$9,MATCH(State,Ref!$B$4:$B$9,0))&INDEX(Ref!$C$12:$C$14,MATCH(Counterfactual,Ref!$B$12:$B$14,0))&"!"&ADDRESS(ROW(Z43),COLUMN(Z43)))*IF(DollarType=Ref!$B$17,1,(1+Inflation)^($B43-$B$11)),"-") -> 76.46203551 | AA43: =IFERROR(INDIRECT(INDEX(Ref!$C$4:$C$9,MATCH(State,Ref!$B$4:$B$9,0))&INDEX(Ref!$C$12:$C$14,MATCH(Counterfactual,Ref!$B$12:$B$14,0))&"!"&ADDRESS(ROW(AA43),COLUMN(AA43)))*IF(DollarType=Ref!$B$17,1,(1+Inflation)^($B43-$B$11)),"-") -> - | AB43: =IFERROR(INDIRECT(INDEX(Ref!$C$4:$C$9,MATCH(State,Ref!$B$4:$B$9,0))&INDEX(Ref!$C$12:$C$14,MATCH(Counterfactual,Ref!$B$12:$B$14,0))&"!"&ADDRESS(ROW(AB43),COLUMN(AB43)))*IF(DollarType=Ref!$B$17,1,(1+Inflation)^($B43-$B$11)),"-") -> - | AC43: =IFERROR(INDIRECT(INDEX(Ref!$C$4:$C$9,MATCH(State,Ref!$B$4:$B$9,0))&INDEX(Ref!$C$12:$C$14,MATCH(Counterfactual,Ref!$B$12:$B$14,0))&"!"&ADDRESS(ROW(AC43),COLUMN(AC43)))*IF(DollarType=Ref!$B$17,1,(1+Inflation)^($B43-$B$11)),"-") -> - | AD43: =IFERROR(INDIRECT(INDEX(Ref!$C$4:$C$9,MATCH(State,Ref!$B$4:$B$9,0))&INDEX(Ref!$C$12:$C$14,MATCH(Counterfactual,Ref!$B$12:$B$14,0))&"!"&ADDRESS(ROW(AD43),COLUMN(AD43)))*IF(DollarType=Ref!$B$17,1,(1+Inflation)^($B43-$B$11)),"-") -> - | AE43: =IFERROR(INDIRECT(INDEX(Ref!$C$4:$C$9,MATCH(State,Ref!$B$4:$B$9,0))&INDEX(Ref!$C$12:$C$14,MATCH(Counterfactual,Ref!$B$12:$B$14,0))&"!"&ADDRESS(ROW(AE43),COLUMN(AE43)))*IF(DollarType=Ref!$B$17,1,(1+Inflation)^($B43-$B$11)),"-") -> - | AF43: =IFERROR(INDIRECT(INDEX(Ref!$C$4:$C$9,MATCH(State,Ref!$B$4:$B$9,0))&INDEX(Ref!$C$12:$C$14,MATCH(Counterfactual,Ref!$B$12:$B$14,0))&"!"&ADDRESS(ROW(AF43),COLUMN(AF43)))*IF(DollarType=Ref!$B$17,1,(1+Inflation)^($B43-$B$11)),"-") -> - | AG43: =IFERROR(INDIRECT(INDEX(Ref!$C$4:$C$9,MATCH(State,Ref!$B$4:$B$9,0))&INDEX(Ref!$C$12:$C$14,MATCH(Counterfactual,Ref!$B$12:$B$14,0))&"!"&ADDRESS(ROW(AG43),COLUMN(AG43)))*IF(DollarType=Ref!$B$17,1,(1+Inflation)^($B43-$B$11)),"-") -> - | AH43: =IFERROR(INDIRECT(INDEX(Ref!$C$4:$C$9,MATCH(State,Ref!$B$4:$B$9,0))&INDEX(Ref!$C$12:$C$14,MATCH(Counterfactual,Ref!$B$12:$B$14,0))&"!"&ADDRESS(ROW(AH43),COLUMN(AH43)))*IF(DollarType=Ref!$B$17,1,(1+Inflation)^($B43-$B$11)),"-") -> 84.01598436 | AJ43: 2053 | AK43: 0.07252326493 | AL43: 0.07589457464 | AM43: 0.06444305045 | AN43: 0.06231717281 | AO43: 0.005795336436 | AP43: 0.004780958468 | AQ43: 0.005692418548 | AR43: 0.005663635019 | AS43: 0.0003945641583 | AT43: 0.0003365931267 | AU43: 0.0003756684449 | AV43: 0.0003451412747 | AW43: - | AX43: - | AY43: - | AZ43: - | BA43: - | BB43: - | BC43: - | BD43: - | BE43: 0.0002006566484 | BF43: 0.0001703993009 | BG43: 88.69596119 | BH43: - | BI43: - | BJ43: - | BK43: - | BL43: - | BM43: - | BN43: - | BO43: 97.45854186
B44: 2054 | C44: =IFERROR(INDIRECT(INDEX(Ref!$C$4:$C$9,MATCH(State,Ref!$B$4:$B$9,0))&INDEX(Ref!$C$12:$C$14,MATCH(Counterfactual,Ref!$B$12:$B$14,0))&"!"&ADDRESS(ROW(C44),COLUMN(C44)))*IF(DollarType=Ref!$B$17,1,(1+Inflation)^($B44-$B$11)),"-") -> 0.06146156248 | D44: =IFERROR(INDIRECT(INDEX(Ref!$C$4:$C$9,MATCH(State,Ref!$B$4:$B$9,0))&INDEX(Ref!$C$12:$C$14,MATCH(Counterfactual,Ref!$B$12:$B$14,0))&"!"&ADDRESS(ROW(D44),COLUMN(D44)))*IF(DollarType=Ref!$B$17,1,(1+Inflation)^($B44-$B$11)),"-") -> 0.06446641156 | E44: =IFERROR(INDIRECT(INDEX(Ref!$C$4:$C$9,MATCH(State,Ref!$B$4:$B$9,0))&INDEX(Ref!$C$12:$C$14,MATCH(Counterfactual,Ref!$B$12:$B$14,0))&"!"&ADDRESS(ROW(E44),COLUMN(E44)))*IF(DollarType=Ref!$B$17,1,(1+Inflation)^($B44-$B$11)),"-") -> 0.05501643071 | F44: =IFERROR(INDIRECT(INDEX(Ref!$C$4:$C$9,MATCH(State,Ref!$B$4:$B$9,0))&INDEX(Ref!$C$12:$C$14,MATCH(Counterfactual,Ref!$B$12:$B$14,0))&"!"&ADDRESS(ROW(F44),COLUMN(F44)))*IF(DollarType=Ref!$B$17,1,(1+Inflation)^($B44-$B$11)),"-") -> 0.05323382066 | G44: =IFERROR(INDIRECT(INDEX(Ref!$C$4:$C$9,MATCH(State,Ref!$B$4:$B$9,0))&INDEX(Ref!$C$12:$C$14,MATCH(Counterfactual,Ref!$B$12:$B$14,0))&"!"&ADDRESS(ROW(G44),COLUMN(G44)))*IF(DollarType=Ref!$B$17,1,(1+Inflation)^($B44-$B$11)),"-") -> 0.0007287589288 | H44: =IFERROR(INDIRECT(INDEX(Ref!$C$4:$C$9,MATCH(State,Ref!$B$4:$B$9,0))&INDEX(Ref!$C$12:$C$14,MATCH(Counterfactual,Ref!$B$12:$B$14,0))&"!"&ADDRESS(ROW(H44),COLUMN(H44)))*IF(DollarType=Ref!$B$17,1,(1+Inflation)^($B44-$B$11)),"-") -> 0.004895568238 | I44: =IFERROR(INDIRECT(INDEX(Ref!$C$4:$C$9,MATCH(State,Ref!$B$4:$B$9,0))&INDEX(Ref!$C$12:$C$14,MATCH(Counterfactual,Ref!$B$12:$B$14,0))&"!"&ADDRESS(ROW(I44),COLUMN(I44)))*IF(DollarType=Ref!$B$17,1,(1+Inflation)^($B44-$B$11)),"-") -> 0.003995972984 | J44: =IFERROR(INDIRECT(INDEX(Ref!$C$4:$C$9,MATCH(State,Ref!$B$4:$B$9,0))&INDEX(Ref!$C$12:$C$14,MATCH(Counterfactual,Ref!$B$12:$B$14,0))&"!"&ADDRESS(ROW(J44),COLUMN(J44)))*IF(DollarType=Ref!$B$17,1,(1+Inflation)^($B44-$B$11)),"-") -> 0.004778257255 | K44: =IFERROR(INDIRECT(INDEX(Ref!$C$4:$C$9,MATCH(State,Ref!$B$4:$B$9,0))&INDEX(Ref!$C$12:$C$14,MATCH(Counterfactual,Ref!$B$12:$B$14,0))&"!"&ADDRESS(ROW(K44),COLUMN(K44)))*IF(DollarType=Ref!$B$17,1,(1+Inflation)^($B44-$B$11)),"-") -> 0.00474184938 | L44: =IFERROR(INDIRECT(INDEX(Ref!$C$4:$C$9,MATCH(State,Ref!$B$4:$B$9,0))&INDEX(Ref!$C$12:$C$14,MATCH(Counterfactual,Ref!$B$12:$B$14,0))&"!"&ADDRESS(ROW(L44),COLUMN(L44)))*IF(DollarType=Ref!$B$17,1,(1+Inflation)^($B44-$B$11)),"-") -> 0.0003590184869 | M44: =IFERROR(INDIRECT(INDEX(Ref!$C$4:$C$9,MATCH(State,Ref!$B$4:$B$9,0))&INDEX(Ref!$C$12:$C$14,MATCH(Counterfactual,Ref!$B$12:$B$14,0))&"!"&ADDRESS(ROW(M44),COLUMN(M44)))*IF(DollarType=Ref!$B$17,1,(1+Inflation)^($B44-$B$11)),"-") -> 0.0003044150982 | N44: =IFERROR(INDIRECT(INDEX(Ref!$C$4:$C$9,MATCH(State,Ref!$B$4:$B$9,0))&INDEX(Ref!$C$12:$C$14,MATCH(Counterfactual,Ref!$B$12:$B$14,0))&"!"&ADDRESS(ROW(N44),COLUMN(N44)))*IF(DollarType=Ref!$B$17,1,(1+Inflation)^($B44-$B$11)),"-") -> 0.0003359690672 | O44: =IFERROR(INDIRECT(INDEX(Ref!$C$4:$C$9,MATCH(State,Ref!$B$4:$B$9,0))&INDEX(Ref!$C$12:$C$14,MATCH(Counterfactual,Ref!$B$12:$B$14,0))&"!"&ADDRESS(ROW(O44),COLUMN(O44)))*IF(DollarType=Ref!$B$17,1,(1+Inflation)^($B44-$B$11)),"-") -> 0.0003097395417 | P44: =IFERROR(INDIRECT(INDEX(Ref!$C$4:$C$9,MATCH(State,Ref!$B$4:$B$9,0))&INDEX(Ref!$C$12:$C$14,MATCH(Counterfactual,Ref!$B$12:$B$14,0))&"!"&ADDRESS(ROW(P44),COLUMN(P44)))*IF(DollarType=Ref!$B$17,1,(1+Inflation)^($B44-$B$11)),"-") -> - | Q44: =IFERROR(INDIRECT(INDEX(Ref!$C$4:$C$9,MATCH(State,Ref!$B$4:$B$9,0))&INDEX(Ref!$C$12:$C$14,MATCH(Counterfactual,Ref!$B$12:$B$14,0))&"!"&ADDRESS(ROW(Q44),COLUMN(Q44)))*IF(DollarType=Ref!$B$17,1,(1+Inflation)^($B44-$B$11)),"-") -> - | R44: =IFERROR(INDIRECT(INDEX(Ref!$C$4:$C$9,MATCH(State,Ref!$B$4:$B$9,0))&INDEX(Ref!$C$12:$C$14,MATCH(Counterfactual,Ref!$B$12:$B$14,0))&"!"&ADDRESS(ROW(R44),COLUMN(R44)))*IF(DollarType=Ref!$B$17,1,(1+Inflation)^($B44-$B$11)),"-") -> - | S44: =IFERROR(INDIRECT(INDEX(Ref!$C$4:$C$9,MATCH(State,Ref!$B$4:$B$9,0))&INDEX(Ref!$C$12:$C$14,MATCH(Counterfactual,Ref!$B$12:$B$14,0))&"!"&ADDRESS(ROW(S44),COLUMN(S44)))*IF(DollarType=Ref!$B$17,1,(1+Inflation)^($B44-$B$11)),"-") -> - | T44: =IFERROR(INDIRECT(INDEX(Ref!$C$4:$C$9,MATCH(State,Ref!$B$4:$B$9,0))&INDEX(Ref!$C$12:$C$14,MATCH(Counterfactual,Ref!$B$12:$B$14,0))&"!"&ADDRESS(ROW(T44),COLUMN(T44)))*IF(DollarType=Ref!$B$17,1,(1+Inflation)^($B44-$B$11)),"-") -> - | U44: =IFERROR(INDIRECT(INDEX(Ref!$C$4:$C$9,MATCH(State,Ref!$B$4:$B$9,0))&INDEX(Ref!$C$12:$C$14,MATCH(Counterfactual,Ref!$B$12:$B$14,0))&"!"&ADDRESS(ROW(U44),COLUMN(U44)))*IF(DollarType=Ref!$B$17,1,(1+Inflation)^($B44-$B$11)),"-") -> - | V44: =IFERROR(INDIRECT(INDEX(Ref!$C$4:$C$9,MATCH(State,Ref!$B$4:$B$9,0))&INDEX(Ref!$C$12:$C$14,MATCH(Counterfactual,Ref!$B$12:$B$14,0))&"!"&ADDRESS(ROW(V44),COLUMN(V44)))*IF(DollarType=Ref!$B$17,1,(1+Inflation)^($B44-$B$11)),"-") -> - | W44: =IFERROR(INDIRECT(INDEX(Ref!$C$4:$C$9,MATCH(State,Ref!$B$4:$B$9,0))&INDEX(Ref!$C$12:$C$14,MATCH(Counterfactual,Ref!$B$12:$B$14,0))&"!"&ADDRESS(ROW(W44),COLUMN(W44)))*IF(DollarType=Ref!$B$17,1,(1+Inflation)^($B44-$B$11)),"-") -> - | X44: =IFERROR(INDIRECT(INDEX(Ref!$C$4:$C$9,MATCH(State,Ref!$B$4:$B$9,0))&INDEX(Ref!$C$12:$C$14,MATCH(Counterfactual,Ref!$B$12:$B$14,0))&"!"&ADDRESS(ROW(X44),COLUMN(X44)))*IF(DollarType=Ref!$B$17,1,(1+Inflation)^($B44-$B$11)),"-") -> 0.0001708842641 | Y44: =IFERROR(INDIRECT(INDEX(Ref!$C$4:$C$9,MATCH(State,Ref!$B$4:$B$9,0))&INDEX(Ref!$C$12:$C$14,MATCH(Counterfactual,Ref!$B$12:$B$14,0))&"!"&ADDRESS(ROW(Y44),COLUMN(Y44)))*IF(DollarType=Ref!$B$17,1,(1+Inflation)^($B44-$B$11)),"-") -> 0.0001451163437 | Z44: =IFERROR(INDIRECT(INDEX(Ref!$C$4:$C$9,MATCH(State,Ref!$B$4:$B$9,0))&INDEX(Ref!$C$12:$C$14,MATCH(Counterfactual,Ref!$B$12:$B$14,0))&"!"&ADDRESS(ROW(Z44),COLUMN(Z44)))*IF(DollarType=Ref!$B$17,1,(1+Inflation)^($B44-$B$11)),"-") -> 78.85439736 | AA44: =IFERROR(INDIRECT(INDEX(Ref!$C$4:$C$9,MATCH(State,Ref!$B$4:$B$9,0))&INDEX(Ref!$C$12:$C$14,MATCH(Counterfactual,Ref!$B$12:$B$14,0))&"!"&ADDRESS(ROW(AA44),COLUMN(AA44)))*IF(DollarType=Ref!$B$17,1,(1+Inflation)^($B44-$B$11)),"-") -> - | AB44: =IFERROR(INDIRECT(INDEX(Ref!$C$4:$C$9,MATCH(State,Ref!$B$4:$B$9,0))&INDEX(Ref!$C$12:$C$14,MATCH(Counterfactual,Ref!$B$12:$B$14,0))&"!"&ADDRESS(ROW(AB44),COLUMN(AB44)))*IF(DollarType=Ref!$B$17,1,(1+Inflation)^($B44-$B$11)),"-") -> - | AC44: =IFERROR(INDIRECT(INDEX(Ref!$C$4:$C$9,MATCH(State,Ref!$B$4:$B$9,0))&INDEX(Ref!$C$12:$C$14,MATCH(Counterfactual,Ref!$B$12:$B$14,0))&"!"&ADDRESS(ROW(AC44),COLUMN(AC44)))*IF(DollarType=Ref!$B$17,1,(1+Inflation)^($B44-$B$11)),"-") -> - | AD44: =IFERROR(INDIRECT(INDEX(Ref!$C$4:$C$9,MATCH(State,Ref!$B$4:$B$9,0))&INDEX(Ref!$C$12:$C$14,MATCH(Counterfactual,Ref!$B$12:$B$14,0))&"!"&ADDRESS(ROW(AD44),COLUMN(AD44)))*IF(DollarType=Ref!$B$17,1,(1+Inflation)^($B44-$B$11)),"-") -> - | AE44: =IFERROR(INDIRECT(INDEX(Ref!$C$4:$C$9,MATCH(State,Ref!$B$4:$B$9,0))&INDEX(Ref!$C$12:$C$14,MATCH(Counterfactual,Ref!$B$12:$B$14,0))&"!"&ADDRESS(ROW(AE44),COLUMN(AE44)))*IF(DollarType=Ref!$B$17,1,(1+Inflation)^($B44-$B$11)),"-") -> - | AF44: =IFERROR(INDIRECT(INDEX(Ref!$C$4:$C$9,MATCH(State,Ref!$B$4:$B$9,0))&INDEX(Ref!$C$12:$C$14,MATCH(Counterfactual,Ref!$B$12:$B$14,0))&"!"&ADDRESS(ROW(AF44),COLUMN(AF44)))*IF(DollarType=Ref!$B$17,1,(1+Inflation)^($B44-$B$11)),"-") -> - | AG44: =IFERROR(INDIRECT(INDEX(Ref!$C$4:$C$9,MATCH(State,Ref!$B$4:$B$9,0))&INDEX(Ref!$C$12:$C$14,MATCH(Counterfactual,Ref!$B$12:$B$14,0))&"!"&ADDRESS(ROW(AG44),COLUMN(AG44)))*IF(DollarType=Ref!$B$17,1,(1+Inflation)^($B44-$B$11)),"-") -> - | AH44: =IFERROR(INDIRECT(INDEX(Ref!$C$4:$C$9,MATCH(State,Ref!$B$4:$B$9,0))&INDEX(Ref!$C$12:$C$14,MATCH(Counterfactual,Ref!$B$12:$B$14,0))&"!"&ADDRESS(ROW(AH44),COLUMN(AH44)))*IF(DollarType=Ref!$B$17,1,(1+Inflation)^($B44-$B$11)),"-") -> 84.01598436 | AJ44: 2054 | AK44: 0.07321044636 | AL44: 0.0767477547 | AM44: 0.06562323724 | AN44: 0.06352474869 | AO44: 0.005336169379 | AP44: 0.004355610553 | AQ44: 0.005208300408 | AR44: 0.005168615824 | AS44: 0.0003913301507 | AT44: 0.000331812457 | AU44: 0.0003662062832 | AV44: 0.0003376161005 | AW44: - | AX44: - | AY44: - | AZ44: - | BA44: - | BB44: - | BC44: - | BD44: - | BE44: 0.0002011649557 | BF44: 0.0001708309598 | BG44: 91.47110094 | BH44: - | BI44: - | BJ44: - | BK44: - | BL44: - | BM44: - | BN44: - | BO44: 97.45854186
